Workbook

Sheet Simulación Cliente
V6: Porcentaje %
D7: Tipo de Inmueble: | E7: Local Comercial | V7: Valor
D8: Valor del Inmueble | E8: 450000
D9: Valor Cuota Inicial * | E9: 40000 | I9: Editar Manualmente
D10: Valor Asegurable aproximado | E10: =_xlfn.IFS(E7="",0,OR(E7="Departamento",E7="Local Comercial",E7="Oficina"),E8*100%,OR(E7="Casa",E7="Otros"),E8*0.8) -> 450000 | I10: Seleccionar en Lista | W10: SD. Exonerado | X10: 0
D11: Bono Buen Pagador | E11: NO | F11: =IF(E11="NO",0,7500) -> 0
D12: Bono Verde | E12: NO | F12: =IF(E12="NO",0,5400) -> 0
D13: % Cuota Inicial | E13: =E9/$E$8 -> 0.08888888889
D14: Monto a Financiar | E14: =E8-E9-F11-F12 -> 410000 | Q14: Columna1 | R14: Columna2 | W14: Columna1 | X14: Columna2
Q15: Seguro Desgravamen sin retorno Titular | R15: 0.0285 | W15: Seguro Desgravamen Endosado | X15: 0
D16: Plazo (meses) | E16: 240 | Q16: Seguro Desgravamen con retorno Titular | R16: 0.0485 | W16: Sin Seguro Desgravamen (Opción solo para Libre Disponibilidad con Garantía Hipotecaria) | X16: 0
D17: Seg. Desgravamen (% mensual) ** | E17: Seguro Desgravamen Endosado | F17: =+VLOOKUP(E17,$Q$10:$R$47,2,0)/100 -> 0 | Q17: Seguro Desgravamen sin retorno Titular + Cónyuge | R17: 0.0546 | W17: SR Titular Premium | X17: 0.025
D18: Seg. Del Bien (% mensual) | E18: Seguro del Bien Hipotecario | F18: =+VLOOKUP(E18,$W$52:$X$53,2,0)/100 -> 0.00028 | Q18: Seguro Desgravamen con retorno Titular + Cónyuge | R18: 0.0928 | W18: CR Titular Premium | X18: 0.047
D19: Envío estado de cuenta**** | E19: 0 | Q19: Seguro Desgravamen sin retorno Titular c/sobretasa | R19: 0.057 | W19: SR Titular + Cony. Premium | X19: 0.0425
D20: TEA *** (Tasa efectiva anual) | E20: 0.09 | Q20: Seguro Desgravamen con retorno Titular c/sobretasa | R20: 0.0969 | W20: CR Titular + Cony. Premium | X20: 0.0799
D21: TCEA (Tasa de costo efectivo anual) debes borrar la TCEA y presionar el botón para un nuevo cálculo: | H21: Simple | Q21: Seguro Desgravamen sin retorno Titular + Cónyuge c/sobretasa | R21: 0.1092 | W21: SR SD. Hipotecario CV/BF Titular CAMPAØA | X21: 0.0285
Q22: Seguro Desgravamen con retorno Titular + Cónyuge c/sobretasa | R22: 0.1856 | W22: CR SD. Hipotecario CV/BF Titular CAMPAØA | X22: 0.0485
I23: Cuota Doble | Q23: Seguro Desgravamen Endosado | R23: 0 | W23: SR SD. Hipotecario CV/BF Tit.+ Cony.CAMP | X23: 0.0546
D24: Valor Cuota Simple | E24: =+'Simulador Detalle'!$C$17 -> 3756.649503 | G24: Valor Cuota con cuotas dobles | H24: =+'Simulador Detalle'!$Y$17 -> 3213.285647 | I24: =+H24*2 -> 6426.571293 | Q24: Sin Seguro Desgravamen (Opción solo para Libre Disponibilidad con Garantía Hipotecaria) | R24: 0 | W24: CR SD. Hipotecario CV/BF Tit.+ Cony.CAMP | X24: 0.0928
D25: Valor Seg. Desgravamen (promedio mensual) | E25: =+AVERAGE('Simulador Detalle'!$I$22:$I$381) -> 0 | G25: Valor Seg. Desgravamen (promedio mensual) | H25: =+AVERAGE('Simulador Detalle'!$AE$22:$AE$381) -> 0 | W25: SR Desgravamen TIT Sobretasa (100%) | X25: 0.057
D26: Valor Seg. Del Bien (mensual) | E26: =+'Simulador Detalle'!$J$22 -> 126 | G26: Valor Seg. Del Bien (mensual) | H26: =+'Simulador Detalle'!$AF$22 -> 126 | W26: CR Desgravamen TIT Sobretasa (100%) | X26: 0.0969
W27: SR Desgravamen TIT + CONY Sobretasa (100 | X27: 0.0819
W28: CR Desgravamen TIT + CONY Sobretasa (100 | X28: 0.1392
W29: SR Degravamen TIT Sobretasa 50% | X29: 0.0428
D30: Simulaciones adicionales | W30: CR Degravamen TIT Sobretasa 50% | X30: 0.0728
D31: Plazo | E31: Valor Cuota Simple | F31: Valor Cuota con cuotas dobles | W31: SR Degravamen TIT Sobretasa(50%)+CONY | X31: 0.0683
D32: 180 meses | E32: =+'Simulador Detalle'!$AP$17 -> 4230.78159 | F32: =+'Simulador Detalle'!$BG$17 -> 3618.838764 | W32: CR Degravamen TIT Sobretasa(50%)+CONY | X32: 0.1161
D33: 240 meses | E33: =+'Simulador Detalle'!$BX$17 -> 3756.649503 | F33: =+'Simulador Detalle'!$CO$17 -> 3213.285647 | W33: SR Desgravamen TIT+ CONY Sobretasa (50%) | X33: 0.0683
I34: =+TODAY() -> 2026-05-06 | W34: CR Desgravamen TIT+ CONY Sobretasa (50%) | X34: 0.11
W35: SR Desgravamen TIT Sobretasa(100%)+CONY | X35: 0.0819
W36: CR Desgravamen TIT Sobretasa(100%)+CONY | X36: 0.13
D37: Importante: | W37: SR Desgravamen (TIT+CONY)Sobretasa (50%) | X37: 0.0819
D38: * Para el producto Libre Disponibilidad con Garantía Hipotecaria (LDGH), no se debe digitar cuota inicial. ** La opción de "Sin seguro de Desgravamen" es solo para el produco Libre Disponibilidad con Garantía Hipotecaria. *** La tasa efectiva anual (TEA) es fija y debe ser ingresada según lo indicado en tarifario de la Web de Scotiabank. **** Costo envío físico de Estado de Cuenta → Valor cuota: Incluye el seguro de desgravamen (CARDIF BNP Paribas), calculado sobre el saldo del crédito, y el seguro del inmueble (MAPFRE), calculado sobre el valor asegurable, según la opción elegida por el cliente. → Endoso de seguro: El cliente puede endosar su póliza de seguro a favor del banco, siempre que cumpla con los requisitos establecidos por la entidad financiera. → Los términos son referenciales y sujetos a evaluación crediticia. La información del simulador es estimativa y puede variar según condiciones del mercado. | W38: CR Desgravamen (TIT+CONY)Sobretasa (50%) | X38: 0.1392
W39: SR Desgravamen (TIT+CONY ) Sobretasa (10 | X39: 0.1092
W40: CR Desgravamen (TIT+CONY ) Sobretasa (10 | X40: 0.1856
W41: SR SD Titul.Sobretasa100%+Cony.Sobretasa | X41: 0.0956
W42: CR SD Titul.Sobretasa100%+Cony.Sobretasa | X42: 0.1625
W43: SR SD Titul.Sobretasa50%+Cony.Sobretasa1 | X43: 0.0956
V44: Colaborador | W44: CR SD Titul.Sobretasa50%+Cony.Sobretasa1 | X44: 0.1625
V45: Colaborador | W45: CR Desgravamen TIT Sobretasa(100%)+CONY | X45: 0.13
V46: Colaborador | W46: CR Desgravamen (TIT+CONY)Sobretasa (50%) | X46: 0.1392
W47: CR SD. HIPOT. WP(Tit + Cony)Sobretasa (N | X47: 0.1392
W48: CR Desgravamen TIT + CONY Sobretasa (100 | X48: 0.1392
W49: CR SD Titul.Sobretasa50%+Cony.Sobretasa1 | X49: 0.1625
W50: CR SD Titul.Sobretasa100%+Cony.Sobretasa | X50: 0.1625
V51: CV | W51: CR Desgravamen (TIT+CONY ) Sobretasa (10 | X51: 0.18
V52: CV | W52: Seguro del Bien Hipotecario | X52: 0.028
V53: CV | W53: Seguro del Bien Endosado | X53: 0
V54: LDGH

Sheet Hoja1 (hidden)
D4: BIEN FUTURO-DEPARTAMENTO | F4: Departamento | G4: 1
D5: BIEN FUTURO-OFICINA | F5: Casa | G5: 0.8
D6: BIEN TERMINADO-DEPARTAMENTO | F6: Local Comercial | G6: 1
D7: BIEN TERMINADO-OFICINA | F7: Oficina | G7: 1
D8: BIEN TERMINADO-LOCAL COMERCIAL | F8: Otros | G8: 0.8
D9: OTROS HIPOTECARIO
F12: 11
F13: 0

Sheet Simulador Detalle (hidden)
B1: Simulacion con Cuota simple | X1: simulacion con Cuota Doble | AO1: simulacion a 180 | BF1: simulacion a 180 con CD | BW1: simulacion a 240 | CN1: simulacion a 240 con CD
B3: MAF | C3: =+'Simulación Cliente'!$E$14 -> 410000 | X3: MAF | Y3: =+'Simulación Cliente'!$E$14 -> 410000 | AO3: MAF | AP3: =+'Simulación Cliente'!$E$14 -> 410000 | BF3: MAF | BG3: =+'Simulación Cliente'!$E$14 -> 410000 | BW3: MAF | BX3: =+'Simulación Cliente'!$E$14 -> 410000 | CN3: MAF | CO3: =+'Simulación Cliente'!$E$14 -> 410000
B4: Monto del Bien | C4: =+'Simulación Cliente'!$E$8 -> 450000 | D4: ='Simulación Cliente'!$E$10 -> 450000 | X4: Monto del Bien | Y4: =+'Simulación Cliente'!$E$8 -> 450000 | Z4: ='Simulación Cliente'!$E$10 -> 450000 | AO4: Monto del Bien | AP4: =+'Simulación Cliente'!$E$8 -> 450000 | AQ4: ='Simulación Cliente'!$E$10 -> 450000 | BF4: Monto del Bien | BG4: =+'Simulación Cliente'!$E$8 -> 450000 | BH4: ='Simulación Cliente'!$E$10 -> 450000 | BW4: Monto del Bien | BX4: =+'Simulación Cliente'!$E$8 -> 450000 | BY4: ='Simulación Cliente'!$E$10 -> 450000 | CN4: Monto del Bien | CO4: =+'Simulación Cliente'!$E$8 -> 450000 | CP4: ='Simulación Cliente'!$E$10 -> 450000
B5: Moneda | C5: Soles | X5: Moneda | Y5: Soles | AO5: Moneda | AP5: Soles | BF5: Moneda | BG5: Soles | BW5: Moneda | BX5: Soles | CN5: Moneda | CO5: Soles
B6: Plazo | C6: =+'Simulación Cliente'!$E$16 -> 240 | X6: Plazo | Y6: =+'Simulación Cliente'!$E$16 -> 240 | AO6: Plazo | AP6: 180 | BF6: Plazo | BG6: 180 | BW6: Plazo | BX6: 240 | CN6: Plazo | CO6: 240
B7: Fecha de Desembolso | C7: =TODAY() -> 2026-05-06 | X7: Fecha de Desembolso | Y7: =TODAY() -> 2026-05-06 | AO7: Fecha de Desembolso | AP7: =TODAY() -> 2026-05-06 | BF7: Fecha de Desembolso | BG7: =TODAY() -> 2026-05-06 | BW7: Fecha de Desembolso | BX7: =TODAY() -> 2026-05-06 | CN7: Fecha de Desembolso | CO7: =TODAY() -> 2026-05-06
B8: Fecha de 1er Pago | C8: =EDATE(C7,1) -> 2026-06-06 | X8: Fecha de 1er Pago | Y8: =EDATE(Y7,1) -> 2026-06-06 | AO8: Fecha de 1er Pago | AP8: =EDATE(AP7,1) -> 2026-06-06 | BF8: Fecha de 1er Pago | BG8: =EDATE(BG7,1) -> 2026-06-06 | BW8: Fecha de 1er Pago | BX8: =EDATE(BX7,1) -> 2026-06-06 | CN8: Fecha de 1er Pago | CO8: =EDATE(CO7,1) -> 2026-06-06
B9: Cuota Julio | C9: 1 | X9: Cuota Julio | Y9: 2 | AO9: Cuota Julio | AP9: 1 | BF9: Cuota Julio | BG9: 2 | BW9: Cuota Julio | BX9: 1 | CN9: Cuota Julio | CO9: 2
B10: Cuota Diciembre | C10: 1 | X10: Cuota Diciembre | Y10: 2 | AO10: Cuota Diciembre | AP10: 1 | BF10: Cuota Diciembre | BG10: 2 | BW10: Cuota Diciembre | BX10: 1 | CN10: Cuota Diciembre | CO10: 2
B11: TEA | C11: =+'Simulación Cliente'!$E$20 -> 0.09 | X11: TEA | Y11: =+'Simulación Cliente'!$E$20 -> 0.09 | AO11: TEA | AP11: =+'Simulación Cliente'!$E$20 -> 0.09 | BF11: TEA | BG11: =+'Simulación Cliente'!$E$20 -> 0.09 | BW11: TEA | BX11: =+'Simulación Cliente'!$E$20 -> 0.09 | CN11: TEA | CO11: =+'Simulación Cliente'!$E$20 -> 0.09
B12: Seguro de Desgravamen | C12: =+'Simulación Cliente'!$F$17 -> 0 | X12: Seguro de Desgravamen | Y12: =+'Simulación Cliente'!$F$17 -> 0 | AO12: Seguro de Desgravamen | AP12: =+'Simulación Cliente'!$F$17 -> 0 | BF12: Seguro de Desgravamen | BG12: =+'Simulación Cliente'!$F$17 -> 0 | BW12: Seguro de Desgravamen | BX12: =+'Simulación Cliente'!$F$17 -> 0 | CN12: Seguro de Desgravamen | CO12: =+'Simulación Cliente'!$F$17 -> 0
B13: TCEA | C13: =(1+(((1+C11)^(30/360)-1)+C12+C16))^12-1 -> 0.09 | X13: TCEA | Y13: =(1+(((1+Y11)^(30/360)-1)+Y12+Y16))^12-1 -> 0.09 | AO13: TCEA | AP13: =(1+(((1+AP11)^(30/360)-1)+AP12+AP16))^12-1 -> 0.09 | BF13: TCEA | BG13: =(1+(((1+BG11)^(30/360)-1)+BG12+BG16))^12-1 -> 0.09 | BW13: TCEA | BX13: =(1+(((1+BX11)^(30/360)-1)+BX12+BX16))^12-1 -> 0.09 | CN13: TCEA | CO13: =(1+(((1+CO11)^(30/360)-1)+CO12+CO16))^12-1 -> 0.09
B14: Seguro del Bien | C14: =+'Simulación Cliente'!$F$18 -> 0.00028 | X14: Seguro del Bien | Y14: =+'Simulación Cliente'!$F$18 -> 0.00028 | AO14: Seguro del Bien | AP14: =+'Simulación Cliente'!$F$18 -> 0.00028 | BF14: Seguro del Bien | BG14: =+'Simulación Cliente'!$F$18 -> 0.00028 | BW14: Seguro del Bien | BX14: =+'Simulación Cliente'!$F$18 -> 0.00028 | CN14: Seguro del Bien | CO14: =+'Simulación Cliente'!$F$18 -> 0.00028
B15: Envío estado de cuenta | C15: =+'Simulación Cliente'!$E$19 -> 0 | X15: Envío estado de cuenta | Y15: =+'Simulación Cliente'!$E$19 -> 0 | AO15: Envío estado de cuenta | AP15: =+'Simulación Cliente'!$E$19 -> 0 | BF15: Envío estado de cuenta | BG15: =+'Simulación Cliente'!$E$19 -> 0 | BW15: Envío estado de cuenta | BX15: =+'Simulación Cliente'!$E$19 -> 0 | CN15: Envío estado de cuenta | CO15: =+'Simulación Cliente'!$E$19 -> 0
B16: % Portes | C16: =C15/C3 -> 0 | X16: % Portes | Y16: =Y15/Y3 -> 0 | AO16: % Portes | AP16: =AP15/AP3 -> 0 | BF16: % Portes | BG16: =BG15/BG3 -> 0 | BW16: % Portes | BX16: =BX15/BX3 -> 0 | CN16: % Portes | CO16: =CO15/CO3 -> 0
B17: VALOR CUOTA | C17: =(C3+(C14*D4)*O20)/N20 -> 3756.649503 | X17: VALOR CUOTA | Y17: =(Y3+(Y14*Z4)*AK20)/AJ20 -> 3213.285647 | AO17: VALOR CUOTA | AP17: =(AP3+(AP14*AQ4)*BB20)/BA20 -> 4230.78159 | BF17: VALOR CUOTA | BG17: =(BG3+(BG14*BH4)*BS20)/BR20 -> 3618.838764 | BW17: VALOR CUOTA | BX17: =(BX3+(BX14*BY4)*CJ20)/CI20 -> 3756.649503 | CN17: VALOR CUOTA | CO17: =(CO3+(CO14*CP4)*DA20)/CZ20 -> 3213.285647
T19: ='Simulación Cliente'!E14-'Simulador Detalle'!T20 -> -491596
N20: =SUM(N22:N381) -> 112.9274527 | O20: =SUM(O22:O381) -> 112.9274527 | T20: =SUM(T22:T381) -> 901596 | AJ20: =SUM(AJ22:AJ381) -> 132.0233884 | AK20: =SUM(AK22:AK381) -> 112.9274527 | BA20: =SUM(BA22:BA381) -> 99.8835117 | BB20: =SUM(BB22:BB381) -> 99.8835117 | BR20: =SUM(BR22:BR381) -> 116.773736 | BS20: =SUM(BS22:BS381) -> 99.8835117 | CI20: =SUM(CI22:CI381) -> 112.9274527 | CJ20: =SUM(CJ22:CJ381) -> 112.9274527 | CZ20: =SUM(CZ22:CZ381) -> 132.0233884 | DA20: =SUM(DA22:DA381) -> 112.9274527
B21: N° Cuota | C21: Fecha de pago | D21: Días | E21: Dias Acumulados | F21: Saldo Inicial | G21: Amortización | H21: Interés | I21: Seguro Desgravamen | J21: Seguro del Bien | K21: Portes | L21: VALOR CUOTA | M21: Saldo Final | N21: Factor Cronograma | O21: Factor Cronograma 2 | Q21: Vector i,1 Cuota | R21: Vector i,2 Días Acum | S21: Vector i,3 Factor | T21: Vector i,4 Calculo VA | X21: N° Cuota | Y21: Fecha de pago | Z21: Días | AA21: Dias Acumulados | AB21: Saldo Inicial | AC21: Amortización | AD21: Interés | AE21: Seguro Desgravamen | AF21: Seguro del Bien | AG21: Portes | AH21: VALOR CUOTA | AI21: Saldo Final | AJ21: Factor Cronograma | AK21: Factor Cronograma 2 | AO21: N° Cuota | AP21: Fecha de pago | AQ21: Días | AR21: Dias Acumulados | AS21: Saldo Inicial | AT21: Amortización | AU21: Interés | AV21: Seguro Desgravamen | AW21: Seguro del Bien | AX21: Portes | AY21: VALOR CUOTA | AZ21: Saldo Final | BA21: Factor Cronograma | BB21: Factor Cronograma 2 | BF21: N° Cuota | BG21: Fecha de pago | BH21: Días | BI21: Dias Acumulados | BJ21: Saldo Inicial | BK21: Amortización | BL21: Interés | BM21: Seguro Desgravamen | BN21: Seguro del Bien | BO21: Portes | BP21: VALOR CUOTA | BQ21: Saldo Final | BR21: Factor Cronograma | BS21: Factor Cronograma 2 | BW21: N° Cuota | BX21: Fecha de pago | BY21: Días | BZ21: Dias Acumulados | CA21: Saldo Inicial | CB21: Amortización | CC21: Interés | CD21: Seguro Desgravamen | CE21: Seguro del Bien | CF21: Portes | CG21: VALOR CUOTA | CH21: Saldo Final | CI21: Factor Cronograma | CJ21: Factor Cronograma 2 | CN21: N° Cuota | CO21: Fecha de pago | CP21: Días | CQ21: Dias Acumulados | CR21: Saldo Inicial | CS21: Amortización | CT21: Interés | CU21: Seguro Desgravamen | CV21: Seguro del Bien | CW21: Portes | CX21: VALOR CUOTA | CY21: Saldo Final | CZ21: Factor Cronograma | DA21: Factor Cronograma 2
B22: 1 | C22: =C8 -> 2026-06-06 | D22: =C22-C7 -> 31 | E22: =D22 -> 31 | F22: =C3 -> 410000 | G22: =IF(B22>C$6,"",L22-K22-J22-I22-H22) -> 576.780914 | H22: =IF(B22>C$6,"",((1+C$11)^(D22/360)-1)*F22) -> 3053.868589 | I22: =IF(B22>C$6,"",((1+C$12)^(D22/30)-1)*F22) -> 0 | J22: =IF(B22>C$6,"",D$4*C$14) -> 126 | K22: =IF(B22>C$6,"",C$15) -> 0 | L22: =IF(B22>C$6,"",IF(B22=C$6,F22+H22+I22+J22+K22,IF(AND(C$9=2,MONTH(C22)=7),2*C$17,IF(AND(C$10=2,MONTH(C22)=12),2*C$17,C$17)))) -> 3756.649503 | M22: =IF(B22>C$6,"",F22-G22) -> 409423.2191 | N22: =IFERROR(IF(AND(MONTH(C22)=7,C$9=2),2/(1+C$13)^(E22/360),IF(AND(MONTH(C22)=12,C$10=2),2/(1+C$13)^(E22/360),1/(1+C$13)^(E22/360))),"") -> 0.9926066094 | O22: =IFERROR(1/(1+C$13)^(E22/360),"") -> 0.9926066094 | Q22: =IFERROR(IF('Simulación Cliente'!$H$21="Simple",G22+H22+I22+J22+K22,AC22+AD22+AE22+AF22+AG22),"") -> 3756.649503 | R22: =E22 -> 31 | S22: =IFERROR((1+'Simulación Cliente'!$E$21)^(R22/360),"") -> 1 | T22: =IFERROR(ROUND(Q22/S22,2),"") -> 3756.65 | X22: 1 | Y22: =Y8 -> 2026-06-06 | Z22: =Y22-Y7 -> 31 | AA22: =Z22 -> 31 | AB22: =Y3 -> 410000 | AC22: =IF(X22>Y$6,"",AH22-AG22-AF22-AE22-AD22) -> 33.41705759 | AD22: =IF(X22>Y$6,"",((1+Y$11)^(Z22/360)-1)*AB22) -> 3053.868589 | AE22: =IF(X22>Y$6,"",((1+Y$12)^(Z22/30)-1)*AB22) -> 0 | AF22: =IF(X22>Y$6,"",Z$4*Y$14) -> 126 | AG22: =IF(X22>Y$6,"",Y$15) -> 0 | AH22: =IF(X22>Y$6,"",IF(X22=Y$6,AB22+AD22+AE22+AF22+AG22,IF(AND(Y$9=2,MONTH(Y22)=7),2*Y$17,IF(AND(Y$10=2,MONTH(Y22)=12),2*Y$17,Y$17)))) -> 3213.285647 | AI22: =IF(X22>Y$6,"",AB22-AC22) -> 409966.5829 | AJ22: =IFERROR(IF(AND(MONTH(Y22)=7,Y$9=2),2/(1+Y$13)^(AA22/360),IF(AND(MONTH(Y22)=12,Y$10=2),2/(1+Y$13)^(AA22/360),1/(1+Y$13)^(AA22/360))),"") -> 0.9926066094 | AK22: =IFERROR(1/(1+Y$13)^(AA22/360),"") -> 0.9926066094 | AO22: 1 | AP22: =AP8 -> 2026-06-06 | AQ22: =AP22-AP7 -> 31 | AR22: =AQ22 -> 31 | AS22: =AP3 -> 410000 | AT22: =IF(AO22>AP$6,"",AY22-AX22-AW22-AV22-AU22) -> 1050.913001 | AU22: =IF(AO22>AP$6,"",((1+AP$11)^(AQ22/360)-1)*AS22) -> 3053.868589 | AV22: =IF(AO22>AP$6,"",((1+AP$12)^(AQ22/30)-1)*AS22) -> 0 | AW22: =IF(AO22>AP$6,"",AQ$4*AP$14) -> 126 | AX22: =IF(AO22>AP$6,"",AP$15) -> 0 | AY22: =IF(AO22>AP$6,"",IF(AO22=AP$6,AS22+AU22+AV22+AW22+AX22,IF(AND(AP$9=2,MONTH(AP22)=7),2*AP$17,IF(AND(AP$10=2,MONTH(AP22)=12),2*AP$17,AP$17)))) -> 4230.78159 | AZ22: =IF(AO22>AP$6,"",AS22-AT22) -> 408949.087 | BA22: =IFERROR(IF(AND(MONTH(AP22)=7,AP$9=2),2/(1+AP$13)^(AR22/360),IF(AND(MONTH(AP22)=12,AP$10=2),2/(1+AP$13)^(AR22/360),1/(1+AP$13)^(AR22/360))),"") -> 0.9926066094 | BB22: =IFERROR(1/(1+AP$13)^(AR22/360),"") -> 0.9926066094 | BF22: 1 | BG22: =BG8 -> 2026-06-06 | BH22: =BG22-BG7 -> 31 | BI22: =BH22 -> 31 | BJ22: =BG3 -> 410000 | BK22: =IF(BF22>BG$6,"",BP22-BO22-BN22-BM22-BL22) -> 438.970175 | BL22: =IF(BF22>BG$6,"",((1+BG$11)^(BH22/360)-1)*BJ22) -> 3053.868589 | BM22: =IF(BF22>BG$6,"",((1+BG$12)^(BH22/30)-1)*BJ22) -> 0 | BN22: =IF(BF22>BG$6,"",BH$4*BG$14) -> 126 | BO22: =IF(BF22>BG$6,"",BG$15) -> 0 | BP22: =IF(BF22>BG$6,"",IF(BF22=BG$6,BJ22+BL22+BM22+BN22+BO22,IF(AND(BG$9=2,MONTH(BG22)=7),2*BG$17,IF(AND(BG$10=2,MONTH(BG22)=12),2*BG$17,BG$17)))) -> 3618.838764 | BQ22: =IF(BF22>BG$6,"",BJ22-BK22) -> 409561.0298 | BR22: =IFERROR(IF(AND(MONTH(BG22)=7,BG$9=2),2/(1+BG$13)^(BI22/360),IF(AND(MONTH(BG22)=12,BG$10=2),2/(1+BG$13)^(BI22/360),1/(1+BG$13)^(BI22/360))),"") -> 0.9926066094 | BS22: =IFERROR(1/(1+BG$13)^(BI22/360),"") -> 0.9926066094 | BW22: 1 | BX22: =BX8 -> 2026-06-06 | BY22: =BX22-BX7 -> 31 | BZ22: =BY22 -> 31 | CA22: =BX3 -> 410000 | CB22: =IF(BW22>BX$6,"",CG22-CF22-CE22-CD22-CC22) -> 576.780914 | CC22: =IF(BW22>BX$6,"",((1+BX$11)^(BY22/360)-1)*CA22) -> 3053.868589 | CD22: =IF(BW22>BX$6,"",((1+BX$12)^(BY22/30)-1)*CA22) -> 0 | CE22: =IF(BW22>BX$6,"",BY$4*BX$14) -> 126 | CF22: =IF(BW22>BX$6,"",BX$15) -> 0 | CG22: =IF(BW22>BX$6,"",IF(BW22=BX$6,CA22+CC22+CD22+CE22+CF22,IF(AND(BX$9=2,MONTH(BX22)=7),2*BX$17,IF(AND(BX$10=2,MONTH(BX22)=12),2*BX$17,BX$17)))) -> 3756.649503 | CH22: =IF(BW22>BX$6,"",CA22-CB22) -> 409423.2191 | CI22: =IFERROR(IF(AND(MONTH(BX22)=7,BX$9=2),2/(1+BX$13)^(BZ22/360),IF(AND(MONTH(BX22)=12,BX$10=2),2/(1+BX$13)^(BZ22/360),1/(1+BX$13)^(BZ22/360))),"") -> 0.9926066094 | CJ22: =IFERROR(1/(1+BX$13)^(BZ22/360),"") -> 0.9926066094 | CN22: 1 | CO22: =CO8 -> 2026-06-06 | CP22: =CO22-CO7 -> 31 | CQ22: =CP22 -> 31 | CR22: =CO3 -> 410000 | CS22: =IF(CN22>CO$6,"",CX22-CW22-CV22-CU22-CT22) -> 33.41705759 | CT22: =IF(CN22>CO$6,"",((1+CO$11)^(CP22/360)-1)*CR22) -> 3053.868589 | CU22: =IF(CN22>CO$6,"",((1+CO$12)^(CP22/30)-1)*CR22) -> 0 | CV22: =IF(CN22>CO$6,"",CP$4*CO$14) -> 126 | CW22: =IF(CN22>CO$6,"",CO$15) -> 0 | CX22: =IF(CN22>CO$6,"",IF(CN22=CO$6,CR22+CT22+CU22+CV22+CW22,IF(AND(CO$9=2,MONTH(CO22)=7),2*CO$17,IF(AND(CO$10=2,MONTH(CO22)=12),2*CO$17,CO$17)))) -> 3213.285647 | CY22: =IF(CN22>CO$6,"",CR22-CS22) -> 409966.5829 | CZ22: =IFERROR(IF(AND(MONTH(CO22)=7,CO$9=2),2/(1+CO$13)^(CQ22/360),IF(AND(MONTH(CO22)=12,CO$10=2),2/(1+CO$13)^(CQ22/360),1/(1+CO$13)^(CQ22/360))),"") -> 0.9926066094 | DA22: =IFERROR(1/(1+CO$13)^(CQ22/360),"") -> 0.9926066094
B23: 2 | C23: =IF(B23>C$6,"",EDATE(C$22,B22)) -> 2026-07-06 | D23: =IF(B23>C$6,"",C23-C22) -> 30 | E23: =IFERROR(D23+E22,"") -> 61 | F23: =IF(B23>C$6,"",M22) -> 409423.2191 | G23: =IF(B23>C$6,"",L23-K23-J23-I23-H23) -> 679.80399 | H23: =IF(B23>C$6,"",((1+C$11)^(D23/360)-1)*F23) -> 2950.845513 | I23: =IF(B23>C$6,"",((1+C$12)^(D23/30)-1)*F23) -> 0 | J23: =IF(B23>C$6,"",D$4*C$14) -> 126 | K23: 0 | L23: =IF(B23>C$6,"",IF(B23=C$6,F23+H23+I23+J23+K23,IF(AND(C$9=2,MONTH(C23)=7),2*C$17,IF(AND(C$10=2,MONTH(C23)=12),2*C$17,C$17)))) -> 3756.649503 | M23: =IF(B23>C$6,"",F23-G23) -> 408743.4151 | N23: =IFERROR(IF(AND(MONTH(C23)=7,C$9=2),2/(1+C$13)^(E23/360),IF(AND(MONTH(C23)=12,C$10=2),2/(1+C$13)^(E23/360),1/(1+C$13)^(E23/360))),"") -> 0.9855037651 | O23: =IFERROR(1/(1+C$13)^(E23/360),"") -> 0.9855037651 | Q23: =IFERROR(IF('Simulación Cliente'!$H$21="Simple",G23+H23+I23+J23+K23,AC23+AD23+AE23+AF23+AG23),"") -> 3756.649503 | R23: =E23 -> 61 | S23: =IFERROR((1+'Simulación Cliente'!$E$21)^(R23/360),"") -> 1 | T23: =IFERROR(ROUND(Q23/S23,2),"") -> 3756.65 | X23: 2 | Y23: =IF(X23>Y$6,"",EDATE(Y$22,X22)) -> 2026-07-06 | Z23: =IF(X23>Y$6,"",Y23-Y22) -> 30 | AA23: =IFERROR(Z23+AA22,"") -> 61 | AB23: =IF(X23>Y$6,"",AI22) -> 409966.5829 | AC23: =IF(X23>Y$6,"",AH23-AG23-AF23-AE23-AD23) -> 3345.809581 | AD23: =IF(X23>Y$6,"",((1+Y$11)^(Z23/360)-1)*AB23) -> 2954.761712 | AE23: =IF(X23>Y$6,"",((1+Y$12)^(Z23/30)-1)*AB23) -> 0 | AF23: =IF(X23>Y$6,"",Z$4*Y$14) -> 126 | AG23: 0 | AH23: 6426.571293 | AI23: 406620.7734 | AJ23: =IFERROR(IF(AND(MONTH(Y23)=7,Y$9=2),2/(1+Y$13)^(AA23/360),IF(AND(MONTH(Y23)=12,Y$10=2),2/(1+Y$13)^(AA23/360),1/(1+Y$13)^(AA23/360))),"") -> 1.97100753 | AK23: =IFERROR(1/(1+Y$13)^(AA23/360),"") -> 0.9855037651 | AO23: 2 | AP23: =IF(AO23>AP$6,"",EDATE(AP$22,AO22)) -> 2026-07-06 | AQ23: =IF(AO23>AP$6,"",AP23-AP22) -> 30 | AR23: =IFERROR(AQ23+AR22,"") -> 61 | AS23: =IF(AO23>AP$6,"",AZ22) -> 408949.087 | AT23: 1157.353301 | AU23: =IF(AO23>AP$6,"",((1+AP$11)^(AQ23/360)-1)*AS23) -> 2947.42829 | AV23: =IF(AO23>AP$6,"",((1+AP$12)^(AQ23/30)-1)*AS23) -> 0 | AW23: =IF(AO23>AP$6,"",AQ$4*AP$14) -> 126 | AX23: 0 | AY23: 4230.78159 | AZ23: 407791.7337 | BA23: =IFERROR(IF(AND(MONTH(AP23)=7,AP$9=2),2/(1+AP$13)^(AR23/360),IF(AND(MONTH(AP23)=12,AP$10=2),2/(1+AP$13)^(AR23/360),1/(1+AP$13)^(AR23/360))),"") -> 0.9855037651 | BB23: =IFERROR(1/(1+AP$13)^(AR23/360),"") -> 0.9855037651 | BF23: 2 | BG23: =IF(BF23>BG$6,"",EDATE(BG$22,BF22)) -> 2026-07-06 | BH23: =IF(BF23>BG$6,"",BG23-BG22) -> 30 | BI23: =IFERROR(BH23+BI22,"") -> 61 | BJ23: =IF(BF23>BG$6,"",BQ22) -> 409561.0298 | BK23: 4159.838769 | BL23: =IF(BF23>BG$6,"",((1+BG$11)^(BH23/360)-1)*BJ23) -> 2951.83876 | BM23: 0 | BN23: =IF(BF23>BG$6,"",BH$4*BG$14) -> 126 | BO23: 0 | BP23: 7237.677528 | BQ23: 405401.1911 | BR23: =IFERROR(IF(AND(MONTH(BG23)=7,BG$9=2),2/(1+BG$13)^(BI23/360),IF(AND(MONTH(BG23)=12,BG$10=2),2/(1+BG$13)^(BI23/360),1/(1+BG$13)^(BI23/360))),"") -> 1.97100753 | BS23: =IFERROR(1/(1+BG$13)^(BI23/360),"") -> 0.9855037651 | BW23: 2 | BX23: =IF(BW23>BX$6,"",EDATE(BX$22,BW22)) -> 2026-07-06 | BY23: =IF(BW23>BX$6,"",BX23-BX22) -> 30 | BZ23: =IFERROR(BY23+BZ22,"") -> 61 | CA23: =IF(BW23>BX$6,"",CH22) -> 409423.2191 | CB23: 679.80399 | CC23: =IF(BW23>BX$6,"",((1+BX$11)^(BY23/360)-1)*CA23) -> 2950.845513 | CD23: 0 | CE23: =IF(BW23>BX$6,"",BY$4*BX$14) -> 126 | CF23: 0 | CG23: 3756.649503 | CH23: 408743.4151 | CI23: =IFERROR(IF(AND(MONTH(BX23)=7,BX$9=2),2/(1+BX$13)^(BZ23/360),IF(AND(MONTH(BX23)=12,BX$10=2),2/(1+BX$13)^(BZ23/360),1/(1+BX$13)^(BZ23/360))),"") -> 0.9855037651 | CJ23: =IFERROR(1/(1+BX$13)^(BZ23/360),"") -> 0.9855037651 | CN23: 2 | CO23: =IF(CN23>CO$6,"",EDATE(CO$22,CN22)) -> 2026-07-06 | CP23: =IF(CN23>CO$6,"",CO23-CO22) -> 30 | CQ23: =IFERROR(CP23+CQ22,"") -> 61 | CR23: =IF(CN23>CO$6,"",CY22) -> 409966.5829 | CS23: =IF(CN23>CO$6,"",CX23-CW23-CV23-CU23-CT23) -> 3345.809581 | CT23: =IF(CN23>CO$6,"",((1+CO$11)^(CP23/360)-1)*CR23) -> 2954.761712 | CU23: 0 | CV23: =IF(CN23>CO$6,"",CP$4*CO$14) -> 126 | CW23: 0 | CX23: =IF(CN23>CO$6,"",IF(CN23=CO$6,CR23+CT23+CU23+CV23+CW23,IF(AND(CO$9=2,MONTH(CO23)=7),2*CO$17,IF(AND(CO$10=2,MONTH(CO23)=12),2*CO$17,CO$17)))) -> 6426.571293 | CY23: 406620.7734 | CZ23: =IFERROR(IF(AND(MONTH(CO23)=7,CO$9=2),2/(1+CO$13)^(CQ23/360),IF(AND(MONTH(CO23)=12,CO$10=2),2/(1+CO$13)^(CQ23/360),1/(1+CO$13)^(CQ23/360))),"") -> 1.97100753 | DA23: =IFERROR(1/(1+CO$13)^(CQ23/360),"") -> 0.9855037651
B24: 3 | C24: =IF(B24>C$6,"",EDATE(C$22,B23)) -> 2026-08-06 | D24: =IF(B24>C$6,"",C24-C23) -> 31 | E24: 92 | F24: 408743.4151 | G24: =IF(B24>C$6,"",L24-K24-J24-I24-H24) -> 586.1405363 | H24: =IF(B24>C$6,"",((1+C$11)^(D24/360)-1)*F24) -> 3044.508967 | I24: 0 | J24: 126 | K24: 0 | L24: 3756.649503 | M24: 408157.2746 | N24: 0.9782175509 | O24: 0.9782175509 | Q24: =IFERROR(IF('Simulación Cliente'!$H$21="Simple",G24+H24+I24+J24+K24,AC24+AD24+AE24+AF24+AG24),"") -> 3756.649503 | R24: 92 | S24: =IFERROR((1+'Simulación Cliente'!$E$21)^(R24/360),"") -> 1 | T24: 3756.65 | X24: 3 | Y24: 2026-08-06 | Z24: =IF(X24>Y$6,"",Y24-Y23) -> 31 | AA24: =IFERROR(Z24+AA23,"") -> 92 | AB24: 406620.7734 | AC24: =IF(X24>Y$6,"",AH24-AG24-AF24-AE24-AD24) -> 58.58709195 | AD24: =IF(X24>Y$6,"",((1+Y$11)^(Z24/360)-1)*AB24) -> 3028.698555 | AE24: 0 | AF24: 126 | AG24: 0 | AH24: 3213.285647 | AI24: 406562.1863 | AJ24: 0.9782175509 | AK24: 0.9782175509 | AO24: 3 | AP24: 2026-08-06 | AQ24: =IF(AO24>AP$6,"",AP24-AP23) -> 31 | AR24: 92 | AS24: 407791.7337 | AT24: =IF(AO24>AP$6,"",AY24-AX24-AW24-AV24-AU24) -> 1067.361184 | AU24: =IF(AO24>AP$6,"",((1+AP$11)^(AQ24/360)-1)*AS24) -> 3037.420406 | AV24: =IF(AO24>AP$6,"",((1+AP$12)^(AQ24/30)-1)*AS24) -> 0 | AW24: 126 | AX24: 0 | AY24: 4230.78159 | AZ24: 406724.3725 | BA24: 0.9782175509 | BB24: 0.9782175509 | BF24: 3 | BG24: 2026-08-06 | BH24: =IF(BF24>BG$6,"",BG24-BG23) -> 31 | BI24: 92 | BJ24: 405401.1911 | BK24: =IF(BF24>BG$6,"",BP24-BO24-BN24-BM24-BL24) -> 473.2242194 | BL24: =IF(BF24>BG$6,"",((1+BG$11)^(BH24/360)-1)*BJ24) -> 3019.614545 | BM24: 0 | BN24: 126 | BO24: 0 | BP24: 3618.838764 | BQ24: 404927.9668 | BR24: 0.9782175509 | BS24: 0.9782175509 | BW24: 3 | BX24: 2026-08-06 | BY24: =IF(BW24>BX$6,"",BX24-BX23) -> 31 | BZ24: 92 | CA24: 408743.4151 | CB24: =IF(BW24>BX$6,"",CG24-CF24-CE24-CD24-CC24) -> 586.1405363 | CC24: =IF(BW24>BX$6,"",((1+BX$11)^(BY24/360)-1)*CA24) -> 3044.508967 | CD24: 0 | CE24: 126 | CF24: 0 | CG24: 3756.649503 | CH24: 408157.2746 | CI24: 0.9782175509 | CJ24: 0.9782175509 | CN24: 3 | CO24: 2026-08-06 | CP24: =IF(CN24>CO$6,"",CO24-CO23) -> 31 | CQ24: 92 | CR24: 406620.7734 | CS24: =IF(CN24>CO$6,"",CX24-CW24-CV24-CU24-CT24) -> 58.58709195 | CT24: =IF(CN24>CO$6,"",((1+CO$11)^(CP24/360)-1)*CR24) -> 3028.698555 | CU24: 0 | CV24: 126 | CW24: 0 | CX24: 3213.285647 | CY24: 406562.1863 | CZ24: 0.9782175509 | DA24: 0.9782175509
B25: 4 | C25: 2026-09-06 | D25: 31 | E25: 123 | F25: 408157.2746 | G25: 590.5063807 | H25: 3040.143122 | I25: 0 | J25: 126 | K25: 0 | L25: 3756.649503 | M25: 407566.7682 | N25: 0.9709852064 | O25: 0.9709852064 | Q25: =IFERROR(IF('Simulación Cliente'!$H$21="Simple",G25+H25+I25+J25+K25,AC25+AD25+AE25+AF25+AG25),"") -> 3756.649503 | R25: 123 | S25: =IFERROR((1+'Simulación Cliente'!$E$21)^(R25/360),"") -> 1 | T25: 3756.65 | X25: 4 | Y25: 2026-09-06 | Z25: =IF(X25>Y$6,"",Y25-Y24) -> 31 | AA25: 123 | AB25: 406562.1863 | AC25: =IF(X25>Y$6,"",AH25-AG25-AF25-AE25-AD25) -> 59.02347556 | AD25: 3028.262171 | AE25: 0 | AF25: 126 | AG25: 0 | AH25: 3213.285647 | AI25: 406503.1628 | AJ25: 0.9709852064 | AK25: 0.9709852064 | AO25: 4 | AP25: 2026-09-06 | AQ25: =IF(AO25>AP$6,"",AP25-AP24) -> 31 | AR25: 123 | AS25: 406724.3725 | AT25: =IF(AO25>AP$6,"",AY25-AX25-AW25-AV25-AU25) -> 1075.311382 | AU25: 3029.470209 | AV25: 0 | AW25: 126 | AX25: 0 | AY25: 4230.78159 | AZ25: 405649.0611 | BA25: 0.9709852064 | BB25: 0.9709852064 | BF25: 4 | BG25: 2026-09-06 | BH25: =IF(BF25>BG$6,"",BG25-BG24) -> 31 | BI25: 123 | BJ25: 404927.9668 | BK25: =IF(BF25>BG$6,"",BP25-BO25-BN25-BM25-BL25) -> 476.749011 | BL25: 3016.089753 | BM25: 0 | BN25: 126 | BO25: 0 | BP25: 3618.838764 | BQ25: 404451.2178 | BR25: 0.9709852064 | BS25: 0.9709852064 | BW25: 4 | BX25: 2026-09-06 | BY25: =IF(BW25>BX$6,"",BX25-BX24) -> 31 | BZ25: 123 | CA25: 408157.2746 | CB25: =IF(BW25>BX$6,"",CG25-CF25-CE25-CD25-CC25) -> 590.5063807 | CC25: 3040.143122 | CD25: 0 | CE25: 126 | CF25: 0 | CG25: 3756.649503 | CH25: 407566.7682 | CI25: 0.9709852064 | CJ25: 0.9709852064 | CN25: 4 | CO25: 2026-09-06 | CP25: =IF(CN25>CO$6,"",CO25-CO24) -> 31 | CQ25: 123 | CR25: 406562.1863 | CS25: =IF(CN25>CO$6,"",CX25-CW25-CV25-CU25-CT25) -> 59.02347556 | CT25: 3028.262171 | CU25: 0 | CV25: 126 | CW25: 0 | CX25: 3213.285647 | CY25: 406503.1628 | CZ25: 0.9709852064 | DA25: 0.9709852064
B26: 5 | C26: 2026-10-06 | D26: 30 | E26: 153 | F26: 407566.7682 | G26: 693.1840319 | H26: 2937.465471 | I26: 0 | J26: 126 | K26: 0 | L26: 3756.649503 | M26: 406873.5841 | N26: 0.9640370795 | O26: 0.9640370795 | Q26: =IFERROR(IF('Simulación Cliente'!$H$21="Simple",G26+H26+I26+J26+K26,AC26+AD26+AE26+AF26+AG26),"") -> 3756.649503 | R26: 153 | S26: =IFERROR((1+'Simulación Cliente'!$E$21)^(R26/360),"") -> 1 | T26: 3756.65 | X26: 5 | Y26: 2026-10-06 | Z26: 30 | AA26: 153 | AB26: 406503.1628 | AC26: 157.4859234 | AD26: 2929.799723 | AE26: 0 | AF26: 126 | AG26: 0 | AH26: 3213.285647 | AI26: 406345.6769 | AJ26: 0.9640370795 | AK26: 0.9640370795 | AO26: 5 | AP26: 2026-10-06 | AQ26: 30 | AR26: 153 | AS26: 405649.0611 | AT26: 1181.137654 | AU26: 2923.643936 | AV26: 0 | AW26: 126 | AX26: 0 | AY26: 4230.78159 | AZ26: 404467.9235 | BA26: 0.9640370795 | BB26: 0.9640370795 | BF26: 5 | BG26: 2026-10-06 | BH26: 30 | BI26: 153 | BJ26: 404451.2178 | BK26: 577.8280717 | BL26: 2915.010692 | BM26: 0 | BN26: 126 | BO26: 0 | BP26: 3618.838764 | BQ26: 403873.3898 | BR26: 0.9640370795 | BS26: 0.9640370795 | BW26: 5 | BX26: 2026-10-06 | BY26: 30 | BZ26: 153 | CA26: 407566.7682 | CB26: 693.1840319 | CC26: 2937.465471 | CD26: 0 | CE26: 126 | CF26: 0 | CG26: 3756.649503 | CH26: 406873.5841 | CI26: 0.9640370795 | CJ26: 0.9640370795 | CN26: 5 | CO26: 2026-10-06 | CP26: 30 | CQ26: 153 | CR26: 406503.1628 | CS26: 157.4859234 | CT26: 2929.799723 | CU26: 0 | CV26: 126 | CW26: 0 | CX26: 3213.285647 | CY26: 406345.6769 | CZ26: 0.9640370795 | DA26: 0.9640370795
B27: 6 | C27: 2026-11-06 | D27: 31 | E27: 184 | F27: 406873.5841 | G27: 600.0678973 | H27: 3030.581606 | I27: 0 | J27: 126 | K27: 0 | L27: 3756.649503 | M27: 406273.5162 | N27: 0.9569095768 | O27: 0.9569095768 | Q27: =IFERROR(IF('Simulación Cliente'!$H$21="Simple",G27+H27+I27+J27+K27,AC27+AD27+AE27+AF27+AG27),"") -> 3756.649503 | R27: 184 | S27: =IFERROR((1+'Simulación Cliente'!$E$21)^(R27/360),"") -> 1 | T27: 3756.65 | X27: 6 | Y27: 2026-11-06 | Z27: 31 | AA27: 184 | AB27: 406345.6769 | AC27: 60.63613715 | AD27: 3026.64951 | AE27: 0 | AF27: 126 | AG27: 0 | AH27: 3213.285647 | AI27: 406285.0407 | AJ27: 0.9569095768 | AK27: 0.9569095768 | AO27: 6 | AP27: 2026-11-06 | AQ27: 31 | AR27: 184 | AS27: 404467.9235 | AT27: 1092.118452 | AU27: 3012.663139 | AV27: 0 | AW27: 126 | AX27: 0 | AY27: 4230.78159 | AZ27: 403375.805 | BA27: 0.9569095768 | BB27: 0.9569095768 | BF27: 6 | BG27: 2026-11-06 | BH27: 31 | BI27: 184 | BJ27: 403873.3898 | BK27: 484.6039862 | BL27: 3008.234778 | BM27: 0 | BN27: 126 | BO27: 0 | BP27: 3618.838764 | BQ27: 403388.7858 | BR27: 0.9569095768 | BS27: 0.9569095768 | BW27: 6 | BX27: 2026-11-06 | BY27: 31 | BZ27: 184 | CA27: 406873.5841 | CB27: 600.0678973 | CC27: 3030.581606 | CD27: 0 | CE27: 126 | CF27: 0 | CG27: 3756.649503 | CH27: 406273.5162 | CI27: 0.9569095768 | CJ27: 0.9569095768 | CN27: 6 | CO27: 2026-11-06 | CP27: 31 | CQ27: 184 | CR27: 406345.6769 | CS27: 60.63613715 | CT27: 3026.64951 | CU27: 0 | CV27: 126 | CW27: 0 | CX27: 3213.285647 | CY27: 406285.0407 | CZ27: 0.9569095768 | DA27: 0.9569095768
B28: 7 | C28: 2026-12-06 | D28: 30 | E28: 214 | F28: 406273.5162 | G28: 702.5049167 | H28: 2928.144586 | I28: 0 | J28: 126 | K28: 0 | L28: 3756.649503 | M28: 405571.0113 | N28: 0.9500621716 | O28: 0.9500621716 | Q28: =IFERROR(IF('Simulación Cliente'!$H$21="Simple",G28+H28+I28+J28+K28,AC28+AD28+AE28+AF28+AG28),"") -> 3756.649503 | R28: 214 | S28: =IFERROR((1+'Simulación Cliente'!$E$21)^(R28/360),"") -> 1 | T28: 3756.65 | X28: 7 | Y28: 2026-12-06 | Z28: 30 | AA28: 214 | AB28: 406285.0407 | AC28: 3372.343646 | AD28: 2928.227647 | AE28: 0 | AF28: 126 | AG28: 0 | AH28: 6426.571293 | AI28: 402912.6971 | AJ28: 1.900124343 | AK28: 0.9500621716 | AO28: 7 | AP28: 2026-12-06 | AQ28: 30 | AR28: 214 | AS28: 403375.805 | AT28: 1197.521746 | AU28: 2907.259845 | AV28: 0 | AW28: 126 | AX28: 0 | AY28: 4230.78159 | AZ28: 402178.2833 | BA28: 0.9500621716 | BB28: 0.9500621716 | BF28: 7 | BG28: 2026-12-06 | BH28: 30 | BI28: 214 | BJ28: 403388.7858 | BK28: 4204.324127 | BL28: 2907.353401 | BM28: 0 | BN28: 126 | BO28: 0 | BP28: 7237.677528 | BQ28: 399184.4616 | BR28: 1.900124343 | BS28: 0.9500621716 | BW28: 7 | BX28: 2026-12-06 | BY28: 30 | BZ28: 214 | CA28: 406273.5162 | CB28: 702.5049167 | CC28: 2928.144586 | CD28: 0 | CE28: 126 | CF28: 0 | CG28: 3756.649503 | CH28: 405571.0113 | CI28: 0.9500621716 | CJ28: 0.9500621716 | CN28: 7 | CO28: 2026-12-06 | CP28: 30 | CQ28: 214 | CR28: 406285.0407 | CS28: 3372.343646 | CT28: 2928.227647 | CU28: 0 | CV28: 126 | CW28: 0 | CX28: 6426.571293 | CY28: 402912.6971 | CZ28: 1.900124343 | DA28: 0.9500621716
B29: 8 | C29: 2027-01-06 | D29: 31 | E29: 245 | F29: 405571.0113 | G29: 609.7700588 | H29: 3020.879444 | I29: 0 | J29: 126 | K29: 0 | L29: 3756.649503 | M29: 404961.2413 | N29: 0.9430379908 | O29: 0.9430379908 | Q29: =IFERROR(IF('Simulación Cliente'!$H$21="Simple",G29+H29+I29+J29+K29,AC29+AD29+AE29+AF29+AG29),"") -> 3756.649503 | R29: 245 | S29: =IFERROR((1+'Simulación Cliente'!$E$21)^(R29/360),"") -> 1 | T29: 3756.65 | X29: 8 | Y29: 2027-01-06 | Z29: 31 | AA29: 245 | AB29: 402912.6971 | AC29: 86.20654966 | AD29: 3001.079097 | AE29: 0 | AF29: 126 | AG29: 0 | AH29: 3213.285647 | AI29: 402826.4905 | AJ29: 0.9430379908 | AK29: 0.9430379908 | AO29: 8 | AP29: 2027-01-06 | AQ29: 31 | AR29: 245 | AS29: 402178.2833 | AT29: 1109.172745 | AU29: 2995.608845 | AV29: 0 | AW29: 126 | AX29: 0 | AY29: 4230.78159 | AZ29: 401069.1105 | BA29: 0.9430379908 | BB29: 0.9430379908 | BF29: 8 | BG29: 2027-01-06 | BH29: 31 | BI29: 245 | BJ29: 399184.4616 | BK29: 519.5292796 | BL29: 2973.309485 | BM29: 0 | BN29: 126 | BO29: 0 | BP29: 3618.838764 | BQ29: 398664.9324 | BR29: 0.9430379908 | BS29: 0.9430379908 | BW29: 8 | BX29: 2027-01-06 | BY29: 31 | BZ29: 245 | CA29: 405571.0113 | CB29: 609.7700588 | CC29: 3020.879444 | CD29: 0 | CE29: 126 | CF29: 0 | CG29: 3756.649503 | CH29: 404961.2413 | CI29: 0.9430379908 | CJ29: 0.9430379908 | CN29: 8 | CO29: 2027-01-06 | CP29: 31 | CQ29: 245 | CR29: 402912.6971 | CS29: 86.20654966 | CT29: 3001.079097 | CU29: 0 | CV29: 126 | CW29: 0 | CX29: 3213.285647 | CY29: 402826.4905 | CZ29: 0.9430379908 | DA29: 0.9430379908
B30: 9 | C30: 2027-02-06 | D30: 31 | E30: 276 | F30: 404961.2413 | G30: 614.3119067 | H30: 3016.337596 | I30: 0 | J30: 126 | K30: 0 | L30: 3756.649503 | M30: 404346.9294 | N30: 0.9360657426 | O30: 0.9360657426 | Q30: =IFERROR(IF('Simulación Cliente'!$H$21="Simple",G30+H30+I30+J30+K30,AC30+AD30+AE30+AF30+AG30),"") -> 3756.649503 | R30: 276 | S30: =IFERROR((1+'Simulación Cliente'!$E$21)^(R30/360),"") -> 1 | T30: 3756.65 | X30: 9 | Y30: 2027-02-06 | Z30: 31 | AA30: 276 | AB30: 402826.4905 | AC30: 86.84865569 | AD30: 3000.436991 | AE30: 0 | AF30: 126 | AG30: 0 | AH30: 3213.285647 | AI30: 402739.6419 | AJ30: 0.9360657426 | AK30: 0.9360657426 | AO30: 9 | AP30: 2027-02-06 | AQ30: 31 | AR30: 276 | AS30: 401069.1105 | AT30: 1117.434374 | AU30: 2987.347216 | AV30: 0 | AW30: 126 | AX30: 0 | AY30: 4230.78159 | AZ30: 399951.6762 | BA30: 0.9360657426 | BB30: 0.9360657426 | BF30: 9 | BG30: 2027-02-06 | BH30: 31 | BI30: 276 | BJ30: 398664.9324 | BK30: 523.3989726 | BL30: 2969.439792 | BM30: 0 | BN30: 126 | BO30: 0 | BP30: 3618.838764 | BQ30: 398141.5334 | BR30: 0.9360657426 | BS30: 0.9360657426 | BW30: 9 | BX30: 2027-02-06 | BY30: 31 | BZ30: 276 | CA30: 404961.2413 | CB30: 614.3119067 | CC30: 3016.337596 | CD30: 0 | CE30: 126 | CF30: 0 | CG30: 3756.649503 | CH30: 404346.9294 | CI30: 0.9360657426 | CJ30: 0.9360657426 | CN30: 9 | CO30: 2027-02-06 | CP30: 31 | CQ30: 276 | CR30: 402826.4905 | CS30: 86.84865569 | CT30: 3000.436991 | CU30: 0 | CV30: 126 | CW30: 0 | CX30: 3213.285647 | CY30: 402739.6419 | CZ30: 0.9360657426 | DA30: 0.9360657426
B31: 10 | C31: 2027-03-06 | D31: 28 | E31: 304 | F31: 404346.9294 | G31: 911.3261777 | H31: 2719.323325 | I31: 0 | J31: 126 | K31: 0 | L31: 3756.649503 | M31: 403435.6032 | N31: 0.9298125458 | O31: 0.9298125458 | Q31: =IFERROR(IF('Simulación Cliente'!$H$21="Simple",G31+H31+I31+J31+K31,AC31+AD31+AE31+AF31+AG31),"") -> 3756.649503 | R31: =E31 -> 304 | S31: =IFERROR((1+'Simulación Cliente'!$E$21)^(R31/360),"") -> 1 | T31: 3756.65 | X31: 10 | Y31: 2027-03-06 | Z31: 28 | AA31: 304 | AB31: 402739.6419 | AC31: 378.7716883 | AD31: 2708.513958 | AE31: 0 | AF31: 126 | AG31: 0 | AH31: 3213.285647 | AI31: 402360.8702 | AJ31: 0.9298125458 | AK31: 0.9298125458 | AO31: 10 | AP31: 2027-03-06 | AQ31: 28 | AR31: 304 | AS31: 399951.6762 | AT31: 1415.017324 | AU31: 2689.764267 | AV31: 0 | AW31: 126 | AX31: 0 | AY31: 4230.78159 | AZ31: 398536.6588 | BA31: 0.9298125458 | BB31: 0.9298125458 | BF31: 10 | BG31: 2027-03-06 | BH31: 28 | BI31: 304 | BJ31: 398141.5334 | BK31: 815.2481114 | BL31: 2677.590653 | BM31: 0 | BN31: 126 | BO31: 0 | BP31: 3618.838764 | BQ31: 397326.2853 | BR31: 0.9298125458 | BS31: 0.9298125458 | BW31: 10 | BX31: 2027-03-06 | BY31: 28 | BZ31: 304 | CA31: 404346.9294 | CB31: 911.3261777 | CC31: 2719.323325 | CD31: 0 | CE31: 126 | CF31: 0 | CG31: 3756.649503 | CH31: 403435.6032 | CI31: 0.9298125458 | CJ31: 0.9298125458 | CN31: 10 | CO31: 2027-03-06 | CP31: 28 | CQ31: 304 | CR31: 402739.6419 | CS31: 378.7716883 | CT31: 2708.513958 | CU31: 0 | CV31: 126 | CW31: 0 | CX31: 3213.285647 | CY31: 402360.8702 | CZ31: 0.9298125458 | DA31: 0.9298125458
B32: 11 | C32: 2027-04-06 | D32: 31 | E32: 335 | F32: 403435.6032 | G32: 625.6755609 | H32: 3004.973942 | I32: 0 | J32: 126 | K32: 0 | L32: 3756.649503 | M32: 402809.9276 | N32: 0.9229380784 | O32: 0.9229380784 | Q32: =IFERROR(IF('Simulación Cliente'!$H$21="Simple",G32+H32+I32+J32+K32,AC32+AD32+AE32+AF32+AG32),"") -> 3756.649503 | R32: 335 | S32: =IFERROR((1+'Simulación Cliente'!$E$21)^(R32/360),"") -> 1 | T32: 3756.65 | X32: 11 | Y32: 2027-04-06 | Z32: 31 | AA32: 335 | AB32: 402360.8702 | AC32: 90.31681019 | AD32: 2996.968837 | AE32: 0 | AF32: 126 | AG32: 0 | AH32: 3213.285647 | AI32: 402270.5534 | AJ32: 0.9229380784 | AK32: 0.9229380784 | AO32: 11 | AP32: 2027-04-06 | AQ32: 31 | AR32: 335 | AS32: 398536.6588 | AT32: 1136.297239 | AU32: 2968.484351 | AV32: 0 | AW32: 126 | AX32: 0 | AY32: 4230.78159 | AZ32: 397400.3616 | BA32: 0.9229380784 | BB32: 0.9229380784 | BF32: 11 | BG32: 2027-04-06 | BH32: 31 | BI32: 335 | BJ32: 397326.2853 | BK32: 533.3698319 | BL32: 2959.468932 | BM32: 0 | BN32: 126 | BO32: 0 | BP32: 3618.838764 | BQ32: 396792.9154 | BR32: 0.9229380784 | BS32: 0.9229380784 | BW32: 11 | BX32: 2027-04-06 | BY32: 31 | BZ32: 335 | CA32: 403435.6032 | CB32: 625.6755609 | CC32: 3004.973942 | CD32: 0 | CE32: 126 | CF32: 0 | CG32: 3756.649503 | CH32: 402809.9276 | CI32: 0.9229380784 | CJ32: 0.9229380784 | CN32: 11 | CO32: 2027-04-06 | CP32: 31 | CQ32: 335 | CR32: 402360.8702 | CS32: 90.31681019 | CT32: 2996.968837 | CU32: 0 | CV32: 126 | CW32: 0 | CX32: 3213.285647 | CY32: 402270.5534 | CZ32: 0.9229380784 | DA32: 0.9229380784
B33: 12 | C33: 2027-05-06 | D33: 30 | E33: 365 | F33: 402809.9276 | G33: 727.4681197 | H33: 2903.181383 | I33: 0 | J33: 126 | K33: 0 | L33: 3756.649503 | M33: 402082.4595 | N33: 0.9163337647 | O33: 0.9163337647 | Q33: =IFERROR(IF('Simulación Cliente'!$H$21="Simple",G33+H33+I33+J33+K33,AC33+AD33+AE33+AF33+AG33),"") -> 3756.649503 | R33: 365 | S33: =IFERROR((1+'Simulación Cliente'!$E$21)^(R33/360),"") -> 1 | T33: 3756.65 | X33: 12 | Y33: 2027-05-06 | Z33: 30 | AA33: 365 | AB33: 402270.5534 | AC33: 187.9917079 | AD33: 2899.293939 | AE33: 0 | AF33: 126 | AG33: 0 | AH33: 3213.285647 | AI33: 402082.5617 | AJ33: 0.9163337647 | AK33: 0.9163337647 | AO33: 12 | AP33: 2027-05-06 | AQ33: 30 | AR33: 365 | AS33: 397400.3616 | AT33: 1240.588698 | AU33: 2864.192892 | AV33: 0 | AW33: 126 | AX33: 0 | AY33: 4230.78159 | AZ33: 396159.7729 | BA33: 0.9163337647 | BB33: 0.9163337647 | BF33: 12 | BG33: 2027-05-06 | BH33: 30 | BI33: 365 | BJ33: 396792.9154 | BK33: 633.023933 | BL33: 2859.814831 | BM33: 0 | BN33: 126 | BO33: 0 | BP33: 3618.838764 | BQ33: 396159.8915 | BR33: 0.9163337647 | BS33: 0.9163337647 | BW33: 12 | BX33: 2027-05-06 | BY33: 30 | BZ33: 365 | CA33: 402809.9276 | CB33: 727.4681197 | CC33: 2903.181383 | CD33: 0 | CE33: 126 | CF33: 0 | CG33: 3756.649503 | CH33: 402082.4595 | CI33: 0.9163337647 | CJ33: 0.9163337647 | CN33: 12 | CO33: 2027-05-06 | CP33: 30 | CQ33: 365 | CR33: 402270.5534 | CS33: 187.9917079 | CT33: 2899.293939 | CU33: 0 | CV33: 126 | CW33: 0 | CX33: 3213.285647 | CY33: 402082.5617 | CZ33: 0.9163337647 | DA33: 0.9163337647
B34: 13 | C34: 2027-06-06 | D34: 31 | E34: 396 | F34: 402082.4595 | G34: 635.7543974 | H34: 2994.895106 | I34: 0 | J34: 126 | K34: 0 | L34: 3756.649503 | M34: 401446.7051 | N34: 0.9095589513 | O34: 0.9095589513 | Q34: =IFERROR(IF('Simulación Cliente'!$H$21="Simple",G34+H34+I34+J34+K34,AC34+AD34+AE34+AF34+AG34),"") -> 3756.649503 | R34: 396 | S34: =IFERROR((1+'Simulación Cliente'!$E$21)^(R34/360),"") -> 1 | T34: 3756.65 | X34: 13 | Y34: 2027-06-06 | Z34: 31 | AA34: 396 | AB34: 402082.5617 | AC34: 92.38978005 | AD34: 2994.895867 | AE34: 0 | AF34: 126 | AG34: 0 | AH34: 3213.285647 | AI34: 401990.1719 | AJ34: 0.9095589513 | AK34: 0.9095589513 | AO34: 13 | AP34: 2027-06-06 | AQ34: 31 | AR34: 396 | AS34: 396159.7729 | AT34: 1154.001379 | AU34: 2950.780212 | AV34: 0 | AW34: 126 | AX34: 0 | AY34: 4230.78159 | AZ34: 395005.7715 | BA34: 0.9095589513 | BB34: 0.9095589513 | BF34: 13 | BG34: 2027-06-06 | BH34: 31 | BI34: 396 | BJ34: 396159.8915 | BK34: 542.0576691 | BL34: 2950.781095 | BM34: 0 | BN34: 126 | BO34: 0 | BP34: 3618.838764 | BQ34: 395617.8338 | BR34: 0.9095589513 | BS34: 0.9095589513 | BW34: 13 | BX34: 2027-06-06 | BY34: 31 | BZ34: 396 | CA34: 402082.4595 | CB34: 635.7543974 | CC34: 2994.895106 | CD34: 0 | CE34: 126 | CF34: 0 | CG34: 3756.649503 | CH34: 401446.7051 | CI34: 0.9095589513 | CJ34: 0.9095589513 | CN34: 13 | CO34: 2027-06-06 | CP34: 31 | CQ34: 396 | CR34: 402082.5617 | CS34: 92.38978005 | CT34: 2994.895867 | CU34: 0 | CV34: 126 | CW34: 0 | CX34: 3213.285647 | CY34: 401990.1719 | CZ34: 0.9095589513 | DA34: 0.9095589513
B35: 14 | C35: 2027-07-06 | D35: 30 | E35: 426 | F35: 401446.7051 | G35: 737.2933052 | H35: 2893.356198 | I35: 0 | J35: 126 | K35: 0 | L35: 3756.649503 | M35: 400709.4118 | N35: 0.9030503753 | O35: 0.9030503753 | Q35: =IFERROR(IF('Simulación Cliente'!$H$21="Simple",G35+H35+I35+J35+K35,AC35+AD35+AE35+AF35+AG35),"") -> 3756.649503 | R35: 426 | S35: =IFERROR((1+'Simulación Cliente'!$E$21)^(R35/360),"") -> 1 | T35: 3756.65 | X35: 14 | Y35: 2027-07-06 | Z35: 30 | AA35: 426 | AB35: 401990.1719 | AC35: 3403.298155 | AD35: 2897.273139 | AE35: 0 | AF35: 126 | AG35: 0 | AH35: 6426.571293 | AI35: 398586.8737 | AJ35: 1.806100751 | AK35: 0.9030503753 | AO35: 14 | AP35: 2027-07-06 | AQ35: 30 | AR35: 426 | AS35: 395005.7715 | AT35: 1257.847283 | AU35: 2846.934307 | AV35: 0 | AW35: 126 | AX35: 0 | AY35: 4230.78159 | AZ35: 393747.9242 | BA35: 0.9030503753 | BB35: 0.9030503753 | BF35: 14 | BG35: 2027-07-06 | BH35: 30 | BI35: 426 | BJ35: 395617.8338 | BK35: 4260.33189 | BL35: 2851.345638 | BM35: 0 | BN35: 126 | BO35: 0 | BP35: 7237.677528 | BQ35: 391357.502 | BR35: 1.806100751 | BS35: 0.9030503753 | BW35: 14 | BX35: 2027-07-06 | BY35: 30 | BZ35: 426 | CA35: 401446.7051 | CB35: 737.2933052 | CC35: 2893.356198 | CD35: 0 | CE35: 126 | CF35: 0 | CG35: 3756.649503 | CH35: 400709.4118 | CI35: 0.9030503753 | CJ35: 0.9030503753 | CN35: 14 | CO35: 2027-07-06 | CP35: 30 | CQ35: 426 | CR35: 401990.1719 | CS35: 3403.298155 | CT35: 2897.273139 | CU35: 0 | CV35: 126 | CW35: 0 | CX35: 6426.571293 | CY35: 398586.8737 | CZ35: 1.806100751 | DA35: 0.9030503753
B36: 15 | C36: 2027-08-06 | D36: 31 | E36: 457 | F36: 400709.4118 | G36: 645.9814883 | H36: 2984.668015 | I36: 0 | J36: 126 | K36: 0 | L36: 3756.649503 | M36: 400063.4303 | N36: 0.8963737711 | O36: 0.8963737711 | Q36: =IFERROR(IF('Simulación Cliente'!$H$21="Simple",G36+H36+I36+J36+K36,AC36+AD36+AE36+AF36+AG36),"") -> 3756.649503 | R36: 457 | S36: =IFERROR((1+'Simulación Cliente'!$E$21)^(R36/360),"") -> 1 | T36: 3756.65 | X36: 15 | Y36: 2027-08-06 | Z36: 31 | AA36: 457 | AB36: 398586.8737 | AC36: 118.4272717 | AD36: 2968.858375 | AE36: 0 | AF36: 126 | AG36: 0 | AH36: 3213.285647 | AI36: 398468.4465 | AJ36: 0.8963737711 | AK36: 0.8963737711 | AO36: 15 | AP36: 2027-08-06 | AQ36: 31 | AR36: 457 | AS36: 393747.9242 | AT36: 1171.965937 | AU36: 2932.815653 | AV36: 0 | AW36: 126 | AX36: 0 | AY36: 4230.78159 | AZ36: 392575.9583 | BA36: 0.8963737711 | BB36: 0.8963737711 | BF36: 15 | BG36: 2027-08-06 | BH36: 31 | BI36: 457 | BJ36: 391357.502 | BK36: 577.8280755 | BL36: 2915.010689 | BM36: 0 | BN36: 126 | BO36: 0 | BP36: 3618.838764 | BQ36: 390779.6739 | BR36: 0.8963737711 | BS36: 0.8963737711 | BW36: 15 | BX36: 2027-08-06 | BY36: 31 | BZ36: 457 | CA36: 400709.4118 | CB36: 645.9814883 | CC36: 2984.668015 | CD36: 0 | CE36: 126 | CF36: 0 | CG36: 3756.649503 | CH36: 400063.4303 | CI36: 0.8963737711 | CJ36: 0.8963737711 | CN36: 15 | CO36: 2027-08-06 | CP36: 31 | CQ36: 457 | CR36: 398586.8737 | CS36: 118.4272717 | CT36: 2968.858375 | CU36: 0 | CV36: 126 | CW36: 0 | CX36: 3213.285647 | CY36: 398468.4465 | CZ36: 0.8963737711 | DA36: 0.8963737711
B37: 16 | C37: 2027-09-06 | D37: 31 | E37: 488 | F37: 400063.4303 | G37: 650.7930555 | H37: 2979.856448 | I37: 0 | J37: 126 | K37: 0 | L37: 3756.649503 | M37: 399412.6373 | N37: 0.8897465297 | O37: 0.8897465297 | Q37: =IFERROR(IF('Simulación Cliente'!$H$21="Simple",G37+H37+I37+J37+K37,AC37+AD37+AE37+AF37+AG37),"") -> 3756.649503 | R37: 488 | S37: =IFERROR((1+'Simulación Cliente'!$E$21)^(R37/360),"") -> 1 | T37: 3756.65 | X37: 16 | Y37: 2027-09-06 | Z37: 31 | AA37: 488 | AB37: 398468.4465 | AC37: 119.3093725 | AD37: 2967.976274 | AE37: 0 | AF37: 126 | AG37: 0 | AH37: 3213.285647 | AI37: 398349.1371 | AJ37: 0.8897465297 | AK37: 0.8897465297 | AO37: 16 | AP37: 2027-09-06 | AQ37: 31 | AR37: 488 | AS37: 392575.9583 | AT37: 1180.695278 | AU37: 2924.086312 | AV37: 0 | AW37: 126 | AX37: 0 | AY37: 4230.78159 | AZ37: 391395.263 | BA37: 0.8897465297 | BB37: 0.8897465297 | BF37: 16 | BG37: 2027-09-06 | BH37: 31 | BI37: 488 | BJ37: 390779.6739 | BK37: 582.1320048 | BL37: 2910.706759 | BM37: 0 | BN37: 126 | BO37: 0 | BP37: 3618.838764 | BQ37: 390197.5419 | BR37: 0.8897465297 | BS37: 0.8897465297 | BW37: 16 | BX37: 2027-09-06 | BY37: 31 | BZ37: 488 | CA37: 400063.4303 | CB37: 650.7930555 | CC37: 2979.856448 | CD37: 0 | CE37: 126 | CF37: 0 | CG37: 3756.649503 | CH37: 399412.6373 | CI37: 0.8897465297 | CJ37: 0.8897465297 | CN37: 16 | CO37: 2027-09-06 | CP37: 31 | CQ37: 488 | CR37: 398468.4465 | CS37: 119.3093725 | CT37: 2967.976274 | CU37: 0 | CV37: 126 | CW37: 0 | CX37: 3213.285647 | CY37: 398349.1371 | CZ37: 0.8897465297 | DA37: 0.8897465297
B38: 17 | C38: 2027-10-06 | D38: 30 | E38: 518 | F38: 399412.6373 | G38: 751.9534898 | H38: 2878.696013 | I38: 0 | J38: 126 | K38: 0 | L38: 3756.649503 | M38: 398660.6838 | N38: 0.8833797264 | O38: 0.8833797264 | Q38: =IFERROR(IF('Simulación Cliente'!$H$21="Simple",G38+H38+I38+J38+K38,AC38+AD38+AE38+AF38+AG38),"") -> 3756.649503 | R38: 518 | S38: =IFERROR((1+'Simulación Cliente'!$E$21)^(R38/360),"") -> 1 | T38: 3756.65 | X38: 17 | Y38: 2027-10-06 | Z38: 30 | AA38: 518 | AB38: 398349.1371 | AC38: 216.254623 | AD38: 2871.031024 | AE38: 0 | AF38: 126 | AG38: 0 | AH38: 3213.285647 | AI38: 398132.8825 | AJ38: 0.8833797264 | AK38: 0.8833797264 | AO38: 17 | AP38: 2027-10-06 | AQ38: 30 | AR38: 518 | AS38: 391395.263 | AT38: 1283.869385 | AU38: 2820.912205 | AV38: 0 | AW38: 126 | AX38: 0 | AY38: 4230.78159 | AZ38: 390111.3936 | BA38: 0.8833797264 | BB38: 0.8833797264 | BF38: 17 | BG38: 2027-10-06 | BH38: 30 | BI38: 518 | BJ38: 390197.5419 | BK38: 680.5589227 | BL38: 2812.279841 | BM38: 0 | BN38: 126 | BO38: 0 | BP38: 3618.838764 | BQ38: 389516.9829 | BR38: 0.8833797264 | BS38: 0.8833797264 | BW38: 17 | BX38: 2027-10-06 | BY38: 30 | BZ38: 518 | CA38: 399412.6373 | CB38: 751.9534898 | CC38: 2878.696013 | CD38: 0 | CE38: 126 | CF38: 0 | CG38: 3756.649503 | CH38: 398660.6838 | CI38: 0.8833797264 | CJ38: 0.8833797264 | CN38: 17 | CO38: 2027-10-06 | CP38: 30 | CQ38: 518 | CR38: 398349.1371 | CS38: 216.254623 | CT38: 2871.031024 | CU38: 0 | CV38: 126 | CW38: 0 | CX38: 3213.285647 | CY38: 398132.8825 | CZ38: 0.8833797264 | DA38: 0.8833797264
B39: 18 | C39: 2027-11-06 | D39: 31 | E39: 549 | F39: 398660.6838 | G39: 661.241357 | H39: 2969.408146 | I39: 0 | J39: 126 | K39: 0 | L39: 3756.649503 | M39: 397999.4424 | N39: 0.876848555 | O39: 0.876848555 | Q39: =IFERROR(IF('Simulación Cliente'!$H$21="Simple",G39+H39+I39+J39+K39,AC39+AD39+AE39+AF39+AG39),"") -> 3756.649503 | R39: 549 | S39: =IFERROR((1+'Simulación Cliente'!$E$21)^(R39/360),"") -> 1 | T39: 3756.65 | X39: 18 | Y39: 2027-11-06 | Z39: 31 | AA39: 549 | AB39: 398132.8825 | AC39: 121.8088075 | AD39: 2965.476839 | AE39: 0 | AF39: 126 | AG39: 0 | AH39: 3213.285647 | AI39: 398011.0737 | AJ39: 0.876848555 | AK39: 0.876848555 | AO39: 18 | AP39: 2027-11-06 | AQ39: 31 | AR39: 549 | AS39: 390111.3936 | AT39: 1199.05249 | AU39: 2905.729101 | AV39: 0 | AW39: 126 | AX39: 0 | AY39: 4230.78159 | AZ39: 388912.3411 | BA39: 0.876848555 | BB39: 0.876848555 | BF39: 18 | BG39: 2027-11-06 | BH39: 31 | BI39: 549 | BJ39: 389516.9829 | BK39: 591.5371077 | BL39: 2901.301656 | BM39: 0 | BN39: 126 | BO39: 0 | BP39: 3618.838764 | BQ39: 388925.4458 | BR39: 0.876848555 | BS39: 0.876848555 | BW39: 18 | BX39: 2027-11-06 | BY39: 31 | BZ39: 549 | CA39: 398660.6838 | CB39: 661.241357 | CC39: 2969.408146 | CD39: 0 | CE39: 126 | CF39: 0 | CG39: 3756.649503 | CH39: 397999.4424 | CI39: 0.876848555 | CJ39: 0.876848555 | CN39: 18 | CO39: 2027-11-06 | CP39: 31 | CQ39: 549 | CR39: 398132.8825 | CS39: 121.8088075 | CT39: 2965.476839 | CU39: 0 | CV39: 126 | CW39: 0 | CX39: 3213.285647 | CY39: 398011.0737 | CZ39: 0.876848555 | DA39: 0.876848555
B40: 19 | C40: 2027-12-06 | D40: 30 | E40: 579 | F40: 397999.4424 | G40: 762.138842 | H40: 2868.510661 | I40: 0 | J40: 126 | K40: 0 | L40: 3756.649503 | M40: 397237.3036 | N40: 0.8705740464 | O40: 0.8705740464 | Q40: =IFERROR(IF('Simulación Cliente'!$H$21="Simple",G40+H40+I40+J40+K40,AC40+AD40+AE40+AF40+AG40),"") -> 3756.649503 | R40: 579 | S40: =IFERROR((1+'Simulación Cliente'!$E$21)^(R40/360),"") -> 1 | T40: 3756.65 | X40: 19 | Y40: 2027-12-06 | Z40: 30 | AA40: 579 | AB40: 398011.0737 | AC40: 3431.976802 | AD40: 2868.594491 | AE40: 0 | AF40: 126 | AG40: 0 | AH40: 6426.571293 | AI40: 394579.0969 | AJ40: 1.741148093 | AK40: 0.8705740464 | AO40: 19 | AP40: 2027-12-06 | AQ40: 30 | AR40: 579 | AS40: 388912.3411 | AT40: 1301.764606 | AU40: 2803.016984 | AV40: 0 | AW40: 126 | AX40: 0 | AY40: 4230.78159 | AZ40: 387610.5765 | BA40: 0.8705740464 | BB40: 0.8705740464 | BF40: 19 | BG40: 2027-12-06 | BH40: 30 | BI40: 579 | BJ40: 388925.4458 | BK40: 4308.566094 | BL40: 2803.111434 | BM40: 0 | BN40: 126 | BO40: 0 | BP40: 7237.677528 | BQ40: 384616.8797 | BR40: 1.741148093 | BS40: 0.8705740464 | BW40: 19 | BX40: 2027-12-06 | BY40: 30 | BZ40: 579 | CA40: 397999.4424 | CB40: 762.138842 | CC40: 2868.510661 | CD40: 0 | CE40: 126 | CF40: 0 | CG40: 3756.649503 | CH40: 397237.3036 | CI40: 0.8705740464 | CJ40: 0.8705740464 | CN40: 19 | CO40: 2027-12-06 | CP40: 30 | CQ40: 579 | CR40: 398011.0737 | CS40: 3431.976802 | CT40: 2868.594491 | CU40: 0 | CV40: 126 | CW40: 0 | CX40: 6426.571293 | CY40: 394579.0969 | CZ40: 1.741148093 | DA40: 0.8705740464
B41: 20 | C41: 2028-01-06 | D41: 31 | E41: 610 | F41: 397237.3036 | G41: 671.8433475 | H41: 2958.806156 | I41: 0 | J41: 126 | K41: 0 | L41: 3756.649503 | M41: 396565.4602 | N41: 0.8641375524 | O41: 0.8641375524 | Q41: =IFERROR(IF('Simulación Cliente'!$H$21="Simple",G41+H41+I41+J41+K41,AC41+AD41+AE41+AF41+AG41),"") -> 3756.649503 | R41: 610 | S41: =IFERROR((1+'Simulación Cliente'!$E$21)^(R41/360),"") -> 1 | T41: 3756.65 | X41: 20 | Y41: 2028-01-06 | Z41: 31 | AA41: 610 | AB41: 394579.0969 | AC41: 148.2790374 | AD41: 2939.006609 | AE41: 0 | AF41: 126 | AG41: 0 | AH41: 3213.285647 | AI41: 394430.8178 | AJ41: 0.8641375524 | AK41: 0.8641375524 | AO41: 20 | AP41: 2028-01-06 | AQ41: 31 | AR41: 610 | AS41: 387610.5765 | AT41: 1217.679726 | AU41: 2887.101865 | AV41: 0 | AW41: 126 | AX41: 0 | AY41: 4230.78159 | AZ41: 386392.8968 | BA41: 0.8641375524 | BB41: 0.8641375524 | BF41: 20 | BG41: 2028-01-06 | BH41: 31 | BI41: 610 | BJ41: 384616.8797 | BK41: 628.0353302 | BL41: 2864.803434 | BM41: 0 | BN41: 126 | BO41: 0 | BP41: 3618.838764 | BQ41: 383988.8444 | BR41: 0.8641375524 | BS41: 0.8641375524 | BW41: 20 | BX41: 2028-01-06 | BY41: 31 | BZ41: 610 | CA41: 397237.3036 | CB41: 671.8433475 | CC41: 2958.806156 | CD41: 0 | CE41: 126 | CF41: 0 | CG41: 3756.649503 | CH41: 396565.4602 | CI41: 0.8641375524 | CJ41: 0.8641375524 | CN41: 20 | CO41: 2028-01-06 | CP41: 31 | CQ41: 610 | CR41: 394579.0969 | CS41: 148.2790374 | CT41: 2939.006609 | CU41: 0 | CV41: 126 | CW41: 0 | CX41: 3213.285647 | CY41: 394430.8178 | CZ41: 0.8641375524 | DA41: 0.8641375524
B42: 21 | C42: 2028-02-06 | D42: 31 | E42: 641 | F42: 396565.4602 | G42: 676.8475457 | H42: 2953.801957 | I42: 0 | J42: 126 | K42: 0 | L42: 3756.649503 | M42: 395888.6127 | N42: 0.857748646 | O42: 0.857748646 | Q42: =IFERROR(IF('Simulación Cliente'!$H$21="Simple",G42+H42+I42+J42+K42,AC42+AD42+AE42+AF42+AG42),"") -> 3756.649503 | R42: 641 | S42: =IFERROR((1+'Simulación Cliente'!$E$21)^(R42/360),"") -> 1 | T42: 3756.65 | X42: 21 | Y42: 2028-02-06 | Z42: 31 | AA42: 641 | AB42: 394430.8178 | AC42: 149.3834878 | AD42: 2937.902159 | AE42: 0 | AF42: 126 | AG42: 0 | AH42: 3213.285647 | AI42: 394281.4343 | AJ42: 0.857748646 | AK42: 0.857748646 | AO42: 21 | AP42: 2028-02-06 | AQ42: 31 | AR42: 641 | AS42: 386392.8968 | AT42: 1226.749564 | AU42: 2878.032026 | AV42: 0 | AW42: 126 | AX42: 0 | AY42: 4230.78159 | AZ42: 385166.1473 | BA42: 0.857748646 | BB42: 0.857748646 | BF42: 21 | BG42: 2028-02-06 | BH42: 31 | BI42: 641 | BJ42: 383988.8444 | BK42: 632.7132262 | BL42: 2860.125538 | BM42: 0 | BN42: 126 | BO42: 0 | BP42: 3618.838764 | BQ42: 383356.1312 | BR42: 0.857748646 | BS42: 0.857748646 | BW42: 21 | BX42: 2028-02-06 | BY42: 31 | BZ42: 641 | CA42: 396565.4602 | CB42: 676.8475457 | CC42: 2953.801957 | CD42: 0 | CE42: 126 | CF42: 0 | CG42: 3756.649503 | CH42: 395888.6127 | CI42: 0.857748646 | CJ42: 0.857748646 | CN42: 21 | CO42: 2028-02-06 | CP42: 31 | CQ42: 641 | CR42: 394430.8178 | CS42: 149.3834878 | CT42: 2937.902159 | CU42: 0 | CV42: 126 | CW42: 0 | CX42: 3213.285647 | CY42: 394281.4343 | CZ42: 0.857748646 | DA42: 0.857748646
B43: 22 | C43: 2028-03-06 | D43: 29 | E43: 670 | F43: 395888.6127 | G43: 872.7926816 | H43: 2757.856822 | I43: 0 | J43: 126 | K43: 0 | L43: 3756.649503 | M43: 395015.82 | N43: 0.8518146966 | O43: 0.8518146966 | Q43: =IFERROR(IF('Simulación Cliente'!$H$21="Simple",G43+H43+I43+J43+K43,AC43+AD43+AE43+AF43+AG43),"") -> 3756.649503 | R43: 670 | S43: =IFERROR((1+'Simulación Cliente'!$E$21)^(R43/360),"") -> 1 | T43: 3756.65 | X43: 22 | Y43: 2028-03-06 | Z43: 29 | AA43: 670 | AB43: 394281.4343 | AC43: 340.6248223 | AD43: 2746.660824 | AE43: 0 | AF43: 126 | AG43: 0 | AH43: 3213.285647 | AI43: 393940.8095 | AJ43: 0.8518146966 | AK43: 0.8518146966 | AO43: 22 | AP43: 2028-03-06 | AQ43: 29 | AR43: 670 | AS43: 385166.1473 | AT43: 1421.620083 | AU43: 2683.161507 | AV43: 0 | AW43: 126 | AX43: 0 | AY43: 4230.78159 | AZ43: 383744.5272 | BA43: 0.8518146966 | BB43: 0.8518146966 | BF43: 22 | BG43: 2028-03-06 | BH43: 29 | BI43: 670 | BJ43: 383356.1312 | BK43: 822.2862713 | BL43: 2670.552493 | BM43: 0 | BN43: 126 | BO43: 0 | BP43: 3618.838764 | BQ43: 382533.8449 | BR43: 0.8518146966 | BS43: 0.8518146966 | BW43: 22 | BX43: 2028-03-06 | BY43: 29 | BZ43: 670 | CA43: 395888.6127 | CB43: 872.7926816 | CC43: 2757.856822 | CD43: 0 | CE43: 126 | CF43: 0 | CG43: 3756.649503 | CH43: 395015.82 | CI43: 0.8518146966 | CJ43: 0.8518146966 | CN43: 22 | CO43: 2028-03-06 | CP43: 29 | CQ43: 670 | CR43: 394281.4343 | CS43: 340.6248223 | CT43: 2746.660824 | CU43: 0 | CV43: 126 | CW43: 0 | CX43: 3213.285647 | CY43: 393940.8095 | CZ43: 0.8518146966 | DA43: 0.8518146966
B44: 23 | C44: 2028-04-06 | D44: 31 | E44: 701 | F44: 395015.82 | G44: 688.3899789 | H44: 2942.259524 | I44: 0 | J44: 126 | K44: 0 | L44: 3756.649503 | M44: 394327.43 | N44: 0.8455168979 | O44: 0.8455168979 | Q44: =IFERROR(IF('Simulación Cliente'!$H$21="Simple",G44+H44+I44+J44+K44,AC44+AD44+AE44+AF44+AG44),"") -> 3756.649503 | R44: 701 | S44: =IFERROR((1+'Simulación Cliente'!$E$21)^(R44/360),"") -> 1 | T44: 3756.65 | X44: 23 | Y44: 2028-04-06 | Z44: 31 | AA44: 701 | AB44: 393940.8095 | AC44: 153.0332951 | AD44: 2934.252352 | AE44: 0 | AF44: 126 | AG44: 0 | AH44: 3213.285647 | AI44: 393787.7762 | AJ44: 0.8455168979 | AK44: 0.8455168979 | AO44: 23 | AP44: 2028-04-06 | AQ44: 31 | AR44: 701 | AS44: 383744.5272 | AT44: 1246.47584 | AU44: 2858.305751 | AV44: 0 | AW44: 126 | AX44: 0 | AY44: 4230.78159 | AZ44: 382498.0513 | BA44: 0.8455168979 | BB44: 0.8455168979 | BF44: 23 | BG44: 2028-04-06 | BH44: 31 | BI44: 701 | BJ44: 382533.8449 | BK44: 643.5507318 | BL44: 2849.288032 | BM44: 0 | BN44: 126 | BO44: 0 | BP44: 3618.838764 | BQ44: 381890.2942 | BR44: 0.8455168979 | BS44: 0.8455168979 | BW44: 23 | BX44: 2028-04-06 | BY44: 31 | BZ44: 701 | CA44: 395015.82 | CB44: 688.3899789 | CC44: 2942.259524 | CD44: 0 | CE44: 126 | CF44: 0 | CG44: 3756.649503 | CH44: 394327.43 | CI44: 0.8455168979 | CJ44: 0.8455168979 | CN44: 23 | CO44: 2028-04-06 | CP44: 31 | CQ44: 701 | CR44: 393940.8095 | CS44: 153.0332951 | CT44: 2934.252352 | CU44: 0 | CV44: 126 | CW44: 0 | CX44: 3213.285647 | CY44: 393787.7762 | CZ44: 0.8455168979 | DA44: 0.8455168979
B45: 24 | C45: 2028-05-06 | D45: 30 | E45: 731 | F45: 394327.43 | G45: 788.6042225 | H45: 2842.045281 | I45: 0 | J45: 126 | K45: 0 | L45: 3756.649503 | M45: 393538.8258 | N45: 0.8394665907 | O45: 0.8394665907 | Q45: =IFERROR(IF('Simulación Cliente'!$H$21="Simple",G45+H45+I45+J45+K45,AC45+AD45+AE45+AF45+AG45),"") -> 3756.649503 | R45: 731 | S45: =IFERROR((1+'Simulación Cliente'!$E$21)^(R45/360),"") -> 1 | T45: 3756.65 | X45: 24 | Y45: 2028-05-06 | Z45: 30 | AA45: 731 | AB45: 393787.7762 | AC45: 249.1298256 | AD45: 2838.155821 | AE45: 0 | AF45: 126 | AG45: 0 | AH45: 3213.285647 | AI45: 393538.6464 | AJ45: 0.8394665907 | AK45: 0.8394665907 | AO45: 24 | AP45: 2028-05-06 | AQ45: 30 | AR45: 731 | AS45: 382498.0513 | AT45: 1347.994467 | AU45: 2756.787124 | AV45: 0 | AW45: 126 | AX45: 0 | AY45: 4230.78159 | AZ45: 381150.0569 | BA45: 0.8394665907 | BB45: 0.8394665907 | BF45: 24 | BG45: 2028-05-06 | BH45: 30 | BI45: 731 | BJ45: 381890.2942 | BK45: 740.4319426 | BL45: 2752.406822 | BM45: 0 | BN45: 126 | BO45: 0 | BP45: 3618.838764 | BQ45: 381149.8622 | BR45: 0.8394665907 | BS45: 0.8394665907 | BW45: 24 | BX45: 2028-05-06 | BY45: 30 | BZ45: 731 | CA45: 394327.43 | CB45: 788.6042225 | CC45: 2842.045281 | CD45: 0 | CE45: 126 | CF45: 0 | CG45: 3756.649503 | CH45: 393538.8258 | CI45: 0.8394665907 | CJ45: 0.8394665907 | CN45: 24 | CO45: 2028-05-06 | CP45: 30 | CQ45: 731 | CR45: 393787.7762 | CS45: 249.1298256 | CT45: 2838.155821 | CU45: 0 | CV45: 126 | CW45: 0 | CX45: 3213.285647 | CY45: 393538.6464 | CZ45: 0.8394665907 | DA45: 0.8394665907
B46: 25 | C46: 2028-06-06 | D46: 31 | E46: 762 | F46: 393538.8258 | G46: 699.3913111 | H46: 2931.258192 | I46: 0 | J46: 126 | K46: 0 | L46: 3756.649503 | M46: 392839.4345 | N46: 0.8332600863 | O46: 0.8332600863 | Q46: =IFERROR(IF('Simulación Cliente'!$H$21="Simple",G46+H46+I46+J46+K46,AC46+AD46+AE46+AF46+AG46),"") -> 3756.649503 | R46: 762 | S46: =IFERROR((1+'Simulación Cliente'!$E$21)^(R46/360),"") -> 1 | T46: 3756.65 | X46: 25 | Y46: 2028-06-06 | Z46: 31 | AA46: 762 | AB46: 393538.6464 | AC46: 156.028791 | AD46: 2931.256856 | AE46: 0 | AF46: 126 | AG46: 0 | AH46: 3213.285647 | AI46: 393382.6176 | AJ46: 0.8332600863 | AK46: 0.8332600863 | AO46: 25 | AP46: 2028-06-06 | AQ46: 31 | AR46: 762 | AS46: 381150.0569 | AT46: 1265.800648 | AU46: 2838.980942 | AV46: 0 | AW46: 126 | AX46: 0 | AY46: 4230.78159 | AZ46: 379884.2562 | BA46: 0.8332600863 | BB46: 0.8332600863 | BF46: 25 | BG46: 2028-06-06 | BH46: 31 | BI46: 762 | BJ46: 381149.8622 | BK46: 653.8592713 | BL46: 2838.979493 | BM46: 0 | BN46: 126 | BO46: 0 | BP46: 3618.838764 | BQ46: 380496.003 | BR46: 0.8332600863 | BS46: 0.8332600863 | BW46: 25 | BX46: 2028-06-06 | BY46: 31 | BZ46: 762 | CA46: 393538.8258 | CB46: 699.3913111 | CC46: 2931.258192 | CD46: 0 | CE46: 126 | CF46: 0 | CG46: 3756.649503 | CH46: 392839.4345 | CI46: 0.8332600863 | CJ46: 0.8332600863 | CN46: 25 | CO46: 2028-06-06 | CP46: 31 | CQ46: 762 | CR46: 393538.6464 | CS46: 156.028791 | CT46: 2931.256856 | CU46: 0 | CV46: 126 | CW46: 0 | CX46: 3213.285647 | CY46: 393382.6176 | CZ46: 0.8332600863 | DA46: 0.8332600863
B47: 26 | C47: 2028-07-06 | D47: 30 | E47: 792 | F47: 392839.4345 | G47: 799.3286874 | H47: 2831.320816 | I47: 0 | J47: 126 | K47: 0 | L47: 3756.649503 | M47: 392040.1058 | N47: 0.8272974859 | O47: 0.8272974859 | Q47: =IFERROR(IF('Simulación Cliente'!$H$21="Simple",G47+H47+I47+J47+K47,AC47+AD47+AE47+AF47+AG47),"") -> 3756.649503 | R47: 792 | S47: =IFERROR((1+'Simulación Cliente'!$E$21)^(R47/360),"") -> 1 | T47: 3756.65 | X47: 26 | Y47: 2028-07-06 | Z47: 30 | AA47: 792 | AB47: 393382.6176 | AC47: 3465.335581 | AD47: 2835.235712 | AE47: 0 | AF47: 126 | AG47: 0 | AH47: 6426.571293 | AI47: 389917.282 | AJ47: 1.654594972 | AK47: 0.8272974859 | AO47: 26 | AP47: 2028-07-06 | AQ47: 30 | AR47: 792 | AS47: 379884.2562 | AT47: 1366.832933 | AU47: 2737.948657 | AV47: 0 | AW47: 126 | AX47: 0 | AY47: 4230.78159 | AZ47: 378517.4233 | BA47: 0.8272974859 | BB47: 0.8272974859 | BF47: 26 | BG47: 2028-07-06 | BH47: 30 | BI47: 792 | BJ47: 380496.003 | BK47: 4369.319814 | BL47: 2742.357714 | BM47: 0 | BN47: 126 | BO47: 0 | BP47: 7237.677528 | BQ47: 376126.6832 | BR47: 1.654594972 | BS47: 0.8272974859 | BW47: 26 | BX47: 2028-07-06 | BY47: 30 | BZ47: 792 | CA47: 392839.4345 | CB47: 799.3286874 | CC47: 2831.320816 | CD47: 0 | CE47: 126 | CF47: 0 | CG47: 3756.649503 | CH47: 392040.1058 | CI47: 0.8272974859 | CJ47: 0.8272974859 | CN47: 26 | CO47: 2028-07-06 | CP47: 30 | CQ47: 792 | CR47: 393382.6176 | CS47: 3465.335581 | CT47: 2835.235712 | CU47: 0 | CV47: 126 | CW47: 0 | CX47: 6426.571293 | CY47: 389917.282 | CZ47: 1.654594972 | DA47: 0.8272974859
B48: 27 | C48: 2028-08-06 | D48: 31 | E48: 823 | F48: 392040.1058 | G48: 710.5544671 | H48: 2920.095036 | I48: 0 | J48: 126 | K48: 0 | L48: 3756.649503 | M48: 391329.5513 | N48: 0.8211809524 | O48: 0.8211809524 | Q48: =IFERROR(IF('Simulación Cliente'!$H$21="Simple",G48+H48+I48+J48+K48,AC48+AD48+AE48+AF48+AG48),"") -> 3756.649503 | R48: 823 | S48: =IFERROR((1+'Simulación Cliente'!$E$21)^(R48/360),"") -> 1 | T48: 3756.65 | X48: 27 | Y48: 2028-08-06 | Z48: 31 | AA48: 823 | AB48: 389917.282 | AC48: 183.0023786 | AD48: 2904.283268 | AE48: 0 | AF48: 126 | AG48: 0 | AH48: 3213.285647 | AI48: 389734.2796 | AJ48: 0.8211809524 | AK48: 0.8211809524 | AO48: 27 | AP48: 2028-08-06 | AQ48: 31 | AR48: 823 | AS48: 378517.4233 | AT48: 1285.409714 | AU48: 2819.371877 | AV48: 0 | AW48: 126 | AX48: 0 | AY48: 4230.78159 | AZ48: 377232.0136 | BA48: 0.8211809524 | BB48: 0.8211809524 | BF48: 27 | BG48: 2028-08-06 | BH48: 31 | BI48: 823 | BJ48: 376126.6832 | BK48: 691.2742197 | BL48: 2801.564544 | BM48: 0 | BN48: 126 | BO48: 0 | BP48: 3618.838764 | BQ48: 375435.4089 | BR48: 0.8211809524 | BS48: 0.8211809524 | BW48: 27 | BX48: 2028-08-06 | BY48: 31 | BZ48: 823 | CA48: 392040.1058 | CB48: 710.5544671 | CC48: 2920.095036 | CD48: 0 | CE48: 126 | CF48: 0 | CG48: 3756.649503 | CH48: 391329.5513 | CI48: 0.8211809524 | CJ48: 0.8211809524 | CN48: 27 | CO48: 2028-08-06 | CP48: 31 | CQ48: 823 | CR48: 389917.282 | CS48: 183.0023786 | CT48: 2904.283268 | CU48: 0 | CV48: 126 | CW48: 0 | CX48: 3213.285647 | CY48: 389734.2796 | CZ48: 0.8211809524 | DA48: 0.8211809524
B49: 28 | C49: 2028-09-06 | D49: 31 | E49: 854 | F49: 391329.5513 | G49: 715.8470036 | H49: 2914.8025 | I49: 0 | J49: 126 | K49: 0 | L49: 3756.649503 | M49: 390613.7043 | N49: 0.8151096409 | O49: 0.8151096409 | Q49: =IFERROR(IF('Simulación Cliente'!$H$21="Simple",G49+H49+I49+J49+K49,AC49+AD49+AE49+AF49+AG49),"") -> 3756.649503 | R49: 854 | S49: =IFERROR((1+'Simulación Cliente'!$E$21)^(R49/360),"") -> 1 | T49: 3756.65 | X49: 28 | Y49: 2028-09-06 | Z49: 31 | AA49: 854 | AB49: 389734.2796 | AC49: 184.3654645 | AD49: 2902.920182 | AE49: 0 | AF49: 126 | AG49: 0 | AH49: 3213.285647 | AI49: 389549.9142 | AJ49: 0.8151096409 | AK49: 0.8151096409 | AO49: 28 | AP49: 2028-09-06 | AQ49: 31 | AR49: 854 | AS49: 377232.0136 | AT49: 1294.984037 | AU49: 2809.797554 | AV49: 0 | AW49: 126 | AX49: 0 | AY49: 4230.78159 | AZ49: 375937.0295 | BA49: 0.8151096409 | BB49: 0.8151096409 | BF49: 28 | BG49: 2028-09-06 | BH49: 31 | BI49: 854 | BJ49: 375435.4089 | BK49: 696.423148 | BL49: 2796.415616 | BM49: 0 | BN49: 126 | BO49: 0 | BP49: 3618.838764 | BQ49: 374738.9858 | BR49: 0.8151096409 | BS49: 0.8151096409 | BW49: 28 | BX49: 2028-09-06 | BY49: 31 | BZ49: 854 | CA49: 391329.5513 | CB49: 715.8470036 | CC49: 2914.8025 | CD49: 0 | CE49: 126 | CF49: 0 | CG49: 3756.649503 | CH49: 390613.7043 | CI49: 0.8151096409 | CJ49: 0.8151096409 | CN49: 28 | CO49: 2028-09-06 | CP49: 31 | CQ49: 854 | CR49: 389734.2796 | CS49: 184.3654645 | CT49: 2902.920182 | CU49: 0 | CV49: 126 | CW49: 0 | CX49: 3213.285647 | CY49: 389549.9142 | CZ49: 0.8151096409 | DA49: 0.8151096409
B50: 29 | C50: 2028-10-06 | D50: 30 | E50: 884 | F50: 390613.7043 | G50: 815.3702443 | H50: 2815.279259 | I50: 0 | J50: 126 | K50: 0 | L50: 3756.649503 | M50: 389798.3341 | N50: 0.8092769205 | O50: 0.8092769205 | Q50: =IFERROR(IF('Simulación Cliente'!$H$21="Simple",G50+H50+I50+J50+K50,AC50+AD50+AE50+AF50+AG50),"") -> 3756.649503 | R50: 884 | S50: =IFERROR((1+'Simulación Cliente'!$E$21)^(R50/360),"") -> 1 | T50: 3756.65 | X50: 29 | Y50: 2028-10-06 | Z50: 30 | AA50: 884 | AB50: 389549.9142 | AC50: 279.6734675 | AD50: 2807.612179 | AE50: 0 | AF50: 126 | AG50: 0 | AH50: 3213.285647 | AI50: 389270.2407 | AJ50: 0.8092769205 | AK50: 0.8092769205 | AO50: 29 | AP50: 2028-10-06 | AQ50: 30 | AR50: 884 | AS50: 375937.0295 | AT50: 1395.281872 | AU50: 2709.499718 | AV50: 0 | AW50: 126 | AX50: 0 | AY50: 4230.78159 | AZ50: 374541.7477 | BA50: 0.8092769205 | BB50: 0.8092769205 | BF50: 29 | BG50: 2028-10-06 | BH50: 30 | BI50: 884 | BJ50: 374738.9858 | BK50: 791.9737344 | BL50: 2700.86503 | BM50: 0 | BN50: 126 | BO50: 0 | BP50: 3618.838764 | BQ50: 373947.0121 | BR50: 0.8092769205 | BS50: 0.8092769205 | BW50: 29 | BX50: 2028-10-06 | BY50: 30 | BZ50: 884 | CA50: 390613.7043 | CB50: 815.3702443 | CC50: 2815.279259 | CD50: 0 | CE50: 126 | CF50: 0 | CG50: 3756.649503 | CH50: 389798.3341 | CI50: 0.8092769205 | CJ50: 0.8092769205 | CN50: 29 | CO50: 2028-10-06 | CP50: 30 | CQ50: 884 | CR50: 389549.9142 | CS50: 279.6734675 | CT50: 2807.612179 | CU50: 0 | CV50: 126 | CW50: 0 | CX50: 3213.285647 | CY50: 389270.2407 | CZ50: 0.8092769205 | DA50: 0.8092769205
B51: 30 | C51: 2028-11-06 | D51: 31 | E51: 915 | F51: 389798.3341 | G51: 727.2522139 | H51: 2903.397289 | I51: 0 | J51: 126 | K51: 0 | L51: 3756.649503 | M51: 389071.0819 | N51: 0.8032936201 | O51: 0.8032936201 | Q51: =IFERROR(IF('Simulación Cliente'!$H$21="Simple",G51+H51+I51+J51+K51,AC51+AD51+AE51+AF51+AG51),"") -> 3756.649503 | R51: 915 | S51: =IFERROR((1+'Simulación Cliente'!$E$21)^(R51/360),"") -> 1 | T51: 3756.65 | X51: 30 | Y51: 2028-11-06 | Z51: 31 | AA51: 915 | AB51: 389270.2407 | AC51: 187.8218399 | AD51: 2899.463807 | AE51: 0 | AF51: 126 | AG51: 0 | AH51: 3213.285647 | AI51: 389082.4189 | AJ51: 0.8032936201 | AK51: 0.8032936201 | AO51: 30 | AP51: 2028-11-06 | AQ51: 31 | AR51: 915 | AS51: 374541.7477 | AT51: 1315.022375 | AU51: 2789.759216 | AV51: 0 | AW51: 126 | AX51: 0 | AY51: 4230.78159 | AZ51: 373226.7253 | BA51: 0.8032936201 | BB51: 0.8032936201 | BF51: 30 | BG51: 2028-11-06 | BH51: 31 | BI51: 915 | BJ51: 373947.0121 | BK51: 707.5094126 | BL51: 2785.329352 | BM51: 0 | BN51: 126 | BO51: 0 | BP51: 3618.838764 | BQ51: 373239.5026 | BR51: 0.8032936201 | BS51: 0.8032936201 | BW51: 30 | BX51: 2028-11-06 | BY51: 31 | BZ51: 915 | CA51: 389798.3341 | CB51: 727.2522139 | CC51: 2903.397289 | CD51: 0 | CE51: 126 | CF51: 0 | CG51: 3756.649503 | CH51: 389071.0819 | CI51: 0.8032936201 | CJ51: 0.8032936201 | CN51: 30 | CO51: 2028-11-06 | CP51: 31 | CQ51: 915 | CR51: 389270.2407 | CS51: 187.8218399 | CT51: 2899.463807 | CU51: 0 | CV51: 126 | CW51: 0 | CX51: 3213.285647 | CY51: 389082.4189 | CZ51: 0.8032936201 | DA51: 0.8032936201
B52: 31 | C52: 2028-12-06 | D52: 30 | E52: 945 | F52: 389071.0819 | G52: 826.4884231 | H52: 2804.16108 | I52: 0 | J52: 126 | K52: 0 | L52: 3756.649503 | M52: 388244.5934 | N52: 0.7975454522 | O52: 0.7975454522 | Q52: =IFERROR(IF('Simulación Cliente'!$H$21="Simple",G52+H52+I52+J52+K52,AC52+AD52+AE52+AF52+AG52),"") -> 3756.649503 | R52: 945 | S52: =IFERROR((1+'Simulación Cliente'!$E$21)^(R52/360),"") -> 1 | T52: 3756.65 | X52: 31 | Y52: 2028-12-06 | Z52: 30 | AA52: 945 | AB52: 389082.4189 | AC52: 3496.328504 | AD52: 2804.242789 | AE52: 0 | AF52: 126 | AG52: 0 | AH52: 6426.571293 | AI52: 385586.0904 | AJ52: 1.595090904 | AK52: 0.7975454522 | AO52: 31 | AP52: 2028-12-06 | AQ52: 30 | AR52: 945 | AS52: 373226.7253 | AT52: 1414.815911 | AU52: 2689.965679 | AV52: 0 | AW52: 126 | AX52: 0 | AY52: 4230.78159 | AZ52: 371811.9094 | BA52: 0.7975454522 | BB52: 0.7975454522 | BF52: 31 | BG52: 2028-12-06 | BH52: 30 | BI52: 945 | BJ52: 373239.5026 | BK52: 4421.619758 | BL52: 2690.05777 | BM52: 0 | BN52: 126 | BO52: 0 | BP52: 7237.677528 | BQ52: 368817.8829 | BR52: 1.595090904 | BS52: 0.7975454522 | BW52: 31 | BX52: 2028-12-06 | BY52: 30 | BZ52: 945 | CA52: 389071.0819 | CB52: 826.4884231 | CC52: 2804.16108 | CD52: 0 | CE52: 126 | CF52: 0 | CG52: 3756.649503 | CH52: 388244.5934 | CI52: 0.7975454522 | CJ52: 0.7975454522 | CN52: 31 | CO52: 2028-12-06 | CP52: 30 | CQ52: 945 | CR52: 389082.4189 | CS52: 3496.328504 | CT52: 2804.242789 | CU52: 0 | CV52: 126 | CW52: 0 | CX52: 6426.571293 | CY52: 385586.0904 | CZ52: 1.595090904 | DA52: 0.7975454522
B53: 32 | C53: 2029-01-06 | D53: 31 | E53: 976 | F53: 388244.5934 | G53: 738.8251889 | H53: 2891.824314 | I53: 0 | J53: 126 | K53: 0 | L53: 3756.649503 | M53: 387505.7683 | N53: 0.7916488871 | O53: 0.7916488871 | Q53: =IFERROR(IF('Simulación Cliente'!$H$21="Simple",G53+H53+I53+J53+K53,AC53+AD53+AE53+AF53+AG53),"") -> 3756.649503 | R53: 976 | S53: =IFERROR((1+'Simulación Cliente'!$E$21)^(R53/360),"") -> 1 | T53: 3756.65 | X53: 32 | Y53: 2029-01-06 | Z53: 31 | AA53: 976 | AB53: 385586.0904 | AC53: 215.2630863 | AD53: 2872.02256 | AE53: 0 | AF53: 126 | AG53: 0 | AH53: 3213.285647 | AI53: 385370.8273 | AJ53: 0.7916488871 | AK53: 0.7916488871 | AO53: 32 | AP53: 2029-01-06 | AQ53: 31 | AR53: 976 | AS53: 371811.9094 | AT53: 1335.355466 | AU53: 2769.426125 | AV53: 0 | AW53: 126 | AX53: 0 | AY53: 4230.78159 | AZ53: 370476.5539 | BA53: 0.7916488871 | BB53: 0.7916488871 | BF53: 32 | BG53: 2029-01-06 | BH53: 31 | BI53: 976 | BJ53: 368817.8829 | BK53: 745.713526 | BL53: 2747.125238 | BM53: 0 | BN53: 126 | BO53: 0 | BP53: 3618.838764 | BQ53: 368072.1694 | BR53: 0.7916488871 | BS53: 0.7916488871 | BW53: 32 | BX53: 2029-01-06 | BY53: 31 | BZ53: 976 | CA53: 388244.5934 | CB53: 738.8251889 | CC53: 2891.824314 | CD53: 0 | CE53: 126 | CF53: 0 | CG53: 3756.649503 | CH53: 387505.7683 | CI53: 0.7916488871 | CJ53: 0.7916488871 | CN53: 32 | CO53: 2029-01-06 | CP53: 31 | CQ53: 976 | CR53: 385586.0904 | CS53: 215.2630863 | CT53: 2872.02256 | CU53: 0 | CV53: 126 | CW53: 0 | CX53: 3213.285647 | CY53: 385370.8273 | CZ53: 0.7916488871 | DA53: 0.7916488871
B54: 33 | C54: 2029-02-06 | D54: 31 | E54: 1007 | F54: 387505.7683 | G54: 744.3282987 | H54: 2886.321204 | I54: 0 | J54: 126 | K54: 0 | L54: 3756.649503 | M54: 386761.44 | N54: 0.7857959177 | O54: 0.7857959177 | Q54: =IFERROR(IF('Simulación Cliente'!$H$21="Simple",G54+H54+I54+J54+K54,AC54+AD54+AE54+AF54+AG54),"") -> 3756.649503 | R54: 1007 | S54: =IFERROR((1+'Simulación Cliente'!$E$21)^(R54/360),"") -> 1 | T54: 3756.65 | X54: 33 | Y54: 2029-02-06 | Z54: 31 | AA54: 1007 | AB54: 385370.8273 | AC54: 216.8664648 | AD54: 2870.419182 | AE54: 0 | AF54: 126 | AG54: 0 | AH54: 3213.285647 | AI54: 385153.9608 | AJ54: 0.7857959177 | AK54: 0.7857959177 | AO54: 33 | AP54: 2029-02-06 | AQ54: 31 | AR54: 1007 | AS54: 370476.5539 | AT54: 1345.301808 | AU54: 2759.479783 | AV54: 0 | AW54: 126 | AX54: 0 | AY54: 4230.78159 | AZ54: 369131.2521 | BA54: 0.7857959177 | BB54: 0.7857959177 | BF54: 33 | BG54: 2029-02-06 | BH54: 31 | BI54: 1007 | BJ54: 368072.1694 | BK54: 751.2679433 | BL54: 2741.570821 | BM54: 0 | BN54: 126 | BO54: 0 | BP54: 3618.838764 | BQ54: 367320.9014 | BR54: 0.7857959177 | BS54: 0.7857959177 | BW54: 33 | BX54: 2029-02-06 | BY54: 31 | BZ54: 1007 | CA54: 387505.7683 | CB54: 744.3282987 | CC54: 2886.321204 | CD54: 0 | CE54: 126 | CF54: 0 | CG54: 3756.649503 | CH54: 386761.44 | CI54: 0.7857959177 | CJ54: 0.7857959177 | CN54: 33 | CO54: 2029-02-06 | CP54: 31 | CQ54: 1007 | CR54: 385370.8273 | CS54: 216.8664648 | CT54: 2870.419182 | CU54: 0 | CV54: 126 | CW54: 0 | CX54: 3213.285647 | CY54: 385153.9608 | CZ54: 0.7857959177 | DA54: 0.7857959177
B55: 34 | C55: 2029-03-06 | D55: 28 | E55: 1035 | F55: 386761.44 | G55: 1029.592518 | H55: 2601.056985 | I55: 0 | J55: 126 | K55: 0 | L55: 3756.649503 | M55: 385731.8474 | N55: 0.7805465678 | O55: 0.7805465678 | Q55: =IFERROR(IF('Simulación Cliente'!$H$21="Simple",G55+H55+I55+J55+K55,AC55+AD55+AE55+AF55+AG55),"") -> 3756.649503 | R55: 1035 | S55: =IFERROR((1+'Simulación Cliente'!$E$21)^(R55/360),"") -> 1 | T55: 3756.65 | X55: 34 | Y55: 2029-03-06 | Z55: 28 | AA55: 1035 | AB55: 385153.9608 | AC55: 497.0393175 | AD55: 2590.246329 | AE55: 0 | AF55: 126 | AG55: 0 | AH55: 3213.285647 | AI55: 384656.9215 | AJ55: 0.7805465678 | AK55: 0.7805465678 | AO55: 34 | AP55: 2029-03-06 | AQ55: 28 | AR55: 1035 | AS55: 369131.2521 | AT55: 1622.291553 | AU55: 2482.490038 | AV55: 0 | AW55: 126 | AX55: 0 | AY55: 4230.78159 | AZ55: 367508.9605 | BA55: 0.7805465678 | BB55: 0.7805465678 | BF55: 34 | BG55: 2029-03-06 | BH55: 28 | BI55: 1035 | BJ55: 367320.9014 | BK55: 1022.523739 | BL55: 2470.315025 | BM55: 0 | BN55: 126 | BO55: 0 | BP55: 3618.838764 | BQ55: 366298.3777 | BR55: 0.7805465678 | BS55: 0.7805465678 | BW55: 34 | BX55: 2029-03-06 | BY55: 28 | BZ55: 1035 | CA55: 386761.44 | CB55: 1029.592518 | CC55: 2601.056985 | CD55: 0 | CE55: 126 | CF55: 0 | CG55: 3756.649503 | CH55: 385731.8474 | CI55: 0.7805465678 | CJ55: 0.7805465678 | CN55: 34 | CO55: 2029-03-06 | CP55: 28 | CQ55: 1035 | CR55: 385153.9608 | CS55: 497.0393175 | CT55: 2590.246329 | CU55: 0 | CV55: 126 | CW55: 0 | CX55: 3213.285647 | CY55: 384656.9215 | CZ55: 0.7805465678 | DA55: 0.7805465678
B56: 35 | C56: 2029-04-06 | D56: 31 | E56: 1066 | F56: 385731.8474 | G56: 757.5412769 | H56: 2873.108226 | I56: 0 | J56: 126 | K56: 0 | L56: 3756.649503 | M56: 384974.3062 | N56: 0.7747756822 | O56: 0.7747756822 | Q56: =IFERROR(IF('Simulación Cliente'!$H$21="Simple",G56+H56+I56+J56+K56,AC56+AD56+AE56+AF56+AG56),"") -> 3756.649503 | R56: 1066 | S56: =IFERROR((1+'Simulación Cliente'!$E$21)^(R56/360),"") -> 1 | T56: 3756.65 | X56: 35 | Y56: 2029-04-06 | Z56: 31 | AA56: 1066 | AB56: 384656.9215 | AC56: 222.1839634 | AD56: 2865.101683 | AE56: 0 | AF56: 126 | AG56: 0 | AH56: 3213.285647 | AI56: 384434.7375 | AJ56: 0.7747756822 | AK56: 0.7747756822 | AO56: 35 | AP56: 2029-04-06 | AQ56: 31 | AR56: 1066 | AS56: 367508.9605 | AT56: 1367.405808 | AU56: 2737.375783 | AV56: 0 | AW56: 126 | AX56: 0 | AY56: 4230.78159 | AZ56: 366141.5547 | BA56: 0.7747756822 | BB56: 0.7747756822 | BF56: 35 | BG56: 2029-04-06 | BH56: 31 | BI56: 1066 | BJ56: 366298.3777 | BK56: 764.4799597 | BL56: 2728.358804 | BM56: 0 | BN56: 126 | BO56: 0 | BP56: 3618.838764 | BQ56: 365533.8977 | BR56: 0.7747756822 | BS56: 0.7747756822 | BW56: 35 | BX56: 2029-04-06 | BY56: 31 | BZ56: 1066 | CA56: 385731.8474 | CB56: 757.5412769 | CC56: 2873.108226 | CD56: 0 | CE56: 126 | CF56: 0 | CG56: 3756.649503 | CH56: 384974.3062 | CI56: 0.7747756822 | CJ56: 0.7747756822 | CN56: 35 | CO56: 2029-04-06 | CP56: 31 | CQ56: 1066 | CR56: 384656.9215 | CS56: 222.1839634 | CT56: 2865.101683 | CU56: 0 | CV56: 126 | CW56: 0 | CX56: 3213.285647 | CY56: 384434.7375 | CZ56: 0.7747756822 | DA56: 0.7747756822
B57: 36 | C57: 2029-05-06 | D57: 30 | E57: 1096 | F57: 384974.3062 | G57: 856.0152102 | H57: 2774.634293 | I57: 0 | J57: 126 | K57: 0 | L57: 3756.649503 | M57: 384118.291 | N57: 0.7692315815 | O57: 0.7692315815 | Q57: =IFERROR(IF('Simulación Cliente'!$H$21="Simple",G57+H57+I57+J57+K57,AC57+AD57+AE57+AF57+AG57),"") -> 3756.649503 | R57: 1096 | S57: =IFERROR((1+'Simulación Cliente'!$E$21)^(R57/360),"") -> 1 | T57: 3756.65 | X57: 36 | Y57: 2029-05-06 | Z57: 30 | AA57: 1096 | AB57: 384434.7375 | AC57: 316.5401993 | AD57: 2770.745447 | AE57: 0 | AF57: 126 | AG57: 0 | AH57: 3213.285647 | AI57: 384118.1973 | AJ57: 0.7692315815 | AK57: 0.7692315815 | AO57: 36 | AP57: 2029-05-06 | AQ57: 30 | AR57: 1096 | AS57: 366141.5547 | AT57: 1465.881026 | AU57: 2638.900564 | AV57: 0 | AW57: 126 | AX57: 0 | AY57: 4230.78159 | AZ57: 364675.6737 | BA57: 0.7692315815 | BB57: 0.7692315815 | BF57: 36 | BG57: 2029-05-06 | BH57: 30 | BI57: 1096 | BJ57: 365533.8977 | BK57: 858.3177803 | BL57: 2634.520984 | BM57: 0 | BN57: 126 | BO57: 0 | BP57: 3618.838764 | BQ57: 364675.5799 | BR57: 0.7692315815 | BS57: 0.7692315815 | BW57: 36 | BX57: 2029-05-06 | BY57: 30 | BZ57: 1096 | CA57: 384974.3062 | CB57: 856.0152102 | CC57: 2774.634293 | CD57: 0 | CE57: 126 | CF57: 0 | CG57: 3756.649503 | CH57: 384118.291 | CI57: 0.7692315815 | CJ57: 0.7692315815 | CN57: 36 | CO57: 2029-05-06 | CP57: 30 | CQ57: 1096 | CR57: 384434.7375 | CS57: 316.5401993 | CT57: 2770.745447 | CU57: 0 | CV57: 126 | CW57: 0 | CX57: 3213.285647 | CY57: 384118.1973 | CZ57: 0.7692315815 | DA57: 0.7692315815
B58: 37 | C58: 2029-06-06 | D58: 31 | E58: 1127 | F58: 384118.291 | G58: 769.5597878 | H58: 2861.089715 | I58: 0 | J58: 126 | K58: 0 | L58: 3756.649503 | M58: 383348.7312 | N58: 0.7635443519 | O58: 0.7635443519 | Q58: =IFERROR(IF('Simulación Cliente'!$H$21="Simple",G58+H58+I58+J58+K58,AC58+AD58+AE58+AF58+AG58),"") -> 3756.649503 | R58: 1127 | S58: =IFERROR((1+'Simulación Cliente'!$E$21)^(R58/360),"") -> 1 | T58: 3756.65 | X58: 37 | Y58: 2029-06-06 | Z58: 31 | AA58: 1127 | AB58: 384118.1973 | AC58: 226.1966288 | AD58: 2861.089018 | AE58: 0 | AF58: 126 | AG58: 0 | AH58: 3213.285647 | AI58: 383892.0007 | AJ58: 0.7635443519 | AK58: 0.7635443519 | AO58: 37 | AP58: 2029-06-06 | AQ58: 31 | AR58: 1127 | AS58: 364675.6737 | AT58: 1388.509431 | AU58: 2716.272159 | AV58: 0 | AW58: 126 | AX58: 0 | AY58: 4230.78159 | AZ58: 363287.1643 | BA58: 0.7635443519 | BB58: 0.7635443519 | BF58: 37 | BG58: 2029-06-06 | BH58: 31 | BI58: 1127 | BJ58: 364675.5799 | BK58: 776.5673037 | BL58: 2716.27146 | BM58: 0 | BN58: 126 | BO58: 0 | BP58: 3618.838764 | BQ58: 363899.0126 | BR58: 0.7635443519 | BS58: 0.7635443519 | BW58: 37 | BX58: 2029-06-06 | BY58: 31 | BZ58: 1127 | CA58: 384118.291 | CB58: 769.5597878 | CC58: 2861.089715 | CD58: 0 | CE58: 126 | CF58: 0 | CG58: 3756.649503 | CH58: 383348.7312 | CI58: 0.7635443519 | CJ58: 0.7635443519 | CN58: 37 | CO58: 2029-06-06 | CP58: 31 | CQ58: 1127 | CR58: 384118.1973 | CS58: 226.1966288 | CT58: 2861.089018 | CU58: 0 | CV58: 126 | CW58: 0 | CX58: 3213.285647 | CY58: 383892.0007 | CZ58: 0.7635443519 | DA58: 0.7635443519
B59: 38 | C59: 2029-07-06 | D59: 30 | E59: 1157 | F59: 383348.7312 | G59: 867.7312548 | H59: 2762.918248 | I59: 0 | J59: 126 | K59: 0 | L59: 3756.649503 | M59: 382480.9999 | N59: 0.7580806198 | O59: 0.7580806198 | Q59: =IFERROR(IF('Simulación Cliente'!$H$21="Simple",G59+H59+I59+J59+K59,AC59+AD59+AE59+AF59+AG59),"") -> 3756.649503 | R59: 1157 | S59: =IFERROR((1+'Simulación Cliente'!$E$21)^(R59/360),"") -> 1 | T59: 3756.65 | X59: 38 | Y59: 2029-07-06 | Z59: 30 | AA59: 1157 | AB59: 383892.0007 | AC59: 3533.737526 | AD59: 2766.833768 | AE59: 0 | AF59: 126 | AG59: 0 | AH59: 6426.571293 | AI59: 380358.2632 | AJ59: 1.51616124 | AK59: 0.7580806198 | AO59: 38 | AP59: 2029-07-06 | AQ59: 30 | AR59: 1157 | AS59: 363287.1643 | AT59: 1486.453541 | AU59: 2618.32805 | AV59: 0 | AW59: 126 | AX59: 0 | AY59: 4230.78159 | AZ59: 361800.7107 | BA59: 0.7580806198 | BB59: 0.7580806198 | BF59: 38 | BG59: 2029-07-06 | BH59: 30 | BI59: 1157 | BJ59: 363899.0126 | BK59: 4488.93969 | BL59: 2622.737838 | BM59: 0 | BN59: 126 | BO59: 0 | BP59: 7237.677528 | BQ59: 359410.0729 | BR59: 1.51616124 | BS59: 0.7580806198 | BW59: 38 | BX59: 2029-07-06 | BY59: 30 | BZ59: 1157 | CA59: 383348.7312 | CB59: 867.7312548 | CC59: 2762.918248 | CD59: 0 | CE59: 126 | CF59: 0 | CG59: 3756.649503 | CH59: 382480.9999 | CI59: 0.7580806198 | CJ59: 0.7580806198 | CN59: 38 | CO59: 2029-07-06 | CP59: 30 | CQ59: 1157 | CR59: 383892.0007 | CS59: 3533.737526 | CT59: 2766.833768 | CU59: 0 | CV59: 126 | CW59: 0 | CX59: 6426.571293 | CY59: 380358.2632 | CZ59: 1.51616124 | DA59: 0.7580806198
B60: 39 | C60: 2029-08-06 | D60: 31 | E60: 1188 | F60: 382480.9999 | G60: 781.7550846 | H60: 2848.894418 | I60: 0 | J60: 126 | K60: 0 | L60: 3756.649503 | M60: 381699.2448 | N60: 0.7524758337 | O60: 0.7524758337 | Q60: =IFERROR(IF('Simulación Cliente'!$H$21="Simple",G60+H60+I60+J60+K60,AC60+AD60+AE60+AF60+AG60),"") -> 3756.649503 | R60: 1188 | S60: =IFERROR((1+'Simulación Cliente'!$E$21)^(R60/360),"") -> 1 | T60: 3756.65 | X60: 39 | Y60: 2029-08-06 | Z60: 31 | AA60: 1188 | AB60: 380358.2632 | AC60: 254.2023478 | AD60: 2833.083299 | AE60: 0 | AF60: 126 | AG60: 0 | AH60: 3213.285647 | AI60: 380104.0608 | AJ60: 0.7524758337 | AK60: 0.7524758337 | AO60: 39 | AP60: 2029-08-06 | AQ60: 31 | AR60: 1188 | AS60: 361800.7107 | AT60: 1409.923478 | AU60: 2694.858112 | AV60: 0 | AW60: 126 | AX60: 0 | AY60: 4230.78159 | AZ60: 360390.7873 | BA60: 0.7524758337 | BB60: 0.7524758337 | BF60: 39 | BG60: 2029-08-06 | BH60: 31 | BI60: 1188 | BJ60: 359410.0729 | BK60: 815.7872218 | BL60: 2677.051542 | BM60: 0 | BN60: 126 | BO60: 0 | BP60: 3618.838764 | BQ60: 358594.2857 | BR60: 0.7524758337 | BS60: 0.7524758337 | BW60: 39 | BX60: 2029-08-06 | BY60: 31 | BZ60: 1188 | CA60: 382480.9999 | CB60: 781.7550846 | CC60: 2848.894418 | CD60: 0 | CE60: 126 | CF60: 0 | CG60: 3756.649503 | CH60: 381699.2448 | CI60: 0.7524758337 | CJ60: 0.7524758337 | CN60: 39 | CO60: 2029-08-06 | CP60: 31 | CQ60: 1188 | CR60: 380358.2632 | CS60: 254.2023478 | CT60: 2833.083299 | CU60: 0 | CV60: 126 | CW60: 0 | CX60: 3213.285647 | CY60: 380104.0608 | CZ60: 0.7524758337 | DA60: 0.7524758337
B61: 40 | C61: 2029-09-06 | D61: 31 | E61: 1219 | F61: 381699.2448 | G61: 787.5779561 | H61: 2843.071547 | I61: 0 | J61: 126 | K61: 0 | L61: 3756.649503 | M61: 380911.6669 | N61: 0.7469124859 | O61: 0.7469124859 | Q61: =IFERROR(IF('Simulación Cliente'!$H$21="Simple",G61+H61+I61+J61+K61,AC61+AD61+AE61+AF61+AG61),"") -> 3756.649503 | R61: 1219 | S61: =IFERROR((1+'Simulación Cliente'!$E$21)^(R61/360),"") -> 1 | T61: 3756.65 | X61: 40 | Y61: 2029-09-06 | Z61: 31 | AA61: 1219 | AB61: 380104.0608 | AC61: 256.0957638 | AD61: 2831.189883 | AE61: 0 | AF61: 126 | AG61: 0 | AH61: 3213.285647 | AI61: 379847.9651 | AJ61: 0.7469124859 | AK61: 0.7469124859 | AO61: 40 | AP61: 2029-09-06 | AQ61: 31 | AR61: 1219 | AS61: 360390.7873 | AT61: 1420.425237 | AU61: 2684.356354 | AV61: 0 | AW61: 126 | AX61: 0 | AY61: 4230.78159 | AZ61: 358970.362 | BA61: 0.7469124859 | BB61: 0.7469124859 | BF61: 40 | BG61: 2029-09-06 | BH61: 31 | BI61: 1219 | BJ61: 358594.2857 | BK61: 821.8635802 | BL61: 2670.975184 | BM61: 0 | BN61: 126 | BO61: 0 | BP61: 3618.838764 | BQ61: 357772.4221 | BR61: 0.7469124859 | BS61: 0.7469124859 | BW61: 40 | BX61: 2029-09-06 | BY61: 31 | BZ61: 1219 | CA61: 381699.2448 | CB61: 787.5779561 | CC61: 2843.071547 | CD61: 0 | CE61: 126 | CF61: 0 | CG61: 3756.649503 | CH61: 380911.6669 | CI61: 0.7469124859 | CJ61: 0.7469124859 | CN61: 40 | CO61: 2029-09-06 | CP61: 31 | CQ61: 1219 | CR61: 380104.0608 | CS61: 256.0957638 | CT61: 2831.189883 | CU61: 0 | CV61: 126 | CW61: 0 | CX61: 3213.285647 | CY61: 379847.9651 | CZ61: 0.7469124859 | DA61: 0.7469124859
B62: 41 | C62: 2029-10-06 | D62: 30 | E62: 1249 | F62: 380911.6669 | G62: 885.2959651 | H62: 2745.353538 | I62: 0 | J62: 126 | K62: 0 | L62: 3756.649503 | M62: 380026.3709 | N62: 0.7415677673 | O62: 0.7415677673 | Q62: =IFERROR(IF('Simulación Cliente'!$H$21="Simple",G62+H62+I62+J62+K62,AC62+AD62+AE62+AF62+AG62),"") -> 3756.649503 | R62: 1249 | S62: =IFERROR((1+'Simulación Cliente'!$E$21)^(R62/360),"") -> 1 | T62: 3756.65 | X62: 41 | Y62: 2029-10-06 | Z62: 30 | AA62: 1249 | AB62: 379847.9651 | AC62: 349.5985515 | AD62: 2737.687095 | AE62: 0 | AF62: 126 | AG62: 0 | AH62: 3213.285647 | AI62: 379498.3665 | AJ62: 0.7415677673 | AK62: 0.7415677673 | AO62: 41 | AP62: 2029-10-06 | AQ62: 30 | AR62: 1249 | AS62: 358970.362 | AT62: 1517.56613 | AU62: 2587.21546 | AV62: 0 | AW62: 126 | AX62: 0 | AY62: 4230.78159 | AZ62: 357452.7959 | BA62: 0.7415677673 | BB62: 0.7415677673 | BF62: 41 | BG62: 2029-10-06 | BH62: 30 | BI62: 1249 | BJ62: 357772.4221 | BK62: 914.2572442 | BL62: 2578.58152 | BM62: 0 | BN62: 126 | BO62: 0 | BP62: 3618.838764 | BQ62: 356858.1649 | BR62: 0.7415677673 | BS62: 0.7415677673 | BW62: 41 | BX62: 2029-10-06 | BY62: 30 | BZ62: 1249 | CA62: 380911.6669 | CB62: 885.2959651 | CC62: 2745.353538 | CD62: 0 | CE62: 126 | CF62: 0 | CG62: 3756.649503 | CH62: 380026.3709 | CI62: 0.7415677673 | CJ62: 0.7415677673 | CN62: 41 | CO62: 2029-10-06 | CP62: 30 | CQ62: 1249 | CR62: 379847.9651 | CS62: 349.5985515 | CT62: 2737.687095 | CU62: 0 | CV62: 126 | CW62: 0 | CX62: 3213.285647 | CY62: 379498.3665 | CZ62: 0.7415677673 | DA62: 0.7415677673
B63: 42 | C63: 2029-11-06 | D63: 31 | E63: 1280 | F63: 380026.3709 | G63: 800.0382905 | H63: 2830.611213 | I63: 0 | J63: 126 | K63: 0 | L63: 3756.649503 | M63: 379226.3326 | N63: 0.7360850671 | O63: 0.7360850671 | Q63: =IFERROR(IF('Simulación Cliente'!$H$21="Simple",G63+H63+I63+J63+K63,AC63+AD63+AE63+AF63+AG63),"") -> 3756.649503 | R63: 1280 | S63: =IFERROR((1+'Simulación Cliente'!$E$21)^(R63/360),"") -> 1 | T63: 3756.65 | X63: 42 | Y63: 2029-11-06 | Z63: 31 | AA63: 1280 | AB63: 379498.3665 | AC63: 260.6072537 | AD63: 2826.678393 | AE63: 0 | AF63: 126 | AG63: 0 | AH63: 3213.285647 | AI63: 379237.7593 | AJ63: 0.7360850671 | AK63: 0.7360850671 | AO63: 42 | AP63: 2029-11-06 | AQ63: 31 | AR63: 1280 | AS63: 357452.7959 | AT63: 1442.308748 | AU63: 2662.472843 | AV63: 0 | AW63: 126 | AX63: 0 | AY63: 4230.78159 | AZ63: 356010.4871 | BA63: 0.7360850671 | BB63: 0.7360850671 | BF63: 42 | BG63: 2029-11-06 | BH63: 31 | BI63: 1280 | BJ63: 356858.1649 | BK63: 834.7950067 | BL63: 2658.043757 | BM63: 0 | BN63: 126 | BO63: 0 | BP63: 3618.838764 | BQ63: 356023.3699 | BR63: 0.7360850671 | BS63: 0.7360850671 | BW63: 42 | BX63: 2029-11-06 | BY63: 31 | BZ63: 1280 | CA63: 380026.3709 | CB63: 800.0382905 | CC63: 2830.611213 | CD63: 0 | CE63: 126 | CF63: 0 | CG63: 3756.649503 | CH63: 379226.3326 | CI63: 0.7360850671 | CJ63: 0.7360850671 | CN63: 42 | CO63: 2029-11-06 | CP63: 31 | CQ63: 1280 | CR63: 379498.3665 | CS63: 260.6072537 | CT63: 2826.678393 | CU63: 0 | CV63: 126 | CW63: 0 | CX63: 3213.285647 | CY63: 379237.7593 | CZ63: 0.7360850671 | DA63: 0.7360850671
B64: 43 | C64: 2029-12-06 | D64: 30 | E64: 1310 | F64: 379226.3326 | G64: 897.442714 | H64: 2733.206789 | I64: 0 | J64: 126 | K64: 0 | L64: 3756.649503 | M64: 378328.8899 | N64: 0.7308178267 | O64: 0.7308178267 | Q64: =IFERROR(IF('Simulación Cliente'!$H$21="Simple",G64+H64+I64+J64+K64,AC64+AD64+AE64+AF64+AG64),"") -> 3756.649503 | R64: 1310 | S64: =IFERROR((1+'Simulación Cliente'!$E$21)^(R64/360),"") -> 1 | T64: 3756.65 | X64: 43 | Y64: 2029-12-06 | Z64: 30 | AA64: 1310 | AB64: 379237.7593 | AC64: 3567.282149 | AD64: 2733.289145 | AE64: 0 | AF64: 126 | AG64: 0 | AH64: 6426.571293 | AI64: 375670.4771 | AJ64: 1.461635653 | AK64: 0.7308178267 | AO64: 43 | AP64: 2029-12-06 | AQ64: 30 | AR64: 1310 | AS64: 356010.4871 | AT64: 1538.898906 | AU64: 2565.882685 | AV64: 0 | AW64: 126 | AX64: 0 | AY64: 4230.78159 | AZ64: 354471.5882 | BA64: 0.7308178267 | BB64: 0.7308178267 | BF64: 43 | BG64: 2029-12-06 | BH64: 30 | BI64: 1310 | BJ64: 356023.3699 | BK64: 4545.701993 | BL64: 2565.975535 | BM64: 0 | BN64: 126 | BO64: 0 | BP64: 7237.677528 | BQ64: 351477.6679 | BR64: 1.461635653 | BS64: 0.7308178267 | BW64: 43 | BX64: 2029-12-06 | BY64: 30 | BZ64: 1310 | CA64: 379226.3326 | CB64: 897.442714 | CC64: 2733.206789 | CD64: 0 | CE64: 126 | CF64: 0 | CG64: 3756.649503 | CH64: 378328.8899 | CI64: 0.7308178267 | CJ64: 0.7308178267 | CN64: 43 | CO64: 2029-12-06 | CP64: 30 | CQ64: 1310 | CR64: 379237.7593 | CS64: 3567.282149 | CT64: 2733.289145 | CU64: 0 | CV64: 126 | CW64: 0 | CX64: 6426.571293 | CY64: 375670.4771 | CZ64: 1.461635653 | DA64: 0.7308178267
B65: 44 | C65: 2030-01-06 | D65: 31 | E65: 1341 | F65: 378328.8899 | G65: 812.6819099 | H65: 2817.967593 | I65: 0 | J65: 126 | K65: 0 | L65: 3756.649503 | M65: 377516.208 | N65: 0.7254146051 | O65: 0.7254146051 | Q65: =IFERROR(IF('Simulación Cliente'!$H$21="Simple",G65+H65+I65+J65+K65,AC65+AD65+AE65+AF65+AG65),"") -> 3756.649503 | R65: 1341 | S65: =IFERROR((1+'Simulación Cliente'!$E$21)^(R65/360),"") -> 1 | T65: 3756.65 | X65: 44 | Y65: 2030-01-06 | Z65: 31 | AA65: 1341 | AB65: 375670.4771 | AC65: 289.1191347 | AD65: 2798.166512 | AE65: 0 | AF65: 126 | AG65: 0 | AH65: 3213.285647 | AI65: 375381.358 | AJ65: 0.7254146051 | AK65: 0.7254146051 | AO65: 44 | AP65: 2030-01-06 | AQ65: 31 | AR65: 1341 | AS65: 354471.5882 | AT65: 1464.514154 | AU65: 2640.267437 | AV65: 0 | AW65: 126 | AX65: 0 | AY65: 4230.78159 | AZ65: 353007.0741 | BA65: 0.7254146051 | BB65: 0.7254146051 | BF65: 44 | BG65: 2030-01-06 | BH65: 31 | BI65: 1341 | BJ65: 351477.6679 | BK65: 874.8714232 | BL65: 2617.967341 | BM65: 0 | BN65: 126 | BO65: 0 | BP65: 3618.838764 | BQ65: 350602.7965 | BR65: 0.7254146051 | BS65: 0.7254146051 | BW65: 44 | BX65: 2030-01-06 | BY65: 31 | BZ65: 1341 | CA65: 378328.8899 | CB65: 812.6819099 | CC65: 2817.967593 | CD65: 0 | CE65: 126 | CF65: 0 | CG65: 3756.649503 | CH65: 377516.208 | CI65: 0.7254146051 | CJ65: 0.7254146051 | CN65: 44 | CO65: 2030-01-06 | CP65: 31 | CQ65: 1341 | CR65: 375670.4771 | CS65: 289.1191347 | CT65: 2798.166512 | CU65: 0 | CV65: 126 | CW65: 0 | CX65: 3213.285647 | CY65: 375381.358 | CZ65: 0.7254146051 | DA65: 0.7254146051
B66: 45 | C66: 2030-02-06 | D66: 31 | E66: 1372 | F66: 377516.208 | G66: 818.7351385 | H66: 2811.914365 | I66: 0 | J66: 126 | K66: 0 | L66: 3756.649503 | M66: 376697.4729 | N66: 0.7200513316 | O66: 0.7200513316 | Q66: =IFERROR(IF('Simulación Cliente'!$H$21="Simple",G66+H66+I66+J66+K66,AC66+AD66+AE66+AF66+AG66),"") -> 3756.649503 | R66: 1372 | S66: =IFERROR((1+'Simulación Cliente'!$E$21)^(R66/360),"") -> 1 | T66: 3756.65 | X66: 45 | Y66: 2030-02-06 | Z66: 31 | AA66: 1372 | AB66: 375381.358 | AC66: 291.272627 | AD66: 2796.01302 | AE66: 0 | AF66: 126 | AG66: 0 | AH66: 3213.285647 | AI66: 375090.0854 | AJ66: 0.7200513316 | AK66: 0.7200513316 | AO66: 45 | AP66: 2030-02-06 | AQ66: 31 | AR66: 1372 | AS66: 353007.0741 | AT66: 1475.422529 | AU66: 2629.359062 | AV66: 0 | AW66: 126 | AX66: 0 | AY66: 4230.78159 | AZ66: 351531.6516 | BA66: 0.7200513316 | BB66: 0.7200513316 | BF66: 45 | BG66: 2030-02-06 | BH66: 31 | BI66: 1372 | BJ66: 350602.7965 | BK66: 881.387868 | BL66: 2611.450896 | BM66: 0 | BN66: 126 | BO66: 0 | BP66: 3618.838764 | BQ66: 349721.4086 | BR66: 0.7200513316 | BS66: 0.7200513316 | BW66: 45 | BX66: 2030-02-06 | BY66: 31 | BZ66: 1372 | CA66: 377516.208 | CB66: 818.7351385 | CC66: 2811.914365 | CD66: 0 | CE66: 126 | CF66: 0 | CG66: 3756.649503 | CH66: 376697.4729 | CI66: 0.7200513316 | CJ66: 0.7200513316 | CN66: 45 | CO66: 2030-02-06 | CP66: 31 | CQ66: 1372 | CR66: 375381.358 | CS66: 291.272627 | CT66: 2796.01302 | CU66: 0 | CV66: 126 | CW66: 0 | CX66: 3213.285647 | CY66: 375090.0854 | CZ66: 0.7200513316 | DA66: 0.7200513316
B67: 46 | C67: 2030-03-06 | D67: 28 | E67: 1400 | F67: 376697.4729 | G67: 1097.274942 | H67: 2533.374561 | I67: 0 | J67: 126 | K67: 0 | L67: 3756.649503 | M67: 375600.1979 | N67: 0.7152411751 | O67: 0.7152411751 | Q67: =IFERROR(IF('Simulación Cliente'!$H$21="Simple",G67+H67+I67+J67+K67,AC67+AD67+AE67+AF67+AG67),"") -> 3756.649503 | R67: 1400 | S67: =IFERROR((1+'Simulación Cliente'!$E$21)^(R67/360),"") -> 1 | T67: 3756.65 | X67: 46 | Y67: 2030-03-06 | Z67: 28 | AA67: 1400 | AB67: 375090.0854 | AC67: 564.7211256 | AD67: 2522.564521 | AE67: 0 | AF67: 126 | AG67: 0 | AH67: 3213.285647 | AI67: 374525.3642 | AJ67: 0.7152411751 | AK67: 0.7152411751 | AO67: 46 | AP67: 2030-03-06 | AQ67: 28 | AR67: 1400 | AS67: 351531.6516 | AT67: 1740.652793 | AU67: 2364.128797 | AV67: 0 | AW67: 126 | AX67: 0 | AY67: 4230.78159 | AZ67: 349790.9988 | BA67: 0.7152411751 | BB67: 0.7152411751 | BF67: 46 | BG67: 2030-03-06 | BH67: 28 | BI67: 1400 | BJ67: 349721.4086 | BK67: 1140.884255 | BL67: 2351.954509 | BM67: 0 | BN67: 126 | BO67: 0 | BP67: 3618.838764 | BQ67: 348580.5244 | BR67: 0.7152411751 | BS67: 0.7152411751 | BW67: 46 | BX67: 2030-03-06 | BY67: 28 | BZ67: 1400 | CA67: 376697.4729 | CB67: 1097.274942 | CC67: 2533.374561 | CD67: 0 | CE67: 126 | CF67: 0 | CG67: 3756.649503 | CH67: 375600.1979 | CI67: 0.7152411751 | CJ67: 0.7152411751 | CN67: 46 | CO67: 2030-03-06 | CP67: 28 | CQ67: 1400 | CR67: 375090.0854 | CS67: 564.7211256 | CT67: 2522.564521 | CU67: 0 | CV67: 126 | CW67: 0 | CX67: 3213.285647 | CY67: 374525.3642 | CZ67: 0.7152411751 | DA67: 0.7152411751
B68: 47 | C68: 2030-04-06 | D68: 31 | E68: 1431 | F68: 375600.1979 | G68: 833.0064629 | H68: 2797.64304 | I68: 0 | J68: 126 | K68: 0 | L68: 3756.649503 | M68: 374767.1914 | N68: 0.7099531177 | O68: 0.7099531177 | Q68: =IFERROR(IF('Simulación Cliente'!$H$21="Simple",G68+H68+I68+J68+K68,AC68+AD68+AE68+AF68+AG68),"") -> 3756.649503 | R68: 1431 | S68: =IFERROR((1+'Simulación Cliente'!$E$21)^(R68/360),"") -> 1 | T68: 3756.65 | X68: 47 | Y68: 2030-04-06 | Z68: 31 | AA68: 1431 | AB68: 374525.3642 | AC68: 297.6484622 | AD68: 2789.637185 | AE68: 0 | AF68: 126 | AG68: 0 | AH68: 3213.285647 | AI68: 374227.7158 | AJ68: 0.7099531177 | AK68: 0.7099531177 | AO68: 47 | AP68: 2030-04-06 | AQ68: 31 | AR68: 1431 | AS68: 349790.9988 | AT68: 1499.377337 | AU68: 2605.404253 | AV68: 0 | AW68: 126 | AX68: 0 | AY68: 4230.78159 | AZ68: 348291.6214 | BA68: 0.7099531177 | BB68: 0.7099531177 | BF68: 47 | BG68: 2030-04-06 | BH68: 31 | BI68: 1431 | BJ68: 348580.5244 | BK68: 896.450681 | BL68: 2596.388083 | BM68: 0 | BN68: 126 | BO68: 0 | BP68: 3618.838764 | BQ68: 347684.0737 | BR68: 0.7099531177 | BS68: 0.7099531177 | BW68: 47 | BX68: 2030-04-06 | BY68: 31 | BZ68: 1431 | CA68: 375600.1979 | CB68: 833.0064629 | CC68: 2797.64304 | CD68: 0 | CE68: 126 | CF68: 0 | CG68: 3756.649503 | CH68: 374767.1914 | CI68: 0.7099531177 | CJ68: 0.7099531177 | CN68: 47 | CO68: 2030-04-06 | CP68: 31 | CQ68: 1431 | CR68: 374525.3642 | CS68: 297.6484622 | CT68: 2789.637185 | CU68: 0 | CV68: 126 | CW68: 0 | CX68: 3213.285647 | CY68: 374227.7158 | CZ68: 0.7099531177 | DA68: 0.7099531177
B69: 48 | C69: 2030-05-06 | D69: 30 | E69: 1461 | F69: 374767.1914 | G69: 929.5811861 | H69: 2701.068317 | I69: 0 | J69: 126 | K69: 0 | L69: 3756.649503 | M69: 373837.6103 | N69: 0.704872871 | O69: 0.704872871 | Q69: =IFERROR(IF('Simulación Cliente'!$H$21="Simple",G69+H69+I69+J69+K69,AC69+AD69+AE69+AF69+AG69),"") -> 3756.649503 | R69: 1461 | S69: =IFERROR((1+'Simulación Cliente'!$E$21)^(R69/360),"") -> 1 | T69: 3756.65 | X69: 48 | Y69: 2030-05-06 | Z69: 30 | AA69: 1461 | AB69: 374227.7158 | AC69: 390.1055053 | AD69: 2697.180141 | AE69: 0 | AF69: 126 | AG69: 0 | AH69: 3213.285647 | AI69: 373837.6103 | AJ69: 0.704872871 | AK69: 0.704872871 | AO69: 48 | AP69: 2030-05-06 | AQ69: 30 | AR69: 1461 | AS69: 348291.6214 | AT69: 1594.531266 | AU69: 2510.250324 | AV69: 0 | AW69: 126 | AX69: 0 | AY69: 4230.78159 | AZ69: 346697.0902 | BA69: 0.704872871 | BB69: 0.704872871 | BF69: 48 | BG69: 2030-05-06 | BH69: 30 | BI69: 1461 | BJ69: 347684.0737 | BK69: 986.9672333 | BL69: 2505.871531 | BM69: 0 | BN69: 126 | BO69: 0 | BP69: 3618.838764 | BQ69: 346697.1064 | BR69: 0.704872871 | BS69: 0.704872871 | BW69: 48 | BX69: 2030-05-06 | BY69: 30 | BZ69: 1461 | CA69: 374767.1914 | CB69: 929.5811861 | CC69: 2701.068317 | CD69: 0 | CE69: 126 | CF69: 0 | CG69: 3756.649503 | CH69: 373837.6103 | CI69: 0.704872871 | CJ69: 0.704872871 | CN69: 48 | CO69: 2030-05-06 | CP69: 30 | CQ69: 1461 | CR69: 374227.7158 | CS69: 390.1055053 | CT69: 2697.180141 | CU69: 0 | CV69: 126 | CW69: 0 | CX69: 3213.285647 | CY69: 373837.6103 | CZ69: 0.704872871 | DA69: 0.704872871
B70: 49 | C70: 2030-06-06 | D70: 31 | E70: 1492 | F70: 373837.6103 | G70: 846.1350265 | H70: 2784.514477 | I70: 0 | J70: 126 | K70: 0 | L70: 3756.649503 | M70: 372991.4752 | N70: 0.6996614705 | O70: 0.6996614705 | Q70: =IFERROR(IF('Simulación Cliente'!$H$21="Simple",G70+H70+I70+J70+K70,AC70+AD70+AE70+AF70+AG70),"") -> 3756.649503 | R70: 1492 | S70: =IFERROR((1+'Simulación Cliente'!$E$21)^(R70/360),"") -> 1 | T70: 3756.65 | X70: 49 | Y70: 2030-06-06 | Z70: 31 | AA70: 1492 | AB70: 373837.6103 | AC70: 302.7711701 | AD70: 2784.514477 | AE70: 0 | AF70: 126 | AG70: 0 | AH70: 3213.285647 | AI70: 373534.8391 | AJ70: 0.6996614705 | AK70: 0.6996614705 | AO70: 49 | AP70: 2030-06-06 | AQ70: 31 | AR70: 1492 | AS70: 346697.0902 | AT70: 1522.422191 | AU70: 2582.359399 | AV70: 0 | AW70: 126 | AX70: 0 | AY70: 4230.78159 | AZ70: 345174.668 | BA70: 0.6996614705 | BB70: 0.6996614705 | BF70: 49 | BG70: 2030-06-06 | BH70: 31 | BI70: 1492 | BJ70: 346697.1064 | BK70: 910.4792439 | BL70: 2582.35952 | BM70: 0 | BN70: 126 | BO70: 0 | BP70: 3618.838764 | BQ70: 345786.6272 | BR70: 0.6996614705 | BS70: 0.6996614705 | BW70: 49 | BX70: 2030-06-06 | BY70: 31 | BZ70: 1492 | CA70: 373837.6103 | CB70: 846.1350265 | CC70: 2784.514477 | CD70: 0 | CE70: 126 | CF70: 0 | CG70: 3756.649503 | CH70: 372991.4752 | CI70: 0.6996614705 | CJ70: 0.6996614705 | CN70: 49 | CO70: 2030-06-06 | CP70: 31 | CQ70: 1492 | CR70: 373837.6103 | CS70: 302.7711701 | CT70: 2784.514477 | CU70: 0 | CV70: 126 | CW70: 0 | CX70: 3213.285647 | CY70: 373534.8391 | CZ70: 0.6996614705 | DA70: 0.6996614705
B71: 50 | C71: 2030-07-06 | D71: 30 | E71: 1522 | F71: 372991.4752 | G71: 942.3793469 | H71: 2688.270156 | I71: 0 | J71: 126 | K71: 0 | L71: 3756.649503 | M71: 372049.0959 | N71: 0.6946548683 | O71: 0.6946548683 | Q71: =IFERROR(IF('Simulación Cliente'!$H$21="Simple",G71+H71+I71+J71+K71,AC71+AD71+AE71+AF71+AG71),"") -> 3756.649503 | R71: 1522 | S71: =IFERROR((1+'Simulación Cliente'!$E$21)^(R71/360),"") -> 1 | T71: 3756.65 | X71: 50 | Y71: 2030-07-06 | Z71: 30 | AA71: 1522 | AB71: 373534.8391 | AC71: 3608.384938 | AD71: 2692.186355 | AE71: 0 | AF71: 126 | AG71: 0 | AH71: 6426.571293 | AI71: 369926.4542 | AJ71: 1.389309737 | AK71: 0.6946548683 | AO71: 50 | AP71: 2030-07-06 | AQ71: 30 | AR71: 1522 | AS71: 345174.668 | AT71: 1616.996158 | AU71: 2487.785433 | AV71: 0 | AW71: 126 | AX71: 0 | AY71: 4230.78159 | AZ71: 343557.6718 | BA71: 0.6946548683 | BB71: 0.6946548683 | BF71: 50 | BG71: 2030-07-06 | BH71: 30 | BI71: 1522 | BJ71: 345786.6272 | BK71: 4619.481508 | BL71: 2492.196021 | BM71: 0 | BN71: 126 | BO71: 0 | BP71: 7237.677528 | BQ71: 341167.1457 | BR71: 1.389309737 | BS71: 0.6946548683 | BW71: 50 | BX71: 2030-07-06 | BY71: 30 | BZ71: 1522 | CA71: 372991.4752 | CB71: 942.3793469 | CC71: 2688.270156 | CD71: 0 | CE71: 126 | CF71: 0 | CG71: 3756.649503 | CH71: 372049.0959 | CI71: 0.6946548683 | CJ71: 0.6946548683 | CN71: 50 | CO71: 2030-07-06 | CP71: 30 | CQ71: 1522 | CR71: 373534.8391 | CS71: 3608.384938 | CT71: 2692.186355 | CU71: 0 | CV71: 126 | CW71: 0 | CX71: 6426.571293 | CY71: 369926.4542 | CZ71: 1.389309737 | DA71: 0.6946548683
B72: 51 | C72: 2030-08-06 | D72: 31 | E72: 1553 | F72: 372049.0959 | G72: 859.4567042 | H72: 2771.192799 | I72: 0 | J72: 126 | K72: 0 | L72: 3756.649503 | M72: 371189.6392 | N72: 0.6895190135 | O72: 0.6895190135 | Q72: =IFERROR(IF('Simulación Cliente'!$H$21="Simple",G72+H72+I72+J72+K72,AC72+AD72+AE72+AF72+AG72),"") -> 3756.649503 | R72: 1553 | S72: =IFERROR((1+'Simulación Cliente'!$E$21)^(R72/360),"") -> 1 | T72: 3756.65 | X72: 51 | Y72: 2030-08-06 | Z72: 31 | AA72: 1553 | AB72: 369926.4542 | AC72: 331.9032598 | AD72: 2755.382387 | AE72: 0 | AF72: 126 | AG72: 0 | AH72: 3213.285647 | AI72: 369594.5509 | AJ72: 0.6895190135 | AK72: 0.6895190135 | AO72: 51 | AP72: 2030-08-06 | AQ72: 31 | AR72: 1553 | AS72: 343557.6718 | AT72: 1545.806023 | AU72: 2558.975567 | AV72: 0 | AW72: 126 | AX72: 0 | AY72: 4230.78159 | AZ72: 342011.8658 | BA72: 0.6895190135 | BB72: 0.6895190135 | BF72: 51 | BG72: 2030-08-06 | BH72: 31 | BI72: 1553 | BJ72: 341167.1457 | BK72: 951.6689352 | BL72: 2541.169829 | BM72: 0 | BN72: 126 | BO72: 0 | BP72: 3618.838764 | BQ72: 340215.4768 | BR72: 0.6895190135 | BS72: 0.6895190135 | BW72: 51 | BX72: 2030-08-06 | BY72: 31 | BZ72: 1553 | CA72: 372049.0959 | CB72: 859.4567042 | CC72: 2771.192799 | CD72: 0 | CE72: 126 | CF72: 0 | CG72: 3756.649503 | CH72: 371189.6392 | CI72: 0.6895190135 | CJ72: 0.6895190135 | CN72: 51 | CO72: 2030-08-06 | CP72: 31 | CQ72: 1553 | CR72: 369926.4542 | CS72: 331.9032598 | CT72: 2755.382387 | CU72: 0 | CV72: 126 | CW72: 0 | CX72: 3213.285647 | CY72: 369594.5509 | CZ72: 0.6895190135 | DA72: 0.6895190135
B73: 52 | C73: 2030-09-06 | D73: 31 | E73: 1584 | F73: 371189.6392 | G73: 865.8583331 | H73: 2764.79117 | I73: 0 | J73: 126 | K73: 0 | L73: 3756.649503 | M73: 370323.7809 | N73: 0.6844211302 | O73: 0.6844211302 | Q73: =IFERROR(IF('Simulación Cliente'!$H$21="Simple",G73+H73+I73+J73+K73,AC73+AD73+AE73+AF73+AG73),"") -> 3756.649503 | R73: 1584 | S73: =IFERROR((1+'Simulación Cliente'!$E$21)^(R73/360),"") -> 1 | T73: 3756.65 | X73: 52 | Y73: 2030-09-06 | Z73: 31 | AA73: 1584 | AB73: 369594.5509 | AC73: 334.375428 | AD73: 2752.910219 | AE73: 0 | AF73: 126 | AG73: 0 | AH73: 3213.285647 | AI73: 369260.1755 | AJ73: 0.6844211302 | AK73: 0.6844211302 | AO73: 52 | AP73: 2030-09-06 | AQ73: 31 | AR73: 1584 | AS73: 342011.8658 | AT73: 1557.319898 | AU73: 2547.461693 | AV73: 0 | AW73: 126 | AX73: 0 | AY73: 4230.78159 | AZ73: 340454.5459 | BA73: 0.6844211302 | BB73: 0.6844211302 | BF73: 52 | BG73: 2030-09-06 | BH73: 31 | BI73: 1584 | BJ73: 340215.4768 | BK73: 958.7574032 | BL73: 2534.081361 | BM73: 0 | BN73: 126 | BO73: 0 | BP73: 3618.838764 | BQ73: 339256.7193 | BR73: 0.6844211302 | BS73: 0.6844211302 | BW73: 52 | BX73: 2030-09-06 | BY73: 31 | BZ73: 1584 | CA73: 371189.6392 | CB73: 865.8583331 | CC73: 2764.79117 | CD73: 0 | CE73: 126 | CF73: 0 | CG73: 3756.649503 | CH73: 370323.7809 | CI73: 0.6844211302 | CJ73: 0.6844211302 | CN73: 52 | CO73: 2030-09-06 | CP73: 31 | CQ73: 1584 | CR73: 369594.5509 | CS73: 334.375428 | CT73: 2752.910219 | CU73: 0 | CV73: 126 | CW73: 0 | CX73: 3213.285647 | CY73: 369260.1755 | CZ73: 0.6844211302 | DA73: 0.6844211302
B74: 53 | C74: 2030-10-06 | D74: 30 | E74: 1614 | F74: 370323.7809 | G74: 961.6062829 | H74: 2669.04322 | I74: 0 | J74: 126 | K74: 0 | L74: 3756.649503 | M74: 369362.1746 | N74: 0.679523584 | O74: 0.679523584 | Q74: =IFERROR(IF('Simulación Cliente'!$H$21="Simple",G74+H74+I74+J74+K74,AC74+AD74+AE74+AF74+AG74),"") -> 3756.649503 | R74: 1614 | S74: =IFERROR((1+'Simulación Cliente'!$E$21)^(R74/360),"") -> 1 | T74: 3756.65 | X74: 53 | Y74: 2030-10-06 | Z74: 30 | AA74: 1614 | AB74: 369260.1755 | AC74: 425.9081744 | AD74: 2661.377472 | AE74: 0 | AF74: 126 | AG74: 0 | AH74: 3213.285647 | AI74: 368834.2673 | AJ74: 0.679523584 | AK74: 0.679523584 | AO74: 53 | AP74: 2030-10-06 | AQ74: 30 | AR74: 1614 | AS74: 340454.5459 | AT74: 1651.015604 | AU74: 2453.765987 | AV74: 0 | AW74: 126 | AX74: 0 | AY74: 4230.78159 | AZ74: 338803.5303 | BA74: 0.679523584 | BB74: 0.679523584 | BF74: 53 | BG74: 2030-10-06 | BH74: 30 | BI74: 1614 | BJ74: 339256.7193 | BK74: 1047.705901 | BL74: 2445.132864 | BM74: 0 | BN74: 126 | BO74: 0 | BP74: 3618.838764 | BQ74: 338209.0134 | BR74: 0.679523584 | BS74: 0.679523584 | BW74: 53 | BX74: 2030-10-06 | BY74: 30 | BZ74: 1614 | CA74: 370323.7809 | CB74: 961.6062829 | CC74: 2669.04322 | CD74: 0 | CE74: 126 | CF74: 0 | CG74: 3756.649503 | CH74: 369362.1746 | CI74: 0.679523584 | CJ74: 0.679523584 | CN74: 53 | CO74: 2030-10-06 | CP74: 30 | CQ74: 1614 | CR74: 369260.1755 | CS74: 425.9081744 | CT74: 2661.377472 | CU74: 0 | CV74: 126 | CW74: 0 | CX74: 3213.285647 | CY74: 368834.2673 | CZ74: 0.679523584 | DA74: 0.679523584
B75: 54 | C75: 2030-11-06 | D75: 31 | E75: 1645 | F75: 369362.1746 | G75: 879.4701301 | H75: 2751.179373 | I75: 0 | J75: 126 | K75: 0 | L75: 3756.649503 | M75: 368482.7044 | N75: 0.6744996007 | O75: 0.6744996007 | Q75: =IFERROR(IF('Simulación Cliente'!$H$21="Simple",G75+H75+I75+J75+K75,AC75+AD75+AE75+AF75+AG75),"") -> 3756.649503 | R75: 1645 | S75: =IFERROR((1+'Simulación Cliente'!$E$21)^(R75/360),"") -> 1 | T75: 3756.65 | X75: 54 | Y75: 2030-11-06 | Z75: 31 | AA75: 1645 | AB75: 368834.2673 | AC75: 340.0383699 | AD75: 2747.247277 | AE75: 0 | AF75: 126 | AG75: 0 | AH75: 3213.285647 | AI75: 368494.2289 | AJ75: 0.6744996007 | AK75: 0.6744996007 | AO75: 54 | AP75: 2030-11-06 | AQ75: 31 | AR75: 1645 | AS75: 338803.5303 | AT75: 1581.217056 | AU75: 2523.564534 | AV75: 0 | AW75: 126 | AX75: 0 | AY75: 4230.78159 | AZ75: 337222.3132 | BA75: 0.6744996007 | BB75: 0.6744996007 | BF75: 54 | BG75: 2030-11-06 | BH75: 31 | BI75: 1645 | BJ75: 338209.0134 | BK75: 973.7024648 | BL75: 2519.136299 | BM75: 0 | BN75: 126 | BO75: 0 | BP75: 3618.838764 | BQ75: 337235.311 | BR75: 0.6744996007 | BS75: 0.6744996007 | BW75: 54 | BX75: 2030-11-06 | BY75: 31 | BZ75: 1645 | CA75: 369362.1746 | CB75: 879.4701301 | CC75: 2751.179373 | CD75: 0 | CE75: 126 | CF75: 0 | CG75: 3756.649503 | CH75: 368482.7044 | CI75: 0.6744996007 | CJ75: 0.6744996007 | CN75: 54 | CO75: 2030-11-06 | CP75: 31 | CQ75: 1645 | CR75: 368834.2673 | CS75: 340.0383699 | CT75: 2747.247277 | CU75: 0 | CV75: 126 | CW75: 0 | CX75: 3213.285647 | CY75: 368494.2289 | CZ75: 0.6744996007 | DA75: 0.6744996007
B76: 55 | C76: 2030-12-06 | D76: 30 | E76: 1675 | F76: 368482.7044 | G76: 974.8755158 | H76: 2655.773987 | I76: 0 | J76: 126 | K76: 0 | L76: 3756.649503 | M76: 367507.8289 | N76: 0.6696730505 | O76: 0.6696730505 | Q76: =IFERROR(IF('Simulación Cliente'!$H$21="Simple",G76+H76+I76+J76+K76,AC76+AD76+AE76+AF76+AG76),"") -> 3756.649503 | R76: 1675 | S76: =IFERROR((1+'Simulación Cliente'!$E$21)^(R76/360),"") -> 1 | T76: 3756.65 | X76: 55 | Y76: 2030-12-06 | Z76: 30 | AA76: 1675 | AB76: 368494.2289 | AC76: 3644.714245 | AD76: 2655.857048 | AE76: 0 | AF76: 126 | AG76: 0 | AH76: 6426.571293 | AI76: 364849.5147 | AJ76: 1.339346101 | AK76: 0.6696730505 | AO76: 55 | AP76: 2030-12-06 | AQ76: 30 | AR76: 1675 | AS76: 337222.3132 | AT76: 1674.31135 | AU76: 2430.470241 | AV76: 0 | AW76: 126 | AX76: 0 | AY76: 4230.78159 | AZ76: 335548.0019 | BA76: 0.6696730505 | BB76: 0.6696730505 | BF76: 55 | BG76: 2030-12-06 | BH76: 30 | BI76: 1675 | BJ76: 337235.311 | BK76: 4681.113608 | BL76: 2430.56392 | BM76: 0 | BN76: 126 | BO76: 0 | BP76: 7237.677528 | BQ76: 332554.1974 | BR76: 1.339346101 | BS76: 0.6696730505 | BW76: 55 | BX76: 2030-12-06 | BY76: 30 | BZ76: 1675 | CA76: 368482.7044 | CB76: 974.8755158 | CC76: 2655.773987 | CD76: 0 | CE76: 126 | CF76: 0 | CG76: 3756.649503 | CH76: 367507.8289 | CI76: 0.6696730505 | CJ76: 0.6696730505 | CN76: 55 | CO76: 2030-12-06 | CP76: 30 | CQ76: 1675 | CR76: 368494.2289 | CS76: 3644.714245 | CT76: 2655.857048 | CU76: 0 | CV76: 126 | CW76: 0 | CX76: 6426.571293 | CY76: 364849.5147 | CZ76: 1.339346101 | DA76: 0.6696730505
B77: 56 | C77: 2031-01-06 | D77: 31 | E77: 1706 | F77: 367507.8289 | G77: 893.2821494 | H77: 2737.367354 | I77: 0 | J77: 126 | K77: 0 | L77: 3756.649503 | M77: 366614.5468 | N77: 0.6647218961 | O77: 0.6647218961 | Q77: =IFERROR(IF('Simulación Cliente'!$H$21="Simple",G77+H77+I77+J77+K77,AC77+AD77+AE77+AF77+AG77),"") -> 3756.649503 | R77: 1706 | S77: =IFERROR((1+'Simulación Cliente'!$E$21)^(R77/360),"") -> 1 | T77: 3756.65 | X77: 56 | Y77: 2031-01-06 | Z77: 31 | AA77: 1706 | AB77: 364849.5147 | AC77: 369.7186403 | AD77: 2717.567006 | AE77: 0 | AF77: 126 | AG77: 0 | AH77: 3213.285647 | AI77: 364479.796 | AJ77: 0.6647218961 | AK77: 0.6647218961 | AO77: 56 | AP77: 2031-01-06 | AQ77: 31 | AR77: 1706 | AS77: 335548.0019 | AT77: 1605.465729 | AU77: 2499.315861 | AV77: 0 | AW77: 126 | AX77: 0 | AY77: 4230.78159 | AZ77: 333942.5362 | BA77: 0.6647218961 | BB77: 0.6647218961 | BF77: 56 | BG77: 2031-01-06 | BH77: 31 | BI77: 1706 | BJ77: 332554.1974 | BK77: 1015.822136 | BL77: 2477.016628 | BM77: 0 | BN77: 126 | BO77: 0 | BP77: 3618.838764 | BQ77: 331538.3752 | BR77: 0.6647218961 | BS77: 0.6647218961 | BW77: 56 | BX77: 2031-01-06 | BY77: 31 | BZ77: 1706 | CA77: 367507.8289 | CB77: 893.2821494 | CC77: 2737.367354 | CD77: 0 | CE77: 126 | CF77: 0 | CG77: 3756.649503 | CH77: 366614.5468 | CI77: 0.6647218961 | CJ77: 0.6647218961 | CN77: 56 | CO77: 2031-01-06 | CP77: 31 | CQ77: 1706 | CR77: 364849.5147 | CS77: 369.7186403 | CT77: 2717.567006 | CU77: 0 | CV77: 126 | CW77: 0 | CX77: 3213.285647 | CY77: 364479.796 | CZ77: 0.6647218961 | DA77: 0.6647218961
B78: 57 | C78: 2031-02-06 | D78: 31 | E78: 1737 | F78: 366614.5468 | G78: 899.9357258 | H78: 2730.713777 | I78: 0 | J78: 126 | K78: 0 | L78: 3756.649503 | M78: 365714.611 | N78: 0.6598073475 | O78: 0.6598073475 | Q78: =IFERROR(IF('Simulación Cliente'!$H$21="Simple",G78+H78+I78+J78+K78,AC78+AD78+AE78+AF78+AG78),"") -> 3756.649503 | R78: 1737 | S78: =IFERROR((1+'Simulación Cliente'!$E$21)^(R78/360),"") -> 1 | T78: 3756.65 | X78: 57 | Y78: 2031-02-06 | Z78: 31 | AA78: 1737 | AB78: 364479.796 | AC78: 372.4724748 | AD78: 2714.813172 | AE78: 0 | AF78: 126 | AG78: 0 | AH78: 3213.285647 | AI78: 364107.3236 | AJ78: 0.6598073475 | AK78: 0.6598073475 | AO78: 57 | AP78: 2031-02-06 | AQ78: 31 | AR78: 1737 | AS78: 333942.5362 | AT78: 1617.423976 | AU78: 2487.357614 | AV78: 0 | AW78: 126 | AX78: 0 | AY78: 4230.78159 | AZ78: 332325.1122 | BA78: 0.6598073475 | BB78: 0.6598073475 | BF78: 57 | BG78: 2031-02-06 | BH78: 31 | BI78: 1737 | BJ78: 331538.3752 | BK78: 1023.388447 | BL78: 2469.450318 | BM78: 0 | BN78: 126 | BO78: 0 | BP78: 3618.838764 | BQ78: 330514.9868 | BR78: 0.6598073475 | BS78: 0.6598073475 | BW78: 57 | BX78: 2031-02-06 | BY78: 31 | BZ78: 1737 | CA78: 366614.5468 | CB78: 899.9357258 | CC78: 2730.713777 | CD78: 0 | CE78: 126 | CF78: 0 | CG78: 3756.649503 | CH78: 365714.611 | CI78: 0.6598073475 | CJ78: 0.6598073475 | CN78: 57 | CO78: 2031-02-06 | CP78: 31 | CQ78: 1737 | CR78: 364479.796 | CS78: 372.4724748 | CT78: 2714.813172 | CU78: 0 | CV78: 126 | CW78: 0 | CX78: 3213.285647 | CY78: 364107.3236 | CZ78: 0.6598073475 | DA78: 0.6598073475
B79: 58 | C79: 2031-03-06 | D79: 28 | E79: 1765 | F79: 365714.611 | G79: 1171.137139 | H79: 2459.512364 | I79: 0 | J79: 126 | K79: 0 | L79: 3756.649503 | M79: 364543.4739 | N79: 0.6553996386 | O79: 0.6553996386 | Q79: =IFERROR(IF('Simulación Cliente'!$H$21="Simple",G79+H79+I79+J79+K79,AC79+AD79+AE79+AF79+AG79),"") -> 3756.649503 | R79: 1765 | S79: =IFERROR((1+'Simulación Cliente'!$E$21)^(R79/360),"") -> 1 | T79: 3756.65 | X79: 58 | Y79: 2031-03-06 | Z79: 28 | AA79: 1765 | AB79: 364107.3236 | AC79: 638.5826494 | AD79: 2448.702997 | AE79: 0 | AF79: 126 | AG79: 0 | AH79: 3213.285647 | AI79: 363468.7409 | AJ79: 0.6553996386 | AK79: 0.6553996386 | AO79: 58 | AP79: 2031-03-06 | AQ79: 28 | AR79: 1765 | AS79: 332325.1122 | AT79: 1869.821056 | AU79: 2234.960534 | AV79: 0 | AW79: 126 | AX79: 0 | AY79: 4230.78159 | AZ79: 330455.2911 | BA79: 0.6553996386 | BB79: 0.6553996386 | BF79: 58 | BG79: 2031-03-06 | BH79: 28 | BI79: 1765 | BJ79: 330514.9868 | BK79: 1270.051727 | BL79: 2222.787037 | BM79: 0 | BN79: 126 | BO79: 0 | BP79: 3618.838764 | BQ79: 329244.9351 | BR79: 0.6553996386 | BS79: 0.6553996386 | BW79: 58 | BX79: 2031-03-06 | BY79: 28 | BZ79: 1765 | CA79: 365714.611 | CB79: 1171.137139 | CC79: 2459.512364 | CD79: 0 | CE79: 126 | CF79: 0 | CG79: 3756.649503 | CH79: 364543.4739 | CI79: 0.6553996386 | CJ79: 0.6553996386 | CN79: 58 | CO79: 2031-03-06 | CP79: 28 | CQ79: 1765 | CR79: 364107.3236 | CS79: 638.5826494 | CT79: 2448.702997 | CU79: 0 | CV79: 126 | CW79: 0 | CX79: 3213.285647 | CY79: 363468.7409 | CZ79: 0.6553996386 | DA79: 0.6553996386
B80: 59 | C80: 2031-04-06 | D80: 31 | E80: 1796 | F80: 364543.4739 | G80: 915.3620291 | H80: 2715.287474 | I80: 0 | J80: 126 | K80: 0 | L80: 3756.649503 | M80: 363628.1119 | N80: 0.6505540131 | O80: 0.6505540131 | Q80: =IFERROR(IF('Simulación Cliente'!$H$21="Simple",G80+H80+I80+J80+K80,AC80+AD80+AE80+AF80+AG80),"") -> 3756.649503 | R80: 1796 | S80: =IFERROR((1+'Simulación Cliente'!$E$21)^(R80/360),"") -> 1 | T80: 3756.65 | X80: 59 | Y80: 2031-04-06 | Z80: 31 | AA80: 1796 | AB80: 363468.7409 | AC80: 380.0032784 | AD80: 2707.282368 | AE80: 0 | AF80: 126 | AG80: 0 | AH80: 3213.285647 | AI80: 363088.7376 | AJ80: 0.6505540131 | AK80: 0.6505540131 | AO80: 59 | AP80: 2031-04-06 | AQ80: 31 | AR80: 1796 | AS80: 330455.2911 | AT80: 1643.398582 | AU80: 2461.383009 | AV80: 0 | AW80: 126 | AX80: 0 | AY80: 4230.78159 | AZ80: 328811.8925 | BA80: 0.6505540131 | BB80: 0.6505540131 | BF80: 59 | BG80: 2031-04-06 | BH80: 31 | BI80: 1796 | BJ80: 329244.9351 | BK80: 1040.471044 | BL80: 2452.36772 | BM80: 0 | BN80: 126 | BO80: 0 | BP80: 3618.838764 | BQ80: 328204.464 | BR80: 0.6505540131 | BS80: 0.6505540131 | BW80: 59 | BX80: 2031-04-06 | BY80: 31 | BZ80: 1796 | CA80: 364543.4739 | CB80: 915.3620291 | CC80: 2715.287474 | CD80: 0 | CE80: 126 | CF80: 0 | CG80: 3756.649503 | CH80: 363628.1119 | CI80: 0.6505540131 | CJ80: 0.6505540131 | CN80: 59 | CO80: 2031-04-06 | CP80: 31 | CQ80: 1796 | CR80: 363468.7409 | CS80: 380.0032784 | CT80: 2707.282368 | CU80: 0 | CV80: 126 | CW80: 0 | CX80: 3213.285647 | CY80: 363088.7376 | CZ80: 0.6505540131 | DA80: 0.6505540131
B81: 60 | C81: 2031-05-06 | D81: 30 | E81: 1826 | F81: 363628.1119 | G81: 1009.864134 | H81: 2620.785369 | I81: 0 | J81: 126 | K81: 0 | L81: 3756.649503 | M81: 362618.2477 | N81: 0.6458988116 | O81: 0.6458988116 | Q81: =IFERROR(IF('Simulación Cliente'!$H$21="Simple",G81+H81+I81+J81+K81,AC81+AD81+AE81+AF81+AG81),"") -> 3756.649503 | R81: 1826 | S81: =IFERROR((1+'Simulación Cliente'!$E$21)^(R81/360),"") -> 1 | T81: 3756.65 | X81: 60 | Y81: 2031-05-06 | Z81: 30 | AA81: 1826 | AB81: 363088.7376 | AC81: 470.3877222 | AD81: 2616.897925 | AE81: 0 | AF81: 126 | AG81: 0 | AH81: 3213.285647 | AI81: 362618.3499 | AJ81: 0.6458988116 | AK81: 0.6458988116 | AO81: 60 | AP81: 2031-05-06 | AQ81: 30 | AR81: 1826 | AS81: 328811.8925 | AT81: 1734.927971 | AU81: 2369.85362 | AV81: 0 | AW81: 126 | AX81: 0 | AY81: 4230.78159 | AZ81: 327076.9646 | BA81: 0.6458988116 | BB81: 0.6458988116 | BF81: 60 | BG81: 2031-05-06 | BH81: 30 | BI81: 1826 | BJ81: 328204.464 | BK81: 1127.363078 | BL81: 2365.475686 | BM81: 0 | BN81: 126 | BO81: 0 | BP81: 3618.838764 | BQ81: 327077.1009 | BR81: 0.6458988116 | BS81: 0.6458988116 | BW81: 60 | BX81: 2031-05-06 | BY81: 30 | BZ81: 1826 | CA81: 363628.1119 | CB81: 1009.864134 | CC81: 2620.785369 | CD81: 0 | CE81: 126 | CF81: 0 | CG81: 3756.649503 | CH81: 362618.2477 | CI81: 0.6458988116 | CJ81: 0.6458988116 | CN81: 60 | CO81: 2031-05-06 | CP81: 30 | CQ81: 1826 | CR81: 363088.7376 | CS81: 470.3877222 | CT81: 2616.897925 | CU81: 0 | CV81: 126 | CW81: 0 | CX81: 3213.285647 | CY81: 362618.3499 | CZ81: 0.6458988116 | DA81: 0.6458988116
B82: 61 | C82: 2031-06-06 | D82: 31 | E82: 1857 | F82: 362618.2477 | G82: 929.7019991 | H82: 2700.947504 | I82: 0 | J82: 126 | K82: 0 | L82: 3756.649503 | M82: 361688.5457 | N82: 0.6411234293 | O82: 0.6411234293 | Q82: =IFERROR(IF('Simulación Cliente'!$H$21="Simple",G82+H82+I82+J82+K82,AC82+AD82+AE82+AF82+AG82),"") -> 3756.649503 | R82: 1857 | S82: =IFERROR((1+'Simulación Cliente'!$E$21)^(R82/360),"") -> 1 | T82: 3756.65 | X82: 61 | Y82: 2031-06-06 | Z82: 31 | AA82: 1857 | AB82: 362618.3499 | AC82: 386.3373818 | AD82: 2700.948265 | AE82: 0 | AF82: 126 | AG82: 0 | AH82: 3213.285647 | AI82: 362232.0125 | AJ82: 0.6411234293 | AK82: 0.6411234293 | AO82: 61 | AP82: 2031-06-06 | AQ82: 31 | AR82: 1857 | AS82: 327076.9646 | AT82: 1668.561912 | AU82: 2436.219679 | AV82: 0 | AW82: 126 | AX82: 0 | AY82: 4230.78159 | AZ82: 325408.4027 | BA82: 0.6411234293 | BB82: 0.6411234293 | BF82: 61 | BG82: 2031-06-06 | BH82: 31 | BI82: 1857 | BJ82: 327077.1009 | BK82: 1056.61807 | BL82: 2436.220695 | BM82: 0 | BN82: 126 | BO82: 0 | BP82: 3618.838764 | BQ82: 326020.4829 | BR82: 0.6411234293 | BS82: 0.6411234293 | BW82: 61 | BX82: 2031-06-06 | BY82: 31 | BZ82: 1857 | CA82: 362618.2477 | CB82: 929.7019991 | CC82: 2700.947504 | CD82: 0 | CE82: 126 | CF82: 0 | CG82: 3756.649503 | CH82: 361688.5457 | CI82: 0.6411234293 | CJ82: 0.6411234293 | CN82: 61 | CO82: 2031-06-06 | CP82: 31 | CQ82: 1857 | CR82: 362618.3499 | CS82: 386.3373818 | CT82: 2700.948265 | CU82: 0 | CV82: 126 | CW82: 0 | CX82: 3213.285647 | CY82: 362232.0125 | CZ82: 0.6411234293 | DA82: 0.6411234293
B83: 62 | C83: 2031-07-06 | D83: 30 | E83: 1887 | F83: 361688.5457 | G83: 1023.843214 | H83: 2606.806289 | I83: 0 | J83: 126 | K83: 0 | L83: 3756.649503 | M83: 360664.7025 | N83: 0.6365357107 | O83: 0.6365357107 | Q83: =IFERROR(IF('Simulación Cliente'!$H$21="Simple",G83+H83+I83+J83+K83,AC83+AD83+AE83+AF83+AG83),"") -> 3756.649503 | R83: 1887 | S83: =IFERROR((1+'Simulación Cliente'!$E$21)^(R83/360),"") -> 1 | T83: 3756.65 | X83: 62 | Y83: 2031-07-06 | Z83: 30 | AA83: 1887 | AB83: 362232.0125 | AC83: 3689.848064 | AD83: 2610.72323 | AE83: 0 | AF83: 126 | AG83: 0 | AH83: 6426.571293 | AI83: 358542.1645 | AJ83: 1.273071421 | AK83: 0.6365357107 | AO83: 62 | AP83: 2031-07-06 | AQ83: 30 | AR83: 1887 | AS83: 325408.4027 | AT83: 1759.458023 | AU83: 2345.323568 | AV83: 0 | AW83: 126 | AX83: 0 | AY83: 4230.78159 | AZ83: 323648.9446 | BA83: 0.6365357107 | BB83: 0.6365357107 | BF83: 62 | BG83: 2031-07-06 | BH83: 30 | BI83: 1887 | BJ83: 326020.4829 | BK83: 4761.942501 | BL83: 2349.735028 | BM83: 0 | BN83: 126 | BO83: 0 | BP83: 7237.677528 | BQ83: 321258.5404 | BR83: 1.273071421 | BS83: 0.6365357107 | BW83: 62 | BX83: 2031-07-06 | BY83: 30 | BZ83: 1887 | CA83: 361688.5457 | CB83: 1023.843214 | CC83: 2606.806289 | CD83: 0 | CE83: 126 | CF83: 0 | CG83: 3756.649503 | CH83: 360664.7025 | CI83: 0.6365357107 | CJ83: 0.6365357107 | CN83: 62 | CO83: 2031-07-06 | CP83: 30 | CQ83: 1887 | CR83: 362232.0125 | CS83: 3689.848064 | CT83: 2610.72323 | CU83: 0 | CV83: 126 | CW83: 0 | CX83: 6426.571293 | CY83: 358542.1645 | CZ83: 1.273071421 | DA83: 0.6365357107
B84: 63 | C84: 2031-08-06 | D84: 31 | E84: 1918 | F84: 360664.7025 | G84: 944.2529024 | H84: 2686.396601 | I84: 0 | J84: 126 | K84: 0 | L84: 3756.649503 | M84: 359720.4496 | N84: 0.6318295535 | O84: 0.6318295535 | Q84: =IFERROR(IF('Simulación Cliente'!$H$21="Simple",G84+H84+I84+J84+K84,AC84+AD84+AE84+AF84+AG84),"") -> 3756.649503 | R84: 1918 | S84: =IFERROR((1+'Simulación Cliente'!$E$21)^(R84/360),"") -> 1 | T84: 3756.65 | X84: 63 | Y84: 2031-08-06 | Z84: 31 | AA84: 1918 | AB84: 358542.1645 | AC84: 416.6986859 | AD84: 2670.586961 | AE84: 0 | AF84: 126 | AG84: 0 | AH84: 3213.285647 | AI84: 358125.4658 | AJ84: 0.6318295535 | AK84: 0.6318295535 | AO84: 63 | AP84: 2031-08-06 | AQ84: 31 | AR84: 1918 | AS84: 323648.9446 | AT84: 1694.095381 | AU84: 2410.68621 | AV84: 0 | AW84: 126 | AX84: 0 | AY84: 4230.78159 | AZ84: 321954.8493 | BA84: 0.6318295535 | BB84: 0.6318295535 | BF84: 63 | BG84: 2031-08-06 | BH84: 31 | BI84: 1918 | BJ84: 321258.5404 | BK84: 1099.957385 | BL84: 2392.881379 | BM84: 0 | BN84: 126 | BO84: 0 | BP84: 3618.838764 | BQ84: 320158.583 | BR84: 0.6318295535 | BS84: 0.6318295535 | BW84: 63 | BX84: 2031-08-06 | BY84: 31 | BZ84: 1918 | CA84: 360664.7025 | CB84: 944.2529024 | CC84: 2686.396601 | CD84: 0 | CE84: 126 | CF84: 0 | CG84: 3756.649503 | CH84: 359720.4496 | CI84: 0.6318295535 | CJ84: 0.6318295535 | CN84: 63 | CO84: 2031-08-06 | CP84: 31 | CQ84: 1918 | CR84: 358542.1645 | CS84: 416.6986859 | CT84: 2670.586961 | CU84: 0 | CV84: 126 | CW84: 0 | CX84: 3213.285647 | CY84: 358125.4658 | CZ84: 0.6318295535 | DA84: 0.6318295535
B85: 64 | C85: 2031-09-06 | D85: 31 | E85: 1949 | F85: 359720.4496 | G85: 951.2861324 | H85: 2679.363371 | I85: 0 | J85: 126 | K85: 0 | L85: 3756.649503 | M85: 358769.1635 | N85: 0.6271581909 | O85: 0.6271581909 | Q85: =IFERROR(IF('Simulación Cliente'!$H$21="Simple",G85+H85+I85+J85+K85,AC85+AD85+AE85+AF85+AG85),"") -> 3756.649503 | R85: 1949 | S85: =IFERROR((1+'Simulación Cliente'!$E$21)^(R85/360),"") -> 1 | T85: 3756.65 | X85: 64 | Y85: 2031-09-06 | Z85: 31 | AA85: 1949 | AB85: 358125.4658 | AC85: 419.8024494 | AD85: 2667.483197 | AE85: 0 | AF85: 126 | AG85: 0 | AH85: 3213.285647 | AI85: 357705.6633 | AJ85: 0.6271581909 | AK85: 0.6271581909 | AO85: 64 | AP85: 2031-09-06 | AQ85: 31 | AR85: 1949 | AS85: 321954.8493 | AT85: 1706.713783 | AU85: 2398.067808 | AV85: 0 | AW85: 126 | AX85: 0 | AY85: 4230.78159 | AZ85: 320248.1355 | BA85: 0.6271581909 | BB85: 0.6271581909 | BF85: 64 | BG85: 2031-09-06 | BH85: 31 | BI85: 1949 | BJ85: 320158.583 | BK85: 1108.150374 | BL85: 2384.688391 | BM85: 0 | BN85: 126 | BO85: 0 | BP85: 3618.838764 | BQ85: 319050.4326 | BR85: 0.6271581909 | BS85: 0.6271581909 | BW85: 64 | BX85: 2031-09-06 | BY85: 31 | BZ85: 1949 | CA85: 359720.4496 | CB85: 951.2861324 | CC85: 2679.363371 | CD85: 0 | CE85: 126 | CF85: 0 | CG85: 3756.649503 | CH85: 358769.1635 | CI85: 0.6271581909 | CJ85: 0.6271581909 | CN85: 64 | CO85: 2031-09-06 | CP85: 31 | CQ85: 1949 | CR85: 358125.4658 | CS85: 419.8024494 | CT85: 2667.483197 | CU85: 0 | CV85: 126 | CW85: 0 | CX85: 3213.285647 | CY85: 357705.6633 | CZ85: 0.6271581909 | DA85: 0.6271581909
B86: 65 | C86: 2031-10-06 | D86: 30 | E86: 1979 | F86: 358769.1635 | G86: =IF(B86>C$6,"",L86-K86-J86-I86-H86) -> 1044.884146 | H86: 2585.765357 | I86: =IF(B86>C$6,"",((1+C$12)^(D86/30)-1)*F86) -> 0 | J86: 126 | K86: =IF(B86>C$6,"",C$15) -> 0 | L86: =IF(B86>C$6,"",IF(B86=C$6,F86+H86+I86+J86+K86,IF(AND(C$9=2,MONTH(C86)=7),2*C$17,IF(AND(C$10=2,MONTH(C86)=12),2*C$17,C$17)))) -> 3756.649503 | M86: =IF(B86>C$6,"",F86-G86) -> 357724.2794 | N86: 0.6226704039 | O86: 0.6226704039 | Q86: =IFERROR(IF('Simulación Cliente'!$H$21="Simple",G86+H86+I86+J86+K86,AC86+AD86+AE86+AF86+AG86),"") -> 3756.649503 | R86: 1979 | S86: =IFERROR((1+'Simulación Cliente'!$E$21)^(R86/360),"") -> 1 | T86: 3756.65 | X86: 65 | Y86: 2031-10-06 | Z86: 30 | AA86: 1979 | AB86: 357705.6633 | AC86: 509.1852791 | AD86: 2578.100368 | AE86: =IF(X86>Y$6,"",((1+Y$12)^(Z86/30)-1)*AB86) -> 0 | AF86: 126 | AG86: =IF(X86>Y$6,"",Y$15) -> 0 | AH86: =IF(X86>Y$6,"",IF(X86=Y$6,AB86+AD86+AE86+AF86+AG86,IF(AND(Y$9=2,MONTH(Y86)=7),2*Y$17,IF(AND(Y$10=2,MONTH(Y86)=12),2*Y$17,Y$17)))) -> 3213.285647 | AI86: =IF(X86>Y$6,"",AB86-AC86) -> 357196.4781 | AJ86: 0.6226704039 | AK86: 0.6226704039 | AO86: 65 | AP86: 2031-10-06 | AQ86: 30 | AR86: 1979 | AS86: 320248.1355 | AT86: 1796.649737 | AU86: 2308.131854 | AV86: =IF(AO86>AP$6,"",((1+AP$12)^(AQ86/30)-1)*AS86) -> 0 | AW86: 126 | AX86: =IF(AO86>AP$6,"",AP$15) -> 0 | AY86: =IF(AO86>AP$6,"",IF(AO86=AP$6,AS86+AU86+AV86+AW86+AX86,IF(AND(AP$9=2,MONTH(AP86)=7),2*AP$17,IF(AND(AP$10=2,MONTH(AP86)=12),2*AP$17,AP$17)))) -> 4230.78159 | AZ86: =IF(AO86>AP$6,"",AS86-AT86) -> 318451.4857 | BA86: 0.6226704039 | BB86: 0.6226704039 | BF86: 65 | BG86: 2031-10-06 | BH86: 30 | BI86: 1979 | BJ86: 319050.4326 | BK86: 1193.339142 | BL86: 2299.499622 | BM86: =IF(BF86>BG$6,"",((1+BG$12)^(BH86/30)-1)*BJ86) -> 0 | BN86: 126 | BO86: =IF(BF86>BG$6,"",BG$15) -> 0 | BP86: =IF(BF86>BG$6,"",IF(BF86=BG$6,BJ86+BL86+BM86+BN86+BO86,IF(AND(BG$9=2,MONTH(BG86)=7),2*BG$17,IF(AND(BG$10=2,MONTH(BG86)=12),2*BG$17,BG$17)))) -> 3618.838764 | BQ86: =IF(BF86>BG$6,"",BJ86-BK86) -> 317857.0935 | BR86: 0.6226704039 | BS86: 0.6226704039 | BW86: 65 | BX86: 2031-10-06 | BY86: 30 | BZ86: 1979 | CA86: 358769.1635 | CB86: 1044.884146 | CC86: 2585.765357 | CD86: =IF(BW86>BX$6,"",((1+BX$12)^(BY86/30)-1)*CA86) -> 0 | CE86: 126 | CF86: =IF(BW86>BX$6,"",BX$15) -> 0 | CG86: =IF(BW86>BX$6,"",IF(BW86=BX$6,CA86+CC86+CD86+CE86+CF86,IF(AND(BX$9=2,MONTH(BX86)=7),2*BX$17,IF(AND(BX$10=2,MONTH(BX86)=12),2*BX$17,BX$17)))) -> 3756.649503 | CH86: =IF(BW86>BX$6,"",CA86-CB86) -> 357724.2794 | CI86: 0.6226704039 | CJ86: 0.6226704039 | CN86: 65 | CO86: 2031-10-06 | CP86: 30 | CQ86: 1979 | CR86: 357705.6633 | CS86: 509.1852791 | CT86: 2578.100368 | CU86: =IF(CN86>CO$6,"",((1+CO$12)^(CP86/30)-1)*CR86) -> 0 | CV86: 126 | CW86: =IF(CN86>CO$6,"",CO$15) -> 0 | CX86: =IF(CN86>CO$6,"",IF(CN86=CO$6,CR86+CT86+CU86+CV86+CW86,IF(AND(CO$9=2,MONTH(CO86)=7),2*CO$17,IF(AND(CO$10=2,MONTH(CO86)=12),2*CO$17,CO$17)))) -> 3213.285647 | CY86: =IF(CN86>CO$6,"",CR86-CS86) -> 357196.4781 | CZ86: 0.6226704039 | DA86: 0.6226704039
B87: 66 | C87: =IF(B87>C$6,"",EDATE(C$22,B86)) -> 2031-11-06 | D87: =IF(B87>C$6,"",C87-C86) -> 31 | E87: =IFERROR(D87+E86,"") -> 2010 | F87: =IF(B87>C$6,"",M86) -> 357724.2794 | G87: 966.1545268 | H87: 2664.494976 | I87: 0 | J87: =IF(B87>C$6,"",D$4*C$14) -> 126 | K87: 0 | L87: 3756.649503 | M87: 356758.1248 | N87: =IFERROR(IF(AND(MONTH(C87)=7,C$9=2),2/(1+C$13)^(E87/360),IF(AND(MONTH(C87)=12,C$10=2),2/(1+C$13)^(E87/360),1/(1+C$13)^(E87/360))),"") -> 0.6180667584 | O87: =IFERROR(1/(1+C$13)^(E87/360),"") -> 0.6180667584 | Q87: =IFERROR(IF('Simulación Cliente'!$H$21="Simple",G87+H87+I87+J87+K87,AC87+AD87+AE87+AF87+AG87),"") -> 3756.649503 | R87: =E87 -> 2010 | S87: =IFERROR((1+'Simulación Cliente'!$E$21)^(R87/360),"") -> 1 | T87: =IFERROR(ROUND(Q87/S87,2),"") -> 3756.65 | X87: 66 | Y87: =IF(X87>Y$6,"",EDATE(Y$22,X86)) -> 2031-11-06 | Z87: 31 | AA87: =IFERROR(Z87+AA86,"") -> 2010 | AB87: =IF(X87>Y$6,"",AI86) -> 357196.4781 | AC87: 426.7219773 | AD87: 2660.563669 | AE87: 0 | AF87: =IF(X87>Y$6,"",Z$4*Y$14) -> 126 | AG87: 0 | AH87: 3213.285647 | AI87: 356769.7561 | AJ87: =IFERROR(IF(AND(MONTH(Y87)=7,Y$9=2),2/(1+Y$13)^(AA87/360),IF(AND(MONTH(Y87)=12,Y$10=2),2/(1+Y$13)^(AA87/360),1/(1+Y$13)^(AA87/360))),"") -> 0.6180667584 | AK87: =IFERROR(1/(1+Y$13)^(AA87/360),"") -> 0.6180667584 | AO87: 66 | AP87: =IF(AO87>AP$6,"",EDATE(AP$22,AO86)) -> 2031-11-06 | AQ87: 31 | AR87: =IFERROR(AQ87+AR86,"") -> 2010 | AS87: =IF(AO87>AP$6,"",AZ86) -> 318451.4857 | AT87: 1732.808445 | AU87: 2371.973145 | AV87: 0 | AW87: =IF(AO87>AP$6,"",AQ$4*AP$14) -> 126 | AX87: 0 | AY87: 4230.78159 | AZ87: 316718.6773 | BA87: =IFERROR(IF(AND(MONTH(AP87)=7,AP$9=2),2/(1+AP$13)^(AR87/360),IF(AND(MONTH(AP87)=12,AP$10=2),2/(1+AP$13)^(AR87/360),1/(1+AP$13)^(AR87/360))),"") -> 0.6180667584 | BB87: =IFERROR(1/(1+AP$13)^(AR87/360),"") -> 0.6180667584 | BF87: 66 | BG87: =IF(BF87>BG$6,"",EDATE(BG$22,BF86)) -> 2031-11-06 | BH87: 31 | BI87: =IFERROR(BH87+BI86,"") -> 2010 | BJ87: =IF(BF87>BG$6,"",BQ86) -> 317857.0935 | BK87: 1125.292926 | BL87: 2367.545838 | BM87: 0 | BN87: =IF(BF87>BG$6,"",BH$4*BG$14) -> 126 | BO87: 0 | BP87: 3618.838764 | BQ87: 316731.8005 | BR87: =IFERROR(IF(AND(MONTH(BG87)=7,BG$9=2),2/(1+BG$13)^(BI87/360),IF(AND(MONTH(BG87)=12,BG$10=2),2/(1+BG$13)^(BI87/360),1/(1+BG$13)^(BI87/360))),"") -> 0.6180667584 | BS87: =IFERROR(1/(1+BG$13)^(BI87/360),"") -> 0.6180667584 | BW87: 66 | BX87: =IF(BW87>BX$6,"",EDATE(BX$22,BW86)) -> 2031-11-06 | BY87: 31 | BZ87: =IFERROR(BY87+BZ86,"") -> 2010 | CA87: =IF(BW87>BX$6,"",CH86) -> 357724.2794 | CB87: 966.1545268 | CC87: 2664.494976 | CD87: 0 | CE87: =IF(BW87>BX$6,"",BY$4*BX$14) -> 126 | CF87: 0 | CG87: 3756.649503 | CH87: 356758.1248 | CI87: =IFERROR(IF(AND(MONTH(BX87)=7,BX$9=2),2/(1+BX$13)^(BZ87/360),IF(AND(MONTH(BX87)=12,BX$10=2),2/(1+BX$13)^(BZ87/360),1/(1+BX$13)^(BZ87/360))),"") -> 0.6180667584 | CJ87: =IFERROR(1/(1+BX$13)^(BZ87/360),"") -> 0.6180667584 | CN87: 66 | CO87: =IF(CN87>CO$6,"",EDATE(CO$22,CN86)) -> 2031-11-06 | CP87: 31 | CQ87: =IFERROR(CP87+CQ86,"") -> 2010 | CR87: =IF(CN87>CO$6,"",CY86) -> 357196.4781 | CS87: 426.7219773 | CT87: 2660.563669 | CU87: 0 | CV87: =IF(CN87>CO$6,"",CP$4*CO$14) -> 126 | CW87: 0 | CX87: 3213.285647 | CY87: 356769.7561 | CZ87: =IFERROR(IF(AND(MONTH(CO87)=7,CO$9=2),2/(1+CO$13)^(CQ87/360),IF(AND(MONTH(CO87)=12,CO$10=2),2/(1+CO$13)^(CQ87/360),1/(1+CO$13)^(CQ87/360))),"") -> 0.6180667584 | DA87: =IFERROR(1/(1+CO$13)^(CQ87/360),"") -> 0.6180667584
B88: 67 | C88: 2031-12-06 | D88: 30 | E88: 2040 | F88: 356758.1248 | G88: 1059.378352 | H88: =IF(B88>C$6,"",((1+C$11)^(D88/360)-1)*F88) -> 2571.271151 | I88: 0 | J88: 126 | K88: 0 | L88: 3756.649503 | M88: 355698.7465 | N88: 0.6136440275 | O88: 0.6136440275 | Q88: =IFERROR(IF('Simulación Cliente'!$H$21="Simple",G88+H88+I88+J88+K88,AC88+AD88+AE88+AF88+AG88),"") -> 3756.649503 | R88: 2040 | S88: =IFERROR((1+'Simulación Cliente'!$E$21)^(R88/360),"") -> 1 | T88: 3756.65 | X88: 67 | Y88: 2031-12-06 | Z88: 30 | AA88: 2040 | AB88: 356769.7561 | AC88: 3729.216312 | AD88: =IF(X88>Y$6,"",((1+Y$11)^(Z88/360)-1)*AB88) -> 2571.354981 | AE88: 0 | AF88: 126 | AG88: 0 | AH88: 6426.571293 | AI88: 353040.5398 | AJ88: 1.227288055 | AK88: 0.6136440275 | AO88: 67 | AP88: 2031-12-06 | AQ88: 30 | AR88: 2040 | AS88: 316718.6773 | AT88: 1822.087683 | AU88: =IF(AO88>AP$6,"",((1+AP$11)^(AQ88/360)-1)*AS88) -> 2282.693907 | AV88: 0 | AW88: 126 | AX88: 0 | AY88: 4230.78159 | AZ88: 314896.5896 | BA88: 0.6136440275 | BB88: 0.6136440275 | BF88: 67 | BG88: 2031-12-06 | BH88: 30 | BI88: 2040 | BJ88: 316731.8005 | BK88: 4828.889037 | BL88: =IF(BF88>BG$6,"",((1+BG$11)^(BH88/360)-1)*BJ88) -> 2282.788491 | BM88: 0 | BN88: 126 | BO88: 0 | BP88: 7237.677528 | BQ88: 311902.9115 | BR88: 1.227288055 | BS88: 0.6136440275 | BW88: 67 | BX88: 2031-12-06 | BY88: 30 | BZ88: 2040 | CA88: 356758.1248 | CB88: 1059.378352 | CC88: =IF(BW88>BX$6,"",((1+BX$11)^(BY88/360)-1)*CA88) -> 2571.271151 | CD88: 0 | CE88: 126 | CF88: 0 | CG88: 3756.649503 | CH88: 355698.7465 | CI88: 0.6136440275 | CJ88: 0.6136440275 | CN88: 67 | CO88: 2031-12-06 | CP88: 30 | CQ88: 2040 | CR88: 356769.7561 | CS88: 3729.216312 | CT88: =IF(CN88>CO$6,"",((1+CO$11)^(CP88/360)-1)*CR88) -> 2571.354981 | CU88: 0 | CV88: 126 | CW88: 0 | CX88: 6426.571293 | CY88: 353040.5398 | CZ88: 1.227288055 | DA88: 0.6136440275
B89: 68 | C89: 2032-01-06 | D89: 31 | E89: 2071 | F89: 355698.7465 | G89: 981.2416274 | H89: 2649.407876 | I89: 0 | J89: 126 | K89: 0 | L89: 3756.649503 | M89: 354717.5048 | N89: 0.6091071175 | O89: 0.6091071175 | Q89: =IFERROR(IF('Simulación Cliente'!$H$21="Simple",G89+H89+I89+J89+K89,AC89+AD89+AE89+AF89+AG89),"") -> 3756.649503 | R89: 2071 | S89: =IFERROR((1+'Simulación Cliente'!$E$21)^(R89/360),"") -> 1 | T89: 3756.65 | X89: 68 | Y89: 2032-01-06 | Z89: =IF(X89>Y$6,"",Y89-Y88) -> 31 | AA89: 2071 | AB89: 353040.5398 | AC89: =IF(X89>Y$6,"",AH89-AG89-AF89-AE89-AD89) -> 457.6773173 | AD89: 2629.608329 | AE89: 0 | AF89: 126 | AG89: 0 | AH89: 3213.285647 | AI89: 352582.8624 | AJ89: 0.6091071175 | AK89: 0.6091071175 | AO89: 68 | AP89: 2032-01-06 | AQ89: =IF(AO89>AP$6,"",AP89-AP88) -> 31 | AR89: 2071 | AS89: 314896.5896 | AT89: =IF(AO89>AP$6,"",AY89-AX89-AW89-AV89-AU89) -> 1759.286947 | AU89: 2345.494643 | AV89: 0 | AW89: 126 | AX89: 0 | AY89: 4230.78159 | AZ89: 313137.3027 | BA89: 0.6091071175 | BB89: 0.6091071175 | BF89: 68 | BG89: 2032-01-06 | BH89: =IF(BF89>BG$6,"",BG89-BG88) -> 31 | BI89: 2071 | BJ89: 311902.9115 | BK89: =IF(BF89>BG$6,"",BP89-BO89-BN89-BM89-BL89) -> 1169.642412 | BL89: 2323.196352 | BM89: 0 | BN89: 126 | BO89: 0 | BP89: 3618.838764 | BQ89: 310733.2691 | BR89: 0.6091071175 | BS89: 0.6091071175 | BW89: 68 | BX89: 2032-01-06 | BY89: =IF(BW89>BX$6,"",BX89-BX88) -> 31 | BZ89: 2071 | CA89: 355698.7465 | CB89: =IF(BW89>BX$6,"",CG89-CF89-CE89-CD89-CC89) -> 981.2416274 | CC89: 2649.407876 | CD89: 0 | CE89: 126 | CF89: 0 | CG89: 3756.649503 | CH89: 354717.5048 | CI89: 0.6091071175 | CJ89: 0.6091071175 | CN89: 68 | CO89: 2032-01-06 | CP89: =IF(CN89>CO$6,"",CO89-CO88) -> 31 | CQ89: 2071 | CR89: 353040.5398 | CS89: =IF(CN89>CO$6,"",CX89-CW89-CV89-CU89-CT89) -> 457.6773173 | CT89: 2629.608329 | CU89: 0 | CV89: 126 | CW89: 0 | CX89: 3213.285647 | CY89: 352582.8624 | CZ89: 0.6091071175 | DA89: 0.6091071175
B90: 69 | C90: 2032-02-06 | D90: 31 | E90: 2102 | F90: 354717.5048 | G90: 988.5503664 | H90: 2642.099137 | I90: 0 | J90: 126 | K90: 0 | L90: 3756.649503 | M90: 353728.9545 | N90: 0.6046037507 | O90: 0.6046037507 | Q90: =IFERROR(IF('Simulación Cliente'!$H$21="Simple",G90+H90+I90+J90+K90,AC90+AD90+AE90+AF90+AG90),"") -> 3756.649503 | R90: 2102 | S90: =IFERROR((1+'Simulación Cliente'!$E$21)^(R90/360),"") -> 1 | T90: 3756.65 | X90: 69 | Y90: 2032-02-06 | Z90: 31 | AA90: 2102 | AB90: 352582.8624 | AC90: 461.0863085 | AD90: 2626.199338 | AE90: 0 | AF90: 126 | AG90: 0 | AH90: 3213.285647 | AI90: 352121.7761 | AJ90: 0.6046037507 | AK90: 0.6046037507 | AO90: 69 | AP90: 2032-02-06 | AQ90: 31 | AR90: 2102 | AS90: 313137.3027 | AT90: 1772.390925 | AU90: 2332.390665 | AV90: 0 | AW90: 126 | AX90: 0 | AY90: 4230.78159 | AZ90: 311364.9117 | BA90: 0.6046037507 | BB90: 0.6046037507 | BF90: 69 | BG90: 2032-02-06 | BH90: 31 | BI90: 2102 | BJ90: 310733.2691 | BK90: 1178.354447 | BL90: 2314.484317 | BM90: 0 | BN90: 126 | BO90: 0 | BP90: 3618.838764 | BQ90: 309554.9146 | BR90: 0.6046037507 | BS90: 0.6046037507 | BW90: 69 | BX90: 2032-02-06 | BY90: 31 | BZ90: 2102 | CA90: 354717.5048 | CB90: 988.5503664 | CC90: 2642.099137 | CD90: 0 | CE90: 126 | CF90: 0 | CG90: 3756.649503 | CH90: 353728.9545 | CI90: 0.6046037507 | CJ90: 0.6046037507 | CN90: 69 | CO90: 2032-02-06 | CP90: 31 | CQ90: 2102 | CR90: 352582.8624 | CS90: 461.0863085 | CT90: 2626.199338 | CU90: 0 | CV90: 126 | CW90: 0 | CX90: 3213.285647 | CY90: 352121.7761 | CZ90: 0.6046037507 | DA90: 0.6046037507
B91: 70 | C91: 2032-03-06 | D91: 29 | E91: 2131 | F91: 353728.9545 | G91: 1166.487163 | H91: 2464.16234 | I91: 0 | J91: 126 | K91: 0 | L91: 3756.649503 | M91: 352562.4673 | N91: 0.6004210708 | O91: 0.6004210708 | Q91: =IFERROR(IF('Simulación Cliente'!$H$21="Simple",G91+H91+I91+J91+K91,AC91+AD91+AE91+AF91+AG91),"") -> 3756.649503 | R91: 2131 | S91: =IFERROR((1+'Simulación Cliente'!$E$21)^(R91/360),"") -> 1 | T91: 3756.65 | X91: 70 | Y91: 2032-03-06 | Z91: 29 | AA91: 2131 | AB91: 352121.7761 | AC91: 634.3193041 | AD91: 2452.966343 | AE91: 0 | AF91: 126 | AG91: 0 | AH91: 3213.285647 | AI91: 351487.4568 | AJ91: 0.6004210708 | AK91: 0.6004210708 | AO91: 70 | AP91: 2032-03-06 | AQ91: 29 | AR91: 2131 | AS91: 311364.9117 | AT91: 1935.737525 | AU91: 2169.044065 | AV91: 0 | AW91: 126 | AX91: 0 | AY91: 4230.78159 | AZ91: 309429.1742 | BA91: 0.6004210708 | BB91: 0.6004210708 | BF91: 70 | BG91: 2032-03-06 | BH91: 29 | BI91: 2131 | BJ91: 309554.9146 | BK91: 1336.403581 | BL91: 2156.435183 | BM91: 0 | BN91: 126 | BO91: 0 | BP91: 3618.838764 | BQ91: 308218.5111 | BR91: 0.6004210708 | BS91: 0.6004210708 | BW91: 70 | BX91: 2032-03-06 | BY91: 29 | BZ91: 2131 | CA91: 353728.9545 | CB91: 1166.487163 | CC91: 2464.16234 | CD91: 0 | CE91: 126 | CF91: 0 | CG91: 3756.649503 | CH91: 352562.4673 | CI91: 0.6004210708 | CJ91: 0.6004210708 | CN91: 70 | CO91: 2032-03-06 | CP91: 29 | CQ91: 2131 | CR91: 352121.7761 | CS91: 634.3193041 | CT91: 2452.966343 | CU91: 0 | CV91: 126 | CW91: 0 | CX91: 3213.285647 | CY91: 351487.4568 | CZ91: 0.6004210708 | DA91: 0.6004210708
B92: 71 | C92: 2032-04-06 | D92: 31 | E92: 2162 | F92: 352562.4673 | G92: 1004.602077 | H92: 2626.047426 | I92: 0 | J92: 126 | K92: 0 | L92: 3756.649503 | M92: 351557.8652 | N92: 0.5959819233 | O92: 0.5959819233 | Q92: =IFERROR(IF('Simulación Cliente'!$H$21="Simple",G92+H92+I92+J92+K92,AC92+AD92+AE92+AF92+AG92),"") -> 3756.649503 | R92: 2162 | S92: =IFERROR((1+'Simulación Cliente'!$E$21)^(R92/360),"") -> 1 | T92: 3756.65 | X92: 71 | Y92: 2032-04-06 | Z92: 31 | AA92: 2162 | AB92: 351487.4568 | AC92: 469.2453933 | AD92: 2618.040253 | AE92: 0 | AF92: 126 | AG92: 0 | AH92: 3213.285647 | AI92: 351018.2114 | AJ92: 0.5959819233 | AK92: 0.5959819233 | AO92: 71 | AP92: 2032-04-06 | AQ92: 31 | AR92: 2162 | AS92: 309429.1742 | AT92: 1800.010772 | AU92: 2304.770819 | AV92: 0 | AW92: 126 | AX92: 0 | AY92: 4230.78159 | AZ92: 307629.1634 | BA92: 0.5959819233 | BB92: 0.5959819233 | BF92: 71 | BG92: 2032-04-06 | BH92: 31 | BI92: 2162 | BJ92: 308218.5111 | BK92: 1197.085521 | BL92: 2295.753243 | BM92: 0 | BN92: 126 | BO92: 0 | BP92: 3618.838764 | BQ92: 307021.4255 | BR92: 0.5959819233 | BS92: 0.5959819233 | BW92: 71 | BX92: 2032-04-06 | BY92: 31 | BZ92: 2162 | CA92: 352562.4673 | CB92: 1004.602077 | CC92: 2626.047426 | CD92: 0 | CE92: 126 | CF92: 0 | CG92: 3756.649503 | CH92: 351557.8652 | CI92: 0.5959819233 | CJ92: 0.5959819233 | CN92: 71 | CO92: 2032-04-06 | CP92: 31 | CQ92: 2162 | CR92: 351487.4568 | CS92: 469.2453933 | CT92: 2618.040253 | CU92: 0 | CV92: 126 | CW92: 0 | CX92: 3213.285647 | CY92: 351018.2114 | CZ92: 0.5959819233 | DA92: 0.5959819233
B93: 72 | C93: 2032-05-06 | D93: 30 | E93: 2192 | F93: 351557.8652 | G93: 1096.858304 | H93: 2533.791199 | I93: 0 | J93: 126 | K93: 0 | L93: 3756.649503 | M93: 350461.0069 | N93: 0.5917172259 | O93: 0.5917172259 | Q93: =IFERROR(IF('Simulación Cliente'!$H$21="Simple",G93+H93+I93+J93+K93,AC93+AD93+AE93+AF93+AG93),"") -> 3756.649503 | R93: 2192 | S93: =IFERROR((1+'Simulación Cliente'!$E$21)^(R93/360),"") -> 1 | T93: 3756.65 | X93: 72 | Y93: 2032-05-06 | Z93: 30 | AA93: 2192 | AB93: 351018.2114 | AC93: 557.383907 | AD93: 2529.90174 | AE93: 0 | AF93: 126 | AG93: 0 | AH93: 3213.285647 | AI93: 350460.8275 | AJ93: 0.5917172259 | AK93: 0.5917172259 | AO93: 72 | AP93: 2032-05-06 | AQ93: 30 | AR93: 2192 | AS93: 307629.1634 | AT93: 1887.598748 | AU93: 2217.182842 | AV93: 0 | AW93: 126 | AX93: 0 | AY93: 4230.78159 | AZ93: 305741.5647 | BA93: 0.5917172259 | BB93: 0.5917172259 | BF93: 72 | BG93: 2032-05-06 | BH93: 30 | BI93: 2192 | BJ93: 307021.4255 | BK93: 1280.036085 | BL93: 2212.802679 | BM93: 0 | BN93: 126 | BO93: 0 | BP93: 3618.838764 | BQ93: 305741.3895 | BR93: 0.5917172259 | BS93: 0.5917172259 | BW93: 72 | BX93: 2032-05-06 | BY93: 30 | BZ93: 2192 | CA93: 351557.8652 | CB93: 1096.858304 | CC93: 2533.791199 | CD93: 0 | CE93: 126 | CF93: 0 | CG93: 3756.649503 | CH93: 350461.0069 | CI93: 0.5917172259 | CJ93: 0.5917172259 | CN93: 72 | CO93: 2032-05-06 | CP93: 30 | CQ93: 2192 | CR93: 351018.2114 | CS93: 557.383907 | CT93: 2529.90174 | CU93: 0 | CV93: 126 | CW93: 0 | CX93: 3213.285647 | CY93: 350460.8275 | CZ93: 0.5917172259 | DA93: 0.5917172259
B94: 73 | C94: 2032-06-06 | D94: 31 | E94: 2223 | F94: 350461.0069 | G94: 1020.254721 | H94: 2610.394782 | I94: 0 | J94: 126 | K94: 0 | L94: 3756.649503 | M94: 349440.7522 | N94: 0.5873424294 | O94: 0.5873424294 | Q94: =IFERROR(IF('Simulación Cliente'!$H$21="Simple",G94+H94+I94+J94+K94,AC94+AD94+AE94+AF94+AG94),"") -> 3756.649503 | R94: 2223 | S94: =IFERROR((1+'Simulación Cliente'!$E$21)^(R94/360),"") -> 1 | T94: 3756.65 | X94: 73 | Y94: 2032-06-06 | Z94: 31 | AA94: 2223 | AB94: 350460.8275 | AC94: 476.8922006 | AD94: 2610.393446 | AE94: 0 | AF94: 126 | AG94: 0 | AH94: 3213.285647 | AI94: 349983.9353 | AJ94: 0.5873424294 | AK94: 0.5873424294 | AO94: 73 | AP94: 2032-06-06 | AQ94: 31 | AR94: 2223 | AS94: 305741.5647 | AT94: 1827.477784 | AU94: 2277.303807 | AV94: 0 | AW94: 126 | AX94: 0 | AY94: 4230.78159 | AZ94: 303914.0869 | BA94: 0.5873424294 | BB94: 0.5873424294 | BF94: 73 | BG94: 2032-06-06 | BH94: 31 | BI94: 2223 | BJ94: 305741.3895 | BK94: 1215.536263 | BL94: 2277.302502 | BM94: 0 | BN94: 126 | BO94: 0 | BP94: 3618.838764 | BQ94: 304525.8532 | BR94: 0.5873424294 | BS94: 0.5873424294 | BW94: 73 | BX94: 2032-06-06 | BY94: 31 | BZ94: 2223 | CA94: 350461.0069 | CB94: 1020.254721 | CC94: 2610.394782 | CD94: 0 | CE94: 126 | CF94: 0 | CG94: 3756.649503 | CH94: 349440.7522 | CI94: 0.5873424294 | CJ94: 0.5873424294 | CN94: 73 | CO94: 2032-06-06 | CP94: 31 | CQ94: 2223 | CR94: 350460.8275 | CS94: 476.8922006 | CT94: 2610.393446 | CU94: 0 | CV94: 126 | CW94: 0 | CX94: 3213.285647 | CY94: 349983.9353 | CZ94: 0.5873424294 | DA94: 0.5873424294
B95: 74 | C95: 2032-07-06 | D95: 30 | E95: 2253 | F95: 349440.7522 | G95: 1112.117022 | H95: 2518.532481 | I95: 0 | J95: 126 | K95: 0 | L95: 3756.649503 | M95: 348328.6352 | N95: 0.5831395541 | O95: 0.5831395541 | Q95: =IFERROR(IF('Simulación Cliente'!$H$21="Simple",G95+H95+I95+J95+K95,AC95+AD95+AE95+AF95+AG95),"") -> 3756.649503 | R95: 2253 | S95: =IFERROR((1+'Simulación Cliente'!$E$21)^(R95/360),"") -> 1 | T95: 3756.65 | X95: 74 | Y95: 2032-07-06 | Z95: 30 | AA95: 2253 | AB95: 349983.9353 | AC95: 3778.123916 | AD95: 2522.447377 | AE95: 0 | AF95: 126 | AG95: 0 | AH95: 6426.571293 | AI95: 346205.8114 | AJ95: 1.166279108 | AK95: 0.5831395541 | AO95: 74 | AP95: 2032-07-06 | AQ95: 30 | AR95: 2253 | AS95: 303914.0869 | AT95: 1914.374506 | AU95: 2190.407085 | AV95: 0 | AW95: 126 | AX95: 0 | AY95: 4230.78159 | AZ95: 301999.7124 | BA95: 0.5831395541 | BB95: 0.5831395541 | BF95: 74 | BG95: 2032-07-06 | BH95: 30 | BI95: 2253 | BJ95: 304525.8532 | BK95: 4916.861246 | BL95: 2194.816282 | BM95: 0 | BN95: 126 | BO95: 0 | BP95: 7237.677528 | BQ95: 299608.992 | BR95: 1.166279108 | BS95: 0.5831395541 | BW95: 74 | BX95: 2032-07-06 | BY95: 30 | BZ95: 2253 | CA95: 349440.7522 | CB95: 1112.117022 | CC95: 2518.532481 | CD95: 0 | CE95: 126 | CF95: 0 | CG95: 3756.649503 | CH95: 348328.6352 | CI95: 0.5831395541 | CJ95: 0.5831395541 | CN95: 74 | CO95: 2032-07-06 | CP95: 30 | CQ95: 2253 | CR95: 349983.9353 | CS95: 3778.123916 | CT95: 2522.447377 | CU95: 0 | CV95: 126 | CW95: 0 | CX95: 6426.571293 | CY95: 346205.8114 | CZ95: 1.166279108 | DA95: 0.5831395541
B96: 75 | C96: 2032-08-06 | D96: 31 | E96: 2284 | F96: 348328.6352 | G96: 1036.137606 | H96: 2594.511897 | I96: 0 | J96: 126 | K96: 0 | L96: 3756.649503 | M96: 347292.4976 | N96: 0.5788281756 | O96: 0.5788281756 | Q96: =IFERROR(IF('Simulación Cliente'!$H$21="Simple",G96+H96+I96+J96+K96,AC96+AD96+AE96+AF96+AG96),"") -> 3756.649503 | R96: 2284 | S96: =IFERROR((1+'Simulación Cliente'!$E$21)^(R96/360),"") -> 1 | T96: 3756.65 | X96: 75 | Y96: 2032-08-06 | Z96: 31 | AA96: 2284 | AB96: 346205.8114 | AC96: 508.5855178 | AD96: 2578.700129 | AE96: 0 | AF96: 126 | AG96: 0 | AH96: 3213.285647 | AI96: 345697.2259 | AJ96: 0.5788281756 | AK96: 0.5788281756 | AO96: 75 | AP96: 2032-08-06 | AQ96: 31 | AR96: 2284 | AS96: 301999.7124 | AT96: 1855.348821 | AU96: 2249.43277 | AV96: 0 | AW96: 126 | AX96: 0 | AY96: 4230.78159 | AZ96: 300144.3636 | BA96: 0.5788281756 | BB96: 0.5788281756 | BF96: 75 | BG96: 2032-08-06 | BH96: 31 | BI96: 2284 | BJ96: 299608.992 | BK96: 1261.21318 | BL96: 2231.625584 | BM96: 0 | BN96: 126 | BO96: 0 | BP96: 3618.838764 | BQ96: 298347.7788 | BR96: 0.5788281756 | BS96: 0.5788281756 | BW96: 75 | BX96: 2032-08-06 | BY96: 31 | BZ96: 2284 | CA96: 348328.6352 | CB96: 1036.137606 | CC96: 2594.511897 | CD96: 0 | CE96: 126 | CF96: 0 | CG96: 3756.649503 | CH96: 347292.4976 | CI96: 0.5788281756 | CJ96: 0.5788281756 | CN96: 75 | CO96: 2032-08-06 | CP96: 31 | CQ96: 2284 | CR96: 346205.8114 | CS96: 508.5855178 | CT96: 2578.700129 | CU96: 0 | CV96: 126 | CW96: 0 | CX96: 3213.285647 | CY96: 345697.2259 | CZ96: 0.5788281756 | DA96: 0.5788281756
B97: 76 | C97: 2032-09-06 | D97: 31 | E97: 2315 | F97: 347292.4976 | G97: 1043.855236 | H97: 2586.794267 | I97: 0 | J97: 126 | K97: 0 | L97: 3756.649503 | M97: 346248.6423 | N97: 0.5745486728 | O97: 0.5745486728 | Q97: =IFERROR(IF('Simulación Cliente'!$H$21="Simple",G97+H97+I97+J97+K97,AC97+AD97+AE97+AF97+AG97),"") -> 3756.649503 | R97: 2315 | S97: =IFERROR((1+'Simulación Cliente'!$E$21)^(R97/360),"") -> 1 | T97: 3756.65 | X97: 76 | Y97: 2032-09-06 | Z97: 31 | AA97: 2315 | AB97: 345697.2259 | AC97: 512.3736967 | AD97: 2574.91195 | AE97: 0 | AF97: 126 | AG97: 0 | AH97: 3213.285647 | AI97: 345184.8522 | AJ97: 0.5745486728 | AK97: 0.5745486728 | AO97: 76 | AP97: 2032-09-06 | AQ97: 31 | AR97: 2315 | AS97: 300144.3636 | AT97: 1869.168312 | AU97: 2235.613278 | AV97: 0 | AW97: 126 | AX97: 0 | AY97: 4230.78159 | AZ97: 298275.1953 | BA97: 0.5745486728 | BB97: 0.5745486728 | BF97: 76 | BG97: 2032-09-06 | BH97: 31 | BI97: 2315 | BJ97: 298347.7788 | BK97: 1270.607276 | BL97: 2222.231488 | BM97: 0 | BN97: 126 | BO97: 0 | BP97: 3618.838764 | BQ97: 297077.1715 | BR97: 0.5745486728 | BS97: 0.5745486728 | BW97: 76 | BX97: 2032-09-06 | BY97: 31 | BZ97: 2315 | CA97: 347292.4976 | CB97: 1043.855236 | CC97: 2586.794267 | CD97: 0 | CE97: 126 | CF97: 0 | CG97: 3756.649503 | CH97: 346248.6423 | CI97: 0.5745486728 | CJ97: 0.5745486728 | CN97: 76 | CO97: 2032-09-06 | CP97: 31 | CQ97: 2315 | CR97: 345697.2259 | CS97: 512.3736967 | CT97: 2574.91195 | CU97: 0 | CV97: 126 | CW97: 0 | CX97: 3213.285647 | CY97: 345184.8522 | CZ97: 0.5745486728 | DA97: 0.5745486728
B98: 77 | C98: 2032-10-06 | D98: 30 | E98: 2345 | F98: 346248.6423 | G98: 1135.12359 | H98: 2495.525913 | I98: 0 | J98: 126 | K98: 0 | L98: 3756.649503 | M98: 345113.5188 | N98: 0.5704373464 | O98: 0.5704373464 | Q98: =IFERROR(IF('Simulación Cliente'!$H$21="Simple",G98+H98+I98+J98+K98,AC98+AD98+AE98+AF98+AG98),"") -> 3756.649503 | R98: 2345 | S98: =IFERROR((1+'Simulación Cliente'!$E$21)^(R98/360),"") -> 1 | T98: 3756.65 | X98: 77 | Y98: 2032-10-06 | Z98: 30 | AA98: 2345 | AB98: 345184.8522 | AC98: 599.4268131 | AD98: 2487.858834 | AE98: 0 | AF98: 126 | AG98: 0 | AH98: 3213.285647 | AI98: 344585.4254 | AJ98: 0.5704373464 | AK98: 0.5704373464 | AO98: 77 | AP98: 2032-10-06 | AQ98: 30 | AR98: 2345 | AS98: 298275.1953 | AT98: 1955.015821 | AU98: 2149.765769 | AV98: 0 | AW98: 126 | AX98: 0 | AY98: 4230.78159 | AZ98: 296320.1794 | BA98: 0.5704373464 | BB98: 0.5704373464 | BF98: 77 | BG98: 2032-10-06 | BH98: 30 | BI98: 2345 | BJ98: 297077.1715 | BK98: 1351.707539 | BL98: 2141.131225 | BM98: 0 | BN98: 126 | BO98: 0 | BP98: 3618.838764 | BQ98: 295725.464 | BR98: 0.5704373464 | BS98: 0.5704373464 | BW98: 77 | BX98: 2032-10-06 | BY98: 30 | BZ98: 2345 | CA98: 346248.6423 | CB98: 1135.12359 | CC98: 2495.525913 | CD98: 0 | CE98: 126 | CF98: 0 | CG98: 3756.649503 | CH98: 345113.5188 | CI98: 0.5704373464 | CJ98: 0.5704373464 | CN98: 77 | CO98: 2032-10-06 | CP98: 30 | CQ98: 2345 | CR98: 345184.8522 | CS98: 599.4268131 | CT98: 2487.858834 | CU98: 0 | CV98: 126 | CW98: 0 | CX98: 3213.285647 | CY98: 344585.4254 | CZ98: 0.5704373464 | DA98: 0.5704373464
B99: 78 | C99: 2032-11-06 | D99: 31 | E99: 2376 | F99: 345113.5188 | G99: 1060.085272 | H99: 2570.564231 | I99: 0 | J99: 126 | K99: 0 | L99: 3756.649503 | M99: 344053.4335 | N99: 0.5662198803 | O99: 0.5662198803 | Q99: =IFERROR(IF('Simulación Cliente'!$H$21="Simple",G99+H99+I99+J99+K99,AC99+AD99+AE99+AF99+AG99),"") -> 3756.649503 | R99: 2376 | S99: =IFERROR((1+'Simulación Cliente'!$E$21)^(R99/360),"") -> 1 | T99: 3756.65 | X99: 78 | Y99: 2032-11-06 | Z99: 31 | AA99: 2376 | AB99: 344585.4254 | AC99: 520.6548983 | AD99: 2566.630748 | AE99: 0 | AF99: 126 | AG99: 0 | AH99: 3213.285647 | AI99: 344064.7705 | AJ99: 0.5662198803 | AK99: 0.5662198803 | AO99: 78 | AP99: 2032-11-06 | AQ99: 31 | AR99: 2376 | AS99: 296320.1794 | AT99: 1897.652595 | AU99: 2207.128996 | AV99: 0 | AW99: 126 | AX99: 0 | AY99: 4230.78159 | AZ99: 294422.5268 | BA99: 0.5662198803 | BB99: 0.5662198803 | BF99: 78 | BG99: 2032-11-06 | BH99: 31 | BI99: 2376 | BJ99: 295725.464 | BK99: 1290.139483 | BL99: 2202.699281 | BM99: 0 | BN99: 126 | BO99: 0 | BP99: 3618.838764 | BQ99: 294435.3245 | BR99: 0.5662198803 | BS99: 0.5662198803 | BW99: 78 | BX99: 2032-11-06 | BY99: 31 | BZ99: 2376 | CA99: 345113.5188 | CB99: 1060.085272 | CC99: 2570.564231 | CD99: 0 | CE99: 126 | CF99: 0 | CG99: 3756.649503 | CH99: 344053.4335 | CI99: 0.5662198803 | CJ99: 0.5662198803 | CN99: 78 | CO99: 2032-11-06 | CP99: 31 | CQ99: 2376 | CR99: 344585.4254 | CS99: 520.6548983 | CT99: 2566.630748 | CU99: 0 | CV99: 126 | CW99: 0 | CX99: 3213.285647 | CY99: 344064.7705 | CZ99: 0.5662198803 | DA99: 0.5662198803
B100: 79 | C100: 2032-12-06 | D100: 30 | E100: 2406 | F100: 344053.4335 | G100: 1150.94517 | H100: 2479.704333 | I100: 0 | J100: 126 | K100: 0 | L100: 3756.649503 | M100: 342902.4883 | N100: 0.5621681526 | O100: 0.5621681526 | Q100: =IFERROR(IF('Simulación Cliente'!$H$21="Simple",G100+H100+I100+J100+K100,AC100+AD100+AE100+AF100+AG100),"") -> 3756.649503 | R100: 2406 | S100: =IFERROR((1+'Simulación Cliente'!$E$21)^(R100/360),"") -> 1 | T100: 3756.65 | X100: 79 | Y100: 2032-12-06 | Z100: 30 | AA100: 2406 | AB100: 344064.7705 | AC100: 3820.785251 | AD100: 2479.786043 | AE100: 0 | AF100: 126 | AG100: 0 | AH100: 6426.571293 | AI100: 340243.9852 | AJ100: 1.124336305 | AK100: 0.5621681526 | AO100: 79 | AP100: 2032-12-06 | AQ100: 30 | AR100: 2406 | AS100: 294422.5268 | AT100: 1982.783248 | AU100: 2121.998343 | AV100: 0 | AW100: 126 | AX100: 0 | AY100: 4230.78159 | AZ100: 292439.7436 | BA100: 0.5621681526 | BB100: 0.5621681526 | BF100: 79 | BG100: 2032-12-06 | BH100: 30 | BI100: 2406 | BJ100: 294435.3245 | BK100: 4989.586949 | BL100: 2122.090579 | BM100: 0 | BN100: 126 | BO100: 0 | BP100: 7237.677528 | BQ100: 289445.7375 | BR100: 1.124336305 | BS100: 0.5621681526 | BW100: 79 | BX100: 2032-12-06 | BY100: 30 | BZ100: 2406 | CA100: 344053.4335 | CB100: 1150.94517 | CC100: 2479.704333 | CD100: 0 | CE100: 126 | CF100: 0 | CG100: 3756.649503 | CH100: 342902.4883 | CI100: 0.5621681526 | CJ100: 0.5621681526 | CN100: 79 | CO100: 2032-12-06 | CP100: 30 | CQ100: 2406 | CR100: 344064.7705 | CS100: 3820.785251 | CT100: 2479.786043 | CU100: 0 | CV100: 126 | CW100: 0 | CX100: 6426.571293 | CY100: 340243.9852 | CZ100: 1.124336305 | DA100: 0.5621681526
B101: 80 | C101: 2033-01-06 | D101: 31 | E101: 2437 | F101: 342902.4883 | G101: 1076.554044 | H101: 2554.095459 | I101: 0 | J101: 126 | K101: 0 | L101: 3756.649503 | M101: 341825.9343 | N101: 0.5580118239 | O101: 0.5580118239 | Q101: =IFERROR(IF('Simulación Cliente'!$H$21="Simple",G101+H101+I101+J101+K101,AC101+AD101+AE101+AF101+AG101),"") -> 3756.649503 | R101: 2437 | S101: =IFERROR((1+'Simulación Cliente'!$E$21)^(R101/360),"") -> 1 | T101: 3756.65 | X101: 80 | Y101: 2033-01-06 | Z101: 31 | AA101: 2437 | AB101: 340243.9852 | AC101: 552.9919415 | AD101: 2534.293705 | AE101: 0 | AF101: 126 | AG101: 0 | AH101: 3213.285647 | AI101: 339690.9933 | AJ101: 0.5580118239 | AK101: 0.5580118239 | AO101: 80 | AP101: 2033-01-06 | AQ101: 31 | AR101: 2437 | AS101: 292439.7436 | AT101: 1926.555866 | AU101: 2178.225725 | AV101: 0 | AW101: 126 | AX101: 0 | AY101: 4230.78159 | AZ101: 290513.1877 | BA101: 0.5580118239 | BB101: 0.5580118239 | BF101: 80 | BG101: 2033-01-06 | BH101: 31 | BI101: 2437 | BJ101: 289445.7375 | BK101: 1336.913774 | BL101: 2155.92499 | BM101: 0 | BN101: 126 | BO101: 0 | BP101: 3618.838764 | BQ101: 288108.8238 | BR101: 0.5580118239 | BS101: 0.5580118239 | BW101: 80 | BX101: 2033-01-06 | BY101: 31 | BZ101: 2437 | CA101: 342902.4883 | CB101: 1076.554044 | CC101: 2554.095459 | CD101: 0 | CE101: 126 | CF101: 0 | CG101: 3756.649503 | CH101: 341825.9343 | CI101: 0.5580118239 | CJ101: 0.5580118239 | CN101: 80 | CO101: 2033-01-06 | CP101: 31 | CQ101: 2437 | CR101: 340243.9852 | CS101: 552.9919415 | CT101: 2534.293705 | CU101: 0 | CV101: 126 | CW101: 0 | CX101: 3213.285647 | CY101: 339690.9933 | CZ101: 0.5580118239 | DA101: 0.5580118239
B102: 81 | C102: 2033-02-06 | D102: 31 | E102: 2468 | F102: 341825.9343 | G102: 1084.572714 | H102: 2546.076789 | I102: 0 | J102: 126 | K102: 0 | L102: 3756.649503 | M102: 340741.3616 | N102: 0.5538862245 | O102: 0.5538862245 | Q102: =IFERROR(IF('Simulación Cliente'!$H$21="Simple",G102+H102+I102+J102+K102,AC102+AD102+AE102+AF102+AG102),"") -> 3756.649503 | R102: 2468 | S102: =IFERROR((1+'Simulación Cliente'!$E$21)^(R102/360),"") -> 1 | T102: 3756.65 | X102: 81 | Y102: 2033-02-06 | Z102: 31 | AA102: 2468 | AB102: 339690.9933 | AC102: 557.1108798 | AD102: 2530.174767 | AE102: 0 | AF102: 126 | AG102: 0 | AH102: 3213.285647 | AI102: 339133.8824 | AJ102: 0.5538862245 | AK102: 0.5538862245 | AO102: 81 | AP102: 2033-02-06 | AQ102: 31 | AR102: 2468 | AS102: 290513.1877 | AT102: 1940.90574 | AU102: 2163.875851 | AV102: 0 | AW102: 126 | AX102: 0 | AY102: 4230.78159 | AZ102: 288572.282 | BA102: 0.5538862245 | BB102: 0.5538862245 | BF102: 81 | BG102: 2033-02-06 | BH102: 31 | BI102: 2468 | BJ102: 288108.8238 | BK102: 1346.871722 | BL102: 2145.967042 | BM102: 0 | BN102: 126 | BO102: 0 | BP102: 3618.838764 | BQ102: 286761.952 | BR102: 0.5538862245 | BS102: 0.5538862245 | BW102: 81 | BX102: 2033-02-06 | BY102: 31 | BZ102: 2468 | CA102: 341825.9343 | CB102: 1084.572714 | CC102: 2546.076789 | CD102: 0 | CE102: 126 | CF102: 0 | CG102: 3756.649503 | CH102: 340741.3616 | CI102: 0.5538862245 | CJ102: 0.5538862245 | CN102: 81 | CO102: 2033-02-06 | CP102: 31 | CQ102: 2468 | CR102: 339690.9933 | CS102: 557.1108798 | CT102: 2530.174767 | CU102: 0 | CV102: 126 | CW102: 0 | CX102: 3213.285647 | CY102: 339133.8824 | CZ102: 0.5538862245 | DA102: 0.5538862245
B103: 82 | C103: 2033-03-06 | D103: 28 | E103: 2496 | F103: 340741.3616 | G103: 1339.087814 | H103: 2291.561689 | I103: 0 | J103: 126 | K103: 0 | L103: 3756.649503 | M103: 339402.2737 | N103: 0.5501861002 | O103: 0.5501861002 | Q103: =IFERROR(IF('Simulación Cliente'!$H$21="Simple",G103+H103+I103+J103+K103,AC103+AD103+AE103+AF103+AG103),"") -> 3756.649503 | R103: 2496 | S103: =IFERROR((1+'Simulación Cliente'!$E$21)^(R103/360),"") -> 1 | T103: 3756.65 | X103: 82 | Y103: 2033-03-06 | Z103: 28 | AA103: 2496 | AB103: 339133.8824 | AC103: 806.5346136 | AD103: 2280.751033 | AE103: 0 | AF103: 126 | AG103: 0 | AH103: 3213.285647 | AI103: 338327.3478 | AJ103: 0.5501861002 | AK103: 0.5501861002 | AO103: 82 | AP103: 2033-03-06 | AQ103: 28 | AR103: 2496 | AS103: 288572.282 | AT103: 2164.068602 | AU103: 1940.712988 | AV103: 0 | AW103: 126 | AX103: 0 | AY103: 4230.78159 | AZ103: 286408.2134 | BA103: 0.5501861002 | BB103: 0.5501861002 | BF103: 82 | BG103: 2033-03-06 | BH103: 28 | BI103: 2496 | BJ103: 286761.952 | BK103: 1564.300649 | BL103: 1928.538115 | BM103: 0 | BN103: 126 | BO103: 0 | BP103: 3618.838764 | BQ103: 285197.6514 | BR103: 0.5501861002 | BS103: 0.5501861002 | BW103: 82 | BX103: 2033-03-06 | BY103: 28 | BZ103: 2496 | CA103: 340741.3616 | CB103: 1339.087814 | CC103: 2291.561689 | CD103: 0 | CE103: 126 | CF103: 0 | CG103: 3756.649503 | CH103: 339402.2737 | CI103: 0.5501861002 | CJ103: 0.5501861002 | CN103: 82 | CO103: 2033-03-06 | CP103: 28 | CQ103: 2496 | CR103: 339133.8824 | CS103: 806.5346136 | CT103: 2280.751033 | CU103: 0 | CV103: 126 | CW103: 0 | CX103: 3213.285647 | CY103: 338327.3478 | CZ103: 0.5501861002 | DA103: 0.5501861002
B104: 83 | C104: 2033-04-06 | D104: 31 | E104: 2527 | F104: 339402.2737 | G104: 1102.625252 | H104: 2528.024251 | I104: 0 | J104: 126 | K104: 0 | L104: 3756.649503 | M104: 338299.6485 | N104: 0.5461183595 | O104: 0.5461183595 | Q104: =IFERROR(IF('Simulación Cliente'!$H$21="Simple",G104+H104+I104+J104+K104,AC104+AD104+AE104+AF104+AG104),"") -> 3756.649503 | R104: 2527 | S104: =IFERROR((1+'Simulación Cliente'!$E$21)^(R104/360),"") -> 1 | T104: 3756.65 | X104: 83 | Y104: 2033-04-06 | Z104: 31 | AA104: 2527 | AB104: 338327.3478 | AC104: 567.2679387 | AD104: 2520.017708 | AE104: 0 | AF104: 126 | AG104: 0 | AH104: 3213.285647 | AI104: 337760.0799 | AJ104: 0.5461183595 | AK104: 0.5461183595 | AO104: 83 | AP104: 2033-04-06 | AQ104: 31 | AR104: 2527 | AS104: 286408.2134 | AT104: 1971.481477 | AU104: 2133.300114 | AV104: 0 | AW104: 126 | AX104: 0 | AY104: 4230.78159 | AZ104: 284436.7319 | BA104: 0.5461183595 | BB104: 0.5461183595 | BF104: 83 | BG104: 2033-04-06 | BH104: 31 | BI104: 2527 | BJ104: 285197.6514 | BK104: 1368.555473 | BL104: 2124.283291 | BM104: 0 | BN104: 126 | BO104: 0 | BP104: 3618.838764 | BQ104: 283829.0959 | BR104: 0.5461183595 | BS104: 0.5461183595 | BW104: 83 | BX104: 2033-04-06 | BY104: 31 | BZ104: 2527 | CA104: 339402.2737 | CB104: 1102.625252 | CC104: 2528.024251 | CD104: 0 | CE104: 126 | CF104: 0 | CG104: 3756.649503 | CH104: 338299.6485 | CI104: 0.5461183595 | CJ104: 0.5461183595 | CN104: 83 | CO104: 2033-04-06 | CP104: 31 | CQ104: 2527 | CR104: 338327.3478 | CS104: 567.2679387 | CT104: 2520.017708 | CU104: 0 | CV104: 126 | CW104: 0 | CX104: 3213.285647 | CY104: 337760.0799 | CZ104: 0.5461183595 | DA104: 0.5461183595
B105: 84 | C105: 2033-05-06 | D105: 30 | E105: 2557 | F105: 338299.6485 | G105: 1192.414559 | H105: 2438.234944 | I105: 0 | J105: 126 | K105: 0 | L105: 3756.649503 | M105: 337107.2339 | N105: 0.5422104733 | O105: 0.5422104733 | Q105: =IFERROR(IF('Simulación Cliente'!$H$21="Simple",G105+H105+I105+J105+K105,AC105+AD105+AE105+AF105+AG105),"") -> 3756.649503 | R105: 2557 | S105: =IFERROR((1+'Simulación Cliente'!$E$21)^(R105/360),"") -> 1 | T105: 3756.65 | X105: 84 | Y105: 2033-05-06 | Z105: 30 | AA105: 2557 | AB105: 337760.0799 | AC105: 652.9395479 | AD105: 2434.346099 | AE105: 0 | AF105: 126 | AG105: 0 | AH105: 3213.285647 | AI105: 337107.1403 | AJ105: 0.5422104733 | AK105: 0.5422104733 | AO105: 84 | AP105: 2033-05-06 | AQ105: 30 | AR105: 2557 | AS105: 284436.7319 | AT105: 2054.754101 | AU105: 2050.02749 | AV105: 0 | AW105: 126 | AX105: 0 | AY105: 4230.78159 | AZ105: 282381.9778 | BA105: 0.5422104733 | BB105: 0.5422104733 | BF105: 84 | BG105: 2033-05-06 | BH105: 30 | BI105: 2557 | BJ105: 283829.0959 | BK105: 1447.190703 | BL105: 2045.648061 | BM105: 0 | BN105: 126 | BO105: 0 | BP105: 3618.838764 | BQ105: 282381.9052 | BR105: 0.5422104733 | BS105: 0.5422104733 | BW105: 84 | BX105: 2033-05-06 | BY105: 30 | BZ105: 2557 | CA105: 338299.6485 | CB105: 1192.414559 | CC105: 2438.234944 | CD105: 0 | CE105: 126 | CF105: 0 | CG105: 3756.649503 | CH105: 337107.2339 | CI105: 0.5422104733 | CJ105: 0.5422104733 | CN105: 84 | CO105: 2033-05-06 | CP105: 30 | CQ105: 2557 | CR105: 337760.0799 | CS105: 652.9395479 | CT105: 2434.346099 | CU105: 0 | CV105: 126 | CW105: 0 | CX105: 3213.285647 | CY105: 337107.1403 | CZ105: 0.5422104733 | DA105: 0.5422104733
B106: 85 | C106: 2033-06-06 | D106: 31 | E106: 2588 | F106: 337107.2339 | G106: 1119.719764 | H106: 2510.929739 | I106: 0 | J106: 126 | K106: 0 | L106: 3756.649503 | M106: 335987.5142 | N106: 0.5382016995 | O106: 0.5382016995 | Q106: =IFERROR(IF('Simulación Cliente'!$H$21="Simple",G106+H106+I106+J106+K106,AC106+AD106+AE106+AF106+AG106),"") -> 3756.649503 | R106: 2588 | S106: =IFERROR((1+'Simulación Cliente'!$E$21)^(R106/360),"") -> 1 | T106: 3756.65 | X106: 85 | Y106: 2033-06-06 | Z106: 31 | AA106: 2588 | AB106: 337107.1403 | AC106: 576.3566053 | AD106: 2510.929041 | AE106: 0 | AF106: 126 | AG106: 0 | AH106: 3213.285647 | AI106: 336530.7837 | AJ106: 0.5382016995 | AK106: 0.5382016995 | AO106: 85 | AP106: 2033-06-06 | AQ106: 31 | AR106: 2588 | AS106: 282381.9778 | AT106: 2001.470731 | AU106: 2103.310859 | AV106: 0 | AW106: 126 | AX106: 0 | AY106: 4230.78159 | AZ106: 280380.5071 | BA106: 0.5382016995 | BB106: 0.5382016995 | BF106: 85 | BG106: 2033-06-06 | BH106: 31 | BI106: 2588 | BJ106: 282381.9052 | BK106: 1389.528446 | BL106: 2103.310318 | BM106: 0 | BN106: 126 | BO106: 0 | BP106: 3618.838764 | BQ106: 280992.3768 | BR106: 0.5382016995 | BS106: 0.5382016995 | BW106: 85 | BX106: 2033-06-06 | BY106: 31 | BZ106: 2588 | CA106: 337107.2339 | CB106: 1119.719764 | CC106: 2510.929739 | CD106: 0 | CE106: 126 | CF106: 0 | CG106: 3756.649503 | CH106: 335987.5142 | CI106: 0.5382016995 | CJ106: 0.5382016995 | CN106: 85 | CO106: 2033-06-06 | CP106: 31 | CQ106: 2588 | CR106: 337107.1403 | CS106: 576.3566053 | CT106: 2510.929041 | CU106: 0 | CV106: 126 | CW106: 0 | CX106: 3213.285647 | CY106: 336530.7837 | CZ106: 0.5382016995 | DA106: 0.5382016995
B107: 86 | C107: 2033-07-06 | D107: 30 | E107: 2618 | F107: 335987.5142 | G107: 1209.078858 | H107: 2421.570645 | I107: 0 | J107: 126 | K107: 0 | L107: 3756.649503 | M107: 334778.4353 | N107: 0.5343504629 | O107: 0.5343504629 | Q107: =IFERROR(IF('Simulación Cliente'!$H$21="Simple",G107+H107+I107+J107+K107,AC107+AD107+AE107+AF107+AG107),"") -> 3756.649503 | R107: 2618 | S107: =IFERROR((1+'Simulación Cliente'!$E$21)^(R107/360),"") -> 1 | T107: 3756.65 | X107: 86 | Y107: 2033-07-06 | Z107: 30 | AA107: 2618 | AB107: 336530.7837 | AC107: 3875.085129 | AD107: 2425.486164 | AE107: 0 | AF107: 126 | AG107: 0 | AH107: 6426.571293 | AI107: 332655.6986 | AJ107: 1.068700926 | AK107: 0.5343504629 | AO107: 86 | AP107: 2033-07-06 | AQ107: 30 | AR107: 2618 | AS107: 280380.5071 | AT107: 2083.988624 | AU107: 2020.792966 | AV107: 0 | AW107: 126 | AX107: 0 | AY107: 4230.78159 | AZ107: 278296.5185 | BA107: 0.5343504629 | BB107: 0.5343504629 | BF107: 86 | BG107: 2033-07-06 | BH107: 30 | BI107: 2618 | BJ107: 280992.3768 | BK107: 5086.47462 | BL107: 2025.202909 | BM107: 0 | BN107: 126 | BO107: 0 | BP107: 7237.677528 | BQ107: 275905.9021 | BR107: 1.068700926 | BS107: 0.5343504629 | BW107: 86 | BX107: 2033-07-06 | BY107: 30 | BZ107: 2618 | CA107: 335987.5142 | CB107: 1209.078858 | CC107: 2421.570645 | CD107: 0 | CE107: 126 | CF107: 0 | CG107: 3756.649503 | CH107: 334778.4353 | CI107: 0.5343504629 | CJ107: 0.5343504629 | CN107: 86 | CO107: 2033-07-06 | CP107: 30 | CQ107: 2618 | CR107: 336530.7837 | CS107: 3875.085129 | CT107: 2425.486164 | CU107: 0 | CV107: 126 | CW107: 0 | CX107: 6426.571293 | CY107: 332655.6986 | CZ107: 1.068700926 | DA107: 0.5343504629
B108: 87 | C108: 2033-08-06 | D108: 31 | E108: 2649 | F108: 334778.4353 | G108: 1137.065728 | H108: 2493.583775 | I108: 0 | J108: 126 | K108: 0 | L108: 3756.649503 | M108: 333641.3696 | N108: 0.5303998012 | O108: 0.5303998012 | Q108: =IFERROR(IF('Simulación Cliente'!$H$21="Simple",G108+H108+I108+J108+K108,AC108+AD108+AE108+AF108+AG108),"") -> 3756.649503 | R108: 2649 | S108: =IFERROR((1+'Simulación Cliente'!$E$21)^(R108/360),"") -> 1 | T108: 3756.65 | X108: 87 | Y108: 2033-08-06 | Z108: 31 | AA108: 2649 | AB108: 332655.6986 | AC108: 609.5129909 | AD108: 2477.772656 | AE108: 0 | AF108: 126 | AG108: 0 | AH108: 3213.285647 | AI108: 332046.1856 | AJ108: 0.5303998012 | AK108: 0.5303998012 | AO108: 87 | AP108: 2033-08-06 | AQ108: 31 | AR108: 2649 | AS108: 278296.5185 | AT108: 2031.901112 | AU108: 2072.880479 | AV108: 0 | AW108: 126 | AX108: 0 | AY108: 4230.78159 | AZ108: 276264.6173 | BA108: 0.5303998012 | BB108: 0.5303998012 | BF108: 87 | BG108: 2033-08-06 | BH108: 31 | BI108: 2649 | BJ108: 275905.9021 | BK108: 1437.764696 | BL108: 2055.074069 | BM108: 0 | BN108: 126 | BO108: 0 | BP108: 3618.838764 | BQ108: 274468.1374 | BR108: 0.5303998012 | BS108: 0.5303998012 | BW108: 87 | BX108: 2033-08-06 | BY108: 31 | BZ108: 2649 | CA108: 334778.4353 | CB108: 1137.065728 | CC108: 2493.583775 | CD108: 0 | CE108: 126 | CF108: 0 | CG108: 3756.649503 | CH108: 333641.3696 | CI108: 0.5303998012 | CJ108: 0.5303998012 | CN108: 87 | CO108: 2033-08-06 | CP108: 31 | CQ108: 2649 | CR108: 332655.6986 | CS108: 609.5129909 | CT108: 2477.772656 | CU108: 0 | CV108: 126 | CW108: 0 | CX108: 3213.285647 | CY108: 332046.1856 | CZ108: 0.5303998012 | DA108: 0.5303998012
B109: 88 | C109: 2033-09-06 | D109: 31 | E109: 2680 | F109: 333641.3696 | G109: 1145.535116 | H109: 2485.114387 | I109: 0 | J109: 126 | K109: 0 | L109: 3756.649503 | M109: 332495.8345 | N109: 0.5264783483 | O109: 0.5264783483 | Q109: =IFERROR(IF('Simulación Cliente'!$H$21="Simple",G109+H109+I109+J109+K109,AC109+AD109+AE109+AF109+AG109),"") -> 3756.649503 | R109: 2680 | S109: =IFERROR((1+'Simulación Cliente'!$E$21)^(R109/360),"") -> 1 | T109: 3756.65 | X109: 88 | Y109: 2033-09-06 | Z109: 31 | AA109: 2680 | AB109: 332046.1856 | AC109: 614.052924 | AD109: 2473.232723 | AE109: 0 | AF109: 126 | AG109: 0 | AH109: 3213.285647 | AI109: 331432.1327 | AJ109: 0.5264783483 | AK109: 0.5264783483 | AO109: 88 | AP109: 2033-09-06 | AQ109: 31 | AR109: 2680 | AS109: 276264.6173 | AT109: 2047.035646 | AU109: 2057.745944 | AV109: 0 | AW109: 126 | AX109: 0 | AY109: 4230.78159 | AZ109: 274217.5817 | BA109: 0.5264783483 | BB109: 0.5264783483 | BF109: 88 | BG109: 2033-09-06 | BH109: 31 | BI109: 2680 | BJ109: 274468.1374 | BK109: 1448.473828 | BL109: 2044.364936 | BM109: 0 | BN109: 126 | BO109: 0 | BP109: 3618.838764 | BQ109: 273019.6636 | BR109: 0.5264783483 | BS109: 0.5264783483 | BW109: 88 | BX109: 2033-09-06 | BY109: 31 | BZ109: 2680 | CA109: 333641.3696 | CB109: 1145.535116 | CC109: 2485.114387 | CD109: 0 | CE109: 126 | CF109: 0 | CG109: 3756.649503 | CH109: 332495.8345 | CI109: 0.5264783483 | CJ109: 0.5264783483 | CN109: 88 | CO109: 2033-09-06 | CP109: 31 | CQ109: 2680 | CR109: 332046.1856 | CS109: 614.052924 | CT109: 2473.232723 | CU109: 0 | CV109: 126 | CW109: 0 | CX109: 3213.285647 | CY109: 331432.1327 | CZ109: 0.5264783483 | DA109: 0.5264783483
B110: 89 | C110: 2033-10-06 | D110: 30 | E110: 2710 | F110: 332495.8345 | G110: 1234.244523 | H110: 2396.40498 | I110: 0 | J110: 126 | K110: 0 | L110: 3756.649503 | M110: 331261.5899 | N110: 0.5227110012 | O110: 0.5227110012 | Q110: =IFERROR(IF('Simulación Cliente'!$H$21="Simple",G110+H110+I110+J110+K110,AC110+AD110+AE110+AF110+AG110),"") -> 3756.649503 | R110: 2710 | S110: =IFERROR((1+'Simulación Cliente'!$E$21)^(R110/360),"") -> 1 | T110: 3756.65 | X110: 89 | Y110: 2033-10-06 | Z110: 30 | AA110: 2710 | AB110: 331432.1327 | AC110: 698.5471092 | AD110: 2388.738537 | AE110: 0 | AF110: 126 | AG110: 0 | AH110: 3213.285647 | AI110: 330733.5856 | AJ110: 0.5227110012 | AK110: 0.5227110012 | AO110: 89 | AP110: 2033-10-06 | AQ110: 30 | AR110: 2710 | AS110: 274217.5817 | AT110: 2128.40682 | AU110: 1976.37477 | AV110: 0 | AW110: 126 | AX110: 0 | AY110: 4230.78159 | AZ110: 272089.1749 | BA110: 0.5227110012 | BB110: 0.5227110012 | BF110: 89 | BG110: 2033-10-06 | BH110: 30 | BI110: 2710 | BJ110: 273019.6636 | BK110: 1525.097777 | BL110: 1967.740987 | BM110: 0 | BN110: 126 | BO110: 0 | BP110: 3618.838764 | BQ110: 271494.5658 | BR110: 0.5227110012 | BS110: 0.5227110012 | BW110: 89 | BX110: 2033-10-06 | BY110: 30 | BZ110: 2710 | CA110: 332495.8345 | CB110: 1234.244523 | CC110: 2396.40498 | CD110: 0 | CE110: 126 | CF110: 0 | CG110: 3756.649503 | CH110: 331261.5899 | CI110: 0.5227110012 | CJ110: 0.5227110012 | CN110: 89 | CO110: 2033-10-06 | CP110: 30 | CQ110: 2710 | CR110: 331432.1327 | CS110: 698.5471092 | CT110: 2388.738537 | CU110: 0 | CV110: 126 | CW110: 0 | CX110: 3213.285647 | CY110: 330733.5856 | CZ110: 0.5227110012 | DA110: 0.5227110012
B111: 90 | C111: 2033-11-06 | D111: 31 | E111: 2741 | F111: 331261.5899 | G111: 1163.26081 | H111: 2467.388693 | I111: 0 | J111: 126 | K111: 0 | L111: 3756.649503 | M111: 330098.3291 | N111: 0.5188463946 | O111: 0.5188463946 | Q111: =IFERROR(IF('Simulación Cliente'!$H$21="Simple",G111+H111+I111+J111+K111,AC111+AD111+AE111+AF111+AG111),"") -> 3756.649503 | R111: 2741 | S111: =IFERROR((1+'Simulación Cliente'!$E$21)^(R111/360),"") -> 1 | T111: 3756.65 | X111: 90 | Y111: 2033-11-06 | Z111: 31 | AA111: 2741 | AB111: 330733.5856 | AC111: 623.8297728 | AD111: 2463.455874 | AE111: 0 | AF111: 126 | AG111: 0 | AH111: 3213.285647 | AI111: 330109.7558 | AJ111: 0.5188463946 | AK111: 0.5188463946 | AO111: 90 | AP111: 2033-11-06 | AQ111: 31 | AR111: 2741 | AS111: 272089.1749 | AT111: 2078.136262 | AU111: 2026.645328 | AV111: 0 | AW111: 126 | AX111: 0 | AY111: 4230.78159 | AZ111: 270011.0386 | BA111: 0.5188463946 | BB111: 0.5188463946 | BF111: 90 | BG111: 2033-11-06 | BH111: 31 | BI111: 2741 | BJ111: 271494.5658 | BK111: 1470.622357 | BL111: 2022.216407 | BM111: 0 | BN111: 126 | BO111: 0 | BP111: 3618.838764 | BQ111: 270023.9435 | BR111: 0.5188463946 | BS111: 0.5188463946 | BW111: 90 | BX111: 2033-11-06 | BY111: 31 | BZ111: 2741 | CA111: 331261.5899 | CB111: 1163.26081 | CC111: 2467.388693 | CD111: 0 | CE111: 126 | CF111: 0 | CG111: 3756.649503 | CH111: 330098.3291 | CI111: 0.5188463946 | CJ111: 0.5188463946 | CN111: 90 | CO111: 2033-11-06 | CP111: 31 | CQ111: 2741 | CR111: 330733.5856 | CS111: 623.8297728 | CT111: 2463.455874 | CU111: 0 | CV111: 126 | CW111: 0 | CX111: 3213.285647 | CY111: 330109.7558 | CZ111: 0.5188463946 | DA111: 0.5188463946
B112: 91 | C112: 2033-12-06 | D112: 30 | E112: 2771 | F112: 330098.3291 | G112: 1251.524119 | H112: 2379.125384 | I112: 0 | J112: 126 | K112: 0 | L112: 3756.649503 | M112: 328846.805 | N112: 0.5151336597 | O112: 0.5151336597 | Q112: =IFERROR(IF('Simulación Cliente'!$H$21="Simple",G112+H112+I112+J112+K112,AC112+AD112+AE112+AF112+AG112),"") -> 3756.649503 | R112: 2771 | S112: =IFERROR((1+'Simulación Cliente'!$E$21)^(R112/360),"") -> 1 | T112: 3756.65 | X112: 91 | Y112: 2033-12-06 | Z112: 30 | AA112: 2771 | AB112: 330109.7558 | AC112: 3921.363554 | AD112: 2379.20774 | AE112: 0 | AF112: 126 | AG112: 0 | AH112: 6426.571293 | AI112: 326188.3922 | AJ112: 1.030267319 | AK112: 0.5151336597 | AO112: 91 | AP112: 2033-12-06 | AQ112: 30 | AR112: 2771 | AS112: 270011.0386 | AT112: 2158.724736 | AU112: 1946.056854 | AV112: 0 | AW112: 126 | AX112: 0 | AY112: 4230.78159 | AZ112: 267852.3139 | BA112: 0.5151336597 | BB112: 0.5151336597 | BF112: 91 | BG112: 2033-12-06 | BH112: 30 | BI112: 2771 | BJ112: 270023.9435 | BK112: 5165.527665 | BL112: 1946.149864 | BM112: 0 | BN112: 126 | BO112: 0 | BP112: 7237.677528 | BQ112: 264858.4158 | BR112: 1.030267319 | BS112: 0.5151336597 | BW112: 91 | BX112: 2033-12-06 | BY112: 30 | BZ112: 2771 | CA112: 330098.3291 | CB112: 1251.524119 | CC112: 2379.125384 | CD112: 0 | CE112: 126 | CF112: 0 | CG112: 3756.649503 | CH112: 328846.805 | CI112: 0.5151336597 | CJ112: 0.5151336597 | CN112: 91 | CO112: 2033-12-06 | CP112: 30 | CQ112: 2771 | CR112: 330109.7558 | CS112: 3921.363554 | CT112: 2379.20774 | CU112: 0 | CV112: 126 | CW112: 0 | CX112: 6426.571293 | CY112: 326188.3922 | CZ112: 1.030267319 | DA112: 0.5151336597
B113: 92 | C113: 2034-01-06 | D113: 31 | E113: 2802 | F113: 328846.805 | G113: 1181.247239 | H113: 2449.402265 | I113: 0 | J113: 126 | K113: 0 | L113: 3756.649503 | M113: 327665.5578 | N113: 0.5113250754 | O113: 0.5113250754 | Q113: =IFERROR(IF('Simulación Cliente'!$H$21="Simple",G113+H113+I113+J113+K113,AC113+AD113+AE113+AF113+AG113),"") -> 3756.649503 | R113: 2802 | S113: =IFERROR((1+'Simulación Cliente'!$E$21)^(R113/360),"") -> 1 | T113: 3756.65 | X113: 92 | Y113: 2034-01-06 | Z113: 31 | AA113: 2802 | AB113: 326188.3922 | AC113: 657.6844634 | AD113: 2429.601183 | AE113: 0 | AF113: 126 | AG113: 0 | AH113: 3213.285647 | AI113: 325530.7078 | AJ113: 0.5113250754 | AK113: 0.5113250754 | AO113: 92 | AP113: 2034-01-06 | AQ113: 31 | AR113: 2802 | AS113: 267852.3139 | AT113: 2109.694352 | AU113: 1995.087239 | AV113: 0 | AW113: 126 | AX113: 0 | AY113: 4230.78159 | AZ113: 265742.6195 | BA113: 0.5113250754 | BB113: 0.5113250754 | BF113: 92 | BG113: 2034-01-06 | BH113: 31 | BI113: 2802 | BJ113: 264858.4158 | BK113: 1520.051455 | BL113: 1972.787309 | BM113: 0 | BN113: 126 | BO113: 0 | BP113: 3618.838764 | BQ113: 263338.3644 | BR113: 0.5113250754 | BS113: 0.5113250754 | BW113: 92 | BX113: 2034-01-06 | BY113: 31 | BZ113: 2802 | CA113: 328846.805 | CB113: 1181.247239 | CC113: 2449.402265 | CD113: 0 | CE113: 126 | CF113: 0 | CG113: 3756.649503 | CH113: 327665.5578 | CI113: 0.5113250754 | CJ113: 0.5113250754 | CN113: 92 | CO113: 2034-01-06 | CP113: 31 | CQ113: 2802 | CR113: 326188.3922 | CS113: 657.6844634 | CT113: 2429.601183 | CU113: 0 | CV113: 126 | CW113: 0 | CX113: 3213.285647 | CY113: 325530.7078 | CZ113: 0.5113250754 | DA113: 0.5113250754
B114: 93 | C114: 2034-02-06 | D114: 31 | E114: 2833 | F114: 327665.5578 | G114: 1190.045711 | H114: 2440.603792 | I114: 0 | J114: 126 | K114: 0 | L114: 3756.649503 | M114: 326475.5121 | N114: 0.5075446494 | O114: 0.5075446494 | Q114: =IFERROR(IF('Simulación Cliente'!$H$21="Simple",G114+H114+I114+J114+K114,AC114+AD114+AE114+AF114+AG114),"") -> 3756.649503 | R114: 2833 | S114: =IFERROR((1+'Simulación Cliente'!$E$21)^(R114/360),"") -> 1 | T114: 3756.65 | X114: 93 | Y114: 2034-02-06 | Z114: 31 | AA114: 2833 | AB114: 325530.7078 | AC114: 662.5831998 | AD114: 2424.702447 | AE114: 0 | AF114: 126 | AG114: 0 | AH114: 3213.285647 | AI114: 324868.1246 | AJ114: 0.5075446494 | AK114: 0.5075446494 | AO114: 93 | AP114: 2034-02-06 | AQ114: 31 | AR114: 2833 | AS114: 265742.6195 | AT114: 2125.408326 | AU114: 1979.373265 | AV114: 0 | AW114: 126 | AX114: 0 | AY114: 4230.78159 | AZ114: 263617.2112 | BA114: 0.5075446494 | BB114: 0.5075446494 | BF114: 93 | BG114: 2034-02-06 | BH114: 31 | BI114: 2833 | BJ114: 263338.3644 | BK114: 1531.373498 | BL114: 1961.465266 | BM114: 0 | BN114: 126 | BO114: 0 | BP114: 3618.838764 | BQ114: 261806.9909 | BR114: 0.5075446494 | BS114: 0.5075446494 | BW114: 93 | BX114: 2034-02-06 | BY114: 31 | BZ114: 2833 | CA114: 327665.5578 | CB114: 1190.045711 | CC114: 2440.603792 | CD114: 0 | CE114: 126 | CF114: 0 | CG114: 3756.649503 | CH114: 326475.5121 | CI114: 0.5075446494 | CJ114: 0.5075446494 | CN114: 93 | CO114: 2034-02-06 | CP114: 31 | CQ114: 2833 | CR114: 325530.7078 | CS114: 662.5831998 | CT114: 2424.702447 | CU114: 0 | CV114: 126 | CW114: 0 | CX114: 3213.285647 | CY114: 324868.1246 | CZ114: 0.5075446494 | DA114: 0.5075446494
B115: 94 | C115: 2034-03-06 | D115: 28 | E115: 2861 | F115: 326475.5121 | G115: 1435.028835 | H115: 2195.620668 | I115: 0 | J115: 126 | K115: 0 | L115: 3756.649503 | M115: 325040.4832 | N115: 0.5041541005 | O115: 0.5041541005 | Q115: =IFERROR(IF('Simulación Cliente'!$H$21="Simple",G115+H115+I115+J115+K115,AC115+AD115+AE115+AF115+AG115),"") -> 3756.649503 | R115: 2861 | S115: =IFERROR((1+'Simulación Cliente'!$E$21)^(R115/360),"") -> 1 | T115: 3756.65 | X115: 94 | Y115: 2034-03-06 | Z115: 28 | AA115: 2861 | AB115: 324868.1246 | AC115: 902.4750184 | AD115: 2184.810628 | AE115: 0 | AF115: 126 | AG115: 0 | AH115: 3213.285647 | AI115: 323965.6496 | AJ115: 0.5041541005 | AK115: 0.5041541005 | AO115: 94 | AP115: 2034-03-06 | AQ115: 28 | AR115: 2861 | AS115: 263617.2112 | AT115: 2331.897022 | AU115: 1772.884569 | AV115: 0 | AW115: 126 | AX115: 0 | AY115: 4230.78159 | AZ115: 261285.3142 | BA115: 0.5041541005 | BB115: 0.5041541005 | BF115: 94 | BG115: 2034-03-06 | BH115: 28 | BI115: 2861 | BJ115: 261806.9909 | BK115: 1732.128331 | BL115: 1760.710433 | BM115: 0 | BN115: 126 | BO115: 0 | BP115: 3618.838764 | BQ115: 260074.8625 | BR115: 0.5041541005 | BS115: 0.5041541005 | BW115: 94 | BX115: 2034-03-06 | BY115: 28 | BZ115: 2861 | CA115: 326475.5121 | CB115: 1435.028835 | CC115: 2195.620668 | CD115: 0 | CE115: 126 | CF115: 0 | CG115: 3756.649503 | CH115: 325040.4832 | CI115: 0.5041541005 | CJ115: 0.5041541005 | CN115: 94 | CO115: 2034-03-06 | CP115: 28 | CQ115: 2861 | CR115: 324868.1246 | CS115: 902.4750184 | CT115: 2184.810628 | CU115: 0 | CV115: 126 | CW115: 0 | CX115: 3213.285647 | CY115: 323965.6496 | CZ115: 0.5041541005 | DA115: 0.5041541005
B116: 95 | C116: 2034-04-06 | D116: 31 | E116: 2892 | F116: 325040.4832 | G116: 1209.598474 | H116: 2421.051029 | I116: 0 | J116: 126 | K116: 0 | L116: 3756.649503 | M116: 323830.8848 | N116: 0.5004266923 | O116: 0.5004266923 | Q116: =IFERROR(IF('Simulación Cliente'!$H$21="Simple",G116+H116+I116+J116+K116,AC116+AD116+AE116+AF116+AG116),"") -> 3756.649503 | R116: 2892 | S116: =IFERROR((1+'Simulación Cliente'!$E$21)^(R116/360),"") -> 1 | T116: 3756.65 | X116: 95 | Y116: 2034-04-06 | Z116: 31 | AA116: 2892 | AB116: 323965.6496 | AC116: 674.2404733 | AD116: 2413.045173 | AE116: 0 | AF116: 126 | AG116: 0 | AH116: 3213.285647 | AI116: 323291.4091 | AJ116: 0.5004266923 | AK116: 0.5004266923 | AO116: 95 | AP116: 2034-04-06 | AQ116: 31 | AR116: 2892 | AS116: 261285.3142 | AT116: 2158.608386 | AU116: 1946.173204 | AV116: 0 | AW116: 126 | AX116: 0 | AY116: 4230.78159 | AZ116: 259126.7058 | BA116: 0.5004266923 | BB116: 0.5004266923 | BF116: 95 | BG116: 2034-04-06 | BH116: 31 | BI116: 2892 | BJ116: 260074.8625 | BK116: 1555.68156 | BL116: 1937.157204 | BM116: 0 | BN116: 126 | BO116: 0 | BP116: 3618.838764 | BQ116: 258519.181 | BR116: 0.5004266923 | BS116: 0.5004266923 | BW116: 95 | BX116: 2034-04-06 | BY116: 31 | BZ116: 2892 | CA116: 325040.4832 | CB116: 1209.598474 | CC116: 2421.051029 | CD116: 0 | CE116: 126 | CF116: 0 | CG116: 3756.649503 | CH116: 323830.8848 | CI116: 0.5004266923 | CJ116: 0.5004266923 | CN116: 95 | CO116: 2034-04-06 | CP116: 31 | CQ116: 2892 | CR116: 323965.6496 | CS116: 674.2404733 | CT116: 2413.045173 | CU116: 0 | CV116: 126 | CW116: 0 | CX116: 3213.285647 | CY116: 323291.4091 | CZ116: 0.5004266923 | DA116: 0.5004266923
B117: 96 | C117: 2034-05-06 | D117: 30 | E117: 2922 | F117: 323830.8848 | G117: 1296.695617 | H117: 2333.953886 | I117: 0 | J117: 126 | K117: 0 | L117: 3756.649503 | M117: 322534.1891 | N117: 0.4968457643 | O117: 0.4968457643 | Q117: =IFERROR(IF('Simulación Cliente'!$H$21="Simple",G117+H117+I117+J117+K117,AC117+AD117+AE117+AF117+AG117),"") -> 3756.649503 | R117: 2922 | S117: =IFERROR((1+'Simulación Cliente'!$E$21)^(R117/360),"") -> 1 | T117: 3756.65 | X117: 96 | Y117: 2034-05-06 | Z117: 30 | AA117: 2922 | AB117: 323291.4091 | AC117: 757.2199362 | AD117: 2330.065711 | AE117: 0 | AF117: 126 | AG117: 0 | AH117: 3213.285647 | AI117: 322534.1891 | AJ117: 0.4968457643 | AK117: 0.4968457643 | AO117: 96 | AP117: 2034-05-06 | AQ117: 30 | AR117: 2922 | AS117: 259126.7058 | AT117: 2237.171642 | AU117: 1867.609949 | AV117: 0 | AW117: 126 | AX117: 0 | AY117: 4230.78159 | AZ117: 256889.5342 | BA117: 0.4968457643 | BB117: 0.4968457643 | BF117: 96 | BG117: 2034-05-06 | BH117: 30 | BI117: 2922 | BJ117: 258519.181 | BK117: 1629.607443 | BL117: 1863.231321 | BM117: 0 | BN117: 126 | BO117: 0 | BP117: 3618.838764 | BQ117: 256889.5735 | BR117: 0.4968457643 | BS117: 0.4968457643 | BW117: 96 | BX117: 2034-05-06 | BY117: 30 | BZ117: 2922 | CA117: 323830.8848 | CB117: 1296.695617 | CC117: 2333.953886 | CD117: 0 | CE117: 126 | CF117: 0 | CG117: 3756.649503 | CH117: 322534.1891 | CI117: 0.4968457643 | CJ117: 0.4968457643 | CN117: 96 | CO117: 2034-05-06 | CP117: 30 | CQ117: 2922 | CR117: 323291.4091 | CS117: 757.2199362 | CT117: 2330.065711 | CU117: 0 | CV117: 126 | CW117: 0 | CX117: 3213.285647 | CY117: 322534.1891 | CZ117: 0.4968457643 | DA117: 0.4968457643
B118: 97 | C118: 2034-06-06 | D118: 31 | E118: 2953 | F118: 322534.1891 | G118: 1228.266505 | H118: 2402.382998 | I118: 0 | J118: 126 | K118: 0 | L118: 3756.649503 | M118: 321305.9226 | N118: 0.4931723895 | O118: 0.4931723895 | Q118: =IFERROR(IF('Simulación Cliente'!$H$21="Simple",G118+H118+I118+J118+K118,AC118+AD118+AE118+AF118+AG118),"") -> 3756.649503 | R118: 2953 | S118: =IFERROR((1+'Simulación Cliente'!$E$21)^(R118/360),"") -> 1 | T118: 3756.65 | X118: 97 | Y118: 2034-06-06 | Z118: 31 | AA118: 2953 | AB118: 322534.1891 | AC118: 684.9026488 | AD118: 2402.382998 | AE118: 0 | AF118: 126 | AG118: 0 | AH118: 3213.285647 | AI118: 321849.2865 | AJ118: 0.4931723895 | AK118: 0.4931723895 | AO118: 97 | AP118: 2034-06-06 | AQ118: 31 | AR118: 2953 | AS118: 256889.5342 | AT118: 2191.350178 | AU118: 1913.431413 | AV118: 0 | AW118: 126 | AX118: 0 | AY118: 4230.78159 | AZ118: 254698.184 | BA118: 0.4931723895 | BB118: 0.4931723895 | BF118: 97 | BG118: 2034-06-06 | BH118: 31 | BI118: 2953 | BJ118: 256889.5735 | BK118: 1579.407058 | BL118: 1913.431706 | BM118: 0 | BN118: 126 | BO118: 0 | BP118: 3618.838764 | BQ118: 255310.1665 | BR118: 0.4931723895 | BS118: 0.4931723895 | BW118: 97 | BX118: 2034-06-06 | BY118: 31 | BZ118: 2953 | CA118: 322534.1891 | CB118: 1228.266505 | CC118: 2402.382998 | CD118: 0 | CE118: 126 | CF118: 0 | CG118: 3756.649503 | CH118: 321305.9226 | CI118: 0.4931723895 | CJ118: 0.4931723895 | CN118: 97 | CO118: 2034-06-06 | CP118: 31 | CQ118: 2953 | CR118: 322534.1891 | CS118: 684.9026488 | CT118: 2402.382998 | CU118: 0 | CV118: 126 | CW118: 0 | CX118: 3213.285647 | CY118: 321849.2865 | CZ118: 0.4931723895 | DA118: 0.4931723895
B119: 98 | C119: 2034-07-06 | D119: 30 | E119: 2983 | F119: 321305.9226 | G119: 1314.893835 | H119: 2315.755668 | I119: 0 | J119: 126 | K119: 0 | L119: 3756.649503 | M119: 319991.0288 | N119: 0.4896433714 | O119: 0.4896433714 | Q119: =IFERROR(IF('Simulación Cliente'!$H$21="Simple",G119+H119+I119+J119+K119,AC119+AD119+AE119+AF119+AG119),"") -> 3756.649503 | R119: 2983 | S119: =IFERROR((1+'Simulación Cliente'!$E$21)^(R119/360),"") -> 1 | T119: 3756.65 | X119: 98 | Y119: 2034-07-06 | Z119: 30 | AA119: 2983 | AB119: 321849.2865 | AC119: 3980.899427 | AD119: 2319.671867 | AE119: 0 | AF119: 126 | AG119: 0 | AH119: 6426.571293 | AI119: 317868.3871 | AJ119: 0.9792867428 | AK119: 0.4896433714 | AO119: 98 | AP119: 2034-07-06 | AQ119: 30 | AR119: 2983 | AS119: 254698.184 | AT119: 2269.08943 | AU119: 1835.69216 | AV119: 0 | AW119: 126 | AX119: 0 | AY119: 4230.78159 | AZ119: 252429.0945 | BA119: 0.4896433714 | BB119: 0.4896433714 | BF119: 98 | BG119: 2034-07-06 | BH119: 30 | BI119: 2983 | BJ119: 255310.1665 | BK119: 5271.574613 | BL119: 1840.102916 | BM119: 0 | BN119: 126 | BO119: 0 | BP119: 7237.677528 | BQ119: 250038.5919 | BR119: 0.9792867428 | BS119: 0.4896433714 | BW119: 98 | BX119: 2034-07-06 | BY119: 30 | BZ119: 2983 | CA119: 321305.9226 | CB119: 1314.893835 | CC119: 2315.755668 | CD119: 0 | CE119: 126 | CF119: 0 | CG119: 3756.649503 | CH119: 319991.0288 | CI119: 0.4896433714 | CJ119: 0.4896433714 | CN119: 98 | CO119: 2034-07-06 | CP119: 30 | CQ119: 2983 | CR119: 321849.2865 | CS119: 3980.899427 | CT119: 2319.671867 | CU119: 0 | CV119: 126 | CW119: 0 | CX119: 6426.571293 | CY119: 317868.3871 | CZ119: 0.9792867428 | DA119: 0.4896433714
B120: 99 | C120: 2034-08-06 | D120: 31 | E120: 3014 | F120: 319991.0288 | G120: 1247.209133 | H120: 2383.44037 | I120: 0 | J120: 126 | K120: 0 | L120: 3756.649503 | M120: 318743.8197 | N120: 0.4860232467 | O120: 0.4860232467 | Q120: =IFERROR(IF('Simulación Cliente'!$H$21="Simple",G120+H120+I120+J120+K120,AC120+AD120+AE120+AF120+AG120),"") -> 3756.649503 | R120: 3014 | S120: =IFERROR((1+'Simulación Cliente'!$E$21)^(R120/360),"") -> 1 | T120: 3756.65 | X120: 99 | Y120: 2034-08-06 | Z120: 31 | AA120: 3014 | AB120: 317868.3871 | AC120: 719.6556888 | AD120: 2367.629958 | AE120: 0 | AF120: 126 | AG120: 0 | AH120: 3213.285647 | AI120: 317148.7314 | AJ120: 0.4860232467 | AK120: 0.4860232467 | AO120: 99 | AP120: 2034-08-06 | AQ120: 31 | AR120: 3014 | AS120: 252429.0945 | AT120: 2224.573584 | AU120: 1880.208007 | AV120: 0 | AW120: 126 | AX120: 0 | AY120: 4230.78159 | AZ120: 250204.521 | BA120: 0.4860232467 | BB120: 0.4860232467 | BF120: 99 | BG120: 2034-08-06 | BH120: 31 | BI120: 3014 | BJ120: 250038.5919 | BK120: 1630.436321 | BL120: 1862.402443 | BM120: 0 | BN120: 126 | BO120: 0 | BP120: 3618.838764 | BQ120: 248408.1555 | BR120: 0.4860232467 | BS120: 0.4860232467 | BW120: 99 | BX120: 2034-08-06 | BY120: 31 | BZ120: 3014 | CA120: 319991.0288 | CB120: 1247.209133 | CC120: 2383.44037 | CD120: 0 | CE120: 126 | CF120: 0 | CG120: 3756.649503 | CH120: 318743.8197 | CI120: 0.4860232467 | CJ120: 0.4860232467 | CN120: 99 | CO120: 2034-08-06 | CP120: 31 | CQ120: 3014 | CR120: 317868.3871 | CS120: 719.6556888 | CT120: 2367.629958 | CU120: 0 | CV120: 126 | CW120: 0 | CX120: 3213.285647 | CY120: 317148.7314 | CZ120: 0.4860232467 | DA120: 0.4860232467
B121: 100 | C121: 2034-09-06 | D121: 31 | E121: 3045 | F121: 318743.8197 | G121: 1256.498921 | H121: 2374.150583 | I121: 0 | J121: 126 | K121: 0 | L121: 3756.649503 | M121: 317487.3207 | N121: 0.482429887 | O121: 0.482429887 | Q121: =IFERROR(IF('Simulación Cliente'!$H$21="Simple",G121+H121+I121+J121+K121,AC121+AD121+AE121+AF121+AG121),"") -> 3756.649503 | R121: 3045 | S121: =IFERROR((1+'Simulación Cliente'!$E$21)^(R121/360),"") -> 1 | T121: 3756.65 | X121: 100 | Y121: 2034-09-06 | Z121: 31 | AA121: 3045 | AB121: 317148.7314 | AC121: 725.0160154 | AD121: 2362.269631 | AE121: 0 | AF121: 126 | AG121: 0 | AH121: 3213.285647 | AI121: 316423.7154 | AJ121: 0.482429887 | AK121: 0.482429887 | AO121: 100 | AP121: 2034-09-06 | AQ121: 31 | AR121: 3045 | AS121: 250204.521 | AT121: 2241.143231 | AU121: 1863.63836 | AV121: 0 | AW121: 126 | AX121: 0 | AY121: 4230.78159 | AZ121: 247963.3777 | BA121: 0.482429887 | BB121: 0.482429887 | BF121: 100 | BG121: 2034-09-06 | BH121: 31 | BI121: 3045 | BJ121: 248408.1555 | BK121: 1642.580561 | BL121: 1850.258204 | BM121: 0 | BN121: 126 | BO121: 0 | BP121: 3618.838764 | BQ121: 246765.575 | BR121: 0.482429887 | BS121: 0.482429887 | BW121: 100 | BX121: 2034-09-06 | BY121: 31 | BZ121: 3045 | CA121: 318743.8197 | CB121: 1256.498921 | CC121: 2374.150583 | CD121: 0 | CE121: 126 | CF121: 0 | CG121: 3756.649503 | CH121: 317487.3207 | CI121: 0.482429887 | CJ121: 0.482429887 | CN121: 100 | CO121: 2034-09-06 | CP121: 31 | CQ121: 3045 | CR121: 317148.7314 | CS121: 725.0160154 | CT121: 2362.269631 | CU121: 0 | CV121: 126 | CW121: 0 | CX121: 3213.285647 | CY121: 316423.7154 | CZ121: 0.482429887 | DA121: 0.482429887
B122: 101 | C122: 2034-10-06 | D122: 30 | E122: 3075 | F122: 317487.3207 | G122: 1342.415734 | H122: 2288.233769 | I122: 0 | J122: 126 | K122: 0 | L122: 3756.649503 | M122: 316144.905 | N122: 0.4789777396 | O122: 0.4789777396 | Q122: =IFERROR(IF('Simulación Cliente'!$H$21="Simple",G122+H122+I122+J122+K122,AC122+AD122+AE122+AF122+AG122),"") -> 3756.649503 | R122: 3075 | S122: =IFERROR((1+'Simulación Cliente'!$E$21)^(R122/360),"") -> 1 | T122: 3756.65 | X122: 101 | Y122: 2034-10-06 | Z122: 30 | AA122: 3075 | AB122: 316423.7154 | AC122: 806.7176252 | AD122: 2280.568021 | AE122: 0 | AF122: 126 | AG122: 0 | AH122: 3213.285647 | AI122: 315616.9977 | AJ122: 0.4789777396 | AK122: 0.4789777396 | AO122: 101 | AP122: 2034-10-06 | AQ122: 30 | AR122: 3075 | AS122: 247963.3777 | AT122: 2317.629357 | AU122: 1787.152234 | AV122: 0 | AW122: 126 | AX122: 0 | AY122: 4230.78159 | AZ122: 245645.7484 | BA122: 0.4789777396 | BB122: 0.4789777396 | BF122: 101 | BG122: 2034-10-06 | BH122: 30 | BI122: 3075 | BJ122: 246765.575 | BK122: 1714.319482 | BL122: 1778.519282 | BM122: 0 | BN122: 126 | BO122: 0 | BP122: 3618.838764 | BQ122: 245051.2555 | BR122: 0.4789777396 | BS122: 0.4789777396 | BW122: 101 | BX122: 2034-10-06 | BY122: 30 | BZ122: 3075 | CA122: 317487.3207 | CB122: 1342.415734 | CC122: 2288.233769 | CD122: 0 | CE122: 126 | CF122: 0 | CG122: 3756.649503 | CH122: 316144.905 | CI122: 0.4789777396 | CJ122: 0.4789777396 | CN122: 101 | CO122: 2034-10-06 | CP122: 30 | CQ122: 3075 | CR122: 316423.7154 | CS122: 806.7176252 | CT122: 2280.568021 | CU122: 0 | CV122: 126 | CW122: 0 | CX122: 3213.285647 | CY122: 315616.9977 | CZ122: 0.4789777396 | DA122: 0.4789777396
B123: 102 | C123: 2034-11-06 | D123: 31 | E123: 3106 | F123: 316144.905 | G123: 1275.856832 | H123: 2354.792671 | I123: 0 | J123: 126 | K123: 0 | L123: 3756.649503 | M123: 314869.0482 | N123: 0.47543647 | O123: 0.47543647 | Q123: =IFERROR(IF('Simulación Cliente'!$H$21="Simple",G123+H123+I123+J123+K123,AC123+AD123+AE123+AF123+AG123),"") -> 3756.649503 | R123: 3106 | S123: =IFERROR((1+'Simulación Cliente'!$E$21)^(R123/360),"") -> 1 | T123: 3756.65 | X123: 102 | Y123: 2034-11-06 | Z123: 31 | AA123: 3106 | AB123: 315616.9977 | AC123: 736.4250721 | AD123: 2350.860575 | AE123: 0 | AF123: 126 | AG123: 0 | AH123: 3213.285647 | AI123: 314880.5727 | AJ123: 0.47543647 | AK123: 0.47543647 | AO123: 102 | AP123: 2034-11-06 | AQ123: 31 | AR123: 3106 | AS123: 245645.7484 | AT123: 2275.099066 | AU123: 1829.682524 | AV123: 0 | AW123: 126 | AX123: 0 | AY123: 4230.78159 | AZ123: 243370.6493 | BA123: 0.47543647 | BB123: 0.47543647 | BF123: 102 | BG123: 2034-11-06 | BH123: 31 | BI123: 3106 | BJ123: 245051.2555 | BK123: 1667.584296 | BL123: 1825.254468 | BM123: 0 | BN123: 126 | BO123: 0 | BP123: 3618.838764 | BQ123: 243383.6712 | BR123: 0.47543647 | BS123: 0.47543647 | BW123: 102 | BX123: 2034-11-06 | BY123: 31 | BZ123: 3106 | CA123: 316144.905 | CB123: 1275.856832 | CC123: 2354.792671 | CD123: 0 | CE123: 126 | CF123: 0 | CG123: 3756.649503 | CH123: 314869.0482 | CI123: 0.47543647 | CJ123: 0.47543647 | CN123: 102 | CO123: 2034-11-06 | CP123: 31 | CQ123: 3106 | CR123: 315616.9977 | CS123: 736.4250721 | CT123: 2350.860575 | CU123: 0 | CV123: 126 | CW123: 0 | CX123: 3213.285647 | CY123: 314880.5727 | CZ123: 0.47543647 | DA123: 0.47543647
B124: 103 | C124: 2034-12-06 | D124: 30 | E124: 3136 | F124: 314869.0482 | G124: 1361.286471 | H124: 2269.363032 | I124: 0 | J124: 126 | K124: 0 | L124: 3756.649503 | M124: 313507.7617 | N124: 0.4720343657 | O124: 0.4720343657 | Q124: =IFERROR(IF('Simulación Cliente'!$H$21="Simple",G124+H124+I124+J124+K124,AC124+AD124+AE124+AF124+AG124),"") -> 3756.649503 | R124: 3136 | S124: =IFERROR((1+'Simulación Cliente'!$E$21)^(R124/360),"") -> 1 | T124: 3756.65 | X124: 103 | Y124: 2034-12-06 | Z124: 30 | AA124: 3136 | AB124: 314880.5727 | AC124: 4031.1252 | AD124: 2269.446093 | AE124: 0 | AF124: 126 | AG124: 0 | AH124: 6426.571293 | AI124: 310849.4475 | AJ124: 0.9440687315 | AK124: 0.4720343657 | AO124: 103 | AP124: 2034-12-06 | AQ124: 30 | AR124: 3136 | AS124: 243370.6493 | AT124: 2350.730635 | AU124: 1754.050955 | AV124: 0 | AW124: 126 | AX124: 0 | AY124: 4230.78159 | AZ124: 241019.9187 | BA124: 0.4720343657 | BB124: 0.4720343657 | BF124: 103 | BG124: 2034-12-06 | BH124: 30 | BI124: 3136 | BJ124: 243383.6712 | BK124: 5357.53272 | BL124: 1754.144808 | BM124: 0 | BN124: 126 | BO124: 0 | BP124: 7237.677528 | BQ124: 238026.1385 | BR124: 0.9440687315 | BS124: 0.4720343657 | BW124: 103 | BX124: 2034-12-06 | BY124: 30 | BZ124: 3136 | CA124: 314869.0482 | CB124: 1361.286471 | CC124: 2269.363032 | CD124: 0 | CE124: 126 | CF124: 0 | CG124: 3756.649503 | CH124: 313507.7617 | CI124: 0.4720343657 | CJ124: 0.4720343657 | CN124: 103 | CO124: 2034-12-06 | CP124: 30 | CQ124: 3136 | CR124: 314880.5727 | CS124: 4031.1252 | CT124: 2269.446093 | CU124: 0 | CV124: 126 | CW124: 0 | CX124: 6426.571293 | CY124: 310849.4475 | CZ124: 0.9440687315 | DA124: 0.4720343657
B125: 104 | C125: 2035-01-06 | D125: 31 | E125: 3167 | F125: 313507.7617 | G125: 1295.499489 | H125: 2335.150014 | I125: 0 | J125: 126 | K125: 0 | L125: 3756.649503 | M125: 312212.2622 | N125: 0.4685444313 | O125: 0.4685444313 | Q125: =IFERROR(IF('Simulación Cliente'!$H$21="Simple",G125+H125+I125+J125+K125,AC125+AD125+AE125+AF125+AG125),"") -> 3756.649503 | R125: 3167 | S125: =IFERROR((1+'Simulación Cliente'!$E$21)^(R125/360),"") -> 1 | T125: 3756.65 | X125: 104 | Y125: 2035-01-06 | Z125: 31 | AA125: 3167 | AB125: 310849.4475 | AC125: 771.9359795 | AD125: 2315.349667 | AE125: 0 | AF125: 126 | AG125: 0 | AH125: 3213.285647 | AI125: 310077.5115 | AJ125: 0.4685444313 | AK125: 0.4685444313 | AO125: 104 | AP125: 2035-01-06 | AQ125: 31 | AR125: 3167 | AS125: 241019.9187 | AT125: 2309.554373 | AU125: 1795.227217 | AV125: 0 | AW125: 126 | AX125: 0 | AY125: 4230.78159 | AZ125: 238710.3643 | BA125: 0.4685444313 | BB125: 0.4685444313 | BF125: 104 | BG125: 2035-01-06 | BH125: 31 | BI125: 3167 | BJ125: 238026.1385 | BK125: 1719.910599 | BL125: 1772.928165 | BM125: 0 | BN125: 126 | BO125: 0 | BP125: 3618.838764 | BQ125: 236306.2279 | BR125: 0.4685444313 | BS125: 0.4685444313 | BW125: 104 | BX125: 2035-01-06 | BY125: 31 | BZ125: 3167 | CA125: 313507.7617 | CB125: 1295.499489 | CC125: 2335.150014 | CD125: 0 | CE125: 126 | CF125: 0 | CG125: 3756.649503 | CH125: 312212.2622 | CI125: 0.4685444313 | CJ125: 0.4685444313 | CN125: 104 | CO125: 2035-01-06 | CP125: 31 | CQ125: 3167 | CR125: 310849.4475 | CS125: 771.9359795 | CT125: 2315.349667 | CU125: 0 | CV125: 126 | CW125: 0 | CX125: 3213.285647 | CY125: 310077.5115 | CZ125: 0.4685444313 | DA125: 0.4685444313
B126: 105 | C126: 2035-02-06 | D126: 31 | E126: 3198 | F126: 312212.2622 | G126: 1305.148965 | H126: 2325.500538 | I126: 0 | J126: 126 | K126: 0 | L126: 3756.649503 | M126: 310907.1133 | N126: 0.4650802993 | O126: 0.4650802993 | Q126: =IFERROR(IF('Simulación Cliente'!$H$21="Simple",G126+H126+I126+J126+K126,AC126+AD126+AE126+AF126+AG126),"") -> 3756.649503 | R126: 3198 | S126: =IFERROR((1+'Simulación Cliente'!$E$21)^(R126/360),"") -> 1 | T126: 3756.65 | X126: 105 | Y126: 2035-02-06 | Z126: 31 | AA126: 3198 | AB126: 310077.5115 | AC126: 777.6857138 | AD126: 2309.599933 | AE126: 0 | AF126: 126 | AG126: 0 | AH126: 3213.285647 | AI126: 309299.8258 | AJ126: 0.4650802993 | AK126: 0.4650802993 | AO126: 105 | AP126: 2035-02-06 | AQ126: 31 | AR126: 3198 | AS126: 238710.3643 | AT126: 2326.756997 | AU126: 1778.024594 | AV126: 0 | AW126: 126 | AX126: 0 | AY126: 4230.78159 | AZ126: 236383.6073 | BA126: 0.4650802993 | BB126: 0.4650802993 | BF126: 105 | BG126: 2035-02-06 | BH126: 31 | BI126: 3198 | BJ126: 236306.2279 | BK126: 1732.721284 | BL126: 1760.11748 | BM126: 0 | BN126: 126 | BO126: 0 | BP126: 3618.838764 | BQ126: 234573.5066 | BR126: 0.4650802993 | BS126: 0.4650802993 | BW126: 105 | BX126: 2035-02-06 | BY126: 31 | BZ126: 3198 | CA126: 312212.2622 | CB126: 1305.148965 | CC126: 2325.500538 | CD126: 0 | CE126: 126 | CF126: 0 | CG126: 3756.649503 | CH126: 310907.1133 | CI126: 0.4650802993 | CJ126: 0.4650802993 | CN126: 105 | CO126: 2035-02-06 | CP126: 31 | CQ126: 3198 | CR126: 310077.5115 | CS126: 777.6857138 | CT126: 2309.599933 | CU126: 0 | CV126: 126 | CW126: 0 | CX126: 3213.285647 | CY126: 309299.8258 | CZ126: 0.4650802993 | DA126: 0.4650802993
B127: 106 | C127: 2035-03-06 | D127: 28 | E127: 3226 | F127: 310907.1133 | G127: 1539.729791 | H127: 2090.919712 | I127: 0 | J127: 126 | K127: 0 | L127: 3756.649503 | M127: 309367.3835 | N127: 0.4619734249 | O127: 0.4619734249 | Q127: =IFERROR(IF('Simulación Cliente'!$H$21="Simple",G127+H127+I127+J127+K127,AC127+AD127+AE127+AF127+AG127),"") -> 3756.649503 | R127: 3226 | S127: =IFERROR((1+'Simulación Cliente'!$E$21)^(R127/360),"") -> 1 | T127: 3756.65 | X127: 106 | Y127: 2035-03-06 | Z127: 28 | AA127: 3226 | AB127: 309299.8258 | AC127: 1007.175302 | AD127: 2080.110345 | AE127: 0 | AF127: 126 | AG127: 0 | AH127: 3213.285647 | AI127: 308292.6505 | AJ127: 0.4619734249 | AK127: 0.4619734249 | AO127: 106 | AP127: 2035-03-06 | AQ127: 28 | AR127: 3226 | AS127: 236383.6073 | AT127: 2515.049085 | AU127: 1589.732505 | AV127: 0 | AW127: 126 | AX127: 0 | AY127: 4230.78159 | AZ127: 233868.5582 | BA127: 0.4619734249 | BB127: 0.4619734249 | BF127: 106 | BG127: 2035-03-06 | BH127: 28 | BI127: 3226 | BJ127: 234573.5066 | BK127: 1915.27959 | BL127: 1577.559174 | BM127: 0 | BN127: 126 | BO127: 0 | BP127: 3618.838764 | BQ127: 232658.227 | BR127: 0.4619734249 | BS127: 0.4619734249 | BW127: 106 | BX127: 2035-03-06 | BY127: 28 | BZ127: 3226 | CA127: 310907.1133 | CB127: 1539.729791 | CC127: 2090.919712 | CD127: 0 | CE127: 126 | CF127: 0 | CG127: 3756.649503 | CH127: 309367.3835 | CI127: 0.4619734249 | CJ127: 0.4619734249 | CN127: 106 | CO127: 2035-03-06 | CP127: 28 | CQ127: 3226 | CR127: 309299.8258 | CS127: 1007.175302 | CT127: 2080.110345 | CU127: 0 | CV127: 126 | CW127: 0 | CX127: 3213.285647 | CY127: 308292.6505 | CZ127: 0.4619734249 | DA127: 0.4619734249
B128: 107 | C128: 2035-04-06 | D128: 31 | E128: 3257 | F128: 309367.3835 | G128: 1326.33893 | H128: 2304.310573 | I128: 0 | J128: 126 | K128: 0 | L128: 3756.649503 | M128: 308041.0445 | N128: 0.458557875 | O128: 0.458557875 | Q128: =IFERROR(IF('Simulación Cliente'!$H$21="Simple",G128+H128+I128+J128+K128,AC128+AD128+AE128+AF128+AG128),"") -> 3756.649503 | R128: 3257 | S128: =IFERROR((1+'Simulación Cliente'!$E$21)^(R128/360),"") -> 1 | T128: 3756.65 | X128: 107 | Y128: 2035-04-06 | Z128: 31 | AA128: 3257 | AB128: 308292.6505 | AC128: 790.9801796 | AD128: 2296.305467 | AE128: 0 | AF128: 126 | AG128: 0 | AH128: 3213.285647 | AI128: 307501.6703 | AJ128: 0.458557875 | AK128: 0.458557875 | AO128: 107 | AP128: 2035-04-06 | AQ128: 31 | AR128: 3257 | AS128: 233868.5582 | AT128: 2362.820995 | AU128: 1741.960595 | AV128: 0 | AW128: 126 | AX128: 0 | AY128: 4230.78159 | AZ128: 231505.7372 | BA128: 0.458557875 | BB128: 0.458557875 | BF128: 107 | BG128: 2035-04-06 | BH128: 31 | BI128: 3257 | BJ128: 232658.227 | BK128: 1759.893273 | BL128: 1732.945491 | BM128: 0 | BN128: 126 | BO128: 0 | BP128: 3618.838764 | BQ128: 230898.3337 | BR128: 0.458557875 | BS128: 0.458557875 | BW128: 107 | BX128: 2035-04-06 | BY128: 31 | BZ128: 3257 | CA128: 309367.3835 | CB128: 1326.33893 | CC128: 2304.310573 | CD128: 0 | CE128: 126 | CF128: 0 | CG128: 3756.649503 | CH128: 308041.0445 | CI128: 0.458557875 | CJ128: 0.458557875 | CN128: 107 | CO128: 2035-04-06 | CP128: 31 | CQ128: 3257 | CR128: 308292.6505 | CS128: 790.9801796 | CT128: 2296.305467 | CU128: 0 | CV128: 126 | CW128: 0 | CX128: 3213.285647 | CY128: 307501.6703 | CZ128: 0.458557875 | DA128: 0.458557875
B129: 108 | C129: 2035-05-06 | D129: 30 | E129: 3287 | F129: 308041.0445 | G129: 1410.498101 | H129: 2220.151403 | I129: 0 | J129: 126 | K129: 0 | L129: 3756.649503 | M129: 306630.5464 | N129: 0.4552765497 | O129: 0.4552765497 | Q129: =IFERROR(IF('Simulación Cliente'!$H$21="Simple",G129+H129+I129+J129+K129,AC129+AD129+AE129+AF129+AG129),"") -> 3756.649503 | R129: 3287 | S129: =IFERROR((1+'Simulación Cliente'!$E$21)^(R129/360),"") -> 1 | T129: 3756.65 | X129: 108 | Y129: 2035-05-06 | Z129: 30 | AA129: 3287 | AB129: 307501.6703 | AC129: 871.0216887 | AD129: 2216.263958 | AE129: 0 | AF129: 126 | AG129: 0 | AH129: 3213.285647 | AI129: 306630.6486 | AJ129: 0.4552765497 | AK129: 0.4552765497 | AO129: 108 | AP129: 2035-05-06 | AQ129: 30 | AR129: 3287 | AS129: 231505.7372 | AT129: 2436.244893 | AU129: 1668.536698 | AV129: 0 | AW129: 126 | AX129: 0 | AY129: 4230.78159 | AZ129: 229069.4923 | BA129: 0.4552765497 | BB129: 0.4552765497 | BF129: 108 | BG129: 2035-05-06 | BH129: 30 | BI129: 3287 | BJ129: 230898.3337 | BK129: 1828.67982 | BL129: 1664.158944 | BM129: 0 | BN129: 126 | BO129: 0 | BP129: 3618.838764 | BQ129: 229069.6539 | BR129: 0.4552765497 | BS129: 0.4552765497 | BW129: 108 | BX129: 2035-05-06 | BY129: 30 | BZ129: 3287 | CA129: 308041.0445 | CB129: 1410.498101 | CC129: 2220.151403 | CD129: 0 | CE129: 126 | CF129: 0 | CG129: 3756.649503 | CH129: 306630.5464 | CI129: 0.4552765497 | CJ129: 0.4552765497 | CN129: 108 | CO129: 2035-05-06 | CP129: 30 | CQ129: 3287 | CR129: 307501.6703 | CS129: 871.0216887 | CT129: 2216.263958 | CU129: 0 | CV129: 126 | CW129: 0 | CX129: 3213.285647 | CY129: 306630.6486 | CZ129: 0.4552765497 | DA129: 0.4552765497
B130: 109 | C130: 2035-06-06 | D130: 31 | E130: 3318 | F130: 306630.5464 | G130: 1346.724151 | H130: 2283.925352 | I130: 0 | J130: 126 | K130: 0 | L130: 3756.649503 | M130: 305283.8223 | N130: 0.4519105123 | O130: 0.4519105123 | Q130: =IFERROR(IF('Simulación Cliente'!$H$21="Simple",G130+H130+I130+J130+K130,AC130+AD130+AE130+AF130+AG130),"") -> 3756.649503 | R130: 3318 | S130: =IFERROR((1+'Simulación Cliente'!$E$21)^(R130/360),"") -> 1 | T130: 3756.65 | X130: 109 | Y130: 2035-06-06 | Z130: 31 | AA130: 3318 | AB130: 306630.6486 | AC130: 803.359534 | AD130: 2283.926113 | AE130: 0 | AF130: 126 | AG130: 0 | AH130: 3213.285647 | AI130: 305827.2891 | AJ130: 0.4519105123 | AK130: 0.4519105123 | AO130: 109 | AP130: 2035-06-06 | AQ130: 31 | AR130: 3318 | AS130: 229069.4923 | AT130: 2398.566646 | AU130: 1706.214945 | AV130: 0 | AW130: 126 | AX130: 0 | AY130: 4230.78159 | AZ130: 226670.9257 | BA130: 0.4519105123 | BB130: 0.4519105123 | BF130: 109 | BG130: 2035-06-06 | BH130: 31 | BI130: 3318 | BJ130: 229069.6539 | BK130: 1786.622616 | BL130: 1706.216148 | BM130: 0 | BN130: 126 | BO130: 0 | BP130: 3618.838764 | BQ130: 227283.0313 | BR130: 0.4519105123 | BS130: 0.4519105123 | BW130: 109 | BX130: 2035-06-06 | BY130: 31 | BZ130: 3318 | CA130: 306630.5464 | CB130: 1346.724151 | CC130: 2283.925352 | CD130: 0 | CE130: 126 | CF130: 0 | CG130: 3756.649503 | CH130: 305283.8223 | CI130: 0.4519105123 | CJ130: 0.4519105123 | CN130: 109 | CO130: 2035-06-06 | CP130: 31 | CQ130: 3318 | CR130: 306630.6486 | CS130: 803.359534 | CT130: 2283.926113 | CU130: 0 | CV130: 126 | CW130: 0 | CX130: 3213.285647 | CY130: 305827.2891 | CZ130: 0.4519105123 | DA130: 0.4519105123
B131: 110 | C131: 2035-07-06 | D131: 30 | E131: 3348 | F131: 305283.8223 | G131: 1430.370293 | H131: 2200.27921 | I131: 0 | J131: 126 | K131: 0 | L131: 3756.649503 | M131: 303853.452 | N131: 0.4486767539 | O131: 0.4486767539 | Q131: =IFERROR(IF('Simulación Cliente'!$H$21="Simple",G131+H131+I131+J131+K131,AC131+AD131+AE131+AF131+AG131),"") -> 3756.649503 | R131: 3348 | S131: =IFERROR((1+'Simulación Cliente'!$E$21)^(R131/360),"") -> 1 | T131: 3756.65 | X131: 110 | Y131: 2035-07-06 | Z131: 30 | AA131: 3348 | AB131: 305827.2891 | AC131: 4096.375142 | AD131: 2204.196151 | AE131: 0 | AF131: 126 | AG131: 0 | AH131: 6426.571293 | AI131: 301730.9139 | AJ131: 0.8973535078 | AK131: 0.4486767539 | AO131: 110 | AP131: 2035-07-06 | AQ131: 30 | AR131: 3348 | AS131: 226670.9257 | AT131: 2471.090943 | AU131: 1633.690648 | AV131: 0 | AW131: 126 | AX131: 0 | AY131: 4230.78159 | AZ131: 224199.8347 | BA131: 0.4486767539 | BB131: 0.4486767539 | BF131: 110 | BG131: 2035-07-06 | BH131: 30 | BI131: 3348 | BJ131: 227283.0313 | BK131: 5473.575237 | BL131: 1638.102291 | BM131: 0 | BN131: 126 | BO131: 0 | BP131: 7237.677528 | BQ131: 221809.4561 | BR131: 0.8973535078 | BS131: 0.4486767539 | BW131: 110 | BX131: 2035-07-06 | BY131: 30 | BZ131: 3348 | CA131: 305283.8223 | CB131: 1430.370293 | CC131: 2200.27921 | CD131: 0 | CE131: 126 | CF131: 0 | CG131: 3756.649503 | CH131: 303853.452 | CI131: 0.4486767539 | CJ131: 0.4486767539 | CN131: 110 | CO131: 2035-07-06 | CP131: 30 | CQ131: 3348 | CR131: 305827.2891 | CS131: 4096.375142 | CT131: 2204.196151 | CU131: 0 | CV131: 126 | CW131: 0 | CX131: 6426.571293 | CY131: 301730.9139 | CZ131: 0.8973535078 | DA131: 0.4486767539
B132: 111 | C132: 2035-08-06 | D132: 31 | E132: 3379 | F132: 303853.452 | G132: 1367.409228 | H132: 2263.240275 | I132: 0 | J132: 126 | K132: 0 | L132: 3756.649503 | M132: 302486.0428 | N132: 0.4453595114 | O132: 0.4453595114 | Q132: =IFERROR(IF('Simulación Cliente'!$H$21="Simple",G132+H132+I132+J132+K132,AC132+AD132+AE132+AF132+AG132),"") -> 3756.649503 | R132: 3379 | S132: =IFERROR((1+'Simulación Cliente'!$E$21)^(R132/360),"") -> 1 | T132: 3756.65 | X132: 111 | Y132: 2035-08-06 | Z132: 31 | AA132: 3379 | AB132: 301730.9139 | AC132: 839.8550116 | AD132: 2247.430635 | AE132: 0 | AF132: 126 | AG132: 0 | AH132: 3213.285647 | AI132: 300891.0589 | AJ132: 0.4453595114 | AK132: 0.4453595114 | AO132: 111 | AP132: 2035-08-06 | AQ132: 31 | AR132: 3379 | AS132: 224199.8347 | AT132: 2434.838095 | AU132: 1669.943495 | AV132: 0 | AW132: 126 | AX132: 0 | AY132: 4230.78159 | AZ132: 221764.9967 | BA132: 0.4453595114 | BB132: 0.4453595114 | BF132: 111 | BG132: 2035-08-06 | BH132: 31 | BI132: 3379 | BJ132: 221809.4561 | BK132: 1840.699909 | BL132: 1652.138855 | BM132: 0 | BN132: 126 | BO132: 0 | BP132: 3618.838764 | BQ132: 219968.7561 | BR132: 0.4453595114 | BS132: 0.4453595114 | BW132: 111 | BX132: 2035-08-06 | BY132: 31 | BZ132: 3379 | CA132: 303853.452 | CB132: 1367.409228 | CC132: 2263.240275 | CD132: 0 | CE132: 126 | CF132: 0 | CG132: 3756.649503 | CH132: 302486.0428 | CI132: 0.4453595114 | CJ132: 0.4453595114 | CN132: 111 | CO132: 2035-08-06 | CP132: 31 | CQ132: 3379 | CR132: 301730.9139 | CS132: 839.8550116 | CT132: 2247.430635 | CU132: 0 | CV132: 126 | CW132: 0 | CX132: 3213.285647 | CY132: 300891.0589 | CZ132: 0.4453595114 | DA132: 0.4453595114
B133: 112 | C133: 2035-09-06 | D133: 31 | E133: 3410 | F133: 302486.0428 | G133: 1377.594321 | H133: 2253.055182 | I133: 0 | J133: 126 | K133: 0 | L133: 3756.649503 | M133: 301108.4484 | N133: 0.4420667946 | O133: 0.4420667946 | Q133: =IFERROR(IF('Simulación Cliente'!$H$21="Simple",G133+H133+I133+J133+K133,AC133+AD133+AE133+AF133+AG133),"") -> 3756.649503 | R133: 3410 | S133: =IFERROR((1+'Simulación Cliente'!$E$21)^(R133/360),"") -> 1 | T133: 3756.65 | X133: 112 | Y133: 2035-09-06 | Z133: 31 | AA133: 3410 | AB133: 300891.0589 | AC133: 846.110638 | AD133: 2241.175009 | AE133: 0 | AF133: 126 | AG133: 0 | AH133: 3213.285647 | AI133: 300044.9483 | AJ133: 0.4420667946 | AK133: 0.4420667946 | AO133: 112 | AP133: 2035-09-06 | AQ133: 31 | AR133: 3410 | AS133: 221764.9967 | AT133: 2452.973889 | AU133: 1651.807701 | AV133: 0 | AW133: 126 | AX133: 0 | AY133: 4230.78159 | AZ133: 219312.0228 | BA133: 0.4420667946 | BB133: 0.4420667946 | BF133: 112 | BG133: 2035-09-06 | BH133: 31 | BI133: 3410 | BJ133: 219968.7561 | BK133: 1854.410289 | BL133: 1638.428476 | BM133: 0 | BN133: 126 | BO133: 0 | BP133: 3618.838764 | BQ133: 218114.3459 | BR133: 0.4420667946 | BS133: 0.4420667946 | BW133: 112 | BX133: 2035-09-06 | BY133: 31 | BZ133: 3410 | CA133: 302486.0428 | CB133: 1377.594321 | CC133: 2253.055182 | CD133: 0 | CE133: 126 | CF133: 0 | CG133: 3756.649503 | CH133: 301108.4484 | CI133: 0.4420667946 | CJ133: 0.4420667946 | CN133: 112 | CO133: 2035-09-06 | CP133: 31 | CQ133: 3410 | CR133: 300891.0589 | CS133: 846.110638 | CT133: 2241.175009 | CU133: 0 | CV133: 126 | CW133: 0 | CX133: 3213.285647 | CY133: 300044.9483 | CZ133: 0.4420667946 | DA133: 0.4420667946
B134: 113 | C134: 2035-10-06 | D134: 30 | E134: 3440 | F134: 301108.4484 | G134: 1460.463562 | H134: 2170.185941 | I134: 0 | J134: 126 | K134: 0 | L134: 3756.649503 | M134: 299647.9849 | N134: 0.4389034753 | O134: 0.4389034753 | Q134: =IFERROR(IF('Simulación Cliente'!$H$21="Simple",G134+H134+I134+J134+K134,AC134+AD134+AE134+AF134+AG134),"") -> 3756.649503 | R134: 3440 | S134: =IFERROR((1+'Simulación Cliente'!$E$21)^(R134/360),"") -> 1 | T134: 3756.65 | X134: 113 | Y134: 2035-10-06 | Z134: 30 | AA134: 3440 | AB134: 300044.9483 | AC134: 924.7646951 | AD134: 2162.520952 | AE134: 0 | AF134: 126 | AG134: 0 | AH134: 3213.285647 | AI134: 299120.1836 | AJ134: 0.4389034753 | AK134: 0.4389034753 | AO134: 113 | AP134: 2035-10-06 | AQ134: 30 | AR134: 3440 | AS134: 219312.0228 | AT134: 2524.128935 | AU134: 1580.652655 | AV134: 0 | AW134: 126 | AX134: 0 | AY134: 4230.78159 | AZ134: 216787.8938 | BA134: 0.4389034753 | BB134: 0.4389034753 | BF134: 113 | BG134: 2035-10-06 | BH134: 30 | BI134: 3440 | BJ134: 218114.3459 | BK134: 1920.818154 | BL134: 1572.020611 | BM134: 0 | BN134: 126 | BO134: 0 | BP134: 3618.838764 | BQ134: 216193.5277 | BR134: 0.4389034753 | BS134: 0.4389034753 | BW134: 113 | BX134: 2035-10-06 | BY134: 30 | BZ134: 3440 | CA134: 301108.4484 | CB134: 1460.463562 | CC134: 2170.185941 | CD134: 0 | CE134: 126 | CF134: 0 | CG134: 3756.649503 | CH134: 299647.9849 | CI134: 0.4389034753 | CJ134: 0.4389034753 | CN134: 113 | CO134: 2035-10-06 | CP134: 30 | CQ134: 3440 | CR134: 300044.9483 | CS134: 924.7646951 | CT134: 2162.520952 | CU134: 0 | CV134: 126 | CW134: 0 | CX134: 3213.285647 | CY134: 299120.1836 | CZ134: 0.4389034753 | DA134: 0.4389034753
B135: 114 | C135: 2035-11-06 | D135: 31 | E135: 3471 | F135: 299647.9849 | G135: 1398.733482 | H135: 2231.916022 | I135: 0 | J135: 126 | K135: 0 | L135: 3756.649503 | M135: 298249.2514 | N135: 0.4356584905 | O135: 0.4356584905 | Q135: =IFERROR(IF('Simulación Cliente'!$H$21="Simple",G135+H135+I135+J135+K135,AC135+AD135+AE135+AF135+AG135),"") -> 3756.649503 | R135: 3471 | S135: =IFERROR((1+'Simulación Cliente'!$E$21)^(R135/360),"") -> 1 | T135: 3756.65 | X135: 114 | Y135: 2035-11-06 | Z135: 31 | AA135: 3471 | AB135: 299120.1836 | AC135: 859.3009321 | AD135: 2227.984715 | AE135: 0 | AF135: 126 | AG135: 0 | AH135: 3213.285647 | AI135: 298260.8826 | AJ135: 0.4356584905 | AK135: 0.4356584905 | AO135: 114 | AP135: 2035-11-06 | AQ135: 31 | AR135: 3471 | AS135: 216787.8938 | AT135: 2490.045641 | AU135: 1614.73595 | AV135: 0 | AW135: 126 | AX135: 0 | AY135: 4230.78159 | AZ135: 214297.8482 | BA135: 0.4356584905 | BB135: 0.4356584905 | BF135: 114 | BG135: 2035-11-06 | BH135: 31 | BI135: 3471 | BJ135: 216193.5277 | BK135: 1882.529927 | BL135: 1610.308838 | BM135: 0 | BN135: 126 | BO135: 0 | BP135: 3618.838764 | BQ135: 214310.9978 | BR135: 0.4356584905 | BS135: 0.4356584905 | BW135: 114 | BX135: 2035-11-06 | BY135: 31 | BZ135: 3471 | CA135: 299647.9849 | CB135: 1398.733482 | CC135: 2231.916022 | CD135: 0 | CE135: 126 | CF135: 0 | CG135: 3756.649503 | CH135: 298249.2514 | CI135: 0.4356584905 | CJ135: 0.4356584905 | CN135: 114 | CO135: 2035-11-06 | CP135: 31 | CQ135: 3471 | CR135: 299120.1836 | CS135: 859.3009321 | CT135: 2227.984715 | CU135: 0 | CV135: 126 | CW135: 0 | CX135: 3213.285647 | CY135: 298260.8826 | CZ135: 0.4356584905 | DA135: 0.4356584905
B136: 115 | C136: 2035-12-06 | D136: 30 | E136: 3501 | F136: 298249.2514 | G136: 1481.070719 | H136: 2149.578784 | I136: 0 | J136: 126 | K136: 0 | L136: 3756.649503 | M136: 296768.1807 | N136: 0.4325410275 | O136: 0.4325410275 | Q136: =IFERROR(IF('Simulación Cliente'!$H$21="Simple",G136+H136+I136+J136+K136,AC136+AD136+AE136+AF136+AG136),"") -> 3756.649503 | R136: 3501 | S136: =IFERROR((1+'Simulación Cliente'!$E$21)^(R136/360),"") -> 1 | T136: 3756.65 | X136: 115 | Y136: 2035-12-06 | Z136: 30 | AA136: 3501 | AB136: 298260.8826 | AC136: 4150.90868 | AD136: 2149.662614 | AE136: 0 | AF136: 126 | AG136: 0 | AH136: 6426.571293 | AI136: 294109.974 | AJ136: 0.8650820549 | AK136: 0.4325410275 | AO136: 115 | AP136: 2035-12-06 | AQ136: 30 | AR136: 3501 | AS136: 214297.8482 | AT136: 2560.267713 | AU136: 1544.513878 | AV136: 0 | AW136: 126 | AX136: 0 | AY136: 4230.78159 | AZ136: 211737.5805 | BA136: 0.4325410275 | BB136: 0.4325410275 | BF136: 115 | BG136: 2035-12-06 | BH136: 30 | BI136: 3501 | BJ136: 214310.9978 | BK136: 5567.068877 | BL136: 1544.608651 | BM136: 0 | BN136: 126 | BO136: 0 | BP136: 7237.677528 | BQ136: 208743.9289 | BR136: 0.8650820549 | BS136: 0.4325410275 | BW136: 115 | BX136: 2035-12-06 | BY136: 30 | BZ136: 3501 | CA136: 298249.2514 | CB136: 1481.070719 | CC136: 2149.578784 | CD136: 0 | CE136: 126 | CF136: 0 | CG136: 3756.649503 | CH136: 296768.1807 | CI136: 0.4325410275 | CJ136: 0.4325410275 | CN136: 115 | CO136: 2035-12-06 | CP136: 30 | CQ136: 3501 | CR136: 298260.8826 | CS136: 4150.90868 | CT136: 2149.662614 | CU136: 0 | CV136: 126 | CW136: 0 | CX136: 6426.571293 | CY136: 294109.974 | CZ136: 0.8650820549 | DA136: 0.4325410275
B137: 116 | C137: 2036-01-06 | D137: 31 | E137: 3532 | F137: 296768.1807 | G137: 1420.183588 | H137: 2210.465915 | I137: 0 | J137: 126 | K137: 0 | L137: 3756.649503 | M137: 295347.9971 | N137: 0.4293430827 | O137: 0.4293430827 | Q137: =IFERROR(IF('Simulación Cliente'!$H$21="Simple",G137+H137+I137+J137+K137,AC137+AD137+AE137+AF137+AG137),"") -> 3756.649503 | R137: 3532 | S137: =IFERROR((1+'Simulación Cliente'!$E$21)^(R137/360),"") -> 1 | T137: 3756.65 | X137: 116 | Y137: 2036-01-06 | Z137: 31 | AA137: 3532 | AB137: 294109.974 | AC137: 896.6192778 | AD137: 2190.666369 | AE137: 0 | AF137: 126 | AG137: 0 | AH137: 3213.285647 | AI137: 293213.3547 | AJ137: 0.4293430827 | AK137: 0.4293430827 | AO137: 116 | AP137: 2036-01-06 | AQ137: 31 | AR137: 3532 | AS137: 211737.5805 | AT137: 2527.662697 | AU137: 1577.118893 | AV137: 0 | AW137: 126 | AX137: 0 | AY137: 4230.78159 | AZ137: 209209.9178 | BA137: 0.4293430827 | BB137: 0.4293430827 | BF137: 116 | BG137: 2036-01-06 | BH137: 31 | BI137: 3532 | BJ137: 208743.9289 | BK137: 1938.017965 | BL137: 1554.820799 | BM137: 0 | BN137: 126 | BO137: 0 | BP137: 3618.838764 | BQ137: 206805.9109 | BR137: 0.4293430827 | BS137: 0.4293430827 | BW137: 116 | BX137: 2036-01-06 | BY137: 31 | BZ137: 3532 | CA137: 296768.1807 | CB137: 1420.183588 | CC137: 2210.465915 | CD137: 0 | CE137: 126 | CF137: 0 | CG137: 3756.649503 | CH137: 295347.9971 | CI137: 0.4293430827 | CJ137: 0.4293430827 | CN137: 116 | CO137: 2036-01-06 | CP137: 31 | CQ137: 3532 | CR137: 294109.974 | CS137: 896.6192778 | CT137: 2190.666369 | CU137: 0 | CV137: 126 | CW137: 0 | CX137: 3213.285647 | CY137: 293213.3547 | CZ137: 0.4293430827 | DA137: 0.4293430827
B138: 117 | C138: 2036-02-06 | D138: 31 | E138: 3563 | F138: 295347.9971 | G138: 1430.761769 | H138: 2199.887735 | I138: 0 | J138: 126 | K138: 0 | L138: 3756.649503 | M138: 293917.2353 | N138: 0.4261687816 | O138: 0.4261687816 | Q138: =IFERROR(IF('Simulación Cliente'!$H$21="Simple",G138+H138+I138+J138+K138,AC138+AD138+AE138+AF138+AG138),"") -> 3756.649503 | R138: 3563 | S138: =IFERROR((1+'Simulación Cliente'!$E$21)^(R138/360),"") -> 1 | T138: 3756.65 | X138: 117 | Y138: 2036-02-06 | Z138: 31 | AA138: 3563 | AB138: 293213.3547 | AC138: 903.2977106 | AD138: 2183.987936 | AE138: 0 | AF138: 126 | AG138: 0 | AH138: 3213.285647 | AI138: 292310.057 | AJ138: 0.4261687816 | AK138: 0.4261687816 | AO138: 117 | AP138: 2036-02-06 | AQ138: 31 | AR138: 3563 | AS138: 209209.9178 | AT138: 2546.489892 | AU138: 1558.291699 | AV138: 0 | AW138: 126 | AX138: 0 | AY138: 4230.78159 | AZ138: 206663.4279 | BA138: 0.4261687816 | BB138: 0.4261687816 | BF138: 117 | BG138: 2036-02-06 | BH138: 31 | BI138: 3563 | BJ138: 206805.9109 | BK138: 1952.453214 | BL138: 1540.38555 | BM138: 0 | BN138: 126 | BO138: 0 | BP138: 3618.838764 | BQ138: 204853.4577 | BR138: 0.4261687816 | BS138: 0.4261687816 | BW138: 117 | BX138: 2036-02-06 | BY138: 31 | BZ138: 3563 | CA138: 295347.9971 | CB138: 1430.761769 | CC138: 2199.887735 | CD138: 0 | CE138: 126 | CF138: 0 | CG138: 3756.649503 | CH138: 293917.2353 | CI138: 0.4261687816 | CJ138: 0.4261687816 | CN138: 117 | CO138: 2036-02-06 | CP138: 31 | CQ138: 3563 | CR138: 293213.3547 | CS138: 903.2977106 | CT138: 2183.987936 | CU138: 0 | CV138: 126 | CW138: 0 | CX138: 3213.285647 | CY138: 292310.057 | CZ138: 0.4261687816 | DA138: 0.4261687816
B139: 118 | C139: 2036-03-06 | D139: 29 | E139: 3592 | F139: 293917.2353 | G139: 1583.150216 | H139: 2047.499288 | I139: 0 | J139: 126 | K139: 0 | L139: 3756.649503 | M139: 292334.0851 | N139: 0.423220524 | O139: 0.423220524 | Q139: =IFERROR(IF('Simulación Cliente'!$H$21="Simple",G139+H139+I139+J139+K139,AC139+AD139+AE139+AF139+AG139),"") -> 3756.649503 | R139: 3592 | S139: =IFERROR((1+'Simulación Cliente'!$E$21)^(R139/360),"") -> 1 | T139: 3756.65 | X139: 118 | Y139: 2036-03-06 | Z139: 29 | AA139: 3592 | AB139: 292310.057 | AC139: 1050.982356 | AD139: 2036.30329 | AE139: 0 | AF139: 126 | AG139: 0 | AH139: 3213.285647 | AI139: 291259.0746 | AJ139: 0.423220524 | AK139: 0.423220524 | AO139: 118 | AP139: 2036-03-06 | AQ139: 29 | AR139: 3592 | AS139: 206663.4279 | AT139: 2665.113648 | AU139: 1439.667942 | AV139: 0 | AW139: 126 | AX139: 0 | AY139: 4230.78159 | AZ139: 203998.3142 | BA139: 0.423220524 | BB139: 0.423220524 | BF139: 118 | BG139: 2036-03-06 | BH139: 29 | BI139: 3592 | BJ139: 204853.4577 | BK139: 2065.779516 | BL139: 1427.059248 | BM139: 0 | BN139: 126 | BO139: 0 | BP139: 3618.838764 | BQ139: 202787.6782 | BR139: 0.423220524 | BS139: 0.423220524 | BW139: 118 | BX139: 2036-03-06 | BY139: 29 | BZ139: 3592 | CA139: 293917.2353 | CB139: 1583.150216 | CC139: 2047.499288 | CD139: 0 | CE139: 126 | CF139: 0 | CG139: 3756.649503 | CH139: 292334.0851 | CI139: 0.423220524 | CJ139: 0.423220524 | CN139: 118 | CO139: 2036-03-06 | CP139: 29 | CQ139: 3592 | CR139: 292310.057 | CS139: 1050.982356 | CT139: 2036.30329 | CU139: 0 | CV139: 126 | CW139: 0 | CX139: 3213.285647 | CY139: 291259.0746 | CZ139: 0.423220524 | DA139: 0.423220524
B140: 119 | C140: 2036-04-06 | D140: 31 | E140: 3623 | F140: 292334.0851 | G140: 1453.210771 | H140: 2177.438732 | I140: 0 | J140: 126 | K140: 0 | L140: 3756.649503 | M140: 290880.8743 | N140: 0.4200914893 | O140: 0.4200914893 | Q140: =IFERROR(IF('Simulación Cliente'!$H$21="Simple",G140+H140+I140+J140+K140,AC140+AD140+AE140+AF140+AG140),"") -> 3756.649503 | R140: 3623 | S140: =IFERROR((1+'Simulación Cliente'!$E$21)^(R140/360),"") -> 1 | T140: 3756.65 | X140: 119 | Y140: 2036-04-06 | Z140: 31 | AA140: 3623 | AB140: 291259.0746 | AC140: 917.8540875 | AD140: 2169.431559 | AE140: 0 | AF140: 126 | AG140: 0 | AH140: 3213.285647 | AI140: 290341.2205 | AJ140: 0.4200914893 | AK140: 0.4200914893 | AO140: 119 | AP140: 2036-04-06 | AQ140: 31 | AR140: 3623 | AS140: 203998.3142 | AT140: 2585.308312 | AU140: 1519.473278 | AV140: 0 | AW140: 126 | AX140: 0 | AY140: 4230.78159 | AZ140: 201413.0059 | BA140: 0.4200914893 | BB140: 0.4200914893 | BF140: 119 | BG140: 2036-04-06 | BH140: 31 | BI140: 3623 | BJ140: 202787.6782 | BK140: 1982.38286 | BL140: 1510.455904 | BM140: 0 | BN140: 126 | BO140: 0 | BP140: 3618.838764 | BQ140: 200805.2953 | BR140: 0.4200914893 | BS140: 0.4200914893 | BW140: 119 | BX140: 2036-04-06 | BY140: 31 | BZ140: 3623 | CA140: 292334.0851 | CB140: 1453.210771 | CC140: 2177.438732 | CD140: 0 | CE140: 126 | CF140: 0 | CG140: 3756.649503 | CH140: 290880.8743 | CI140: 0.4200914893 | CJ140: 0.4200914893 | CN140: 119 | CO140: 2036-04-06 | CP140: 31 | CQ140: 3623 | CR140: 291259.0746 | CS140: 917.8540875 | CT140: 2169.431559 | CU140: 0 | CV140: 126 | CW140: 0 | CX140: 3213.285647 | CY140: 290341.2205 | CZ140: 0.4200914893 | DA140: 0.4200914893
B141: 120 | C141: 2036-05-06 | D141: 30 | E141: 3653 | F141: 290880.8743 | G141: 1534.176995 | H141: 2096.472508 | I141: 0 | J141: 126 | K141: 0 | L141: 3756.649503 | M141: 289346.6973 | N141: 0.4170854199 | O141: 0.4170854199 | Q141: =IFERROR(IF('Simulación Cliente'!$H$21="Simple",G141+H141+I141+J141+K141,AC141+AD141+AE141+AF141+AG141),"") -> 3756.649503 | R141: 3653 | S141: =IFERROR((1+'Simulación Cliente'!$E$21)^(R141/360),"") -> 1 | T141: 3756.65 | X141: 120 | Y141: 2036-05-06 | Z141: 30 | AA141: 3653 | AB141: 290341.2205 | AC141: 994.7025983 | AD141: 2092.583048 | AE141: 0 | AF141: 126 | AG141: 0 | AH141: 3213.285647 | AI141: 289346.5179 | AJ141: 0.4170854199 | AK141: 0.4170854199 | AO141: 120 | AP141: 2036-05-06 | AQ141: 30 | AR141: 3653 | AS141: 201413.0059 | AT141: 2653.132937 | AU141: 1451.648654 | AV141: 0 | AW141: 126 | AX141: 0 | AY141: 4230.78159 | AZ141: 198759.873 | BA141: 0.4170854199 | BB141: 0.4170854199 | BF141: 120 | BG141: 2036-05-06 | BH141: 30 | BI141: 3653 | BJ141: 200805.2953 | BK141: 2045.570077 | BL141: 1447.268687 | BM141: 0 | BN141: 126 | BO141: 0 | BP141: 3618.838764 | BQ141: 198759.7253 | BR141: 0.4170854199 | BS141: 0.4170854199 | BW141: 120 | BX141: 2036-05-06 | BY141: 30 | BZ141: 3653 | CA141: 290880.8743 | CB141: 1534.176995 | CC141: 2096.472508 | CD141: 0 | CE141: 126 | CF141: 0 | CG141: 3756.649503 | CH141: 289346.6973 | CI141: 0.4170854199 | CJ141: 0.4170854199 | CN141: 120 | CO141: 2036-05-06 | CP141: 30 | CQ141: 3653 | CR141: 290341.2205 | CS141: 994.7025983 | CT141: 2092.583048 | CU141: 0 | CV141: 126 | CW141: 0 | CX141: 3213.285647 | CY141: 289346.5179 | CZ141: 0.4170854199 | DA141: 0.4170854199
B142: 121 | C142: 2036-06-06 | D142: 31 | E142: 3684 | F142: 289346.6973 | G142: 1475.46221 | H142: 2155.187294 | I142: 0 | J142: 126 | K142: 0 | L142: 3756.649503 | M142: 287871.2351 | N142: 0.4140017444 | O142: 0.4140017444 | Q142: =IFERROR(IF('Simulación Cliente'!$H$21="Simple",G142+H142+I142+J142+K142,AC142+AD142+AE142+AF142+AG142),"") -> 3756.649503 | R142: 3684 | S142: =IFERROR((1+'Simulación Cliente'!$E$21)^(R142/360),"") -> 1 | T142: 3756.65 | X142: 121 | Y142: 2036-06-06 | Z142: 31 | AA142: 3684 | AB142: 289346.5179 | AC142: 932.0996894 | AD142: 2155.185957 | AE142: 0 | AF142: 126 | AG142: 0 | AH142: 3213.285647 | AI142: 288414.4182 | AJ142: 0.4140017444 | AK142: 0.4140017444 | AO142: 121 | AP142: 2036-06-06 | AQ142: 31 | AR142: 3684 | AS142: 198759.873 | AT142: 2624.326632 | AU142: 1480.454958 | AV142: 0 | AW142: 126 | AX142: 0 | AY142: 4230.78159 | AZ142: 196135.5464 | BA142: 0.4140017444 | BB142: 0.4140017444 | BF142: 121 | BG142: 2036-06-06 | BH142: 31 | BI142: 3684 | BJ142: 198759.7253 | BK142: 2012.384906 | BL142: 1480.453858 | BM142: 0 | BN142: 126 | BO142: 0 | BP142: 3618.838764 | BQ142: 196747.3404 | BR142: 0.4140017444 | BS142: 0.4140017444 | BW142: 121 | BX142: 2036-06-06 | BY142: 31 | BZ142: 3684 | CA142: 289346.6973 | CB142: 1475.46221 | CC142: 2155.187294 | CD142: 0 | CE142: 126 | CF142: 0 | CG142: 3756.649503 | CH142: 287871.2351 | CI142: 0.4140017444 | CJ142: 0.4140017444 | CN142: 121 | CO142: 2036-06-06 | CP142: 31 | CQ142: 3684 | CR142: 289346.5179 | CS142: 932.0996894 | CT142: 2155.185957 | CU142: 0 | CV142: 126 | CW142: 0 | CX142: 3213.285647 | CY142: 288414.4182 | CZ142: 0.4140017444 | DA142: 0.4140017444
B143: 122 | C143: 2036-07-06 | D143: 30 | E143: 3714 | F143: 287871.2351 | G143: 1555.868438 | H143: 2074.781065 | I143: 0 | J143: 126 | K143: 0 | L143: 3756.649503 | M143: 286315.3667 | N143: 0.4110392517 | O143: 0.4110392517 | Q143: =IFERROR(IF('Simulación Cliente'!$H$21="Simple",G143+H143+I143+J143+K143,AC143+AD143+AE143+AF143+AG143),"") -> 3756.649503 | R143: 3714 | S143: =IFERROR((1+'Simulación Cliente'!$E$21)^(R143/360),"") -> 1 | T143: 3756.65 | X143: 122 | Y143: 2036-07-06 | Z143: 30 | AA143: 3714 | AB143: 288414.4182 | AC143: 4221.875332 | AD143: 2078.695961 | AE143: 0 | AF143: 126 | AG143: 0 | AH143: 6426.571293 | AI143: 284192.5429 | AJ143: 0.8220785033 | AK143: 0.4110392517 | AO143: 122 | AP143: 2036-07-06 | AQ143: 30 | AR143: 3714 | AS143: 196135.5464 | AT143: 2691.169294 | AU143: 1413.612296 | AV143: 0 | AW143: 126 | AX143: 0 | AY143: 4230.78159 | AZ143: 193444.3771 | BA143: 0.4110392517 | BB143: 0.4110392517 | BF143: 122 | BG143: 2036-07-06 | BH143: 30 | BI143: 3714 | BJ143: 196747.3404 | BK143: 5693.655835 | BL143: 1418.021694 | BM143: 0 | BN143: 126 | BO143: 0 | BP143: 7237.677528 | BQ143: 191053.6845 | BR143: 0.8220785033 | BS143: 0.4110392517 | BW143: 122 | BX143: 2036-07-06 | BY143: 30 | BZ143: 3714 | CA143: 287871.2351 | CB143: 1555.868438 | CC143: 2074.781065 | CD143: 0 | CE143: 126 | CF143: 0 | CG143: 3756.649503 | CH143: 286315.3667 | CI143: 0.4110392517 | CJ143: 0.4110392517 | CN143: 122 | CO143: 2036-07-06 | CP143: 30 | CQ143: 3714 | CR143: 288414.4182 | CS143: 4221.875332 | CT143: 2078.695961 | CU143: 0 | CV143: 126 | CW143: 0 | CX143: 6426.571293 | CY143: 284192.5429 | CZ143: 0.8220785033 | DA143: 0.4110392517
B144: 123 | C144: 2036-08-06 | D144: 31 | E144: 3745 | F144: 286315.3667 | G144: 1498.040955 | H144: 2132.608549 | I144: 0 | J144: 126 | K144: 0 | L144: 3756.649503 | M144: 284817.3257 | N144: 0.4080002779 | O144: 0.4080002779 | Q144: =IFERROR(IF('Simulación Cliente'!$H$21="Simple",G144+H144+I144+J144+K144,AC144+AD144+AE144+AF144+AG144),"") -> 3756.649503 | R144: 3745 | S144: =IFERROR((1+'Simulación Cliente'!$E$21)^(R144/360),"") -> 1 | T144: 3756.65 | X144: 123 | Y144: 2036-08-06 | Z144: 31 | AA144: 3745 | AB144: 284192.5429 | AC144: 970.4888661 | AD144: 2116.796781 | AE144: 0 | AF144: 126 | AG144: 0 | AH144: 3213.285647 | AI144: 283222.054 | AJ144: 0.4080002779 | AK144: 0.4080002779 | AO144: 123 | AP144: 2036-08-06 | AQ144: 31 | AR144: 3745 | AS144: 193444.3771 | AT144: 2663.918891 | AU144: 1440.8627 | AV144: 0 | AW144: 126 | AX144: 0 | AY144: 4230.78159 | AZ144: 190780.4582 | BA144: 0.4080002779 | BB144: 0.4080002779 | BF144: 123 | BG144: 2036-08-06 | BH144: 31 | BI144: 3745 | BJ144: 191053.6845 | BK144: 2069.783042 | BL144: 1423.055722 | BM144: 0 | BN144: 126 | BO144: 0 | BP144: 3618.838764 | BQ144: 188983.9015 | BR144: 0.4080002779 | BS144: 0.4080002779 | BW144: 123 | BX144: 2036-08-06 | BY144: 31 | BZ144: 3745 | CA144: 286315.3667 | CB144: 1498.040955 | CC144: 2132.608549 | CD144: 0 | CE144: 126 | CF144: 0 | CG144: 3756.649503 | CH144: 284817.3257 | CI144: 0.4080002779 | CJ144: 0.4080002779 | CN144: 123 | CO144: 2036-08-06 | CP144: 31 | CQ144: 3745 | CR144: 284192.5429 | CS144: 970.4888661 | CT144: 2116.796781 | CU144: 0 | CV144: 126 | CW144: 0 | CX144: 3213.285647 | CY144: 283222.054 | CZ144: 0.4080002779 | DA144: 0.4080002779
B145: 124 | C145: 2036-09-06 | D145: 31 | E145: 3776 | F145: 284817.3257 | G145: 1509.199053 | H145: 2121.450451 | I145: 0 | J145: 126 | K145: 0 | L145: 3756.649503 | M145: 283308.1267 | N145: 0.4049837725 | O145: 0.4049837725 | Q145: =IFERROR(IF('Simulación Cliente'!$H$21="Simple",G145+H145+I145+J145+K145,AC145+AD145+AE145+AF145+AG145),"") -> 3756.649503 | R145: 3776 | S145: =IFERROR((1+'Simulación Cliente'!$E$21)^(R145/360),"") -> 1 | T145: 3756.65 | X145: 124 | Y145: 2036-09-06 | Z145: 31 | AA145: 3776 | AB145: 283222.054 | AC145: 977.7175135 | AD145: 2109.568133 | AE145: 0 | AF145: 126 | AG145: 0 | AH145: 3213.285647 | AI145: 282244.3365 | AJ145: 0.4049837725 | AK145: 0.4049837725 | AO145: 124 | AP145: 2036-09-06 | AQ145: 31 | AR145: 3776 | AS145: 190780.4582 | AT145: 2683.760984 | AU145: 1421.020606 | AV145: 0 | AW145: 126 | AX145: 0 | AY145: 4230.78159 | AZ145: 188096.6972 | BA145: 0.4049837725 | BB145: 0.4049837725 | BF145: 124 | BG145: 2036-09-06 | BH145: 31 | BI145: 3776 | BJ145: 188983.9015 | BK145: 2085.199738 | BL145: 1407.639026 | BM145: 0 | BN145: 126 | BO145: 0 | BP145: 3618.838764 | BQ145: 186898.7017 | BR145: 0.4049837725 | BS145: 0.4049837725 | BW145: 124 | BX145: 2036-09-06 | BY145: 31 | BZ145: 3776 | CA145: 284817.3257 | CB145: 1509.199053 | CC145: 2121.450451 | CD145: 0 | CE145: 126 | CF145: 0 | CG145: 3756.649503 | CH145: 283308.1267 | CI145: 0.4049837725 | CJ145: 0.4049837725 | CN145: 124 | CO145: 2036-09-06 | CP145: 31 | CQ145: 3776 | CR145: 283222.054 | CS145: 977.7175135 | CT145: 2109.568133 | CU145: 0 | CV145: 126 | CW145: 0 | CX145: 3213.285647 | CY145: 282244.3365 | CZ145: 0.4049837725 | DA145: 0.4049837725
B146: 125 | C146: 2036-10-06 | D146: 30 | E146: 3806 | F146: 283308.1267 | G146: 1588.756236 | H146: 2041.893267 | I146: 0 | J146: 126 | K146: 0 | L146: 3756.649503 | M146: 281719.3704 | N146: 0.4020858101 | O146: 0.4020858101 | Q146: =IFERROR(IF('Simulación Cliente'!$H$21="Simple",G146+H146+I146+J146+K146,AC146+AD146+AE146+AF146+AG146),"") -> 3756.649503 | R146: 3806 | S146: =IFERROR((1+'Simulación Cliente'!$E$21)^(R146/360),"") -> 1 | T146: 3756.65 | X146: 125 | Y146: 2036-10-06 | Z146: 30 | AA146: 3806 | AB146: 282244.3365 | AC146: 1053.059459 | AD146: 2034.226188 | AE146: 0 | AF146: 126 | AG146: 0 | AH146: 3213.285647 | AI146: 281191.2771 | AJ146: 0.4020858101 | AK146: 0.4020858101 | AO146: 125 | AP146: 2036-10-06 | AQ146: 30 | AR146: 3806 | AS146: 188096.6972 | AT146: 2749.107879 | AU146: 1355.673711 | AV146: 0 | AW146: 126 | AX146: 0 | AY146: 4230.78159 | AZ146: 185347.5893 | BA146: 0.4020858101 | BB146: 0.4020858101 | BF146: 125 | BG146: 2036-10-06 | BH146: 30 | BI146: 3806 | BJ146: 186898.7017 | BK146: 2145.799393 | BL146: 1347.039371 | BM146: 0 | BN146: 126 | BO146: 0 | BP146: 3618.838764 | BQ146: 184752.9024 | BR146: 0.4020858101 | BS146: 0.4020858101 | BW146: 125 | BX146: 2036-10-06 | BY146: 30 | BZ146: 3806 | CA146: 283308.1267 | CB146: 1588.756236 | CC146: 2041.893267 | CD146: 0 | CE146: 126 | CF146: 0 | CG146: 3756.649503 | CH146: 281719.3704 | CI146: 0.4020858101 | CJ146: 0.4020858101 | CN146: 125 | CO146: 2036-10-06 | CP146: 30 | CQ146: 3806 | CR146: 282244.3365 | CS146: 1053.059459 | CT146: 2034.226188 | CU146: 0 | CV146: 126 | CW146: 0 | CX146: 3213.285647 | CY146: 281191.2771 | CZ146: 0.4020858101 | DA146: 0.4020858101
B147: 126 | C147: 2036-11-06 | D147: 31 | E147: 3837 | F147: 281719.3704 | G147: 1532.274049 | H147: 2098.375455 | I147: 0 | J147: 126 | K147: 0 | L147: 3756.649503 | M147: 280187.0964 | N147: 0.3991130326 | O147: 0.3991130326 | Q147: =IFERROR(IF('Simulación Cliente'!$H$21="Simple",G147+H147+I147+J147+K147,AC147+AD147+AE147+AF147+AG147),"") -> 3756.649503 | R147: 3837 | S147: =IFERROR((1+'Simulación Cliente'!$E$21)^(R147/360),"") -> 1 | T147: 3756.65 | X147: 126 | Y147: 2036-11-06 | Z147: 31 | AA147: 3837 | AB147: 281191.2771 | AC147: 992.8436745 | AD147: 2094.441972 | AE147: 0 | AF147: 126 | AG147: 0 | AH147: 3213.285647 | AI147: 280198.4334 | AJ147: 0.3991130326 | AK147: 0.3991130326 | AO147: 126 | AP147: 2036-11-06 | AQ147: 31 | AR147: 3837 | AS147: 185347.5893 | AT147: 2724.22749 | AU147: 1380.5541 | AV147: 0 | AW147: 126 | AX147: 0 | AY147: 4230.78159 | AZ147: 182623.3618 | BA147: 0.3991130326 | BB147: 0.3991130326 | BF147: 126 | BG147: 2036-11-06 | BH147: 31 | BI147: 3837 | BJ147: 184752.9024 | BK147: 2116.714166 | BL147: 1376.124598 | BM147: 0 | BN147: 126 | BO147: 0 | BP147: 3618.838764 | BQ147: 182636.1882 | BR147: 0.3991130326 | BS147: 0.3991130326 | BW147: 126 | BX147: 2036-11-06 | BY147: 31 | BZ147: 3837 | CA147: 281719.3704 | CB147: 1532.274049 | CC147: 2098.375455 | CD147: 0 | CE147: 126 | CF147: 0 | CG147: 3756.649503 | CH147: 280187.0964 | CI147: 0.3991130326 | CJ147: 0.3991130326 | CN147: 126 | CO147: 2036-11-06 | CP147: 31 | CQ147: 3837 | CR147: 281191.2771 | CS147: 992.8436745 | CT147: 2094.441972 | CU147: 0 | CV147: 126 | CW147: 0 | CX147: 3213.285647 | CY147: 280198.4334 | CZ147: 0.3991130326 | DA147: 0.3991130326
B148: 127 | C148: 2036-12-06 | D148: 30 | E148: 3867 | F148: 280187.0964 | G148: 1611.25051 | H148: 2019.398993 | I148: 0 | J148: 126 | K148: 0 | L148: 3756.649503 | M148: 278575.8459 | N148: 0.3962570797 | O148: 0.3962570797 | Q148: =IFERROR(IF('Simulación Cliente'!$H$21="Simple",G148+H148+I148+J148+K148,AC148+AD148+AE148+AF148+AG148),"") -> 3756.649503 | R148: 3867 | S148: =IFERROR((1+'Simulación Cliente'!$E$21)^(R148/360),"") -> 1 | T148: 3756.65 | X148: 127 | Y148: 2036-12-06 | Z148: 30 | AA148: 3867 | AB148: 280198.4334 | AC148: 4281.090591 | AD148: 2019.480702 | AE148: 0 | AF148: 126 | AG148: 0 | AH148: 6426.571293 | AI148: 275917.3428 | AJ148: 0.7925141595 | AK148: 0.3962570797 | AO148: 127 | AP148: 2036-12-06 | AQ148: 30 | AR148: 3867 | AS148: 182623.3618 | AT148: 2788.555977 | AU148: 1316.225614 | AV148: 0 | AW148: 126 | AX148: 0 | AY148: 4230.78159 | AZ148: 179834.8058 | BA148: 0.3962570797 | BB148: 0.3962570797 | BF148: 127 | BG148: 2036-12-06 | BH148: 30 | BI148: 3867 | BJ148: 182636.1882 | BK148: 5795.359471 | BL148: 1316.318058 | BM148: 0 | BN148: 126 | BO148: 0 | BP148: 7237.677528 | BQ148: 176840.8287 | BR148: 0.7925141595 | BS148: 0.3962570797 | BW148: 127 | BX148: 2036-12-06 | BY148: 30 | BZ148: 3867 | CA148: 280187.0964 | CB148: 1611.25051 | CC148: 2019.398993 | CD148: 0 | CE148: 126 | CF148: 0 | CG148: 3756.649503 | CH148: 278575.8459 | CI148: 0.3962570797 | CJ148: 0.3962570797 | CN148: 127 | CO148: 2036-12-06 | CP148: 30 | CQ148: 3867 | CR148: 280198.4334 | CS148: 4281.090591 | CT148: 2019.480702 | CU148: 0 | CV148: 126 | CW148: 0 | CX148: 6426.571293 | CY148: 275917.3428 | CZ148: 0.7925141595 | DA148: 0.3962570797
B149: 128 | C149: 2037-01-06 | D149: 31 | E149: 3898 | F149: 278575.8459 | G149: 1555.688465 | H149: 2074.961038 | I149: 0 | J149: 126 | K149: 0 | L149: 3756.649503 | M149: 277020.1574 | N149: 0.3933273964 | O149: 0.3933273964 | Q149: =IFERROR(IF('Simulación Cliente'!$H$21="Simple",G149+H149+I149+J149+K149,AC149+AD149+AE149+AF149+AG149),"") -> 3756.649503 | R149: 3898 | S149: =IFERROR((1+'Simulación Cliente'!$E$21)^(R149/360),"") -> 1 | T149: 3756.65 | X149: 128 | Y149: 2037-01-06 | Z149: 31 | AA149: 3898 | AB149: 275917.3428 | AC149: 1032.126363 | AD149: 2055.159284 | AE149: 0 | AF149: 126 | AG149: 0 | AH149: 3213.285647 | AI149: 274885.2164 | AJ149: 0.3933273964 | AK149: 0.3933273964 | AO149: 128 | AP149: 2037-01-06 | AQ149: 31 | AR149: 3898 | AS149: 179834.8058 | AT149: 2765.289237 | AU149: 1339.492353 | AV149: 0 | AW149: 126 | AX149: 0 | AY149: 4230.78159 | AZ149: 177069.5166 | BA149: 0.3933273964 | BB149: 0.3933273964 | BF149: 128 | BG149: 2037-01-06 | BH149: 31 | BI149: 3898 | BJ149: 176840.8287 | BK149: 2175.64693 | BL149: 1317.191834 | BM149: 0 | BN149: 126 | BO149: 0 | BP149: 3618.838764 | BQ149: 174665.1818 | BR149: 0.3933273964 | BS149: 0.3933273964 | BW149: 128 | BX149: 2037-01-06 | BY149: 31 | BZ149: 3898 | CA149: 278575.8459 | CB149: 1555.688465 | CC149: 2074.961038 | CD149: 0 | CE149: 126 | CF149: 0 | CG149: 3756.649503 | CH149: 277020.1574 | CI149: 0.3933273964 | CJ149: 0.3933273964 | CN149: 128 | CO149: 2037-01-06 | CP149: 31 | CQ149: 3898 | CR149: 275917.3428 | CS149: 1032.126363 | CT149: 2055.159284 | CU149: 0 | CV149: 126 | CW149: 0 | CX149: 3213.285647 | CY149: 274885.2164 | CZ149: 0.3933273964 | DA149: 0.3933273964
B150: 129 | C150: 2037-02-06 | D150: 31 | E150: 3929 | F150: 277020.1574 | G150: =IF(B150>C$6,"",L150-K150-J150-I150-H150) -> 1567.275949 | H150: 2063.373554 | I150: =IF(B150>C$6,"",((1+C$12)^(D150/30)-1)*F150) -> 0 | J150: 126 | K150: =IF(B150>C$6,"",C$15) -> 0 | L150: =IF(B150>C$6,"",IF(B150=C$6,F150+H150+I150+J150+K150,IF(AND(C$9=2,MONTH(C150)=7),2*C$17,IF(AND(C$10=2,MONTH(C150)=12),2*C$17,C$17)))) -> 3756.649503 | M150: =IF(B150>C$6,"",F150-G150) -> 275452.8815 | N150: 0.3904193733 | O150: 0.3904193733 | Q150: =IFERROR(IF('Simulación Cliente'!$H$21="Simple",G150+H150+I150+J150+K150,AC150+AD150+AE150+AF150+AG150),"") -> 3756.649503 | R150: 3929 | S150: =IFERROR((1+'Simulación Cliente'!$E$21)^(R150/360),"") -> 1 | T150: 3756.65 | X150: 129 | Y150: 2037-02-06 | Z150: 31 | AA150: 3929 | AB150: 274885.2164 | AC150: 1039.814115 | AD150: 2047.471532 | AE150: =IF(X150>Y$6,"",((1+Y$12)^(Z150/30)-1)*AB150) -> 0 | AF150: 126 | AG150: =IF(X150>Y$6,"",Y$15) -> 0 | AH150: =IF(X150>Y$6,"",IF(X150=Y$6,AB150+AD150+AE150+AF150+AG150,IF(AND(Y$9=2,MONTH(Y150)=7),2*Y$17,IF(AND(Y$10=2,MONTH(Y150)=12),2*Y$17,Y$17)))) -> 3213.285647 | AI150: =IF(X150>Y$6,"",AB150-AC150) -> 273845.4023 | AJ150: 0.3904193733 | AK150: 0.3904193733 | AO150: 129 | AP150: 2037-02-06 | AQ150: 31 | AR150: 3929 | AS150: 177069.5166 | AT150: 2785.886383 | AU150: 1318.895207 | AV150: =IF(AO150>AP$6,"",((1+AP$12)^(AQ150/30)-1)*AS150) -> 0 | AW150: 126 | AX150: =IF(AO150>AP$6,"",AP$15) -> 0 | AY150: =IF(AO150>AP$6,"",IF(AO150=AP$6,AS150+AU150+AV150+AW150+AX150,IF(AND(AP$9=2,MONTH(AP150)=7),2*AP$17,IF(AND(AP$10=2,MONTH(AP150)=12),2*AP$17,AP$17)))) -> 4230.78159 | AZ150: =IF(AO150>AP$6,"",AS150-AT150) -> 174283.6302 | BA150: 0.3904193733 | BB150: 0.3904193733 | BF150: 129 | BG150: 2037-02-06 | BH150: 31 | BI150: 3929 | BJ150: 174665.1818 | BK150: 2191.852149 | BL150: 1300.986615 | BM150: =IF(BF150>BG$6,"",((1+BG$12)^(BH150/30)-1)*BJ150) -> 0 | BN150: 126 | BO150: =IF(BF150>BG$6,"",BG$15) -> 0 | BP150: =IF(BF150>BG$6,"",IF(BF150=BG$6,BJ150+BL150+BM150+BN150+BO150,IF(AND(BG$9=2,MONTH(BG150)=7),2*BG$17,IF(AND(BG$10=2,MONTH(BG150)=12),2*BG$17,BG$17)))) -> 3618.838764 | BQ150: =IF(BF150>BG$6,"",BJ150-BK150) -> 172473.3296 | BR150: 0.3904193733 | BS150: 0.3904193733 | BW150: 129 | BX150: 2037-02-06 | BY150: 31 | BZ150: 3929 | CA150: 277020.1574 | CB150: 1567.275949 | CC150: 2063.373554 | CD150: =IF(BW150>BX$6,"",((1+BX$12)^(BY150/30)-1)*CA150) -> 0 | CE150: 126 | CF150: =IF(BW150>BX$6,"",BX$15) -> 0 | CG150: =IF(BW150>BX$6,"",IF(BW150=BX$6,CA150+CC150+CD150+CE150+CF150,IF(AND(BX$9=2,MONTH(BX150)=7),2*BX$17,IF(AND(BX$10=2,MONTH(BX150)=12),2*BX$17,BX$17)))) -> 3756.649503 | CH150: =IF(BW150>BX$6,"",CA150-CB150) -> 275452.8815 | CI150: 0.3904193733 | CJ150: 0.3904193733 | CN150: 129 | CO150: 2037-02-06 | CP150: 31 | CQ150: 3929 | CR150: 274885.2164 | CS150: 1039.814115 | CT150: 2047.471532 | CU150: =IF(CN150>CO$6,"",((1+CO$12)^(CP150/30)-1)*CR150) -> 0 | CV150: 126 | CW150: =IF(CN150>CO$6,"",CO$15) -> 0 | CX150: =IF(CN150>CO$6,"",IF(CN150=CO$6,CR150+CT150+CU150+CV150+CW150,IF(AND(CO$9=2,MONTH(CO150)=7),2*CO$17,IF(AND(CO$10=2,MONTH(CO150)=12),2*CO$17,CO$17)))) -> 3213.285647 | CY150: =IF(CN150>CO$6,"",CR150-CS150) -> 273845.4023 | CZ150: 0.3904193733 | DA150: 0.3904193733
B151: 130 | C151: =IF(B151>C$6,"",EDATE(C$22,B150)) -> 2037-03-06 | D151: =IF(B151>C$6,"",C151-C150) -> 28 | E151: =IFERROR(D151+E150,"") -> 3957 | F151: =IF(B151>C$6,"",M150) -> 275452.8815 | G151: 1778.167411 | H151: 1852.482092 | I151: 0 | J151: =IF(B151>C$6,"",D$4*C$14) -> 126 | K151: 0 | L151: 3756.649503 | M151: 273674.7141 | N151: =IFERROR(IF(AND(MONTH(C151)=7,C$9=2),2/(1+C$13)^(E151/360),IF(AND(MONTH(C151)=12,C$10=2),2/(1+C$13)^(E151/360),1/(1+C$13)^(E151/360))),"") -> 0.3878112561 | O151: =IFERROR(1/(1+C$13)^(E151/360),"") -> 0.3878112561 | Q151: =IFERROR(IF('Simulación Cliente'!$H$21="Simple",G151+H151+I151+J151+K151,AC151+AD151+AE151+AF151+AG151),"") -> 3756.649503 | R151: =E151 -> 3957 | S151: =IFERROR((1+'Simulación Cliente'!$E$21)^(R151/360),"") -> 1 | T151: =IFERROR(ROUND(Q151/S151,2),"") -> 3756.65 | X151: 130 | Y151: =IF(X151>Y$6,"",EDATE(Y$22,X150)) -> 2037-03-06 | Z151: 28 | AA151: =IFERROR(Z151+AA150,"") -> 3957 | AB151: =IF(X151>Y$6,"",AI150) -> 273845.4023 | AC151: 1245.614211 | AD151: 1841.671436 | AE151: 0 | AF151: =IF(X151>Y$6,"",Z$4*Y$14) -> 126 | AG151: 0 | AH151: 3213.285647 | AI151: 272599.7881 | AJ151: =IFERROR(IF(AND(MONTH(Y151)=7,Y$9=2),2/(1+Y$13)^(AA151/360),IF(AND(MONTH(Y151)=12,Y$10=2),2/(1+Y$13)^(AA151/360),1/(1+Y$13)^(AA151/360))),"") -> 0.3878112561 | AK151: =IFERROR(1/(1+Y$13)^(AA151/360),"") -> 0.3878112561 | AO151: 130 | AP151: =IF(AO151>AP$6,"",EDATE(AP$22,AO150)) -> 2037-03-06 | AQ151: 28 | AR151: =IFERROR(AQ151+AR150,"") -> 3957 | AS151: =IF(AO151>AP$6,"",AZ150) -> 174283.6302 | AT151: 2932.685288 | AU151: 1172.096303 | AV151: 0 | AW151: =IF(AO151>AP$6,"",AQ$4*AP$14) -> 126 | AX151: 0 | AY151: 4230.78159 | AZ151: 171350.9449 | BA151: =IFERROR(IF(AND(MONTH(AP151)=7,AP$9=2),2/(1+AP$13)^(AR151/360),IF(AND(MONTH(AP151)=12,AP$10=2),2/(1+AP$13)^(AR151/360),1/(1+AP$13)^(AR151/360))),"") -> 0.3878112561 | BB151: =IFERROR(1/(1+AP$13)^(AR151/360),"") -> 0.3878112561 | BF151: 130 | BG151: =IF(BF151>BG$6,"",EDATE(BG$22,BF150)) -> 2037-03-06 | BH151: 28 | BI151: =IFERROR(BH151+BI150,"") -> 3957 | BJ151: =IF(BF151>BG$6,"",BQ150) -> 172473.3296 | BK151: 2332.917137 | BL151: 1159.921627 | BM151: 0 | BN151: =IF(BF151>BG$6,"",BH$4*BG$14) -> 126 | BO151: 0 | BP151: 3618.838764 | BQ151: 170140.4125 | BR151: =IFERROR(IF(AND(MONTH(BG151)=7,BG$9=2),2/(1+BG$13)^(BI151/360),IF(AND(MONTH(BG151)=12,BG$10=2),2/(1+BG$13)^(BI151/360),1/(1+BG$13)^(BI151/360))),"") -> 0.3878112561 | BS151: =IFERROR(1/(1+BG$13)^(BI151/360),"") -> 0.3878112561 | BW151: 130 | BX151: =IF(BW151>BX$6,"",EDATE(BX$22,BW150)) -> 2037-03-06 | BY151: 28 | BZ151: =IFERROR(BY151+BZ150,"") -> 3957 | CA151: =IF(BW151>BX$6,"",CH150) -> 275452.8815 | CB151: 1778.167411 | CC151: 1852.482092 | CD151: 0 | CE151: =IF(BW151>BX$6,"",BY$4*BX$14) -> 126 | CF151: 0 | CG151: 3756.649503 | CH151: 273674.7141 | CI151: =IFERROR(IF(AND(MONTH(BX151)=7,BX$9=2),2/(1+BX$13)^(BZ151/360),IF(AND(MONTH(BX151)=12,BX$10=2),2/(1+BX$13)^(BZ151/360),1/(1+BX$13)^(BZ151/360))),"") -> 0.3878112561 | CJ151: =IFERROR(1/(1+BX$13)^(BZ151/360),"") -> 0.3878112561 | CN151: 130 | CO151: =IF(CN151>CO$6,"",EDATE(CO$22,CN150)) -> 2037-03-06 | CP151: 28 | CQ151: =IFERROR(CP151+CQ150,"") -> 3957 | CR151: =IF(CN151>CO$6,"",CY150) -> 273845.4023 | CS151: 1245.614211 | CT151: 1841.671436 | CU151: 0 | CV151: =IF(CN151>CO$6,"",CP$4*CO$14) -> 126 | CW151: 0 | CX151: 3213.285647 | CY151: 272599.7881 | CZ151: =IFERROR(IF(AND(MONTH(CO151)=7,CO$9=2),2/(1+CO$13)^(CQ151/360),IF(AND(MONTH(CO151)=12,CO$10=2),2/(1+CO$13)^(CQ151/360),1/(1+CO$13)^(CQ151/360))),"") -> 0.3878112561 | DA151: =IFERROR(1/(1+CO$13)^(CQ151/360),"") -> 0.3878112561
B152: 131 | C152: 2037-04-06 | D152: 31 | E152: 3988 | F152: 273674.7141 | G152: 1592.19435 | H152: =IF(B152>C$6,"",((1+C$11)^(D152/360)-1)*F152) -> 2038.455153 | I152: 0 | J152: 126 | K152: 0 | L152: 3756.649503 | M152: 272082.5197 | N152: 0.384944016 | O152: 0.384944016 | Q152: =IFERROR(IF('Simulación Cliente'!$H$21="Simple",G152+H152+I152+J152+K152,AC152+AD152+AE152+AF152+AG152),"") -> 3756.649503 | R152: 3988 | S152: =IFERROR((1+'Simulación Cliente'!$E$21)^(R152/360),"") -> 1 | T152: 3756.65 | X152: 131 | Y152: 2037-04-06 | Z152: 31 | AA152: 3988 | AB152: 272599.7881 | AC152: 1056.837036 | AD152: =IF(X152>Y$6,"",((1+Y$11)^(Z152/360)-1)*AB152) -> 2030.448611 | AE152: 0 | AF152: 126 | AG152: 0 | AH152: 3213.285647 | AI152: 271542.9511 | AJ152: 0.384944016 | AK152: 0.384944016 | AO152: 131 | AP152: 2037-04-06 | AQ152: 31 | AR152: 3988 | AS152: 171350.9449 | AT152: 2828.480936 | AU152: =IF(AO152>AP$6,"",((1+AP$11)^(AQ152/360)-1)*AS152) -> 1276.300655 | AV152: 0 | AW152: 126 | AX152: 0 | AY152: 4230.78159 | AZ152: 168522.464 | BA152: 0.384944016 | BB152: 0.384944016 | BF152: 131 | BG152: 2037-04-06 | BH152: 31 | BI152: 3988 | BJ152: 170140.4125 | BK152: 2225.554712 | BL152: =IF(BF152>BG$6,"",((1+BG$11)^(BH152/360)-1)*BJ152) -> 1267.284052 | BM152: 0 | BN152: 126 | BO152: 0 | BP152: 3618.838764 | BQ152: 167914.8578 | BR152: 0.384944016 | BS152: 0.384944016 | BW152: 131 | BX152: 2037-04-06 | BY152: 31 | BZ152: 3988 | CA152: 273674.7141 | CB152: 1592.19435 | CC152: =IF(BW152>BX$6,"",((1+BX$11)^(BY152/360)-1)*CA152) -> 2038.455153 | CD152: 0 | CE152: 126 | CF152: 0 | CG152: 3756.649503 | CH152: 272082.5197 | CI152: 0.384944016 | CJ152: 0.384944016 | CN152: 131 | CO152: 2037-04-06 | CP152: 31 | CQ152: 3988 | CR152: 272599.7881 | CS152: 1056.837036 | CT152: =IF(CN152>CO$6,"",((1+CO$11)^(CP152/360)-1)*CR152) -> 2030.448611 | CU152: 0 | CV152: 126 | CW152: 0 | CX152: 3213.285647 | CY152: 271542.9511 | CZ152: 0.384944016 | DA152: 0.384944016
B153: 132 | C153: 2037-05-06 | D153: 30 | E153: 4018 | F153: 272082.5197 | G153: 1669.662815 | H153: 1960.986688 | I153: 0 | J153: 126 | K153: 0 | L153: 3756.649503 | M153: 270412.8569 | N153: 0.382189453 | O153: 0.382189453 | Q153: =IFERROR(IF('Simulación Cliente'!$H$21="Simple",G153+H153+I153+J153+K153,AC153+AD153+AE153+AF153+AG153),"") -> 3756.649503 | R153: 4018 | S153: =IFERROR((1+'Simulación Cliente'!$E$21)^(R153/360),"") -> 1 | T153: 3756.65 | X153: 132 | Y153: 2037-05-06 | Z153: =IF(X153>Y$6,"",Y153-Y152) -> 30 | AA153: 4018 | AB153: 271542.9511 | AC153: =IF(X153>Y$6,"",AH153-AG153-AF153-AE153-AD153) -> 1130.187804 | AD153: 1957.097843 | AE153: 0 | AF153: 126 | AG153: 0 | AH153: 3213.285647 | AI153: 270412.7633 | AJ153: 0.382189453 | AK153: 0.382189453 | AO153: 132 | AP153: 2037-05-06 | AQ153: =IF(AO153>AP$6,"",AP153-AP152) -> 30 | AR153: 4018 | AS153: 168522.464 | AT153: =IF(AO153>AP$6,"",AY153-AX153-AW153-AV153-AU153) -> 2890.185706 | AU153: 1214.595884 | AV153: 0 | AW153: 126 | AX153: 0 | AY153: 4230.78159 | AZ153: 165632.2783 | BA153: 0.382189453 | BB153: 0.382189453 | BF153: 132 | BG153: 2037-05-06 | BH153: =IF(BF153>BG$6,"",BG153-BG152) -> 30 | BI153: 4018 | BJ153: 167914.8578 | BK153: =IF(BF153>BG$6,"",BP153-BO153-BN153-BM153-BL153) -> 2282.622094 | BL153: 1210.21667 | BM153: 0 | BN153: 126 | BO153: 0 | BP153: 3618.838764 | BQ153: 165632.2357 | BR153: 0.382189453 | BS153: 0.382189453 | BW153: 132 | BX153: 2037-05-06 | BY153: =IF(BW153>BX$6,"",BX153-BX152) -> 30 | BZ153: 4018 | CA153: 272082.5197 | CB153: =IF(BW153>BX$6,"",CG153-CF153-CE153-CD153-CC153) -> 1669.662815 | CC153: 1960.986688 | CD153: 0 | CE153: 126 | CF153: 0 | CG153: 3756.649503 | CH153: 270412.8569 | CI153: 0.382189453 | CJ153: 0.382189453 | CN153: 132 | CO153: 2037-05-06 | CP153: =IF(CN153>CO$6,"",CO153-CO152) -> 30 | CQ153: 4018 | CR153: 271542.9511 | CS153: =IF(CN153>CO$6,"",CX153-CW153-CV153-CU153-CT153) -> 1130.187804 | CT153: 1957.097843 | CU153: 0 | CV153: 126 | CW153: 0 | CX153: 3213.285647 | CY153: 270412.7633 | CZ153: 0.382189453 | DA153: 0.382189453
B154: 133 | C154: 2037-06-06 | D154: 31 | E154: 4049 | F154: 270412.8569 | G154: 1616.490162 | H154: 2014.159341 | I154: 0 | J154: 126 | K154: 0 | L154: 3756.649503 | M154: 268796.3667 | N154: 0.3793637771 | O154: 0.3793637771 | Q154: =IFERROR(IF('Simulación Cliente'!$H$21="Simple",G154+H154+I154+J154+K154,AC154+AD154+AE154+AF154+AG154),"") -> 3756.649503 | R154: 4049 | S154: =IFERROR((1+'Simulación Cliente'!$E$21)^(R154/360),"") -> 1 | T154: 3756.65 | X154: 133 | Y154: 2037-06-06 | Z154: 31 | AA154: 4049 | AB154: 270412.7633 | AC154: 1073.127003 | AD154: 2014.158644 | AE154: 0 | AF154: 126 | AG154: 0 | AH154: 3213.285647 | AI154: 269339.6363 | AJ154: 0.3793637771 | AK154: 0.3793637771 | AO154: 133 | AP154: 2037-06-06 | AQ154: 31 | AR154: 4049 | AS154: 165632.2783 | AT154: 2871.076195 | AU154: 1233.705395 | AV154: 0 | AW154: 126 | AX154: 0 | AY154: 4230.78159 | AZ154: 162761.2021 | BA154: 0.3793637771 | BB154: 0.3793637771 | BF154: 133 | BG154: 2037-06-06 | BH154: 31 | BI154: 4049 | BJ154: 165632.2357 | BK154: 2259.133686 | BL154: 1233.705078 | BM154: 0 | BN154: 126 | BO154: 0 | BP154: 3618.838764 | BQ154: 163373.102 | BR154: 0.3793637771 | BS154: 0.3793637771 | BW154: 133 | BX154: 2037-06-06 | BY154: 31 | BZ154: 4049 | CA154: 270412.8569 | CB154: 1616.490162 | CC154: 2014.159341 | CD154: 0 | CE154: 126 | CF154: 0 | CG154: 3756.649503 | CH154: 268796.3667 | CI154: 0.3793637771 | CJ154: 0.3793637771 | CN154: 133 | CO154: 2037-06-06 | CP154: 31 | CQ154: 4049 | CR154: 270412.7633 | CS154: 1073.127003 | CT154: 2014.158644 | CU154: 0 | CV154: 126 | CW154: 0 | CX154: 3213.285647 | CY154: 269339.6363 | CZ154: 0.3793637771 | DA154: 0.3793637771
B155: 134 | C155: 2037-07-06 | D155: 30 | E155: 4079 | F155: 268796.3667 | G155: 1693.347182 | H155: 1937.302321 | I155: 0 | J155: 126 | K155: 0 | L155: 3756.649503 | M155: 267103.0196 | N155: 0.3766491449 | O155: 0.3766491449 | Q155: =IFERROR(IF('Simulación Cliente'!$H$21="Simple",G155+H155+I155+J155+K155,AC155+AD155+AE155+AF155+AG155),"") -> 3756.649503 | R155: 4079 | S155: =IFERROR((1+'Simulación Cliente'!$E$21)^(R155/360),"") -> 1 | T155: 3756.65 | X155: 134 | Y155: 2037-07-06 | Z155: 30 | AA155: 4079 | AB155: 269339.6363 | AC155: 4359.353453 | AD155: 1941.217841 | AE155: 0 | AF155: 126 | AG155: 0 | AH155: 6426.571293 | AI155: 264980.2828 | AJ155: 0.7532982899 | AK155: 0.3766491449 | AO155: 134 | AP155: 2037-07-06 | AQ155: 30 | AR155: 4079 | AS155: 162761.2021 | AT155: 2931.708984 | AU155: 1173.072607 | AV155: 0 | AW155: 126 | AX155: 0 | AY155: 4230.78159 | AZ155: 159829.4931 | BA155: 0.3766491449 | BB155: 0.3766491449 | BF155: 134 | BG155: 2037-07-06 | BH155: 30 | BI155: 4079 | BJ155: 163373.102 | BK155: 5934.194761 | BL155: 1177.482767 | BM155: 0 | BN155: 126 | BO155: 0 | BP155: 7237.677528 | BQ155: 157438.9073 | BR155: 0.7532982899 | BS155: 0.3766491449 | BW155: 134 | BX155: 2037-07-06 | BY155: 30 | BZ155: 4079 | CA155: 268796.3667 | CB155: 1693.347182 | CC155: 1937.302321 | CD155: 0 | CE155: 126 | CF155: 0 | CG155: 3756.649503 | CH155: 267103.0196 | CI155: 0.3766491449 | CJ155: 0.3766491449 | CN155: 134 | CO155: 2037-07-06 | CP155: 30 | CQ155: 4079 | CR155: 269339.6363 | CS155: 4359.353453 | CT155: 1941.217841 | CU155: 0 | CV155: 126 | CW155: 0 | CX155: 6426.571293 | CY155: 264980.2828 | CZ155: 0.7532982899 | DA155: 0.3766491449
B156: 135 | C156: 2037-08-06 | D156: 31 | E156: 4110 | F156: 267103.0196 | G156: 1641.143353 | H156: 1989.50615 | I156: 0 | J156: 126 | K156: 0 | L156: 3756.649503 | M156: 265461.8762 | N156: 0.3738644307 | O156: 0.3738644307 | Q156: =IFERROR(IF('Simulación Cliente'!$H$21="Simple",G156+H156+I156+J156+K156,AC156+AD156+AE156+AF156+AG156),"") -> 3756.649503 | R156: 4110 | S156: =IFERROR((1+'Simulación Cliente'!$E$21)^(R156/360),"") -> 1 | T156: 3756.65 | X156: 135 | Y156: 2037-08-06 | Z156: 31 | AA156: 4110 | AB156: 264980.2828 | AC156: 1113.590616 | AD156: 1973.69503 | AE156: 0 | AF156: 126 | AG156: 0 | AH156: 3213.285647 | AI156: 263866.6922 | AJ156: 0.3738644307 | AK156: 0.3738644307 | AO156: 135 | AP156: 2037-08-06 | AQ156: 31 | AR156: 4110 | AS156: 159829.4931 | AT156: 2914.298008 | AU156: 1190.483582 | AV156: 0 | AW156: 126 | AX156: 0 | AY156: 4230.78159 | AZ156: 156915.1951 | BA156: 0.3738644307 | BB156: 0.3738644307 | BF156: 135 | BG156: 2037-08-06 | BH156: 31 | BI156: 4110 | BJ156: 157438.9073 | BK156: 2320.161365 | BL156: 1172.677399 | BM156: 0 | BN156: 126 | BO156: 0 | BP156: 3618.838764 | BQ156: 155118.7459 | BR156: 0.3738644307 | BS156: 0.3738644307 | BW156: 135 | BX156: 2037-08-06 | BY156: 31 | BZ156: 4110 | CA156: 267103.0196 | CB156: 1641.143353 | CC156: 1989.50615 | CD156: 0 | CE156: 126 | CF156: 0 | CG156: 3756.649503 | CH156: 265461.8762 | CI156: 0.3738644307 | CJ156: 0.3738644307 | CN156: 135 | CO156: 2037-08-06 | CP156: 31 | CQ156: 4110 | CR156: 264980.2828 | CS156: 1113.590616 | CT156: 1973.69503 | CU156: 0 | CV156: 126 | CW156: 0 | CX156: 3213.285647 | CY156: 263866.6922 | CZ156: 0.3738644307 | DA156: 0.3738644307
B157: 136 | C157: 2037-09-06 | D157: 31 | E157: 4141 | F157: 265461.8762 | G157: 1653.367344 | H157: 1977.282159 | I157: 0 | J157: 126 | K157: 0 | L157: 3756.649503 | M157: 263808.5089 | N157: 0.3711003049 | O157: 0.3711003049 | Q157: =IFERROR(IF('Simulación Cliente'!$H$21="Simple",G157+H157+I157+J157+K157,AC157+AD157+AE157+AF157+AG157),"") -> 3756.649503 | R157: 4141 | S157: =IFERROR((1+'Simulación Cliente'!$E$21)^(R157/360),"") -> 1 | T157: 3756.65 | X157: 136 | Y157: 2037-09-06 | Z157: 31 | AA157: 4141 | AB157: 263866.6922 | AC157: 1121.885151 | AD157: 1965.400495 | AE157: 0 | AF157: 126 | AG157: 0 | AH157: 3213.285647 | AI157: 262744.8071 | AJ157: 0.3711003049 | AK157: 0.3711003049 | AO157: 136 | AP157: 2037-09-06 | AQ157: 31 | AR157: 4141 | AS157: 156915.1951 | AT157: 2936.00504 | AU157: 1168.77655 | AV157: 0 | AW157: 126 | AX157: 0 | AY157: 4230.78159 | AZ157: 153979.1901 | BA157: 0.3711003049 | BB157: 0.3711003049 | BF157: 136 | BG157: 2037-09-06 | BH157: 31 | BI157: 4141 | BJ157: 155118.7459 | BK157: 2337.442994 | BL157: 1155.39577 | BM157: 0 | BN157: 126 | BO157: 0 | BP157: 3618.838764 | BQ157: 152781.3029 | BR157: 0.3711003049 | BS157: 0.3711003049 | BW157: 136 | BX157: 2037-09-06 | BY157: 31 | BZ157: 4141 | CA157: 265461.8762 | CB157: 1653.367344 | CC157: 1977.282159 | CD157: 0 | CE157: 126 | CF157: 0 | CG157: 3756.649503 | CH157: 263808.5089 | CI157: 0.3711003049 | CJ157: 0.3711003049 | CN157: 136 | CO157: 2037-09-06 | CP157: 31 | CQ157: 4141 | CR157: 263866.6922 | CS157: 1121.885151 | CT157: 1965.400495 | CU157: 0 | CV157: 126 | CW157: 0 | CX157: 3213.285647 | CY157: 262744.8071 | CZ157: 0.3711003049 | DA157: 0.3711003049
B158: 137 | C158: 2037-10-06 | D158: 30 | E158: 4171 | F158: 263808.5089 | G158: 1729.296286 | H158: 1901.353217 | I158: 0 | J158: 126 | K158: 0 | L158: 3756.649503 | M158: 262079.2126 | N158: 0.3684448041 | O158: 0.3684448041 | Q158: =IFERROR(IF('Simulación Cliente'!$H$21="Simple",G158+H158+I158+J158+K158,AC158+AD158+AE158+AF158+AG158),"") -> 3756.649503 | R158: 4171 | S158: =IFERROR((1+'Simulación Cliente'!$E$21)^(R158/360),"") -> 1 | T158: 3756.65 | X158: 137 | Y158: 2037-10-06 | Z158: 30 | AA158: 4171 | AB158: 262744.8071 | AC158: 1193.598873 | AD158: 1893.686774 | AE158: 0 | AF158: 126 | AG158: 0 | AH158: 3213.285647 | AI158: 261551.2082 | AJ158: 0.3684448041 | AK158: 0.3684448041 | AO158: 137 | AP158: 2037-10-06 | AQ158: 30 | AR158: 4171 | AS158: 153979.1901 | AT158: 2995.003784 | AU158: 1109.777807 | AV158: 0 | AW158: 126 | AX158: 0 | AY158: 4230.78159 | AZ158: 150984.1863 | BA158: 0.3684448041 | BB158: 0.3684448041 | BF158: 137 | BG158: 2037-10-06 | BH158: 30 | BI158: 4171 | BJ158: 152781.3029 | BK158: 2391.694518 | BL158: 1101.144247 | BM158: 0 | BN158: 126 | BO158: 0 | BP158: 3618.838764 | BQ158: 150389.6084 | BR158: 0.3684448041 | BS158: 0.3684448041 | BW158: 137 | BX158: 2037-10-06 | BY158: 30 | BZ158: 4171 | CA158: 263808.5089 | CB158: 1729.296286 | CC158: 1901.353217 | CD158: 0 | CE158: 126 | CF158: 0 | CG158: 3756.649503 | CH158: 262079.2126 | CI158: 0.3684448041 | CJ158: 0.3684448041 | CN158: 137 | CO158: 2037-10-06 | CP158: 30 | CQ158: 4171 | CR158: 262744.8071 | CS158: 1193.598873 | CT158: 1893.686774 | CU158: 0 | CV158: 126 | CW158: 0 | CX158: 3213.285647 | CY158: 261551.2082 | CZ158: 0.3684448041 | DA158: 0.3684448041
B159: 138 | C159: 2037-11-06 | D159: 31 | E159: 4202 | F159: 262079.2126 | G159: 1678.562978 | H159: 1952.086525 | I159: 0 | J159: 126 | K159: 0 | L159: 3756.649503 | M159: 260400.6496 | N159: 0.3657207477 | O159: 0.3657207477 | Q159: =IFERROR(IF('Simulación Cliente'!$H$21="Simple",G159+H159+I159+J159+K159,AC159+AD159+AE159+AF159+AG159),"") -> 3756.649503 | R159: 4202 | S159: =IFERROR((1+'Simulación Cliente'!$E$21)^(R159/360),"") -> 1 | T159: 3756.65 | X159: 138 | Y159: 2037-11-06 | Z159: 31 | AA159: 4202 | AB159: 261551.2082 | AC159: 1139.131942 | AD159: 1948.153705 | AE159: 0 | AF159: 126 | AG159: 0 | AH159: 3213.285647 | AI159: 260412.0762 | AJ159: 0.3657207477 | AK159: 0.3657207477 | AO159: 138 | AP159: 2037-11-06 | AQ159: 31 | AR159: 4202 | AS159: 150984.1863 | AT159: 2980.181922 | AU159: 1124.599668 | AV159: 0 | AW159: 126 | AX159: 0 | AY159: 4230.78159 | AZ159: 148004.0044 | BA159: 0.3657207477 | BB159: 0.3657207477 | BF159: 138 | BG159: 2037-11-06 | BH159: 31 | BI159: 4202 | BJ159: 150389.6084 | BK159: 2372.667786 | BL159: 1120.170978 | BM159: 0 | BN159: 126 | BO159: 0 | BP159: 3618.838764 | BQ159: 148016.9406 | BR159: 0.3657207477 | BS159: 0.3657207477 | BW159: 138 | BX159: 2037-11-06 | BY159: 31 | BZ159: 4202 | CA159: 262079.2126 | CB159: 1678.562978 | CC159: 1952.086525 | CD159: 0 | CE159: 126 | CF159: 0 | CG159: 3756.649503 | CH159: 260400.6496 | CI159: 0.3657207477 | CJ159: 0.3657207477 | CN159: 138 | CO159: 2037-11-06 | CP159: 31 | CQ159: 4202 | CR159: 261551.2082 | CS159: 1139.131942 | CT159: 1948.153705 | CU159: 0 | CV159: 126 | CW159: 0 | CX159: 3213.285647 | CY159: 260412.0762 | CZ159: 0.3657207477 | DA159: 0.3657207477
B160: 139 | C160: 2037-12-06 | D160: 30 | E160: 4232 | F160: 260400.6496 | G160: 1753.85783 | H160: 1876.791673 | I160: 0 | J160: 126 | K160: 0 | L160: 3756.649503 | M160: 258646.7918 | N160: 0.3631037417 | O160: 0.3631037417 | Q160: =IFERROR(IF('Simulación Cliente'!$H$21="Simple",G160+H160+I160+J160+K160,AC160+AD160+AE160+AF160+AG160),"") -> 3756.649503 | R160: 4232 | S160: =IFERROR((1+'Simulación Cliente'!$E$21)^(R160/360),"") -> 1 | T160: 3756.65 | X160: 139 | Y160: 2037-12-06 | Z160: 30 | AA160: 4232 | AB160: 260412.0762 | AC160: 4423.697265 | AD160: 1876.874029 | AE160: 0 | AF160: 126 | AG160: 0 | AH160: 6426.571293 | AI160: 255988.379 | AJ160: 0.7262074833 | AK160: 0.3631037417 | AO160: 139 | AP160: 2037-12-06 | AQ160: 30 | AR160: 4232 | AS160: 148004.0044 | AT160: 3038.068879 | AU160: 1066.712711 | AV160: 0 | AW160: 126 | AX160: 0 | AY160: 4230.78159 | AZ160: 144965.9355 | BA160: 0.3631037417 | BB160: 0.3631037417 | BF160: 139 | BG160: 2037-12-06 | BH160: 30 | BI160: 4232 | BJ160: 148016.9406 | BK160: 6044.871581 | BL160: 1066.805947 | BM160: 0 | BN160: 126 | BO160: 0 | BP160: 7237.677528 | BQ160: 141972.069 | BR160: 0.7262074833 | BS160: 0.3631037417 | BW160: 139 | BX160: 2037-12-06 | BY160: 30 | BZ160: 4232 | CA160: 260400.6496 | CB160: 1753.85783 | CC160: 1876.791673 | CD160: 0 | CE160: 126 | CF160: 0 | CG160: 3756.649503 | CH160: 258646.7918 | CI160: 0.3631037417 | CJ160: 0.3631037417 | CN160: 139 | CO160: 2037-12-06 | CP160: 30 | CQ160: 4232 | CR160: 260412.0762 | CS160: 4423.697265 | CT160: 1876.874029 | CU160: 0 | CV160: 126 | CW160: 0 | CX160: 6426.571293 | CY160: 255988.379 | CZ160: 0.7262074833 | DA160: 0.3631037417
B161: 140 | C161: 2038-01-06 | D161: 31 | E161: 4263 | F161: 258646.7918 | G161: 1704.129227 | H161: 1926.520276 | I161: 0 | J161: 126 | K161: 0 | L161: 3756.649503 | M161: 256942.6625 | N161: 0.3604191739 | O161: 0.3604191739 | Q161: =IFERROR(IF('Simulación Cliente'!$H$21="Simple",G161+H161+I161+J161+K161,AC161+AD161+AE161+AF161+AG161),"") -> 3756.649503 | R161: 4263 | S161: =IFERROR((1+'Simulación Cliente'!$E$21)^(R161/360),"") -> 1 | T161: 3756.65 | X161: 140 | Y161: 2038-01-06 | Z161: 31 | AA161: 4263 | AB161: 255988.379 | AC161: 1180.566452 | AD161: 1906.719195 | AE161: 0 | AF161: 126 | AG161: 0 | AH161: 3213.285647 | AI161: 254807.8125 | AJ161: 0.3604191739 | AK161: 0.3604191739 | AO161: 140 | AP161: 2038-01-06 | AQ161: 31 | AR161: 4263 | AS161: 144965.9355 | AT161: 3025.008623 | AU161: 1079.772968 | AV161: 0 | AW161: 126 | AX161: 0 | AY161: 4230.78159 | AZ161: 141940.9269 | BA161: 0.3604191739 | BB161: 0.3604191739 | BF161: 140 | BG161: 2038-01-06 | BH161: 31 | BI161: 4263 | BJ161: 141972.069 | BK161: 2435.365491 | BL161: 1057.473273 | BM161: 0 | BN161: 126 | BO161: 0 | BP161: 3618.838764 | BQ161: 139536.7035 | BR161: 0.3604191739 | BS161: 0.3604191739 | BW161: 140 | BX161: 2038-01-06 | BY161: 31 | BZ161: 4263 | CA161: 258646.7918 | CB161: 1704.129227 | CC161: 1926.520276 | CD161: 0 | CE161: 126 | CF161: 0 | CG161: 3756.649503 | CH161: 256942.6625 | CI161: 0.3604191739 | CJ161: 0.3604191739 | CN161: 140 | CO161: 2038-01-06 | CP161: 31 | CQ161: 4263 | CR161: 255988.379 | CS161: 1180.566452 | CT161: 1906.719195 | CU161: 0 | CV161: 126 | CW161: 0 | CX161: 3213.285647 | CY161: 254807.8125 | CZ161: 0.3604191739 | DA161: 0.3604191739
B162: 141 | C162: 2038-02-06 | D162: 31 | E162: 4294 | F162: 256942.6625 | G162: 1716.822366 | H162: 1913.827137 | I162: 0 | J162: 126 | K162: 0 | L162: 3756.649503 | M162: 255225.8402 | N162: 0.3577544542 | O162: 0.3577544542 | Q162: =IFERROR(IF('Simulación Cliente'!$H$21="Simple",G162+H162+I162+J162+K162,AC162+AD162+AE162+AF162+AG162),"") -> 3756.649503 | R162: 4294 | S162: =IFERROR((1+'Simulación Cliente'!$E$21)^(R162/360),"") -> 1 | T162: 3756.65 | X162: 141 | Y162: 2038-02-06 | Z162: 31 | AA162: 4294 | AB162: 254807.8125 | AC162: 1189.359854 | AD162: 1897.925793 | AE162: 0 | AF162: 126 | AG162: 0 | AH162: 3213.285647 | AI162: 253618.4527 | AJ162: 0.3577544542 | AK162: 0.3577544542 | AO162: 141 | AP162: 2038-02-06 | AQ162: 31 | AR162: 4294 | AS162: 141940.9269 | AT162: 3047.540278 | AU162: 1057.241312 | AV162: 0 | AW162: 126 | AX162: 0 | AY162: 4230.78159 | AZ162: 138893.3866 | BA162: 0.3577544542 | BB162: 0.3577544542 | BF162: 141 | BG162: 2038-02-06 | BH162: 31 | BI162: 4294 | BJ162: 139536.7035 | BK162: 2453.505213 | BL162: 1039.333551 | BM162: 0 | BN162: 126 | BO162: 0 | BP162: 3618.838764 | BQ162: 137083.1983 | BR162: 0.3577544542 | BS162: 0.3577544542 | BW162: 141 | BX162: 2038-02-06 | BY162: 31 | BZ162: 4294 | CA162: 256942.6625 | CB162: 1716.822366 | CC162: 1913.827137 | CD162: 0 | CE162: 126 | CF162: 0 | CG162: 3756.649503 | CH162: 255225.8402 | CI162: 0.3577544542 | CJ162: 0.3577544542 | CN162: 141 | CO162: 2038-02-06 | CP162: 31 | CQ162: 4294 | CR162: 254807.8125 | CS162: 1189.359854 | CT162: 1897.925793 | CU162: 0 | CV162: 126 | CW162: 0 | CX162: 3213.285647 | CY162: 253618.4527 | CZ162: 0.3577544542 | DA162: 0.3577544542
B163: 142 | C163: 2038-03-06 | D163: 28 | E163: 4322 | F163: 255225.8402 | G163: 1914.198777 | H163: 1716.450726 | I163: 0 | J163: 126 | K163: 0 | L163: 3756.649503 | M163: 253311.6414 | N163: 0.3553645483 | O163: 0.3553645483 | Q163: =IFERROR(IF('Simulación Cliente'!$H$21="Simple",G163+H163+I163+J163+K163,AC163+AD163+AE163+AF163+AG163),"") -> 3756.649503 | R163: 4322 | S163: =IFERROR((1+'Simulación Cliente'!$E$21)^(R163/360),"") -> 1 | T163: 3756.65 | X163: 142 | Y163: 2038-03-06 | Z163: 28 | AA163: 4322 | AB163: 253618.4527 | AC163: 1381.64496 | AD163: 1705.640686 | AE163: 0 | AF163: 126 | AG163: 0 | AH163: 3213.285647 | AI163: 252236.8077 | AJ163: 0.3553645483 | AK163: 0.3553645483 | AO163: 142 | AP163: 2038-03-06 | AQ163: 28 | AR163: 4322 | AS163: 138893.3866 | AT163: 3170.692573 | AU163: 934.0890172 | AV163: 0 | AW163: 126 | AX163: 0 | AY163: 4230.78159 | AZ163: 135722.694 | BA163: 0.3553645483 | BB163: 0.3553645483 | BF163: 142 | BG163: 2038-03-06 | BH163: 28 | BI163: 4322 | BJ163: 137083.1983 | BK163: 2570.923667 | BL163: 921.9150971 | BM163: 0 | BN163: 126 | BO163: 0 | BP163: 3618.838764 | BQ163: 134512.2746 | BR163: 0.3553645483 | BS163: 0.3553645483 | BW163: 142 | BX163: 2038-03-06 | BY163: 28 | BZ163: 4322 | CA163: 255225.8402 | CB163: 1914.198777 | CC163: 1716.450726 | CD163: 0 | CE163: 126 | CF163: 0 | CG163: 3756.649503 | CH163: 253311.6414 | CI163: 0.3553645483 | CJ163: 0.3553645483 | CN163: 142 | CO163: 2038-03-06 | CP163: 28 | CQ163: 4322 | CR163: 253618.4527 | CS163: 1381.64496 | CT163: 1705.640686 | CU163: 0 | CV163: 126 | CW163: 0 | CX163: 3213.285647 | CY163: 252236.8077 | CZ163: 0.3553645483 | DA163: 0.3553645483
B164: 143 | C164: 2038-04-06 | D164: 31 | E164: 4353 | F164: 253311.6414 | G164: 1743.867881 | H164: 1886.781622 | I164: 0 | J164: 126 | K164: 0 | L164: 3756.649503 | M164: 251567.7735 | N164: 0.3527371994 | O164: 0.3527371994 | Q164: =IFERROR(IF('Simulación Cliente'!$H$21="Simple",G164+H164+I164+J164+K164,AC164+AD164+AE164+AF164+AG164),"") -> 3756.649503 | R164: 4353 | S164: =IFERROR((1+'Simulación Cliente'!$E$21)^(R164/360),"") -> 1 | T164: 3756.65 | X164: 143 | Y164: 2038-04-06 | Z164: 31 | AA164: 4353 | AB164: 252236.8077 | AC164: 1208.509881 | AD164: 1878.775766 | AE164: 0 | AF164: 126 | AG164: 0 | AH164: 3213.285647 | AI164: 251028.2978 | AJ164: 0.3527371994 | AK164: 0.3527371994 | AO164: 143 | AP164: 2038-04-06 | AQ164: 31 | AR164: 4353 | AS164: 135722.694 | AT164: 3093.856537 | AU164: 1010.925054 | AV164: 0 | AW164: 126 | AX164: 0 | AY164: 4230.78159 | AZ164: 132628.8375 | BA164: 0.3527371994 | BB164: 0.3527371994 | BF164: 143 | BG164: 2038-04-06 | BH164: 31 | BI164: 4353 | BJ164: 134512.2746 | BK164: 2490.929471 | BL164: 1001.909294 | BM164: 0 | BN164: 126 | BO164: 0 | BP164: 3618.838764 | BQ164: 132021.3452 | BR164: 0.3527371994 | BS164: 0.3527371994 | BW164: 143 | BX164: 2038-04-06 | BY164: 31 | BZ164: 4353 | CA164: 253311.6414 | CB164: 1743.867881 | CC164: 1886.781622 | CD164: 0 | CE164: 126 | CF164: 0 | CG164: 3756.649503 | CH164: 251567.7735 | CI164: 0.3527371994 | CJ164: 0.3527371994 | CN164: 143 | CO164: 2038-04-06 | CP164: 31 | CQ164: 4353 | CR164: 252236.8077 | CS164: 1208.509881 | CT164: 1878.775766 | CU164: 0 | CV164: 126 | CW164: 0 | CX164: 3213.285647 | CY164: 251028.2978 | CZ164: 0.3527371994 | DA164: 0.3527371994
B165: 144 | C165: 2038-05-06 | D165: 30 | E165: 4383 | F165: 251567.7735 | G165: 1817.519223 | H165: 1813.13028 | I165: 0 | J165: 126 | K165: 0 | L165: 3756.649503 | M165: 249750.2543 | N165: 0.3502131003 | O165: 0.3502131003 | Q165: =IFERROR(IF('Simulación Cliente'!$H$21="Simple",G165+H165+I165+J165+K165,AC165+AD165+AE165+AF165+AG165),"") -> 3756.649503 | R165: 4383 | S165: =IFERROR((1+'Simulación Cliente'!$E$21)^(R165/360),"") -> 1 | T165: 3756.65 | X165: 144 | Y165: 2038-05-06 | Z165: 30 | AA165: 4383 | AB165: 251028.2978 | AC165: 1278.043543 | AD165: 1809.242104 | AE165: 0 | AF165: 126 | AG165: 0 | AH165: 3213.285647 | AI165: 249750.2543 | AJ165: 0.3502131003 | AK165: 0.3502131003 | AO165: 144 | AP165: 2038-05-06 | AQ165: 30 | AR165: 4383 | AS165: 132628.8375 | AT165: 3148.882678 | AU165: 955.8989127 | AV165: 0 | AW165: 126 | AX165: 0 | AY165: 4230.78159 | AZ165: 129479.9548 | BA165: 0.3502131003 | BB165: 0.3502131003 | BF165: 144 | BG165: 2038-05-06 | BH165: 30 | BI165: 4383 | BJ165: 132021.3452 | BK165: 2541.318245 | BL165: 951.5205192 | BM165: 0 | BN165: 126 | BO165: 0 | BP165: 3618.838764 | BQ165: 129480.0269 | BR165: 0.3502131003 | BS165: 0.3502131003 | BW165: 144 | BX165: 2038-05-06 | BY165: 30 | BZ165: 4383 | CA165: 251567.7735 | CB165: 1817.519223 | CC165: 1813.13028 | CD165: 0 | CE165: 126 | CF165: 0 | CG165: 3756.649503 | CH165: 249750.2543 | CI165: 0.3502131003 | CJ165: 0.3502131003 | CN165: 144 | CO165: 2038-05-06 | CP165: 30 | CQ165: 4383 | CR165: 251028.2978 | CS165: 1278.043543 | CT165: 1809.242104 | CU165: 0 | CV165: 126 | CW165: 0 | CX165: 3213.285647 | CY165: 249750.2543 | CZ165: 0.3502131003 | DA165: 0.3502131003
B166: 145 | C166: 2038-06-06 | D166: 31 | E166: 4414 | F166: 249750.2543 | G166: 1770.394731 | H166: 1860.254772 | I166: 0 | J166: 126 | K166: 0 | L166: 3756.649503 | M166: 247979.8596 | N166: 0.3476238381 | O166: 0.3476238381 | Q166: =IFERROR(IF('Simulación Cliente'!$H$21="Simple",G166+H166+I166+J166+K166,AC166+AD166+AE166+AF166+AG166),"") -> 3756.649503 | R166: 4414 | S166: =IFERROR((1+'Simulación Cliente'!$E$21)^(R166/360),"") -> 1 | T166: 3756.65 | X166: 145 | Y166: 2038-06-06 | Z166: 31 | AA166: 4414 | AB166: 249750.2543 | AC166: 1227.030874 | AD166: 1860.254772 | AE166: 0 | AF166: 126 | AG166: 0 | AH166: 3213.285647 | AI166: 248523.2234 | AJ166: 0.3476238381 | AK166: 0.3476238381 | AO166: 145 | AP166: 2038-06-06 | AQ166: 31 | AR166: 4414 | AS166: 129479.9548 | AT166: 3140.35533 | AU166: 964.4262606 | AV166: 0 | AW166: 126 | AX166: 0 | AY166: 4230.78159 | AZ166: 126339.5995 | BA166: 0.3476238381 | BB166: 0.3476238381 | BF166: 145 | BG166: 2038-06-06 | BH166: 31 | BI166: 4414 | BJ166: 129480.0269 | BK166: 2528.411966 | BL166: 964.4267979 | BM166: 0 | BN166: 126 | BO166: 0 | BP166: 3618.838764 | BQ166: 126951.615 | BR166: 0.3476238381 | BS166: 0.3476238381 | BW166: 145 | BX166: 2038-06-06 | BY166: 31 | BZ166: 4414 | CA166: 249750.2543 | CB166: 1770.394731 | CC166: 1860.254772 | CD166: 0 | CE166: 126 | CF166: 0 | CG166: 3756.649503 | CH166: 247979.8596 | CI166: 0.3476238381 | CJ166: 0.3476238381 | CN166: 145 | CO166: 2038-06-06 | CP166: 31 | CQ166: 4414 | CR166: 249750.2543 | CS166: 1227.030874 | CT166: 1860.254772 | CU166: 0 | CV166: 126 | CW166: 0 | CX166: 3213.285647 | CY166: 248523.2234 | CZ166: 0.3476238381 | DA166: 0.3476238381
B167: 146 | C167: 2038-07-06 | D167: 30 | E167: 4444 | F167: 247979.8596 | G167: 1843.378479 | H167: 1787.271024 | I167: 0 | J167: 126 | K167: 0 | L167: 3756.649503 | M167: 246136.4811 | N167: 0.345136329 | O167: 0.345136329 | Q167: =IFERROR(IF('Simulación Cliente'!$H$21="Simple",G167+H167+I167+J167+K167,AC167+AD167+AE167+AF167+AG167),"") -> 3756.649503 | R167: 4444 | S167: =IFERROR((1+'Simulación Cliente'!$E$21)^(R167/360),"") -> 1 | T167: 3756.65 | X167: 146 | Y167: 2038-07-06 | Z167: 30 | AA167: 4444 | AB167: 248523.2234 | AC167: 4509.384071 | AD167: 1791.187223 | AE167: 0 | AF167: 126 | AG167: 0 | AH167: 6426.571293 | AI167: 244013.8393 | AJ167: 0.6902726579 | AK167: 0.345136329 | AO167: 146 | AP167: 2038-07-06 | AQ167: 30 | AR167: 4444 | AS167: 126339.5995 | AT167: 3194.21125 | AU167: 910.5703409 | AV167: 0 | AW167: 126 | AX167: 0 | AY167: 4230.78159 | AZ167: 123145.3882 | BA167: 0.345136329 | BB167: 0.345136329 | BF167: 146 | BG167: 2038-07-06 | BH167: 30 | BI167: 4444 | BJ167: 126951.615 | BK167: 6196.696194 | BL167: 914.9813345 | BM167: 0 | BN167: 126 | BO167: 0 | BP167: 7237.677528 | BQ167: 120754.9188 | BR167: 0.6902726579 | BS167: 0.345136329 | BW167: 146 | BX167: 2038-07-06 | BY167: 30 | BZ167: 4444 | CA167: 247979.8596 | CB167: 1843.378479 | CC167: 1787.271024 | CD167: 0 | CE167: 126 | CF167: 0 | CG167: 3756.649503 | CH167: 246136.4811 | CI167: 0.345136329 | CJ167: 0.345136329 | CN167: 146 | CO167: 2038-07-06 | CP167: 30 | CQ167: 4444 | CR167: 248523.2234 | CS167: 4509.384071 | CT167: 1791.187223 | CU167: 0 | CV167: 126 | CW167: 0 | CX167: 6426.571293 | CY167: 244013.8393 | CZ167: 0.6902726579 | DA167: 0.345136329
B168: 147 | C168: 2038-08-06 | D168: 31 | E168: 4475 | F168: 246136.4811 | G168: 1797.311776 | H168: 1833.337727 | I168: 0 | J168: 126 | K168: 0 | L168: 3756.649503 | M168: 244339.1693 | N168: 0.3425846013 | O168: 0.3425846013 | Q168: =IFERROR(IF('Simulación Cliente'!$H$21="Simple",G168+H168+I168+J168+K168,AC168+AD168+AE168+AF168+AG168),"") -> 3756.649503 | R168: 4475 | S168: =IFERROR((1+'Simulación Cliente'!$E$21)^(R168/360),"") -> 1 | T168: 3756.65 | X168: 147 | Y168: 2038-08-06 | Z168: 31 | AA168: 4475 | AB168: 244013.8393 | AC168: 1269.758331 | AD168: 1817.527315 | AE168: 0 | AF168: 126 | AG168: 0 | AH168: 3213.285647 | AI168: 242744.081 | AJ168: 0.3425846013 | AK168: 0.3425846013 | AO168: 147 | AP168: 2038-08-06 | AQ168: 31 | AR168: 4475 | AS168: 123145.3882 | AT168: 3187.538095 | AU168: 917.243495 | AV168: 0 | AW168: 126 | AX168: 0 | AY168: 4230.78159 | AZ168: 119957.8501 | BA168: 0.3425846013 | BB168: 0.3425846013 | BF168: 147 | BG168: 2038-08-06 | BH168: 31 | BI168: 4475 | BJ168: 120754.9188 | BK168: 2593.400585 | BL168: 899.438179 | BM168: 0 | BN168: 126 | BO168: 0 | BP168: 3618.838764 | BQ168: 118161.5182 | BR168: 0.3425846013 | BS168: 0.3425846013 | BW168: 147 | BX168: 2038-08-06 | BY168: 31 | BZ168: 4475 | CA168: 246136.4811 | CB168: 1797.311776 | CC168: 1833.337727 | CD168: 0 | CE168: 126 | CF168: 0 | CG168: 3756.649503 | CH168: 244339.1693 | CI168: 0.3425846013 | CJ168: 0.3425846013 | CN168: 147 | CO168: 2038-08-06 | CP168: 31 | CQ168: 4475 | CR168: 244013.8393 | CS168: 1269.758331 | CT168: 1817.527315 | CU168: 0 | CV168: 126 | CW168: 0 | CX168: 3213.285647 | CY168: 242744.081 | CZ168: 0.3425846013 | DA168: 0.3425846013
B169: 148 | C169: 2038-09-06 | D169: 31 | E169: 4506 | F169: 244339.1693 | G169: 1810.698981 | H169: 1819.950523 | I169: 0 | J169: 126 | K169: 0 | L169: 3756.649503 | M169: 242528.4703 | N169: 0.3400517395 | O169: 0.3400517395 | Q169: =IFERROR(IF('Simulación Cliente'!$H$21="Simple",G169+H169+I169+J169+K169,AC169+AD169+AE169+AF169+AG169),"") -> 3756.649503 | R169: 4506 | S169: =IFERROR((1+'Simulación Cliente'!$E$21)^(R169/360),"") -> 1 | T169: 3756.65 | X169: 148 | Y169: 2038-09-06 | Z169: 31 | AA169: 4506 | AB169: 242744.081 | AC169: 1279.216075 | AD169: 1808.069571 | AE169: 0 | AF169: 126 | AG169: 0 | AH169: 3213.285647 | AI169: 241464.8649 | AJ169: 0.3400517395 | AK169: 0.3400517395 | AO169: 148 | AP169: 2038-09-06 | AQ169: 31 | AR169: 4506 | AS169: 119957.8501 | AT169: 3211.280345 | AU169: 893.5012451 | AV169: 0 | AW169: 126 | AX169: 0 | AY169: 4230.78159 | AZ169: 116746.5698 | BA169: 0.3400517395 | BB169: 0.3400517395 | BF169: 148 | BG169: 2038-09-06 | BH169: 31 | BI169: 4506 | BJ169: 118161.5182 | BK169: 2612.717426 | BL169: 880.1213385 | BM169: 0 | BN169: 126 | BO169: 0 | BP169: 3618.838764 | BQ169: 115548.8007 | BR169: 0.3400517395 | BS169: 0.3400517395 | BW169: 148 | BX169: 2038-09-06 | BY169: 31 | BZ169: 4506 | CA169: 244339.1693 | CB169: 1810.698981 | CC169: 1819.950523 | CD169: 0 | CE169: 126 | CF169: 0 | CG169: 3756.649503 | CH169: 242528.4703 | CI169: 0.3400517395 | CJ169: 0.3400517395 | CN169: 148 | CO169: 2038-09-06 | CP169: 31 | CQ169: 4506 | CR169: 242744.081 | CS169: 1279.216075 | CT169: 1808.069571 | CU169: 0 | CV169: 126 | CW169: 0 | CX169: 3213.285647 | CY169: 241464.8649 | CZ169: 0.3400517395 | DA169: 0.3400517395
B170: 149 | C170: 2038-10-06 | D170: 30 | E170: 4536 | F170: 242528.4703 | G170: 1882.668404 | H170: 1747.981099 | I170: 0 | J170: 126 | K170: 0 | L170: 3756.649503 | M170: 240645.8019 | N170: 0.3376184144 | O170: 0.3376184144 | Q170: =IFERROR(IF('Simulación Cliente'!$H$21="Simple",G170+H170+I170+J170+K170,AC170+AD170+AE170+AF170+AG170),"") -> 3756.649503 | R170: 4536 | S170: =IFERROR((1+'Simulación Cliente'!$E$21)^(R170/360),"") -> 1 | T170: 3756.65 | X170: 149 | Y170: 2038-10-06 | Z170: 30 | AA170: 4536 | AB170: 241464.8649 | AC170: 1346.970296 | AD170: 1740.315351 | AE170: 0 | AF170: 126 | AG170: 0 | AH170: 3213.285647 | AI170: 240117.8946 | AJ170: 0.3376184144 | AK170: 0.3376184144 | AO170: 149 | AP170: 2038-10-06 | AQ170: 30 | AR170: 4536 | AS170: 116746.5698 | AT170: 3263.351316 | AU170: 841.4302744 | AV170: 0 | AW170: 126 | AX170: 0 | AY170: 4230.78159 | AZ170: 113483.2185 | BA170: 0.3376184144 | BB170: 0.3376184144 | BF170: 149 | BG170: 2038-10-06 | BH170: 30 | BI170: 4536 | BJ170: 115548.8007 | BK170: 2660.041198 | BL170: 832.7975658 | BM170: 0 | BN170: 126 | BO170: 0 | BP170: 3618.838764 | BQ170: 112888.7596 | BR170: 0.3376184144 | BS170: 0.3376184144 | BW170: 149 | BX170: 2038-10-06 | BY170: 30 | BZ170: 4536 | CA170: 242528.4703 | CB170: 1882.668404 | CC170: 1747.981099 | CD170: 0 | CE170: 126 | CF170: 0 | CG170: 3756.649503 | CH170: 240645.8019 | CI170: 0.3376184144 | CJ170: 0.3376184144 | CN170: 149 | CO170: 2038-10-06 | CP170: 30 | CQ170: 4536 | CR170: 241464.8649 | CS170: 1346.970296 | CT170: 1740.315351 | CU170: 0 | CV170: 126 | CW170: 0 | CX170: 3213.285647 | CY170: 240117.8946 | CZ170: 0.3376184144 | DA170: 0.3376184144
B171: 150 | C171: 2038-11-06 | D171: 31 | E171: 4567 | F171: 240645.8019 | G171: 1838.20888 | H171: 1792.440623 | I171: 0 | J171: 126 | K171: 0 | L171: 3756.649503 | M171: 238807.593 | N171: 0.3351222696 | O171: 0.3351222696 | Q171: =IFERROR(IF('Simulación Cliente'!$H$21="Simple",G171+H171+I171+J171+K171,AC171+AD171+AE171+AF171+AG171),"") -> 3756.649503 | R171: 4567 | S171: =IFERROR((1+'Simulación Cliente'!$E$21)^(R171/360),"") -> 1 | T171: 3756.65 | X171: 150 | Y171: 2038-11-06 | Z171: 31 | AA171: 4567 | AB171: 240117.8946 | AC171: 1298.77712 | AD171: 1788.508527 | AE171: 0 | AF171: 126 | AG171: 0 | AH171: 3213.285647 | AI171: 238819.1175 | AJ171: 0.3351222696 | AK171: 0.3351222696 | AO171: 150 | AP171: 2038-11-06 | AQ171: 31 | AR171: 4567 | AS171: 113483.2185 | AT171: 3259.50638 | AU171: 845.2752103 | AV171: 0 | AW171: 126 | AX171: 0 | AY171: 4230.78159 | AZ171: 110223.7121 | BA171: 0.3351222696 | BB171: 0.3351222696 | BF171: 150 | BG171: 2038-11-06 | BH171: 31 | BI171: 4567 | BJ171: 112888.7596 | BK171: 2651.991357 | BL171: 840.847407 | BM171: 0 | BN171: 126 | BO171: 0 | BP171: 3618.838764 | BQ171: 110236.7682 | BR171: 0.3351222696 | BS171: 0.3351222696 | BW171: 150 | BX171: 2038-11-06 | BY171: 31 | BZ171: 4567 | CA171: 240645.8019 | CB171: 1838.20888 | CC171: 1792.440623 | CD171: 0 | CE171: 126 | CF171: 0 | CG171: 3756.649503 | CH171: 238807.593 | CI171: 0.3351222696 | CJ171: 0.3351222696 | CN171: 150 | CO171: 2038-11-06 | CP171: 31 | CQ171: 4567 | CR171: 240117.8946 | CS171: 1298.77712 | CT171: 1788.508527 | CU171: 0 | CV171: 126 | CW171: 0 | CX171: 3213.285647 | CY171: 238819.1175 | CZ171: 0.3351222696 | DA171: 0.3351222696
B172: 151 | C172: 2038-12-06 | D172: 30 | E172: 4597 | F172: 238807.593 | G172: 1909.48597 | H172: 1721.163533 | I172: 0 | J172: 126 | K172: 0 | L172: 3756.649503 | M172: 236898.1071 | N172: 0.3327242186 | O172: 0.3327242186 | Q172: =IFERROR(IF('Simulación Cliente'!$H$21="Simple",G172+H172+I172+J172+K172,AC172+AD172+AE172+AF172+AG172),"") -> 3756.649503 | R172: 4597 | S172: =IFERROR((1+'Simulación Cliente'!$E$21)^(R172/360),"") -> 1 | T172: 3756.65 | X172: 151 | Y172: 2038-12-06 | Z172: 30 | AA172: 4597 | AB172: 238819.1175 | AC172: 4579.324699 | AD172: 1721.246594 | AE172: 0 | AF172: 126 | AG172: 0 | AH172: 6426.571293 | AI172: 234239.7928 | AJ172: 0.6654484372 | AK172: 0.3327242186 | AO172: 151 | AP172: 2038-12-06 | AQ172: 30 | AR172: 4597 | AS172: 110223.7121 | AT172: 3310.36366 | AU172: 794.41793 | AV172: 0 | AW172: 126 | AX172: 0 | AY172: 4230.78159 | AZ172: 106913.3484 | BA172: 0.3327242186 | BB172: 0.3327242186 | BF172: 151 | BG172: 2038-12-06 | BH172: 30 | BI172: 4597 | BJ172: 110236.7682 | BK172: 6317.165499 | BL172: 794.5120297 | BM172: 0 | BN172: 126 | BO172: 0 | BP172: 7237.677528 | BQ172: 103919.6027 | BR172: 0.6654484372 | BS172: 0.3327242186 | BW172: 151 | BX172: 2038-12-06 | BY172: 30 | BZ172: 4597 | CA172: 238807.593 | CB172: 1909.48597 | CC172: 1721.163533 | CD172: 0 | CE172: 126 | CF172: 0 | CG172: 3756.649503 | CH172: 236898.1071 | CI172: 0.3327242186 | CJ172: 0.3327242186 | CN172: 151 | CO172: 2038-12-06 | CP172: 30 | CQ172: 4597 | CR172: 238819.1175 | CS172: 4579.324699 | CT172: 1721.246594 | CU172: 0 | CV172: 126 | CW172: 0 | CX172: 6426.571293 | CY172: 234239.7928 | CZ172: 0.6654484372 | DA172: 0.3327242186
B173: 152 | C173: 2039-01-06 | D173: 31 | E173: 4628 | F173: 236898.1071 | G173: 1866.123435 | H173: 1764.526068 | I173: 0 | J173: 126 | K173: 0 | L173: 3756.649503 | M173: 235031.9836 | N173: 0.3302642585 | O173: 0.3302642585 | Q173: =IFERROR(IF('Simulación Cliente'!$H$21="Simple",G173+H173+I173+J173+K173,AC173+AD173+AE173+AF173+AG173),"") -> 3756.649503 | R173: 4628 | S173: =IFERROR((1+'Simulación Cliente'!$E$21)^(R173/360),"") -> 1 | T173: 3756.65 | X173: 152 | Y173: 2039-01-06 | Z173: 31 | AA173: 4628 | AB173: 234239.7928 | AC173: 1342.559926 | AD173: 1744.725721 | AE173: 0 | AF173: 126 | AG173: 0 | AH173: 3213.285647 | AI173: 232897.2329 | AJ173: 0.3302642585 | AK173: 0.3302642585 | AO173: 152 | AP173: 2039-01-06 | AQ173: 31 | AR173: 4628 | AS173: 106913.3484 | AT173: 3308.441794 | AU173: 796.3397963 | AV173: 0 | AW173: 126 | AX173: 0 | AY173: 4230.78159 | AZ173: 103604.9066 | BA173: 0.3302642585 | BB173: 0.3302642585 | BF173: 152 | BG173: 2039-01-06 | BH173: 31 | BI173: 4628 | BJ173: 103919.6027 | BK173: 2718.797763 | BL173: 774.0410011 | BM173: 0 | BN173: 126 | BO173: 0 | BP173: 3618.838764 | BQ173: 101200.8049 | BR173: 0.3302642585 | BS173: 0.3302642585 | BW173: 152 | BX173: 2039-01-06 | BY173: 31 | BZ173: 4628 | CA173: 236898.1071 | CB173: 1866.123435 | CC173: 1764.526068 | CD173: 0 | CE173: 126 | CF173: 0 | CG173: 3756.649503 | CH173: 235031.9836 | CI173: 0.3302642585 | CJ173: 0.3302642585 | CN173: 152 | CO173: 2039-01-06 | CP173: 31 | CQ173: 4628 | CR173: 234239.7928 | CS173: 1342.559926 | CT173: 1744.725721 | CU173: 0 | CV173: 126 | CW173: 0 | CX173: 3213.285647 | CY173: 232897.2329 | CZ173: 0.3302642585 | DA173: 0.3302642585
B174: 153 | C174: 2039-02-06 | D174: 31 | E174: 4659 | F174: 235031.9836 | G174: 1880.023181 | H174: 1750.626323 | I174: 0 | J174: 126 | K174: 0 | L174: 3756.649503 | M174: 233151.9605 | N174: 0.3278224858 | O174: 0.3278224858 | Q174: =IFERROR(IF('Simulación Cliente'!$H$21="Simple",G174+H174+I174+J174+K174,AC174+AD174+AE174+AF174+AG174),"") -> 3756.649503 | R174: 4659 | S174: =IFERROR((1+'Simulación Cliente'!$E$21)^(R174/360),"") -> 1 | T174: 3756.65 | X174: 153 | Y174: 2039-02-06 | Z174: 31 | AA174: 4659 | AB174: 232897.2329 | AC174: 1352.55993 | AD174: 1734.725717 | AE174: 0 | AF174: 126 | AG174: 0 | AH174: 3213.285647 | AI174: 231544.673 | AJ174: 0.3278224858 | AK174: 0.3278224858 | AO174: 153 | AP174: 2039-02-06 | AQ174: 31 | AR174: 4659 | AS174: 103604.9066 | AT174: 3333.08459 | AU174: 771.697 | AV174: 0 | AW174: 126 | AX174: 0 | AY174: 4230.78159 | AZ174: 100271.822 | BA174: 0.3278224858 | BB174: 0.3278224858 | BF174: 153 | BG174: 2039-02-06 | BH174: 31 | BI174: 4659 | BJ174: 101200.8049 | BK174: 2739.048619 | BL174: 753.7901448 | BM174: 0 | BN174: 126 | BO174: 0 | BP174: 3618.838764 | BQ174: 98461.75631 | BR174: 0.3278224858 | BS174: 0.3278224858 | BW174: 153 | BX174: 2039-02-06 | BY174: 31 | BZ174: 4659 | CA174: 235031.9836 | CB174: 1880.023181 | CC174: 1750.626323 | CD174: 0 | CE174: 126 | CF174: 0 | CG174: 3756.649503 | CH174: 233151.9605 | CI174: 0.3278224858 | CJ174: 0.3278224858 | CN174: 153 | CO174: 2039-02-06 | CP174: 31 | CQ174: 4659 | CR174: 232897.2329 | CS174: 1352.55993 | CT174: 1734.725717 | CU174: 0 | CV174: 126 | CW174: 0 | CX174: 3213.285647 | CY174: 231544.673 | CZ174: 0.3278224858 | DA174: 0.3278224858
B175: 154 | C175: 2039-03-06 | D175: 28 | E175: 4687 | F175: 233151.9605 | G175: 2062.650544 | H175: 1567.998959 | I175: 0 | J175: 126 | K175: 0 | L175: 3756.649503 | M175: 231089.3099 | N175: 0.3256325344 | O175: 0.3256325344 | Q175: =IFERROR(IF('Simulación Cliente'!$H$21="Simple",G175+H175+I175+J175+K175,AC175+AD175+AE175+AF175+AG175),"") -> 3756.649503 | R175: 4687 | S175: =IFERROR((1+'Simulación Cliente'!$E$21)^(R175/360),"") -> 1 | T175: 3756.65 | X175: 154 | Y175: 2039-03-06 | Z175: 28 | AA175: 4687 | AB175: 231544.673 | AC175: 1530.096054 | AD175: 1557.189592 | AE175: 0 | AF175: 126 | AG175: 0 | AH175: 3213.285647 | AI175: 230014.5769 | AJ175: 0.3256325344 | AK175: 0.3256325344 | AO175: 154 | AP175: 2039-03-06 | AQ175: 28 | AR175: 4687 | AS175: 100271.822 | AT175: 3430.431213 | AU175: 674.3503776 | AV175: 0 | AW175: 126 | AX175: 0 | AY175: 4230.78159 | AZ175: 96841.39081 | BA175: 0.3256325344 | BB175: 0.3256325344 | BF175: 154 | BG175: 2039-03-06 | BH175: 28 | BI175: 4687 | BJ175: 98461.75631 | BK175: 2830.661482 | BL175: 662.1772818 | BM175: 0 | BN175: 126 | BO175: 0 | BP175: 3618.838764 | BQ175: 95631.09483 | BR175: 0.3256325344 | BS175: 0.3256325344 | BW175: 154 | BX175: 2039-03-06 | BY175: 28 | BZ175: 4687 | CA175: 233151.9605 | CB175: 2062.650544 | CC175: 1567.998959 | CD175: 0 | CE175: 126 | CF175: 0 | CG175: 3756.649503 | CH175: 231089.3099 | CI175: 0.3256325344 | CJ175: 0.3256325344 | CN175: 154 | CO175: 2039-03-06 | CP175: 28 | CQ175: 4687 | CR175: 231544.673 | CS175: 1530.096054 | CT175: 1557.189592 | CU175: 0 | CV175: 126 | CW175: 0 | CX175: 3213.285647 | CY175: 230014.5769 | CZ175: 0.3256325344 | DA175: 0.3256325344
B176: 155 | C176: 2039-04-06 | D176: 31 | E176: 4718 | F176: 231089.3099 | G176: 1909.390028 | H176: 1721.259475 | I176: 0 | J176: 126 | K176: 0 | L176: 3756.649503 | M176: 229179.9199 | N176: 0.3232250059 | O176: 0.3232250059 | Q176: =IFERROR(IF('Simulación Cliente'!$H$21="Simple",G176+H176+I176+J176+K176,AC176+AD176+AE176+AF176+AG176),"") -> 3756.649503 | R176: 4718 | S176: =IFERROR((1+'Simulación Cliente'!$E$21)^(R176/360),"") -> 1 | T176: 3756.65 | X176: 155 | Y176: 2039-04-06 | Z176: 31 | AA176: 4718 | AB176: 230014.5769 | AC176: 1374.031277 | AD176: 1713.254369 | AE176: 0 | AF176: 126 | AG176: 0 | AH176: 3213.285647 | AI176: 228640.5456 | AJ176: 0.3232250059 | AK176: 0.3232250059 | AO176: 155 | AP176: 2039-04-06 | AQ176: 31 | AR176: 4718 | AS176: 96841.39081 | AT176: 3383.462367 | AU176: 721.3192232 | AV176: 0 | AW176: 126 | AX176: 0 | AY176: 4230.78159 | AZ176: 93457.92845 | BA176: 0.3232250059 | BB176: 0.3232250059 | BF176: 155 | BG176: 2039-04-06 | BH176: 31 | BI176: 4718 | BJ176: 95631.09483 | BK176: 2780.534382 | BL176: 712.3043821 | BM176: 0 | BN176: 126 | BO176: 0 | BP176: 3618.838764 | BQ176: 92850.56045 | BR176: 0.3232250059 | BS176: 0.3232250059 | BW176: 155 | BX176: 2039-04-06 | BY176: 31 | BZ176: 4718 | CA176: 231089.3099 | CB176: 1909.390028 | CC176: 1721.259475 | CD176: 0 | CE176: 126 | CF176: 0 | CG176: 3756.649503 | CH176: 229179.9199 | CI176: 0.3232250059 | CJ176: 0.3232250059 | CN176: 155 | CO176: 2039-04-06 | CP176: 31 | CQ176: 4718 | CR176: 230014.5769 | CS176: 1374.031277 | CT176: 1713.254369 | CU176: 0 | CV176: 126 | CW176: 0 | CX176: 3213.285647 | CY176: 228640.5456 | CZ176: 0.3232250059 | DA176: 0.3232250059
B177: 156 | C177: 2039-05-06 | D177: 30 | E177: 4748 | F177: 229179.9199 | G177: 1978.875723 | H177: 1651.77378 | I177: 0 | J177: 126 | K177: 0 | L177: 3756.649503 | M177: 227201.0442 | N177: 0.3209120887 | O177: 0.3209120887 | Q177: =IFERROR(IF('Simulación Cliente'!$H$21="Simple",G177+H177+I177+J177+K177,AC177+AD177+AE177+AF177+AG177),"") -> 3756.649503 | R177: 4748 | S177: =IFERROR((1+'Simulación Cliente'!$E$21)^(R177/360),"") -> 1 | T177: 3756.65 | X177: 156 | Y177: 2039-05-06 | Z177: 30 | AA177: 4748 | AB177: 228640.5456 | AC177: 1439.399311 | AD177: 1647.886336 | AE177: 0 | AF177: 126 | AG177: 0 | AH177: 3213.285647 | AI177: 227201.1463 | AJ177: 0.3209120887 | AK177: 0.3209120887 | AO177: 156 | AP177: 2039-05-06 | AQ177: 30 | AR177: 4748 | AS177: 93457.92845 | AT177: 3431.200084 | AU177: 673.5815068 | AV177: 0 | AW177: 126 | AX177: 0 | AY177: 4230.78159 | AZ177: 90026.72836 | BA177: 0.3209120887 | BB177: 0.3209120887 | BF177: 156 | BG177: 2039-05-06 | BH177: 30 | BI177: 4748 | BJ177: 92850.56045 | BK177: 2823.634755 | BL177: 669.2040092 | BM177: 0 | BN177: 126 | BO177: 0 | BP177: 3618.838764 | BQ177: 90026.92569 | BR177: 0.3209120887 | BS177: 0.3209120887 | BW177: 156 | BX177: 2039-05-06 | BY177: 30 | BZ177: 4748 | CA177: 229179.9199 | CB177: 1978.875723 | CC177: 1651.77378 | CD177: 0 | CE177: 126 | CF177: 0 | CG177: 3756.649503 | CH177: 227201.0442 | CI177: 0.3209120887 | CJ177: 0.3209120887 | CN177: 156 | CO177: 2039-05-06 | CP177: 30 | CQ177: 4748 | CR177: 228640.5456 | CS177: 1439.399311 | CT177: 1647.886336 | CU177: 0 | CV177: 126 | CW177: 0 | CX177: 3213.285647 | CY177: 227201.1463 | CZ177: 0.3209120887 | DA177: 0.3209120887
B178: 157 | C178: 2039-06-06 | D178: 31 | E178: 4779 | F178: 227201.0442 | G178: 1938.35162 | H178: 1692.297883 | I178: 0 | J178: 126 | K178: 0 | L178: 3756.649503 | M178: 225262.6925 | N178: 0.3185394603 | O178: 0.3185394603 | Q178: =IFERROR(IF('Simulación Cliente'!$H$21="Simple",G178+H178+I178+J178+K178,AC178+AD178+AE178+AF178+AG178),"") -> 3756.649503 | R178: 4779 | S178: =IFERROR((1+'Simulación Cliente'!$E$21)^(R178/360),"") -> 1 | T178: 3756.65 | X178: 157 | Y178: 2039-06-06 | Z178: 31 | AA178: 4779 | AB178: 227201.1463 | AC178: 1394.987002 | AD178: 1692.298644 | AE178: 0 | AF178: 126 | AG178: 0 | AH178: 3213.285647 | AI178: 225806.1593 | AJ178: 0.3185394603 | AK178: 0.3185394603 | AO178: 157 | AP178: 2039-06-06 | AQ178: 31 | AR178: 4779 | AS178: 90026.72836 | AT178: 3434.221108 | AU178: 670.5604827 | AV178: 0 | AW178: 126 | AX178: 0 | AY178: 4230.78159 | AZ178: 86592.50725 | BA178: 0.3185394603 | BB178: 0.3185394603 | BF178: 157 | BG178: 2039-06-06 | BH178: 31 | BI178: 4779 | BJ178: 90026.92569 | BK178: 2822.276812 | BL178: 670.5619526 | BM178: 0 | BN178: 126 | BO178: 0 | BP178: 3618.838764 | BQ178: 87204.64888 | BR178: 0.3185394603 | BS178: 0.3185394603 | BW178: 157 | BX178: 2039-06-06 | BY178: 31 | BZ178: 4779 | CA178: 227201.0442 | CB178: 1938.35162 | CC178: 1692.297883 | CD178: 0 | CE178: 126 | CF178: 0 | CG178: 3756.649503 | CH178: 225262.6925 | CI178: 0.3185394603 | CJ178: 0.3185394603 | CN178: 157 | CO178: 2039-06-06 | CP178: 31 | CQ178: 4779 | CR178: 227201.1463 | CS178: 1394.987002 | CT178: 1692.298644 | CU178: 0 | CV178: 126 | CW178: 0 | CX178: 3213.285647 | CY178: 225806.1593 | CZ178: 0.3185394603 | DA178: 0.3185394603
B179: 158 | C179: 2039-07-06 | D179: 30 | E179: 4809 | F179: 225262.6925 | G179: 2007.108447 | H179: 1623.541056 | I179: 0 | J179: 126 | K179: 0 | L179: 3756.649503 | M179: 223255.5841 | N179: 0.3162600717 | O179: 0.3162600717 | Q179: =IFERROR(IF('Simulación Cliente'!$H$21="Simple",G179+H179+I179+J179+K179,AC179+AD179+AE179+AF179+AG179),"") -> 3756.649503 | R179: 4809 | S179: =IFERROR((1+'Simulación Cliente'!$E$21)^(R179/360),"") -> 1 | T179: 3756.65 | X179: 158 | Y179: 2039-07-06 | Z179: 30 | AA179: 4809 | AB179: 225806.1593 | AC179: 4673.113296 | AD179: 1627.457997 | AE179: 0 | AF179: 126 | AG179: 0 | AH179: 6426.571293 | AI179: 221133.046 | AJ179: 0.6325201433 | AK179: 0.3162600717 | AO179: 158 | AP179: 2039-07-06 | AQ179: 30 | AR179: 4809 | AS179: 86592.50725 | AT179: 3480.681394 | AU179: 624.1001965 | AV179: 0 | AW179: 126 | AX179: 0 | AY179: 4230.78159 | AZ179: 83111.82586 | BA179: 0.3162600717 | BB179: 0.3162600717 | BF179: 158 | BG179: 2039-07-06 | BH179: 30 | BI179: 4809 | BJ179: 87204.64888 | BK179: 6483.165429 | BL179: 628.5120992 | BM179: 0 | BN179: 126 | BO179: 0 | BP179: 7237.677528 | BQ179: 80721.48345 | BR179: 0.6325201433 | BS179: 0.3162600717 | BW179: 158 | BX179: 2039-07-06 | BY179: 30 | BZ179: 4809 | CA179: 225262.6925 | CB179: 2007.108447 | CC179: 1623.541056 | CD179: 0 | CE179: 126 | CF179: 0 | CG179: 3756.649503 | CH179: 223255.5841 | CI179: 0.3162600717 | CJ179: 0.3162600717 | CN179: 158 | CO179: 2039-07-06 | CP179: 30 | CQ179: 4809 | CR179: 225806.1593 | CS179: 4673.113296 | CT179: 1627.457997 | CU179: 0 | CV179: 126 | CW179: 0 | CX179: 6426.571293 | CY179: 221133.046 | CZ179: 0.6325201433 | DA179: 0.3162600717
B180: 159 | C180: 2039-08-06 | D180: 31 | E180: 4840 | F180: 223255.5841 | G180: 1967.739221 | H180: 1662.910282 | I180: 0 | J180: 126 | K180: 0 | L180: 3756.649503 | M180: 221287.8449 | N180: 0.3139218374 | O180: 0.3139218374 | Q180: =IFERROR(IF('Simulación Cliente'!$H$21="Simple",G180+H180+I180+J180+K180,AC180+AD180+AE180+AF180+AG180),"") -> 3756.649503 | R180: 4840 | S180: =IFERROR((1+'Simulación Cliente'!$E$21)^(R180/360),"") -> 1 | T180: 3756.65 | X180: 159 | Y180: 2039-08-06 | Z180: 31 | AA180: 4840 | AB180: 221133.046 | AC180: 1440.185005 | AD180: 1647.100642 | AE180: 0 | AF180: 126 | AG180: 0 | AH180: 3213.285647 | AI180: 219692.861 | AJ180: 0.3139218374 | AK180: 0.3139218374 | AO180: 159 | AP180: 2039-08-06 | AQ180: 31 | AR180: 4840 | AS180: 83111.82586 | AT180: 3485.726482 | AU180: 619.0551082 | AV180: 0 | AW180: 126 | AX180: 0 | AY180: 4230.78159 | AZ180: 79626.09938 | BA180: 0.3139218374 | BB180: 0.3139218374 | BF180: 159 | BG180: 2039-08-06 | BH180: 31 | BI180: 4840 | BJ180: 80721.48345 | BK180: 2891.588026 | BL180: 601.2507385 | BM180: 0 | BN180: 126 | BO180: 0 | BP180: 3618.838764 | BQ180: 77829.89543 | BR180: 0.3139218374 | BS180: 0.3139218374 | BW180: 159 | BX180: 2039-08-06 | BY180: 31 | BZ180: 4840 | CA180: 223255.5841 | CB180: 1967.739221 | CC180: 1662.910282 | CD180: 0 | CE180: 126 | CF180: 0 | CG180: 3756.649503 | CH180: 221287.8449 | CI180: 0.3139218374 | CJ180: 0.3139218374 | CN180: 159 | CO180: 2039-08-06 | CP180: 31 | CQ180: 4840 | CR180: 221133.046 | CS180: 1440.185005 | CT180: 1647.100642 | CU180: 0 | CV180: 126 | CW180: 0 | CX180: 3213.285647 | CY180: 219692.861 | CZ180: 0.3139218374 | DA180: 0.3139218374
B181: 160 | C181: 2039-09-06 | D181: 31 | E181: 4871 | F181: 221287.8449 | G181: 1982.395848 | H181: 1648.253655 | I181: 0 | J181: 126 | K181: 0 | L181: 3756.649503 | M181: 219305.449 | N181: 0.3116008907 | O181: 0.3116008907 | Q181: =IFERROR(IF('Simulación Cliente'!$H$21="Simple",G181+H181+I181+J181+K181,AC181+AD181+AE181+AF181+AG181),"") -> 3756.649503 | R181: 4871 | S181: =IFERROR((1+'Simulación Cliente'!$E$21)^(R181/360),"") -> 1 | T181: 3756.65 | X181: 160 | Y181: 2039-09-06 | Z181: 31 | AA181: 4871 | AB181: 219692.861 | AC181: 1450.912165 | AD181: 1636.373482 | AE181: 0 | AF181: 126 | AG181: 0 | AH181: 3213.285647 | AI181: 218241.9489 | AJ181: 0.3116008907 | AK181: 0.3116008907 | AO181: 160 | AP181: 2039-09-06 | AQ181: 31 | AR181: 4871 | AS181: 79626.09938 | AT181: 3511.689776 | AU181: 593.0918141 | AV181: 0 | AW181: 126 | AX181: 0 | AY181: 4230.78159 | AZ181: 76114.4096 | BA181: 0.3116008907 | BB181: 0.3116008907 | BF181: 160 | BG181: 2039-09-06 | BH181: 31 | BI181: 4871 | BJ181: 77829.89543 | BK181: 2913.125903 | BL181: 579.7128608 | BM181: 0 | BN181: 126 | BO181: 0 | BP181: 3618.838764 | BQ181: 74916.76952 | BR181: 0.3116008907 | BS181: 0.3116008907 | BW181: 160 | BX181: 2039-09-06 | BY181: 31 | BZ181: 4871 | CA181: 221287.8449 | CB181: 1982.395848 | CC181: 1648.253655 | CD181: 0 | CE181: 126 | CF181: 0 | CG181: 3756.649503 | CH181: 219305.449 | CI181: 0.3116008907 | CJ181: 0.3116008907 | CN181: 160 | CO181: 2039-09-06 | CP181: 31 | CQ181: 4871 | CR181: 219692.861 | CS181: 1450.912165 | CT181: 1636.373482 | CU181: 0 | CV181: 126 | CW181: 0 | CX181: 3213.285647 | CY181: 218241.9489 | CZ181: 0.3116008907 | DA181: 0.3116008907
B182: 161 | C182: 2039-10-06 | D182: 30 | E182: 4901 | F182: 219305.449 | G182: 2050.044227 | H182: 1580.605276 | I182: 0 | J182: 126 | K182: 0 | L182: 3756.649503 | M182: 217255.4048 | N182: 0.3093711527 | O182: 0.3093711527 | Q182: =IFERROR(IF('Simulación Cliente'!$H$21="Simple",G182+H182+I182+J182+K182,AC182+AD182+AE182+AF182+AG182),"") -> 3756.649503 | R182: 4901 | S182: =IFERROR((1+'Simulación Cliente'!$E$21)^(R182/360),"") -> 1 | T182: 3756.65 | X182: 161 | Y182: 2039-10-06 | Z182: 30 | AA182: 4901 | AB182: 218241.9489 | AC182: 1514.34536 | AD182: 1572.940287 | AE182: 0 | AF182: 126 | AG182: 0 | AH182: 3213.285647 | AI182: 216727.6035 | AJ182: 0.3093711527 | AK182: 0.3093711527 | AO182: 161 | AP182: 2039-10-06 | AQ182: 30 | AR182: 4901 | AS182: 76114.4096 | AT182: 3556.200431 | AU182: 548.581159 | AV182: 0 | AW182: 126 | AX182: 0 | AY182: 4230.78159 | AZ182: 72558.20917 | BA182: 0.3093711527 | BB182: 0.3093711527 | BF182: 161 | BG182: 2039-10-06 | BH182: 30 | BI182: 4901 | BJ182: 74916.76952 | BK182: 2952.889384 | BL182: 539.9493798 | BM182: 0 | BN182: 126 | BO182: 0 | BP182: 3618.838764 | BQ182: 71963.88014 | BR182: 0.3093711527 | BS182: 0.3093711527 | BW182: 161 | BX182: 2039-10-06 | BY182: 30 | BZ182: 4901 | CA182: 219305.449 | CB182: 2050.044227 | CC182: 1580.605276 | CD182: 0 | CE182: 126 | CF182: 0 | CG182: 3756.649503 | CH182: 217255.4048 | CI182: 0.3093711527 | CJ182: 0.3093711527 | CN182: 161 | CO182: 2039-10-06 | CP182: 30 | CQ182: 4901 | CR182: 218241.9489 | CS182: 1514.34536 | CT182: 1572.940287 | CU182: 0 | CV182: 126 | CW182: 0 | CX182: 3213.285647 | CY182: 216727.6035 | CZ182: 0.3093711527 | DA182: 0.3093711527
B183: 162 | C183: 2039-11-06 | D183: 31 | E183: 4932 | F183: 217255.4048 | G183: 2012.431316 | H183: 1618.218187 | I183: 0 | J183: 126 | K183: 0 | L183: 3756.649503 | M183: 215242.9735 | N183: 0.307083851 | O183: 0.307083851 | Q183: =IFERROR(IF('Simulación Cliente'!$H$21="Simple",G183+H183+I183+J183+K183,AC183+AD183+AE183+AF183+AG183),"") -> 3756.649503 | R183: 4932 | S183: =IFERROR((1+'Simulación Cliente'!$E$21)^(R183/360),"") -> 1 | T183: 3756.65 | X183: 162 | Y183: 2039-11-06 | Z183: 31 | AA183: 4932 | AB183: 216727.6035 | AC183: 1472.998767 | AD183: 1614.28688 | AE183: 0 | AF183: 126 | AG183: 0 | AH183: 3213.285647 | AI183: 215254.6047 | AJ183: 0.307083851 | AK183: 0.307083851 | AO183: 162 | AP183: 2039-11-06 | AQ183: 31 | AR183: 4932 | AS183: 72558.20917 | AT183: 3564.334674 | AU183: 540.4469168 | AV183: 0 | AW183: 126 | AX183: 0 | AY183: 4230.78159 | AZ183: 68993.8745 | BA183: 0.307083851 | BB183: 0.307083851 | BF183: 162 | BG183: 2039-11-06 | BH183: 31 | BI183: 4932 | BJ183: 71963.88014 | BK183: 2956.818683 | BL183: 536.0200807 | BM183: 0 | BN183: 126 | BO183: 0 | BP183: 3618.838764 | BQ183: 69007.06146 | BR183: 0.307083851 | BS183: 0.307083851 | BW183: 162 | BX183: 2039-11-06 | BY183: 31 | BZ183: 4932 | CA183: 217255.4048 | CB183: 2012.431316 | CC183: 1618.218187 | CD183: 0 | CE183: 126 | CF183: 0 | CG183: 3756.649503 | CH183: 215242.9735 | CI183: 0.307083851 | CJ183: 0.307083851 | CN183: 162 | CO183: 2039-11-06 | CP183: 31 | CQ183: 4932 | CR183: 216727.6035 | CS183: 1472.998767 | CT183: 1614.28688 | CU183: 0 | CV183: 126 | CW183: 0 | CX183: 3213.285647 | CY183: 215254.6047 | CZ183: 0.307083851 | DA183: 0.307083851
B184: 163 | C184: 2039-12-06 | D184: 30 | E184: 4962 | F184: 215242.9735 | G184: 2079.323802 | H184: 1551.325701 | I184: 0 | J184: 126 | K184: 0 | L184: 3756.649503 | M184: 213163.6497 | N184: 0.3048864358 | O184: 0.3048864358 | Q184: =IFERROR(IF('Simulación Cliente'!$H$21="Simple",G184+H184+I184+J184+K184,AC184+AD184+AE184+AF184+AG184),"") -> 3756.649503 | R184: 4962 | S184: =IFERROR((1+'Simulación Cliente'!$E$21)^(R184/360),"") -> 1 | T184: 3756.65 | X184: 163 | Y184: 2039-12-06 | Z184: 30 | AA184: 4962 | AB184: 215254.6047 | AC184: 4749.161762 | AD184: 1551.409532 | AE184: 0 | AF184: 126 | AG184: 0 | AH184: 6426.571293 | AI184: 210505.443 | AJ184: 0.6097728717 | AK184: 0.3048864358 | AO184: 163 | AP184: 2039-12-06 | AQ184: 30 | AR184: 4962 | AS184: 68993.8745 | AT184: 3607.52043 | AU184: 497.2611603 | AV184: 0 | AW184: 126 | AX184: 0 | AY184: 4230.78159 | AZ184: 65386.35407 | BA184: 0.3048864358 | BB184: 0.3048864358 | BF184: 163 | BG184: 2039-12-06 | BH184: 30 | BI184: 4962 | BJ184: 69007.06146 | BK184: 6614.321325 | BL184: 497.356203 | BM184: 0 | BN184: 126 | BO184: 0 | BP184: 7237.677528 | BQ184: 62392.74013 | BR184: 0.6097728717 | BS184: 0.3048864358 | BW184: 163 | BX184: 2039-12-06 | BY184: 30 | BZ184: 4962 | CA184: 215242.9735 | CB184: 2079.323802 | CC184: 1551.325701 | CD184: 0 | CE184: 126 | CF184: 0 | CG184: 3756.649503 | CH184: 213163.6497 | CI184: 0.3048864358 | CJ184: 0.3048864358 | CN184: 163 | CO184: 2039-12-06 | CP184: 30 | CQ184: 4962 | CR184: 215254.6047 | CS184: 4749.161762 | CT184: 1551.409532 | CU184: 0 | CV184: 126 | CW184: 0 | CX184: 6426.571293 | CY184: 210505.443 | CZ184: 0.6097728717 | DA184: 0.3048864358
B185: 164 | C185: 2040-01-06 | D185: 31 | E185: 4993 | F185: 213163.6497 | G185: 2042.908591 | H185: 1587.740912 | I185: 0 | J185: 126 | K185: 0 | L185: 3756.649503 | M185: 211120.7411 | N185: 0.3026322913 | O185: 0.3026322913 | Q185: =IFERROR(IF('Simulación Cliente'!$H$21="Simple",G185+H185+I185+J185+K185,AC185+AD185+AE185+AF185+AG185),"") -> 3756.649503 | R185: 4993 | S185: =IFERROR((1+'Simulación Cliente'!$E$21)^(R185/360),"") -> 1 | T185: 3756.65 | X185: 164 | Y185: 2040-01-06 | Z185: 31 | AA185: 4993 | AB185: 210505.443 | AC185: 1519.344281 | AD185: 1567.941366 | AE185: 0 | AF185: 126 | AG185: 0 | AH185: 3213.285647 | AI185: 208986.0987 | AJ185: 0.3026322913 | AK185: 0.3026322913 | AO185: 164 | AP185: 2040-01-06 | AQ185: 31 | AR185: 4993 | AS185: 65386.35407 | AT185: 3617.753949 | AU185: 487.0276411 | AV185: 0 | AW185: 126 | AX185: 0 | AY185: 4230.78159 | AZ185: 61768.60012 | BA185: 0.3026322913 | BB185: 0.3026322913 | BF185: 164 | BG185: 2040-01-06 | BH185: 31 | BI185: 4993 | BJ185: 62392.74013 | BK185: 3028.108937 | BL185: 464.7298275 | BM185: 0 | BN185: 126 | BO185: 0 | BP185: 3618.838764 | BQ185: 59364.63119 | BR185: 0.3026322913 | BS185: 0.3026322913 | BW185: 164 | BX185: 2040-01-06 | BY185: 31 | BZ185: 4993 | CA185: 213163.6497 | CB185: 2042.908591 | CC185: 1587.740912 | CD185: 0 | CE185: 126 | CF185: 0 | CG185: 3756.649503 | CH185: 211120.7411 | CI185: 0.3026322913 | CJ185: 0.3026322913 | CN185: 164 | CO185: 2040-01-06 | CP185: 31 | CQ185: 4993 | CR185: 210505.443 | CS185: 1519.344281 | CT185: 1567.941366 | CU185: 0 | CV185: 126 | CW185: 0 | CX185: 3213.285647 | CY185: 208986.0987 | CZ185: 0.3026322913 | DA185: 0.3026322913
B186: 165 | C186: 2040-02-06 | D186: 31 | E186: 5024 | F186: 211120.7411 | G186: 2058.125114 | H186: 1572.52439 | I186: 0 | J186: 126 | K186: 0 | L186: 3756.649503 | M186: 209062.616 | N186: 0.3003948126 | O186: 0.3003948126 | Q186: =IFERROR(IF('Simulación Cliente'!$H$21="Simple",G186+H186+I186+J186+K186,AC186+AD186+AE186+AF186+AG186),"") -> 3756.649503 | R186: 5024 | S186: =IFERROR((1+'Simulación Cliente'!$E$21)^(R186/360),"") -> 1 | T186: 3756.65 | X186: 165 | Y186: 2040-02-06 | Z186: 31 | AA186: 5024 | AB186: 208986.0987 | AC186: 1530.661056 | AD186: 1556.624591 | AE186: 0 | AF186: 126 | AG186: 0 | AH186: 3213.285647 | AI186: 207455.4376 | AJ186: 0.3003948126 | AK186: 0.3003948126 | AO186: 165 | AP186: 2040-02-06 | AQ186: 31 | AR186: 5024 | AS186: 61768.60012 | AT186: 3644.700645 | AU186: 460.0809456 | AV186: 0 | AW186: 126 | AX186: 0 | AY186: 4230.78159 | AZ186: 58123.89947 | BA186: 0.3003948126 | BB186: 0.3003948126 | BF186: 165 | BG186: 2040-02-06 | BH186: 31 | BI186: 5024 | BJ186: 59364.63119 | BK186: 3050.663685 | BL186: 442.1750793 | BM186: 0 | BN186: 126 | BO186: 0 | BP186: 3618.838764 | BQ186: 56313.96751 | BR186: 0.3003948126 | BS186: 0.3003948126 | BW186: 165 | BX186: 2040-02-06 | BY186: 31 | BZ186: 5024 | CA186: 211120.7411 | CB186: 2058.125114 | CC186: 1572.52439 | CD186: 0 | CE186: 126 | CF186: 0 | CG186: 3756.649503 | CH186: 209062.616 | CI186: 0.3003948126 | CJ186: 0.3003948126 | CN186: 165 | CO186: 2040-02-06 | CP186: 31 | CQ186: 5024 | CR186: 208986.0987 | CS186: 1530.661056 | CT186: 1556.624591 | CU186: 0 | CV186: 126 | CW186: 0 | CX186: 3213.285647 | CY186: 207455.4376 | CZ186: 0.3003948126 | DA186: 0.3003948126
B187: 166 | C187: 2040-03-06 | D187: 29 | E187: 5053 | F187: 209062.616 | G187: 2174.26823 | H187: 1456.381273 | I187: 0 | J187: 126 | K187: 0 | L187: 3756.649503 | M187: 206888.3477 | N187: 0.2983166658 | O187: 0.2983166658 | Q187: =IFERROR(IF('Simulación Cliente'!$H$21="Simple",G187+H187+I187+J187+K187,AC187+AD187+AE187+AF187+AG187),"") -> 3756.649503 | R187: 5053 | S187: =IFERROR((1+'Simulación Cliente'!$E$21)^(R187/360),"") -> 1 | T187: 3756.65 | X187: 166 | Y187: 2040-03-06 | Z187: 29 | AA187: 5053 | AB187: 207455.4376 | AC187: 1642.100371 | AD187: 1445.185276 | AE187: 0 | AF187: 126 | AG187: 0 | AH187: 3213.285647 | AI187: 205813.3373 | AJ187: 0.2983166658 | AK187: 0.2983166658 | AO187: 166 | AP187: 2040-03-06 | AQ187: 29 | AR187: 5053 | AS187: 58123.89947 | AT187: 3699.876303 | AU187: 404.9052878 | AV187: 0 | AW187: 126 | AX187: 0 | AY187: 4230.78159 | AZ187: 54424.02317 | BA187: 0.2983166658 | BB187: 0.2983166658 | BF187: 166 | BG187: 2040-03-06 | BH187: 29 | BI187: 5053 | BJ187: 56313.96751 | BK187: 3100.541905 | BL187: 392.2968594 | BM187: 0 | BN187: 126 | BO187: 0 | BP187: 3618.838764 | BQ187: 53213.4256 | BR187: 0.2983166658 | BS187: 0.2983166658 | BW187: 166 | BX187: 2040-03-06 | BY187: 29 | BZ187: 5053 | CA187: 209062.616 | CB187: 2174.26823 | CC187: 1456.381273 | CD187: 0 | CE187: 126 | CF187: 0 | CG187: 3756.649503 | CH187: 206888.3477 | CI187: 0.2983166658 | CJ187: 0.2983166658 | CN187: 166 | CO187: 2040-03-06 | CP187: 29 | CQ187: 5053 | CR187: 207455.4376 | CS187: 1642.100371 | CT187: 1445.185276 | CU187: 0 | CV187: 126 | CW187: 0 | CX187: 3213.285647 | CY187: 205813.3373 | CZ187: 0.2983166658 | DA187: 0.2983166658
B188: 167 | C188: 2040-04-06 | D188: 31 | E188: 5084 | F188: 206888.3477 | G188: 2089.649926 | H188: 1540.999577 | I188: 0 | J188: 126 | K188: 0 | L188: 3756.649503 | M188: 204798.6978 | N188: 0.2961110942 | O188: 0.2961110942 | Q188: =IFERROR(IF('Simulación Cliente'!$H$21="Simple",G188+H188+I188+J188+K188,AC188+AD188+AE188+AF188+AG188),"") -> 3756.649503 | R188: 5084 | S188: =IFERROR((1+'Simulación Cliente'!$E$21)^(R188/360),"") -> 1 | T188: 3756.65 | X188: 167 | Y188: 2040-04-06 | Z188: 31 | AA188: 5084 | AB188: 205813.3373 | AC188: 1554.293242 | AD188: 1532.992405 | AE188: 0 | AF188: 126 | AG188: 0 | AH188: 3213.285647 | AI188: 204259.044 | AJ188: 0.2961110942 | AK188: 0.2961110942 | AO188: 167 | AP188: 2040-04-06 | AQ188: 31 | AR188: 5084 | AS188: 54424.02317 | AT188: 3699.406432 | AU188: 405.3751582 | AV188: 0 | AW188: 126 | AX188: 0 | AY188: 4230.78159 | AZ188: 50724.61674 | BA188: 0.2961110942 | BB188: 0.2961110942 | BF188: 167 | BG188: 2040-04-06 | BH188: 31 | BI188: 5084 | BJ188: 53213.4256 | BK188: 3096.480693 | BL188: 396.3580707 | BM188: 0 | BN188: 126 | BO188: 0 | BP188: 3618.838764 | BQ188: 50116.94491 | BR188: 0.2961110942 | BS188: 0.2961110942 | BW188: 167 | BX188: 2040-04-06 | BY188: 31 | BZ188: 5084 | CA188: 206888.3477 | CB188: 2089.649926 | CC188: 1540.999577 | CD188: 0 | CE188: 126 | CF188: 0 | CG188: 3756.649503 | CH188: 204798.6978 | CI188: 0.2961110942 | CJ188: 0.2961110942 | CN188: 167 | CO188: 2040-04-06 | CP188: 31 | CQ188: 5084 | CR188: 205813.3373 | CS188: 1554.293242 | CT188: 1532.992405 | CU188: 0 | CV188: 126 | CW188: 0 | CX188: 3213.285647 | CY188: 204259.044 | CZ188: 0.2961110942 | DA188: 0.2961110942
